Workbook

Sheet LDC Info
AA3: Algoma Power Inc.
AA4: Atikokan Hydro Inc.
AA5: Attawapiskat Power Corporation
AA6: Bluewater Power Distribution Corp.
AA7: Brant County Power
AA8: Brantford Power Inc.
AA9: Burlington Hydro Inc.
AA10: Cambridge and North Dumfries Hydro
AA11: Canadian Niagara Power Inc. – Eastern Ontario Power/Fort Erie/Port Colborne
AA12: Centre Wellington Hydro Ltd.
AA13: Chapleau Public Utilities Corporation
D14: Utility Name | E14: Kingston Hydro Corporation | AA14: COLLUS Power Corp.
AA15: Cooperative Hydro Embrun Inc.
D16: Assigned EB Number | E16: EB-2015-0083 | AA16: E.L.K. Energy Inc.
AA17: Enersource Hydro Mississauga Inc.
D18: Name of Contact and Title | E18: Randy Murphy, Chief Financial Officer | AA18: Entegrus Powerlines Inc.
AA19: ENWIN Utilities Ltd.
D20: Phone Number | E20: 613-546-1181 ext 2317 | AA20: Erie Thames Powerlines Corp.
AA21: Espanola Regional Hydro Distribution Corporation
D22: Email Address | E22: rmurphy@kingstonhydro.com | AA22: Essex Powerlines Corporation
AA23: Festival Hydro Inc.
D24: Test Year | E24: 2016 | H24: Test Years 2016 - 2020 | AA24: Fort Albany Power Corporation
AA25: Fort Frances Power Corporation
D26: Bridge Year | E26: =IF(ISBLANK(E24), "", E24-1) -> 2015 | AA26: Greater Sudbury Hydro Inc.
AA27: Grimsby Power Inc.
D28: Last Rebasing Year | E28: 2011 | AA28: Guelph Hydro Electric Systems Inc.
AA29: Haldimand County Hydro Inc.
A30: Identify the accounting standard used for the test year
E31: CGAAP
A33: Did you update your depreciation and capitalization policies?
E34: Yes
A36: When did you update your depreciation and capitalization policies?
E37: 2001-01-01 | F37: 2013
A39: Identify the year that the applicant has adopted or is expected to adopt IFRS for financial reporting purposes
E40: 2015 or Later
A43: Are you applying for cost recovery for the test and/or future year(s) for Green Energy initiatives?
E44: No
A46: ="Is " & E14 & " an embedded distributor?" -> Is Kingston Hydro Corporation an embedded distributor? | E46: Yes
E47: Note: Kingston is partially embedded.
B49: Notes | AA49: Guelph Hydro Electric Systems Inc.
AA50: Halton Hills Hydro Inc.
C51: Pale green cells represent input cells. | AA51: Hearst Power Distribution Co. Ltd.
AA52: Horizon Utilities Corporation
C53: Pale blue cells represent drop-down lists. The applicant should select the appropriate item from the drop-down list. | AA53: Hydro 2000 Inc.
AA54: Hydro Hawkesbury Inc.
C55: White cells contain fixed values, automatically generated values or formulae. | AA55: Hydro One Brampton Networks Inc.
AA56: Hydro One Networks Inc.
AA57: Hydro One Remote Communities Inc.
AA58: Hydro Ottawa Limited
AA59: Innisfil Hydro Dist. Systems Limited
AA60: Kashechewan Power Corporation
AA61: Kenora Hydro Electric Corporation Ltd.
AA62: Kingston Hydro Corporation
AA63: Kitchener-Wilmot Hydro Inc.
AA64: Lakefront Utilities Inc.
AA65: Lakeland Power Distribution Ltd.
AA66: London Hydro Inc.
AA67: Midland Power Utility Corporation
AA68: Milton Hydro Distribution Inc.
AA69: Newmarket – Tay Power Distribution Ltd.
AA70: Niagara Peninsula Energy Inc.
AA71: Niagara-on-the-Lake Hydro Inc.
AA72: Norfolk Power Distribution Ltd.
AA73: North Bay Hydro Distribution Limited
AA74: Northern Ontario Wires Inc.
AA75: Oakville Hydro Distribution Inc.
AA76: Orangeville Hydro Limited
AA77: Orillia Power Distribution Corp.
AA78: Oshawa PUC Networks Inc.
AA79: Ottawa River Power Corporation
AA80: Parry Sound Power Corporation
AA81: Peterborough Distribution Inc.
AA82: PowerStream Inc.
AA83: PUC Distribution Inc.
AA84: Renfrew Hydro Inc.
AA85: Rideau St. Lawrence Distribution Inc.
AA86: St. Thomas Energy Inc.
AA87: Sioux Lookout Hydro Inc.
AA88: Thunder Bay Hydro Electricity Distribution
AA89: Tillsonburg Hydro Inc.
AA90: Toronto Hydro-Electric System Limited
AA91: Veridian Connections Inc.
AA92: Wasaga Distribution Inc.
AA93: Waterloo North Hydro Inc.
AA94: Welland Hydro Electric System Corp.
AA95: Wellington North Power Inc.
AA96: West Coast Huron Energy Inc.
AA97: Westario Power Inc.
AA98: Whitby Hydro Electric Corporation
AA99: Woodstock Hydro Services Inc.

Sheet App.2-AA_Capital Projects
G1: File Number: | H1: =EBNUMBER -> EB-2015-0083
G2: Exhibit: | H2: 2
G3: Tab: | H3: 2
G4: Schedule: | H4: 3
G5: Page:
G7: Date: | H7: 2015-04-13
A9: Appendix 2-AA
A10: Capital Projects Table
A13: Projects | B13: =C13-1 -> 2010 | C13: =D13-1 -> 2011 | D13: =E13-1 -> 2012 | E13: 2013 | F13: 2014 | G13: 2015 Bridge
A14: Reporting Basis | B14: CGAAP | C14: CGAAP | D14: CGAAP | E14: CGAAP | F14: CGAAP | G14: MIFRS
A15: System Access
A16: Princess St. Reconstruction - Phase 1 | B16: 757094
A17: Barrie St. Reconstruction | B17: 169158
A18: Meters | B18: 278100 | D18: 128620 | E18: 82571 | F18: 267672 | G18: 300000
A19: Pole Replacement - Pine & Division St | C19: 96390 | D19: 199816
A20: Johnson- Victoria to Division 44kV Extension | D20: 286345
A21: New Transformer Vault TV82 on Queen st | E21: 79275 | F21: 242188
A22: RNI Upgrades | E22: 85305
A23: King-Centre St 44kV Line Extension | D23: 71573 | E23: 55622
A24: Williamsville-Transferring OH Secondary Service to UG | E24: 354584
A25: Substation No.1 Rebuild | G25: 40000
A26: Princess St Reconstruction-Phase 3 | G26: 66000
A27: Miscellaneous | B27: 66975 | C27: 76793 | D27: 57569 | E27: 86199 | F27: 64100 | G27: 96000
A28: Sub-Total | B28: =SUM(B16:B27) -> 1271327 | C28: 173183 | D28: 743923 | E28: 743556 | F28: 573960 | G28: 502000
A29: System Renewal
A30: Transformer Vault 12 (TV12) & Circuit 103 Upgrade | B30: 345797
A31: Transformer Vault 10 (TV10) Upgrade | B31: 199018
A32: Annual Deteriorated Pole Replacement - Spot Replacement | B32: 891045 | C32: 924723 | D32: 842295 | E32: 971540 | F32: 807602
A33: Pole Replacement - Wellington St | B33: 153768
A34: Pole Replacement - Brock, Alfred & Palace | B34: 259273 | C34: 103480
A35: Pole Replacement - Fairway Hill Cres | B35: 92205
A36: Pole Replacement - Weller Ave | B36: 94606
A37: Transformer Purchases | B37: -132408 | C37: 510556 | D37: 189241 | E37: 162541 | F37: 167771
A38: Substation No.11 Circuit Breaker Upgrade | C38: 1644010
A39: Secondary Underground Network Upgrade - Alfred Street | C39: 645370
A40: Substation No.8 Transformer Upgrade | B40: 26597 | C40: 256684
A41: Transformer Vault TV41 Upgrades | C41: 96116 | D41: 105630
A42: Substation No.3 Circuit Breaker Upgrade | C42: 1064406
A43: Transformer Vault TV7 Upgrades | C43: 16199 | D43: 157761 | E43: 68602
A44: Substation No.1 Rebuild | D44: 162336 | E44: 50214 | F44: 3666 | G44: 320000
A45: Substation No.11 44kV Riser Upgrade | C45: 53083 | D45: 80249
A46: 44kV Cable Replacement - Concession St at Princess | E46: 48552 | F46: 170054
A47: Pole Replacement - Kingscourt Ave | E47: 101798
A48: Pole Replacement - Portsmouth-Miles to Johnson | E48: 110272
A49: Pole Replacement - Willingdon-Johnson to Hill | E49: 93953
A50: Princess St Reconstruction - Phase 2 | E50: 2014223
A51: Pole Replacement - Portsmouth-Phillips to Fairvw | F51: 129405
A52: Pole Replacement - Bagot-Catarqui | F52: 105434
A53: Pole Replacement - Union St Rebuild | F53: 293265
A54: Pole Replacement - Rideau St Rebuild | F54: 117620
A55: Substation No.10 Riser Poles | F55: 68690
A56: Reconstruction of 5kV Cables- Princess, King to Bagot | F56: 77895
A57: 5kV Faulted Cable Replacement - King St-Clarence to Johnson | F57: 129163
A58: 5kV Faulted Cable Replacement -TV15 to TV16 on Johnson St | F58: 158709
A59: Princess St Condition Assessment | F59: 74207
A60: Transformer Vault TV#8 Upgrade | G60: 308000
A61: Transformer Vault TV#9 Upgrade | G61: 376000
A62: Substation No. 10 44kV Riser PILC Cable Replacement | G62: 135000
A63: Deteriorated Overhead Infrastructure Replacement Program | G63: 847000
A64: Reactive 5kV Cable Replacement | G64: 70000
A65: 5kV Cable Replacement on Seafirth | G65: 165000
A66: 5kV 306 Circuit Cable Replacement | G66: 70000
A67: Princess St Reconstruction-Phase 3 | G67: 231000
A68: Miscellaneous | B68: 89697 | C68: 139542 | D68: 56258 | E68: 0 | F68: 102679 | G68: 99000
A69: Sub-Total | B69: =SUM(B30:B68) -> 2019598 | C69: 5454169 | D69: 1593770 | E69: 3621695 | F69: 2406160 | G69: 2621000
A70: System Service
A71: Hydro One Incremental Cost for Gardiner TS Expansion | B71: -121000
A72: Distribution System Modeling | B72: 82100
A73: SCADA | B73: 82328 | D73: 249578
A74: Substation No.12 Relay Upgrade | C74: 157974
A75: Substation No.2 Relay Upgrade | D75: 126218 | E75: 13420
A76: 44kV Motor Operated Switch | D76: 72712 | E76: 2822 | F76: 10050
A77: Substation No.6 Relay Upgrade | F77: 104131
A78: Substation No.8 Relay Upgrade | F78: 115988
A79: Substation No.1 Rebuild | G79: 40000
A80: Transformer Vault TV#8 Upgrade | G80: 77000
A81: Transformer Vault TV#9 Upgrade | G81: 94000
A82: Princess St Reconstruction-Phase 3 | G82: 33000
A83: Miscellaneous | B83: 249 | C83: 89511 | D83: 48331 | E83: 54403 | F83: 17993 | G83: 60000
A84: Sub-Total | B84: =SUM(B71:B83) -> 43677 | C84: 247485 | D84: 496839 | E84: 70645 | F84: 248162 | G84: 304000
A85: General Plant
A86: Tools & Equipment | B86: 214381 | F86: 206133
A87: Vehicle Modifications/Upgrades | B87: 177652 | C87: 168314 | D87: 906159 | E87: 89265 | F87: 157007 | G87: 69000
A88: Substation No.11 and No.3 - Close-out Documentation | C88: 18949 | D88: 71192 | E88: 26539
A89: Substation No.11 and No.3 - Critical Spare Breakers | D89: 66298
A90: Miscellaneous | B90: 126497 | C90: 107753 | D90: 85867 | E90: 92075 | F90: 21422 | G90: 104000
A91: Sub-Total | B91: =SUM(B86:B90) -> 518530 | C91: 295016 | D91: 1129516 | E91: 207879 | F91: 384562 | G91: 173000
A92: Total | B92: =SUM(B86:B90) -> 518530 | C92: =C28+C69+C84+C91 -> 6169853 | D92: =D28+D69+D84+D91 -> 3964048 | E92: =E28+E69+E84+E91 -> 4643775 | F92: =F28+F69+F84+F91 -> 3612844 | G92: =G28+G69+G84+G91 -> 3600000
A93: Less Renewable Generation Facility Assets and Other Non Rate-Regulated Utility Assets (input as negative)
A94: Total | B94: =B28+B69+B84+B91 -> 3853132 | C94: =C92+C93 -> 6169853 | D94: 3964048 | E94: 4643775 | F94: 3612844 | G94: 3600000
A97: Notes:
A99: 1 Please provide a breakdown of the major components of each capital project undertaken in each year. Please ensure that all projects below the materiality threshold are included in the miscellaneous line. Add more projects as required.
A100: 2 The applicant should group projects appropriately and avoid presentations that result in classification of significant components of the capital budget in the miscellaneous category.

Sheet App.2-AB_Capital Expenditures
S1: File Number: | U1: =EBNUMBER -> EB-2015-0083
S2: Exhibit: | U2: 2
S3: Tab: | U3: 2
S4: Schedule: | U4: 3
S5: Page: | U5: 1
S7: Date: | U7: 2015-04-13
A9: Appendix 2-AB
A10: Table 2 - Capital Expenditure Summary from Chapter 5 Consolidated Distribution System Plan Filing Requirements
A12: First year of Forecast Period: | B12: 2015
A13: CATEGORY | B13: Historical Period (previous plan1 & actual) | Q13: Forecast Period (planned)
B14: =E14-1 -> 2010 | E14: =H14-1 -> 2011 | H14: =K14-1 -> 2012 | K14: =N14-1 -> 2013 | N14: =Q14-1 -> 2014 | Q14: =B12 -> 2015 | R14: =Q14+1 -> 2016 | S14: =R14+1 -> 2017 | T14: 2018 | U14: 2019 | V14: 2020
B15: Plan | C15: Actual | D15: Var | E15: Plan | F15: Actual | G15: Var | H15: Plan | I15: Actual | J15: Var | K15: Plan | L15: Actual | M15: Var | N15: Plan | O15: Actual | P15: Var
B16: $ '000 | D16: % | E16: $ '000 | G16: % | H16: $ '000 | J16: % | K16: $ '000 | M16: % | N16: $ '000 | P16: % | Q16: $ '000
A17: System Access | C17: 1271327 | D17: =IF(ISERROR((C17-B17)/B17),"--",(C17-B17)/B17) -> -- | F17: 173183 | G17: =IF(ISERROR((F17-E17)/E17),"--",(F17-E17)/E17) -> -- | I17: 743923 | J17: =IF(ISERROR((I17-H17)/H17),"--",(I17-H17)/H17) -> -- | L17: 743556 | M17: =IF(ISERROR((L17-K17)/K17),"--",(L17-K17)/K17) -> -- | O17: 573960 | P17: =IF(ISERROR((O17-N17)/N17),"--",(O17-N17)/N17) -> -- | Q17: 502000 | R17: 1051000 | S17: 491000 | T17: 565400 | U17: 495800 | V17: 544900
A18: System Renewal | C18: 2019598 | D18: =IF(ISERROR((C18-B18)/B18),"--",(C18-B18)/B18) -> -- | F18: 5454169 | G18: =IF(ISERROR((F18-E18)/E18),"--",(F18-E18)/E18) -> -- | I18: 1593770 | J18: =IF(ISERROR((I18-H18)/H18),"--",(I18-H18)/H18) -> -- | L18: 3621695 | M18: =IF(ISERROR((L18-K18)/K18),"--",(L18-K18)/K18) -> -- | O18: 2406160 | P18: =IF(ISERROR((O18-N18)/N18),"--",(O18-N18)/N18) -> -- | Q18: 2621000 | R18: 3409000 | S18: 2077000 | T18: 2876200 | U18: 2983400 | V18: 2902200
A19: System Service | C19: 43677 | D19: -- | F19: 247485 | G19: -- | I19: 496839 | J19: -- | L19: 70645 | M19: -- | O19: 248162 | P19: -- | Q19: 304000 | R19: 327000 | S19: 159000 | T19: 421400 | U19: 293800 | V19: 431900
A20: General Plant | C20: 518530 | D20: -- | F20: 295016 | G20: -- | I20: 1129516 | J20: -- | L20: 207879 | M20: -- | O20: 384562 | P20: -- | Q20: 173000 | R20: 863000 | S20: 322000 | T20: 406000 | U20: 427000 | V20: 321000
A21: TOTAL EXPENDITURE | B21: =SUM(B17:B20) -> 0 | C21: =SUM(C17:C20) -> 3853132 | D21: -- | E21: 0 | F21: 6169853 | G21: -- | H21: 0 | I21: 3964048 | J21: -- | K21: 0 | L21: 4643775 | M21: -- | N21: 0 | O21: 3612844 | P21: -- | Q21: 3600000 | R21: 5650000 | S21: 3049000 | T21: 4269000 | U21: =SUM(U17:U20) -> 4200000 | V21: =SUM(V17:V20) -> 4200000
A22: System O&M | C22: 3344858 | D22: -- | F22: 3415756 | G22: -- | I22: 3212599 | J22: -- | L22: 3888080 | M22: -- | O22: 3051338 | P22: -- | Q22: 3204043 | R22: 3300165 | S22: 3389269 | T22: 3480779 | U22: 3574760 | V22: 3671279
A24: Notes to the Table:
A25: 1. Historical “previous plan” data is not required unless a plan has previously been filed
A26: 2. Indicate the number of months of 'actual' data included in the last year of the Historical Period (normally a 'bridge' year):
A28: Explanatory Notes on Variances (complete only if applicable)
A29: Notes on shifts in forecast vs. historical budgets by category
A32: Notes on year over year Plan vs. Actual variances for Total Expenditures
A35: Notes on Plan vs. Actual variance trends for individual expenditure categories

Sheet App. 2-AC_Customer Engagement
B1: File Number: | C1: =EBNUMBER -> EB-2015-0083
B2: Exhibit:
B3: Tab:
B4: Schedule:
B5: Page:
B7: Date: | C7: 2015-Jun-01
A9: Appendix 2-AC
A10: Customer Engagement Activities Summary
A12: Provide a list of customer engagement activities | B12: Provide a list of customer needs and preferences identified through each engagement activity | C12: Actions taken to respond to identified needs and preferences. If no action was taken, explain why.
A13: Please refer to Exhbit 1.4.1 attachment 1 of the Application | B13: 1, Please refer to Exhibit 1.4.1 attachment 1 of the Application 2. | C13: Please refer to Exhibit 1.4.1 attachment 1 of the Application
B14: 1, 2.
B15: 1, 2.
B16: 1, 2.
B17: 1, 2.
A45: Note: Use "ALT-ENTER" to go to the next line within a cell

Sheet App. 2-BA _FA Continuity Sched
B7: Filed in Separate Excel File

Sheet Appendix 2-BB Service Life
M1: File Number: | O1: EB-2015-0083
M2: Exhibit:
M3: Tab:
M4: Schedule:
M5: Page:
M7: Date: | O7: 2015-June-01
A9: Appendix 2-BB
A10: Service Life Comparison
A11: Table F-1 from Kinetrics Report1
C15: Asset Details | F15: Useful Life | J15: USoA Account Number | K15: USoA Account Description | L15: Current | N15: Proposed | P15: Outside Range of Min, Max TUL?
A16: Parent* | B16: # | C16: Category| Component | Type | F16: MIN UL | G16: TUL | H16: MAX UL | L16: Years | M16: Rate | N16: Years | O16: Rate | P16: Below Min TUL | Q16: Above Max TUL
A17: OH | B17: 1 | C17: Fully Dressed Wood Poles | D17: Overall | F17: 35 | G17: 45 | H17: 75 | J17: 1830 | K17: Poles, Towers & Fixtures | L17: 25 | M17: =IF(ISERROR(1/L17), "", 1/L17) -> 0.04 | N17: 45 | O17: =IF(ISERROR(1/N17), "", 1/N17) -> 0.02222222222 | P17: =IF(ISBLANK(N17),"",IF(N17<F17,"Yes","No")) -> No | Q17: =IF(ISBLANK(N17),"",IF(N17>H17,"Yes","No")) -> No
D18: Cross Arm | E18: Wood | F18: 20 | G18: 40 | H18: 55 | M18: =IF(ISERROR(1/L18), "", 1/L18) ->  | O18: =IF(ISERROR(1/N18), "", 1/N18) ->  | P18: =IF(ISBLANK(N18),"",IF(N18<F18,"Yes","No")) ->  | Q18: =IF(ISBLANK(N18),"",IF(N18>H18,"Yes","No")) -> 
E19: Steel | F19: 30 | G19: 70 | H19: 95
B20: 2 | C20: Fully Dressed Concrete Poles | D20: Overall | F20: 50 | G20: 60 | H20: 80
D21: Cross Arm | E21: Wood | F21: 20 | G21: 40 | H21: 55
E22: Steel | F22: 30 | G22: 70 | H22: 95
B23: 3 | C23: Fully Dressed Steel Poles | D23: Overall | F23: 60 | G23: 60 | H23: 80
D24: Cross Arm | E24: Wood | F24: 20 | G24: 40 | H24: 55
E25: Steel | F25: 30 | G25: 70 | H25: 95
B26: 4 | C26: OH Line Switch | F26: 30 | G26: 45 | H26: 55 | J26: 1835 | K26: Overhead Conductors & Devices | L26: 25 | M26: 0.04 | N26: 45 | O26: 0.02222222222 | P26: No | Q26: No
B27: 5 | C27: OH Line Switch Motor | F27: 15 | G27: 25 | H27: 25
B28: 6 | C28: OH Line Switch RTU | F28: 15 | G28: 20 | H28: 20
B29: 7 | C29: OH Integral Switches | F29: 35 | G29: 45 | H29: 60
B30: 8 | C30: OH Conductors | F30: 50 | G30: 60 | H30: 75 | J30: 1835 | K30: Overhead Conductors & Devices | L30: 25 | M30: =IF(ISERROR(1/L30), "", 1/L30) -> 0.04 | N30: 60 | O30: 0.01666666667 | P30: =IF(ISBLANK(N30),"",IF(N30<F30,"Yes","No")) -> No | Q30: No
B31: 9 | C31: OH Transformers & Voltage Regulators | F31: 30 | G31: 40 | H31: 60 | J31: 1850 | K31: Line Transformers | L31: 25 | M31: =IF(ISERROR(1/L31), "", 1/L31) -> 0.04 | N31: 40 | O31: 0.025 | P31: No | Q31: No
B32: 10 | C32: OH Shunt Capacitor Banks | F32: 25 | G32: 30 | H32: 40
B33: 11 | C33: Reclosers | F33: 25 | G33: 40 | H33: 55
C34: OH SERVICES | F34: 50 | G34: 60 | H34: 75 | J34: 1855 | K34: Services (Overhead & Underground) | L34: 25 | M34: 0.04 | N34: 60 | O34: 0.01666666667 | P34: No | Q34: No | R34: Useful life more in line with conductors. Kinectrics didn't specific useful life for OH services
A35: TS & MS | B35: 12 | C35: Power Transformers | D35: Overall | F35: 30 | G35: 45 | H35: 60 | J35: 1820 | K35: Distribution Station Equipment <50 kV | L35: 30 | M35: 0.03333333333 | N35: 50 | O35: 0.02 | P35: No | Q35: No | R35: Our experience is that we replace the bushing and tap changer when we replace the transformer. Therefore did not componentize the power transformers. Used high end of overall transformer midpoint.
D36: Bushing | F36: 10 | G36: 20 | H36: 30
D37: Tap Changer | F37: 20 | G37: 30 | H37: 60
B38: 13 | C38: Station Service Transformer | F38: 30 | G38: 45 | H38: 55 | J38: 1820 | K38: Distribution Station Equipment <50 kV | L38: 30 | M38: 0.03333333333 | N38: 50 | O38: 0.02 | P38: No | Q38: No
B39: 14 | C39: Station Grounding Transformer | F39: 30 | G39: 40 | H39: 40
B40: Cambridge | C40: Station Grounding System (9) | D40: Ground Grid | F40: 25 | G40: 40 | H40: 50 | J40: 1820 | K40: Distribution Station Equipment <50 kV | L40: 30 | M40: 0.03333333333 | N40: 50 | O40: 0.02 | P40: No | Q40: No
B41: Cambridge | D41: Arresters | F41: 10 | G41: 20 | H41: 30 | J41: 1820 | K41: Distribution Station Equipment <50 kV | L41: 30 | M41: 0.03333333333 | N41: 20 | O41: 0.05 | P41: No | Q41: No
B42: 15 | C42: Station DC System | D42: Overall | F42: 10 | G42: 20 | H42: 30 | J42: 1820 | K42: Distribution Station Equipment <50 kV | L42: 30 | M42: 0.03333333333 | N42: 20 | O42: 0.05 | P42: No | Q42: No | R42: Our experience is that we replace the whole DC system and not by component. Therefore did not componentize Station DC System. Used high end of overall Station DC System midpoint.
D43: Battery Bank | F43: 10 | G43: 15 | H43: 15
D44: Charger | F44: 20 | G44: 20 | H44: 30
B45: 16 | C45: Station Metal Clad Switchgear | D45: Overall | F45: 30 | G45: 40 | H45: 60 | J45: 1820 | K45: Distribution Station Equipment <50 kV | L45: 30 | M45: 0.03333333333 | N45: 50 | O45: 0.02 | P45: No | Q45: No
D46: Removable Breaker | F46: 25 | G46: 40 | H46: 60
B47: 17 | C47: Station Independent Breakers | F47: 35 | G47: 45 | H47: 65 | J47: 1820 | K47: Distribution Station Equipment <50 kV | L47: 30 | M47: 0.03333333333 | N47: 50 | O47: 0.02 | P47: No | Q47: No
B48: 18 | C48: Station Switch | F48: 30 | G48: 50 | H48: 60 | J48: 1820 | K48: Distribution Station Equipment <50 kV | L48: 30 | M48: 0.03333333333 | N48: 50 | O48: 0.02 | P48: No | Q48: No
B49: 19 | C49: Electromechanical Relays | F49: 25 | G49: 35 | H49: 50
B50: 20 | C50: Solid State Relays | F50: 10 | G50: 30 | H50: 45
B51: 21 | C51: Digital & Numeric Relays | F51: 15 | G51: 20 | H51: 20 | J51: 1820 | K51: Distribution Station Equipment <50 kV | L51: 30 | M51: 0.03333333333 | N51: 20 | O51: 0.05 | P51: No | Q51: No
B52: 22 | C52: Rigid Busbars | F52: 30 | G52: 55 | H52: 60 | J52: 1820 | K52: Distribution Station Equipment <50 kV | L52: 30 | M52: 0.03333333333 | N52: 50 | O52: 0.02 | P52: No | Q52: No
B53: 29 | C53: Primary TR XLPE Cables In Duct | F53: 35 | G53: 40 | H53: 55 | J53: 1820 | K53: Distribution Station Equipment <50 kV | L53: 30 | M53: 0.03333333333 | N53: 50 | O53: 0.02 | P53: No | Q53: No | R53: line 29 was on Original Kinetrics report but was not on the appendix template, Leisha conversation with Meghana in 2012, we use TR XLPE cable now
B54: 37 | C54: UG Vaults- Overall | F54: 40 | G54: 60 | H54: 80 | J54: 1820 | K54: Distribution Station Equipment <50 kV | L54: 30 | M54: 0.03333333333 | N54: 60 | O54: 0.01666666667 | P54: No | Q54: No
B55: 41 | C55: Concrete Encased Duct Banks | F55: 35 | G55: 55 | H55: 80 | J55: 1820 | K55: Distribution Station Equipment <50 kV | L55: 30 | M55: 0.03333333333 | N55: 60 | O55: 0.01666666667 | P55: No | Q55: No
B56: 23 | C56: Steel Structure | F56: 35 | G56: 50 | H56: 90
A57: UG | B57: 24 | C57: Primary Paper Insulated Lead Covered (PILC) Cables | F57: 60 | G57: 65 | H57: 75
B58: 25 | C58: Primary Ethylene-Propylene Rubber (EPR) Cables | F58: 20 | G58: 25 | H58: 25
B59: 26 | C59: Primary Non-Tree Retardant (TR) Cross Linked Polyethylene (XLPE) Cables Direct Buried | F59: 20 | G59: 25 | H59: 30
B60: 4 | C60: UG Switches | F60: =+F26 -> 30 | G60: =+G26 -> 45 | H60: 55 | J60: 1845 | K60: Underground Conductors & Devices | L60: 25 | M60: 0.04 | N60: 50 | O60: 0.02 | P60: No | Q60: No | R60: used the useful life from OH Switches on Kinectrics report
B61: 27 | C61: Primary Non-TR XLPE Cables in Duct | F61: 20 | G61: 25 | H61: 30
B62: 29 | C62: Primary TR XLPE Cables In Duct | F62: 35 | G62: 40 | H62: 55 | J62: 1845 | K62: Underground Conductors & Devices | L62: 25 | M62: 0.04 | N62: 50 | O62: 0.02 | P62: No | Q62: No | R62: line 29 was on Original Kinetrics report but was not on the appendix template, Leisha conversation with Meghana in 2012, we use TR XLPE cable now
C63: UG SERVICES | F63: 50 | G63: 60 | H63: 75 | J63: 1855 | K63: Services (Overhead & Underground) | L63: 25 | M63: 0.04 | N63: 60 | O63: 0.01666666667 | P63: No | Q63: No | R63: Useful life more in line with conductors. Kinectrics didn't specific useful life for OH services
B64: 30 | C64: Secondary PILC Cables | F64: 70 | G64: 75 | H64: 80
B65: 31 | C65: Secondary Cables Direct Buried | F65: 25 | G65: 35 | H65: 40
B66: 32 | C66: Secondary Cables in Duct | F66: 35 | G66: 40 | H66: 60
B67: 33 | C67: Network Tranformers | D67: Overall | F67: 20 | G67: 35 | H67: 50
D68: Protector | F68: 20 | G68: 35 | H68: 40
B69: 34 | C69: Pad-Mounted Transformers | F69: 25 | G69: 40 | H69: 45 | J69: 1850 | K69: Line Transformers | L69: 25 | M69: 0.04 | N69: 40 | O69: 0.025 | P69: No | Q69: No
B70: 35 | C70: Submersible/Vault Transformers | F70: 25 | G70: 35 | H70: 45 | J70: 1850 | K70: Line Transformers | L70: 25 | M70: 0.04 | N70: 40 | O70: 0.025 | P70: No | Q70: No
B71: 36 | C71: UG Foundation | F71: 35 | G71: 55 | H71: 70 | J71: 1840 | K71: Underground Conduit | L71: 25 | M71: 0.04 | N71: 40 | O71: 0.025 | P71: =IF(ISBLANK(N71),"",IF(N71<F71,"Yes","No")) -> No | Q71: =IF(ISBLANK(N71),"",IF(N71>H71,"Yes","No")) -> No
B72: 37 | C72: UG Vaults | D72: Overall | F72: 40 | G72: 60 | H72: 80 | J72: 1840 | K72: Underground Conduit | L72: 25 | M72: 0.04 | N72: 60 | O72: 0.01666666667 | P72: No | Q72: No
D73: Roof | F73: 20 | G73: 30 | H73: 45 | J73: 1840 | K73: Underground Conduit | L73: 25 | M73: 0.04 | N73: 35 | O73: 0.02857142857 | P73: No | Q73: No
B74: 38 | C74: UG Vault Switches | F74: 20 | G74: 35 | H74: 50
B75: 39 | C75: Pad-Mounted Switchgear | F75: 20 | G75: 30 | H75: 45
B76: 40 | C76: Ducts | F76: 30 | G76: 50 | H76: 85
B77: 41 | C77: Concrete Encased Duct Banks | F77: 35 | G77: 55 | H77: 80 | J77: 1840 | K77: Underground Conduit | L77: 25 | M77: 0.04 | N77: 60 | O77: 0.01666666667 | P77: No | Q77: No
B78: 42 | C78: Cable Chambers | F78: 50 | G78: 60 | H78: 80 | J78: 1840 | K78: Underground Conduit | L78: 25 | M78: 0.04 | N78: 60 | O78: 0.01666666667 | P78: No | Q78: No
A79: S | B79: 43 | C79: Remote SCADA | F79: 15 | G79: 20 | H79: 30 | J79: 1980 | K79: System Supervisor Equipment | L79: 15 | M79: 0.06666666667 | N79: 20 | O79: 0.05 | P79: No | Q79: No
A82: Table F-2 from Kinetrics Report1
C84: Asset Details | F84: Useful Life Range | J84: USoA Account Number | K84: USoA Account Description | L84: Current | N84: Proposed | P84: Outside Range of Min, Max TUL?
B85: # | C85: Category| Component | Type | L85: Years | M85: Rate | N85: Years | O85: Rate | P85: Below Min Range | Q85: Above Max Range
B86: 1 | C86: Office Equipment | F86: 5 | G86: 15 | J86: 1915 | K86: Office Furniture & Equipment (10 years) | L86: 10 | M86: =IF(ISERROR(1/L86), "", 1/L86) -> 0.1 | N86: 10 | O86: =IF(ISERROR(1/N86), "", 1/N86) -> 0.1 | P86: =IF(ISBLANK(N86),"",IF(N86<F86,"Yes","No")) -> No | Q86: =IF(ISBLANK(N86),"",IF(N86>G86,"Yes","No")) -> No
B87: 2 | C87: Vehicles | D87: Trucks & Buckets | F87: 5 | G87: 15 | J87: 1930 | K87: Transportation Equipment | L87: 10 | M87: =IF(ISERROR(1/L87), "", 1/L87) -> 0.1 | N87: 12 | O87: =IF(ISERROR(1/N87), "", 1/N87) -> 0.08333333333 | P87: =IF(ISBLANK(N87),"",IF(N87<F87,"Yes","No")) -> No | Q87: =IF(ISBLANK(N87),"",IF(N87>G87,"Yes","No")) -> No
D88: Trailers | F88: 5 | G88: 20
D89: Vans (Passenger vehicle) | F89: 5 | G89: 10 | J89: 1930 | K89: Transportation Equipment | L89: 10 | M89: 0.1 | N89: 8 | O89: 0.125 | P89: No | Q89: No
B90: 3 | C90: Administrative Buildings | F90: 50 | G90: 75
B91: 4 | C91: Leasehold Improvements | F91: Lease dependent | J91: 1910 | K91: Leasehold Improvements | L91: 20 | M91: 0.05 | N91: 20 | O91: 0.05
B92: 5 | C92: Station Buildings | D92: Station Buildings | F92: 50 | G92: 75 | J92: 1808 | K92: Buildings | L92: 50 | M92: 0.02 | N92: 60 | O92: 0.01666666667 | P92: No | Q92: No
D93: Parking | F93: 25 | G93: 30 | J93: 1808 | K93: Buildings | L93: 50 | M93: 0.02 | N93: 30 | O93: 0.03333333333 | P93: No | Q93: No
D94: Fence | F94: 25 | G94: 60 | J94: 1808 | K94: Buildings | L94: 50 | M94: 0.02 | N94: 30 | O94: 0.03333333333 | P94: No | Q94: No
D95: Roof | F95: 20 | G95: 30 | J95: 1808 | K95: Buildings | L95: 50 | M95: 0.02 | N95: 30 | O95: 0.03333333333 | P95: No | Q95: No
B96: 6 | C96: Computer Equipment | D96: Hardware | F96: 3 | G96: 5 | J96: 1920 | K96: Computer Equip.-Hardware | L96: 5 | M96: 0.2 | N96: 5 | O96: 0.2 | P96: No | Q96: No
D97: Software | F97: 2 | G97: 5 | J97: 1925 | K97: Computer Software | L97: 5 | M97: 0.2 | N97: 5 | O97: 0.2 | P97: No | Q97: No
B98: 7 | C98: Equipment | D98: Power Operated | F98: 5 | G98: 10 | J98: 1950 | K98: Power Operated Equipment | L98: 10 | M98: 0.1 | N98: 10 | O98: 0.1 | P98: No | Q98: No
D99: Stores | F99: 5 | G99: 10 | J99: 1935 | K99: Stores Equipment | L99: 10 | M99: 0.1 | N99: 10 | O99: 0.1 | P99: No | Q99: No
D100: Tools, Shop, Garage Equipment | F100: 5 | G100: 10 | J100: 1940 | K100: Tools, Shop & Garage Equipment | L100: 10 | M100: 0.1 | N100: 10 | O100: 0.1 | P100: No | Q100: No
D101: Measurement & Testing Equipment | F101: 5 | G101: 10 | J101: 1945 | K101: Measurement & Testing Equipment | L101: 10 | M101: 0.1 | N101: 10 | O101: 0.1 | P101: No | Q101: No
B102: 8 | C102: Communication | D102: Towers | F102: 60 | G102: 70
D103: Wireless | F103: 2 | G103: 10 | J103: 1955 | K103: Communications Equipment | L103: 10 | M103: 0.1 | N103: 5 | O103: 0.2 | P103: No | Q103: No
B104: 9 | C104: Residential Energy Meters | F104: 25 | G104: 35
B105: 10 | C105: Industrial/Commercial Energy Meters | F105: 25 | G105: 35
B106: 11 | C106: Wholesale Energy Meters | F106: 15 | G106: 30 | J106: 1860 | K106: Meters | L106: 25 | M106: 0.04 | N106: 15 | O106: 0.06666666667 | P106: No | Q106: No | R106: Kinectrics Study midpoint for wholesale meters is 25. Seal test is at 10 years for these meters. Intent is to replace meters after 10 years instead of having the seals tested. Use 15 years to be consistent with Smart Meters.
B107: 12 | C107: Current & Potential Transformer (CT & PT) | F107: 35 | G107: 50 | J107: 1820/ 1860 | K107: Distribution Station Equipment <50 kV / Meters | L107: 30 | M107: 0.03333333333 | N107: 50 | O107: 0.02 | P107: No | Q107: No | R107: We have CT's & PT's under substations, and metering, CT & PT's under metering are not located in any stations
B108: 13 | C108: Smart Meters | F108: 5 | G108: 15 | J108: 1860 | K108: Meters (Smart Meters) | L108: 25 | M108: 0.04 | N108: 15 | O108: 0.06666666667 | P108: No | Q108: No | R108: Per OEB, EUL is 15 years. There is an uncertainty of useful life but will go with 15 years until we have historical evidence.
B109: 14 | C109: Repeaters - Smart Metering | F109: 10 | G109: 15
B110: 15 | C110: Data Collectors - Smart Metering | F110: 15 | G110: 20
A113: * TS & MS = Transformer and Municipal Stations UG = Underground Systems S = Monitoring and Control Systems
A115: Note 1: | B115: Tables F-1 and F-2 above are to be used as a reference in order to complete columns J, K, L and N.
B116: See pages 17-19 of Kinetrics Report

Sheet App.2-CF_2011
K1: File Number: | L1: =EBNUMBER -> 0
K2: Exhibit:
K3: Tab:
K4: Schedule:
K5: Page:
K7: Date:
A9: Appendix 2-CF
A10: Depreciation and Amortization Expense
B11: Assumes the applicant made capitalization and depreciation expense accounting policy changes under CGAAP effective January 1, 2013 and will adopt IFRS for financial reporting purposes effective January 1, 2015.
C13: Year | D13: 2011 | E13: Former CGAAP
A15: Account | B15: Description | C15: Opening Regulatory Gross PP&E as at Jan 1, 2011 | D15: Less Fully Depreciated | E15: Net for Depreciation | F15: Additions | G15: Total for Depreciation | H15: Years | I15: Depreciation Rate | J15: Depreciation Expense | K15: 2011 Depreciation Expense per Appendix 2-BA Fixed Assets, Column J (l) | L15: Variance 2
C16: (a) | D16: (b) | E16: (c) | F16: (d) | G16: (e) = (c) + ½ x (d) 1 | H16: (f) | I16: (g) = 1 / (f) | J16: (h) = (e) / (f) | L16: (m) = (h) - (l)
A17: 1610 | B17: Misc. Intangible Plant | C17: =248595-6155 -> 242440 | D17: =15455 -> 15455 | E17: =C17-D17 -> 226985 | G17: =E17+0.5*F17 -> 226985 | H17: 40 | I17: =IF(H17=0,0,1/H17) -> 0.025 | J17: =IF(H17=0,0,G17/H17) -> 5674.625 | K17: 6138 | L17: =IF(ISERROR(+J17-K17), 0, +J17-K17) -> -463.375
A18: 1611 | B18: Computer Software (Formally known as Account 1925) | C18: 283900 | D18: 162149 | E18: =C18-D18 -> 121751 | F18: 8172 | G18: =E18+0.5*F18 -> 125837 | H18: 5 | I18: 0.2 | J18: =IF(H18=0,0,G18/H18) -> 25167.4 | K18: 38420 | L18: -13252.6
A19: 1612 | B19: Land Rights (Formally known as Account 1906) | C19: 0 | D19: 0 | E19: =C19-D19 -> 0 | G19: =E19+0.5*F19 -> 0 | I19: 0 | J19: =IF(H19=0,0,G19/H19) -> 0 | K19: 0 | L19: 0
A20: 1805 | B20: Land | C20: 197343 | D20: 0 | E20: 197343 | F20: 0 | G20: 197343 | H20: 0 | I20: 0 | J20: 0 | K20: 0 | L20: 0
A21: 1808 | B21: Buildings | C21: 546237 | D21: 169925 | E21: 376312 | F21: 123257 | G21: 437940.5 | H21: 50 | I21: 0.02 | J21: 8758.81 | K21: 16625 | L21: -7866.19
A22: 1810 | B22: Leasehold Improvements | C22: 0 | D22: 0 | E22: 0 | G22: 0 | I22: 0 | J22: 0 | K22: 0 | L22: 0
A23: 1815 | B23: Transformer Station Equipment >50 kV | C23: 0 | D23: 0 | E23: 0 | G23: 0 | I23: 0 | J23: 0 | K23: 0 | L23: 0
A24: 1820 | B24: Distribution Station Equipment <50 kV | C24: 5678365 | D24: 1713875.81 | E24: 3964489.19 | F24: 3217442 | G24: 5573210.19 | H24: 30 | I24: 0.03333333333 | J24: 185773.673 | K24: 271596 | L24: -85822.327
A25: 1825 | B25: Storage Battery Equipment | C25: 0 | D25: 0 | E25: 0 | G25: 0 | I25: 0 | J25: 0 | K25: 0 | L25: 0
A26: 1830 | B26: Poles, Towers & Fixtures | C26: 11880325 | D26: 3977709 | E26: 7902616 | F26: 274727 | G26: 8039979.5 | H26: 25 | I26: 0.04 | J26: 321599.18 | K26: 531535 | L26: -209935.82
A27: 1835 | B27: Overhead Conductors & Devices | C27: 2815423 | D27: 1008418 | E27: 1807005 | F27: 572740 | G27: 2093375 | H27: 25 | I27: 0.04 | J27: 83735 | K27: 139058 | L27: -55323
A28: 1840 | B28: Underground Conduit | C28: 6646408 | D28: 2287458 | E28: 4358950 | F28: 604991 | G28: 4661445.5 | H28: 25 | I28: 0.04 | J28: 186457.82 | K28: 322198 | L28: -135740.18
A29: 1845 | B29: Underground Conductors & Devices | C29: 5645141 | D29: 1488469 | E29: 4156672 | F29: 197328 | G29: 4255336 | H29: 25 | I29: 0.04 | J29: 170213.44 | K29: 260043 | L29: -89829.56
A30: 1850 | B30: Line Transformers | C30: 3395246 | D30: 1807403 | E30: 1587843 | F30: 535506 | G30: 1855596 | H30: 25 | I30: 0.04 | J30: 74223.84 | K30: 203622 | L30: -129398.16
A31: 1855 | B31: Services (Overhead & Underground) | C31: 1840254 | D31: 1011458.98 | E31: 828795.02 | F31: 84993 | G31: 871291.52 | H31: 25 | I31: 0.04 | J31: 34851.6608 | K31: 50021 | L31: -15169.3392
A32: 1860 | B32: Meters | C32: =4365774+17388-3585213 -> 797949 | D32: =1865996+696-1686706 -> 179986 | E32: 617963 | F32: 28254 | G32: 632090 | H32: 25 | I32: 0.04 | J32: 25283.6 | K32: 30713 | L32: -5429.4
A33: 1860 | B33: Meters (Smart Meters) | C33: 0 | D33: 0 | E33: 0 | G33: 0 | I33: 0 | J33: 0 | K33: 0 | L33: 0
A34: 1905 | B34: Land | C34: 0 | D34: 0 | E34: 0 | G34: 0 | I34: 0 | J34: 0 | K34: 0 | L34: 0
A35: 1908 | B35: Buildings & Fixtures | C35: 0 | D35: 0 | E35: 0 | G35: 0 | I35: 0 | J35: 0 | K35: 0 | L35: 0
A36: 1910 | B36: Leasehold Improvements | C36: 322043 | D36: 158966 | E36: 163077 | F36: 6421 | G36: 166287.5 | H36: 10 | I36: 0.1 | J36: 16628.75 | K36: 29474 | L36: -12845.25
A37: 1915 | B37: Office Furniture & Equipment (10 years) | C37: 3690 | D37: 558 | E37: 3132 | F37: 5985 | G37: 6124.5 | H37: 10 | I37: 0.1 | J37: 612.45 | K37: 668 | L37: -55.55
A38: 1915 | B38: Office Furniture & Equipment (5 years) | C38: 0 | D38: 0 | E38: 0 | G38: 0 | I38: 0 | J38: 0 | K38: 0 | L38: 0
A39: 1920 | B39: Computer Equipment - Hardware | C39: 0 | D39: 0 | E39: 0 | G39: 0 | I39: 0 | J39: 0 | K39: 0 | L39: 0
A40: 1920 | B40: Computer Equip.-Hardware(Post Mar. 22/04) | C40: 137476 | D40: 112702 | E40: 24774 | F40: 2112 | G40: 25830 | H40: 5 | I40: 0.2 | J40: 5166 | K40: 6521 | L40: -1355
A41: 1920 | B41: Computer Equip.-Hardware(Post Mar. 19/07) | C41: 0 | D41: 0 | E41: 0 | G41: 0 | I41: 0 | J41: 0 | K41: 0 | L41: 0
A42: 1930 | B42: Transportation Equipment | C42: 1380986 | D42: 985483 | E42: 395503 | F42: 413102 | G42: 602054 | H42: 10 | I42: 0.1 | J42: 60205.4 | K42: 125863 | L42: -65657.6
A43: 1935 | B43: Stores Equipment | C43: 56201 | D43: 11240 | E43: 44961 | F43: 4900 | G43: 47411 | H43: 10 | I43: 0.1 | J43: 4741.1 | K43: 5865 | L43: -1123.9
A44: 1940 | B44: Tools, Shop & Garage Equipment | C44: 876382 | D44: 559313 | E44: 317069 | F44: 22462 | G44: 328300 | H44: 10 | I44: 0.1 | J44: 32830 | K44: 70398 | L44: -37568
A45: 1945 | B45: Measurement & Testing Equipment | C45: 51401 | D45: 8803 | E45: 42598 | F45: 10330 | G45: 47763 | H45: 10 | I45: 0.1 | J45: 4776.3 | K45: 5657 | L45: -880.7
A46: 1950 | B46: Power Operated Equipment | C46: 0 | D46: 0 | E46: 0 | G46: 0 | I46: 0 | J46: 0 | K46: 0 | L46: 0
A47: 1955 | B47: Communications Equipment | C47: 73749 | D47: 9154 | E47: 64595 | F47: 9523 | G47: 69356.5 | H47: 10 | I47: 0.1 | J47: 6935.65 | K47: 7851 | L47: -915.35
A48: 1955 | B48: Communication Equipment (Smart Meters) | C48: 0 | D48: 0 | E48: 0 | G48: 0 | I48: 0 | J48: 0 | K48: 0 | L48: 0
A49: 1960 | B49: Miscellaneous Equipment | C49: 0 | D49: 0 | E49: 0 | G49: 0 | I49: 0 | J49: 0 | K49: 0 | L49: 0
A50: 1970 | B50: Load Management Controls - Customer Premises | C50: 0 | D50: 0 | E50: 0 | G50: 0 | I50: 0 | J50: 0 | K50: 0 | L50: 0
A51: 1975 | B51: Load Management Controls Utility Premises | C51: 0 | D51: 0 | E51: 0 | G51: 0 | I51: 0 | J51: 0 | K51: 0 | L51: 0
A52: 1980 | B52: System Supervisor Equipment | C52: 2193118 | D52: 1618352 | E52: 574766 | F52: 171187 | G52: 660359.5 | H52: 15 | I52: 0.06666666667 | J52: 44023.96667 | K52: 131317 | L52: -87293.03333
A53: 1985 | B53: Miscellaneous Fixed Assets | C53: 0 | D53: 0 | E53: 0 | G53: 0 | I53: 0 | J53: 0 | K53: 0 | L53: 0
A54: 1990 | B54: Other Tangible Property | C54: 0 | D54: 0 | E54: 0 | G54: 0 | I54: 0 | J54: 0 | K54: 0 | L54: 0
A55: 1995 | B55: Contributions & Grants | C55: =-1376299-17388 -> -1393687 | D55: -114010 | E55: -1279677 | F55: -390085 | G55: -1474719.5 | H55: 25 | I55: 0.04 | J55: -58988.78 | K55: -60867 | L55: 1878.22
B56: Total | C56: =SUM(C17:C55) -> 43670390 | D56: =SUM(D17:D55) -> 17172867.79 | E56: =SUM(E17:E55) -> 26497522.21 | F56: 5903347 | G56: 29449195.71 | J56: =SUM(J17:J55) -> 1238669.885 | K56: 2192716 | L56: -954046.1145
A58: Notes:
A60: 1 | B60: Board policy of the "half-year" rule - the applicant must ensure that additions in the year attract a half-year depreciation expense in the first year. Deviations from this standard practice must be supported in the application.
A61: 2 | B61: The applicant must provide an explanation of material variances in evidence.
A63: General | B63: Applicants must provide a breakdown of depreciation and amortization expense in the above format for all relevant accounts. Asset Retirement Obligations (AROs), depreciation and accretion expense should be disclosed separately consistent with the Notes of historical Audited Financial Statements.

Sheet App.2-CF_2012
K1: File Number: | L1: =EBNUMBER -> 0
K2: Exhibit:
K3: Tab:
K4: Schedule:
K5: Page:
K7: Date:
A9: Appendix 2-CF
A10: Depreciation and Amortization Expense
B11: Assumes the applicant made capitalization and depreciation expense accounting policy changes under CGAAP effective January 1, 2013 and will adopt IFRS for financial reporting purposes effective January 1, 2015.
C13: Year | D13: 2012 | E13: Former CGAAP
A15: Account | B15: Description | C15: Opening Regulatory Gross PP&E as at Jan 1, 2012 | D15: Less Fully Depreciated | E15: Net for Depreciation | F15: Additions | G15: Total for Depreciation | H15: Years | I15: Depreciation Rate | J15: Depreciation Expense | K15: 2012 Depreciation Expense per Appendix 2-BA Fixed Assets, Column J (l) | L15: Variance 2
C16: (a) | D16: (b) | E16: (c) | F16: (d) | G16: (e) = (c) + ½ x (d) 1 | H16: (f) | I16: (g) = 1 / (f) | J16: (h) = (e) / (f) | L16: (m) = (h) - (l)
A17: 1610 | B17: Misc. Intangible Plant | C17: 242440 | D17: 21593 | E17: =C17-D17 -> 220847 | F17: 0 | G17: =E17+0.5*F17 -> 220847 | H17: 40 | I17: =IF(H17=0,0,1/H17) -> 0.025 | J17: =IF(H17=0,0,G17/H17) -> 5521.175 | K17: 6061 | L17: =IF(ISERROR(+J17-K17), 0, +J17-K17) -> -539.825
A18: 1611 | B18: Computer Software (Formally known as Account 1925) | C18: 292072 | D18: 200569 | E18: =C18-D18 -> 91503 | F18: 0 | G18: =E18+0.5*F18 -> 91503 | H18: 5 | I18: 0.2 | J18: 18300.6 | K18: 29682 | L18: -11381.4
A19: 1612 | B19: Land Rights (Formally known as Account 1906) | C19: 0 | D19: 0 | E19: =C19-D19 -> 0 | G19: =E19+0.5*F19 -> 0 | I19: 0 | J19: 0 | K19: 0 | L19: 0
A20: 1805 | B20: Land | C20: 197343 | D20: 0 | E20: 197343 | F20: 0 | G20: 197343 | H20: 0 | I20: 0 | J20: 0 | K20: 0 | L20: 0
A21: 1808 | B21: Buildings | C21: 669494 | D21: 186550 | E21: 482944 | F21: 9368.68 | G21: 487628.34 | H21: 50 | I21: 0.02 | J21: 9752.5668 | K21: 17951 | L21: -8198.4332
A22: 1810 | B22: Leasehold Improvements | C22: 0 | D22: 0 | E22: 0 | G22: 0 | I22: 0 | J22: 0 | K22: 0 | L22: 0
A23: 1815 | B23: Transformer Station Equipment >50 kV | C23: 0 | D23: 0 | E23: 0 | G23: 0 | I23: 0 | J23: 0 | K23: 0 | L23: 0
A24: 1820 | B24: Distribution Station Equipment <50 kV | C24: 8895807 | D24: 1985471.81 | E24: 6910335.19 | F24: 68418.82 | G24: 6944544.6 | H24: 30 | I24: 0.03333333333 | J24: 231484.82 | K24: 326360 | L24: -94875.18
A25: 1825 | B25: Storage Battery Equipment | C25: 0 | D25: 0 | E25: 0 | G25: 0 | I25: 0 | J25: 0 | K25: 0 | L25: 0
A26: 1830 | B26: Poles, Towers & Fixtures | C26: 12155052 | D26: 4509244 | E26: 7645808 | F26: 213424.97 | G26: 7752520.485 | H26: 25 | I26: 0.04 | J26: 310100.8194 | K26: 535858 | L26: -225757.1806
A27: 1835 | B27: Overhead Conductors & Devices | C27: 3388163 | D27: 1147476 | E27: 2240687 | F27: 1012151.45 | G27: 2746762.725 | H27: 25 | I27: 0.04 | J27: 109870.509 | K27: 169113 | L27: -59242.491
A28: 1840 | B28: Underground Conduit | C28: 7251399 | D28: 2609656 | E28: 4641743 | F28: 315063.58 | G28: 4799274.79 | H28: 25 | I28: 0.04 | J28: 191970.9916 | K28: 326099 | L28: -134128.0084
A29: 1845 | B29: Underground Conductors & Devices | C29: 5842469 | D29: 1748512 | E29: 4093957 | F29: 129138.67 | G29: 4158526.335 | H29: 25 | I29: 0.04 | J29: 166341.0534 | K29: 256528 | L29: -90186.9466
A30: 1850 | B30: Line Transformers | C30: 3930752 | D30: 2011025 | E30: 1919727 | F30: 252475.09 | G30: 2045964.545 | H30: 25 | I30: 0.04 | J30: 81838.5818 | K30: 207114 | L30: -125275.4182
A31: 1855 | B31: Services (Overhead & Underground) | C31: 1925247 | D31: 1061479.98 | E31: 863767.02 | F31: 57444.55 | G31: 892489.295 | H31: 25 | I31: 0.04 | J31: 35699.5718 | K31: 52869 | L31: -17169.4282
A32: 1860 | B32: Meters | C32: 826203 | D32: 210699 | E32: 615504 | F32: 139145.83 | G32: 685076.915 | H32: 25 | I32: 0.04 | J32: 27403.0766 | K32: 33428 | L32: -6024.9234
A33: 1860 | B33: Meters (Smart Meters) | C33: 0 | D33: 0 | E33: 0 | G33: 0 | I33: 0 | J33: 0 | K33: 0 | L33: 0
A34: 1905 | B34: Land | C34: 0 | D34: 0 | E34: 0 | G34: 0 | I34: 0 | J34: 0 | K34: 0 | L34: 0
A35: 1908 | B35: Buildings & Fixtures | C35: 0 | D35: 0 | E35: 0 | G35: 0 | I35: 0 | J35: 0 | K35: 0 | L35: 0
A36: 1910 | B36: Leasehold Improvements | C36: 328464 | D36: 188440 | E36: 140024 | F36: 5434.93 | G36: 142741.465 | H36: 10 | I36: 0.1 | J36: 14274.1465 | K36: 30067 | L36: -15792.8535
A37: 1915 | B37: Office Furniture & Equipment (10 years) | C37: 9675 | D37: 1226 | E37: 8449 | F37: 17610.1 | G37: 17254.05 | H37: 10 | I37: 0.1 | J37: 1725.405 | K37: 1849 | L37: -123.595
A38: 1915 | B38: Office Furniture & Equipment (5 years) | C38: 0 | D38: 0 | E38: 0 | G38: 0 | I38: 0 | J38: 0 | K38: 0 | L38: 0
A39: 1920 | B39: Computer Equipment - Hardware | C39: 0 | D39: 0 | E39: 0 | G39: 0 | I39: 0 | J39: 0 | K39: 0 | L39: 0
A40: 1920 | B40: Computer Equip.-Hardware(Post Mar. 22/04) | C40: 139588 | D40: 119223 | E40: 20365 | F40: 0 | G40: 20365 | H40: 5 | I40: 0.2 | J40: 4073 | K40: 6732 | L40: -2659
A41: 1920 | B41: Computer Equip.-Hardware(Post Mar. 19/07) | C41: 0 | D41: 0 | E41: 0 | G41: 0 | I41: 0 | J41: 0 | K41: 0 | L41: 0
A42: 1930 | B42: Transportation Equipment | C42: 1794088 | D42: 1111346 | E42: 682742 | F42: 910711.55 | G42: 1138097.775 | H42: 10 | I42: 0.1 | J42: 113809.7775 | K42: 191019 | L42: -77209.2225
A43: 1935 | B43: Stores Equipment | C43: 61101 | D43: 17105 | E43: 43996 | F43: 0 | G43: 43996 | H43: 10 | I43: 0.1 | J43: 4399.6 | K43: 6110 | L43: -1710.4
A44: 1940 | B44: Tools, Shop & Garage Equipment | C44: 898844 | D44: 629711 | E44: 269133 | F44: 42505.68 | G44: 290385.84 | H44: 10 | I44: 0.1 | J44: 29038.584 | K44: 63570 | L44: -34531.416
A45: 1945 | B45: Measurement & Testing Equipment | C45: 61731 | D45: 14460 | E45: 47271 | F45: 0 | G45: 47271 | H45: 10 | I45: 0.1 | J45: 4727.1 | K45: 6173 | L45: -1445.9
A46: 1950 | B46: Power Operated Equipment | C46: 0 | D46: 0 | E46: 0 | G46: 0 | I46: 0 | J46: 0 | K46: 0 | L46: 0
A47: 1955 | B47: Communications Equipment | C47: 83272 | D47: 17005 | E47: 66267 | F47: 7968.01 | G47: 70251.005 | H47: 10 | I47: 0.1 | J47: 7025.1005 | K47: 8725 | L47: -1699.8995
A48: 1955 | B48: Communication Equipment (Smart Meters) | C48: 0 | D48: 0 | E48: 0 | G48: 0 | I48: 0 | J48: 0 | K48: 0 | L48: 0
A49: 1960 | B49: Miscellaneous Equipment | C49: 0 | D49: 0 | E49: 0 | G49: 0 | I49: 0 | J49: 0 | K49: 0 | L49: 0
A50: 1970 | B50: Load Management Controls - Customer Premises | C50: 0 | D50: 0 | E50: 0 | G50: 0 | I50: 0 | J50: 0 | K50: 0 | L50: 0
A51: 1975 | B51: Load Management Controls Utility Premises | C51: 0 | D51: 0 | E51: 0 | G51: 0 | I51: 0 | J51: 0 | K51: 0 | L51: 0
A52: 1980 | B52: System Supervisor Equipment | C52: 2364305 | D52: 1749669 | E52: 614636 | F52: 317596.34 | G52: 773434.17 | H52: 15 | I52: 0.06666666667 | J52: 51562.278 | K52: 116383 | L52: -64820.722
A53: 1985 | B53: Miscellaneous Fixed Assets | C53: 0 | D53: 0 | E53: 0 | G53: 0 | I53: 0 | J53: 0 | K53: 0 | L53: 0
A54: 1990 | B54: Other Tangible Property | C54: 0 | D54: 0 | E54: 0 | G54: 0 | I54: 0 | J54: 0 | K54: 0 | L54: 0
A55: 1995 | B55: Contributions & Grants | C55: -1783772 | D55: -174877 | E55: -1608895 | F55: -186736.94 | G55: -1702263.47 | H55: 25 | I55: 0.04 | J55: -68090.5388 | K55: -72595 | L55: 4504.4612
B56: Total | C56: =SUM(C17:C55) -> 49573737 | D56: =SUM(D17:D55) -> 19365583.79 | E56: 30208153.21 | F56: 3311721.31 | G56: 31864013.87 | J56: =SUM(J17:J55) -> 1350828.218 | K56: 2319096 | L56: -968267.7819
A58: Notes:
A60: 1 | B60: Board policy of the "half-year" rule - the applicant must ensure that additions in the year attract a half-year depreciation expense in the first year. Deviations from this standard practice must be supported in the application.
A61: 2 | B61: The applicant must provide an explanation of material variances in evidence.
A63: General | B63: Applicants must provide a breakdown of depreciation and amortization expense in the above format for all relevant accounts. Asset Retirement Obligations (AROs), depreciation and accretion expense should be disclosed separately consistent with the Notes of historical Audited Financial Statements.

Sheet App.2-CF_2013
Q1: File Number: | R1: =EBNUMBER -> 0
Q2: Exhibit:
Q3: Tab:
Q4: Schedule:
Q5: Page:
Q7: Date:
A9: Appendix 2-CF
A10: Depreciation and Amortization Expense
B11: Assumes the applicant made capitalization and depreciation expense accounting policy changes under CGAAP effective January 1, 2013 and will adopt IFRS for financial reporting purposes effective January 1, 2015.
D13: Year | H13: 2013 | K13: Former CGAAP
A15: Account | B15: Description | C15: Opening Regulatory Gross PP&E as at Jan 1, 2013 | D15: Adjusted Regulatory Gross PP&E as at Jan 1, 2013 | E15: Smart Meters Add Back | F15: Total Gross PPE | G15: Less Fully Depreciated | H15: Adjusted Less Fully Depreciated | I15: Smart Meters Depreciated | J15: Total Fully Depreciated | K15: Net for Depreciation | L15: Additions | M15: Total for Depreciation | N15: Years | O15: Depreciation Rate | P15: Depreciation Expense | Q15: 2013 Depreciation Expense per Appendix 2-BA Fixed Assets, Column J (l) | R15: Variance 2
F16: (a) | J16: (b) | K16: (c) | L16: (d) | M16: (e) = (c) + ½ x (d) 1 | N16: (f) | O16: (g) = 1 / (f) | P16: (h) = (e) / (f) | R16: (m) = (h) - (l)
A17: 1610 | B17: Misc. Intangible Plant | C17: 242440 | D17: 242440 | F17: =+D17+E17 -> 242440 | G17: 27654 | H17: 27654 | J17: =+H17+I17 -> 27654 | K17: =F17-J17 -> 214786 | M17: =K17+0.5*L17 -> 214786 | N17: 40 | O17: =IF(N17=0,0,1/N17) -> 0.025 | P17: =IF(N17=0,0,M17/N17) -> 5369.65 | Q17: 6061 | R17: =IF(ISERROR(+P17-Q17), 0, +P17-Q17) -> -691.35
A18: 1611 | B18: Computer Software (Formally known as Account 1925) | C18: 292072 | D18: =292071 -> 292071 | E18: 53568 | F18: =+D18+E18 -> 345639 | G18: 244127 | H18: =230259 -> 230259 | I18: 13069 | J18: =+H18+I18 -> 243328 | K18: =F18-J18 -> 102311 | M18: =K18+0.5*L18 -> 102311 | N18: 5 | O18: 0.2 | P18: 20462.2 | Q18: 40395 | R18: -19932.8
A19: 1612 | B19: Land Rights (Formally known as Account 1906) | C19: 0 | F19: =+D19+E19 -> 0 | G19: 0 | H19: 0 | J19: =+H19+I19 -> 0 | K19: 0 | M19: =K19+0.5*L19 -> 0 | O19: 0 | P19: 0 | R19: 0
A20: 1805 | B20: Land | C20: 197343 | D20: 197343 | F20: 197343 | G20: 0 | H20: 0 | J20: 0 | K20: 197343 | M20: 197343 | N20: 0 | O20: 0 | P20: 0 | R20: 0
A21: 1808 | B21: Buildings | C21: 678862.68 | D21: 678899 | F21: 678899 | G21: 204501 | H21: 198782 | J21: 198782 | K21: 480117 | L21: 40870 | M21: 500552 | N21: 50 | O21: 0.02 | P21: 10011.04 | Q21: 18448 | R21: -8436.96
A22: 1810 | B22: Leasehold Improvements | C22: 0 | F22: 0 | G22: 0 | H22: 0 | J22: 0 | K22: 0 | M22: 0 | O22: 0 | P22: 0 | R22: 0
A23: 1815 | B23: Transformer Station Equipment >50 kV | C23: 0 | F23: 0 | G23: 0 | H23: 0 | J23: 0 | K23: 0 | M23: 0 | O23: 0 | P23: 0 | R23: 0
A24: 1820 | B24: Distribution Station Equipment <50 kV | C24: 8964225.82 | D24: 8964228 | F24: 8964228 | G24: 2311831.81 | H24: 2307219 | J24: 2307219 | K24: 6657009 | L24: 281242 | M24: 6797630 | N24: 30 | O24: 0.03333333333 | P24: 226587.6667 | Q24: 331642 | R24: -105054.3333
A25: 1825 | B25: Storage Battery Equipment | C25: 0 | F25: 0 | G25: 0 | H25: 0 | J25: 0 | K25: 0 | M25: 0 | O25: 0 | P25: 0 | R25: 0
A26: 1830 | B26: Poles, Towers & Fixtures | C26: 12368476.97 | D26: 12368473 | F26: 12368473 | G26: 5045102 | H26: 5336155 | J26: 5336155 | K26: 7032318 | L26: 1063313 | M26: 7563974.5 | N26: 25 | O26: 0.04 | P26: 302558.98 | Q26: 518280 | R26: -215721.02
A27: 1835 | B27: Overhead Conductors & Devices | C27: 4400314.45 | D27: 4400314 | F27: 4400314 | G27: 1316589 | H27: 839933 | J27: 839933 | K27: 3560381 | L27: 67047 | M27: 3593904.5 | N27: 25 | O27: 0.04 | P27: 143756.18 | Q27: 178594 | R27: -34837.82
A28: 1840 | B28: Underground Conduit | C28: 7566462.58 | D28: 7566464 | F28: 7566464 | G28: 2935755 | H28: 3033583 | J28: 3033583 | K28: 4532881 | L28: 2317187 | M28: 5691474.5 | N28: 25 | O28: 0.04 | P28: 227658.98 | Q28: 364673 | R28: -137014.02
A29: 1845 | B29: Underground Conductors & Devices | C29: 5971607.67 | D29: 5971605 | F29: 5971605 | G29: 2005040 | H29: 1900226 | J29: 1900226 | K29: 4071379 | L29: 579462 | M29: 4361110 | N29: 25 | O29: 0.04 | P29: 174444.4 | Q29: 261076 | R29: -86631.6
A30: 1850 | B30: Line Transformers | C30: 4183227.09 | D30: 4183227 | F30: 4183227 | G30: 2218139 | H30: 2154725 | J30: 2154725 | K30: 2028502 | L30: 260699 | M30: 2158851.5 | N30: 25 | O30: 0.04 | P30: 86354.06 | Q30: 180809 | R30: -94454.94
A31: 1855 | B31: Services (Overhead & Underground) | C31: 1982691.55 | D31: 1578050 | F31: 1578050 | G31: 1114348.98 | H31: 844290 | J31: 844290 | K31: 733760 | L31: 69457 | M31: 768488.5 | N31: 25 | O31: 0.04 | P31: 30739.54 | Q31: 58591 | R31: -27851.46
A32: 1860 | B32: Meters | C32: 965348.83 | D32: =961326 -> 961326 | E32: 4491975 | F32: =+D32+E32 -> 5453301 | G32: 244127 | H32: =243431 -> 243431 | I32: 743301 | J32: 986732 | K32: 4466569 | L32: 111357 | M32: 4522247.5 | N32: 25 | O32: 0.04 | P32: 180889.9 | Q32: 337644 | R32: -156754.1
A33: 1860 | B33: Meters (Smart Meters) | C33: 0 | F33: 0 | G33: 0 | H33: 0 | J33: 0 | K33: 0 | M33: 0 | O33: 0 | P33: 0 | R33: 0
A34: 1905 | B34: Land | C34: 0 | F34: 0 | G34: 0 | H34: 0 | J34: 0 | K34: 0 | M34: 0 | O34: 0 | P34: 0 | R34: 0
A35: 1908 | B35: Buildings & Fixtures | C35: 0 | F35: 0 | G35: 0 | H35: 0 | J35: 0 | K35: 0 | M35: 0 | O35: 0 | P35: 0 | R35: 0
A36: 1910 | B36: Leasehold Improvements | C36: 333898.93 | D36: 333900 | F36: 333900 | G36: 218507 | H36: 218507 | J36: 218507 | K36: 115393 | L36: 1674 | M36: 116230 | N36: 10 | O36: 0.1 | P36: 11623 | Q36: 30422 | R36: -18799
A37: 1915 | B37: Office Furniture & Equipment (10 years) | C37: 27285.1 | D37: 27285 | F37: 27285 | G37: 3075 | H37: 3075 | J37: 3075 | K37: 24210 | M37: 24210 | N37: 10 | O37: 0.1 | P37: 2421 | Q37: 2729 | R37: -308
A38: 1915 | B38: Office Furniture & Equipment (5 years) | C38: 0 | F38: 0 | G38: 0 | H38: 0 | J38: 0 | K38: 0 | M38: 0 | O38: 0 | P38: 0 | R38: 0
A39: 1920 | B39: Computer Equipment - Hardware | C39: 0 | F39: 0 | G39: 0 | H39: 0 | J39: 0 | K39: 0 | M39: 0 | O39: 0 | P39: 0 | R39: 0
A40: 1920 | B40: Computer Equip.-Hardware(Post Mar. 22/04) | C40: 139588 | D40: =139588 -> 139588 | E40: 126584 | F40: =+D40+E40 -> 266172 | G40: 125955 | H40: =125955 -> 125955 | I40: 62092 | J40: 188047 | K40: 78125 | L40: 85305 | M40: 120777.5 | N40: 5 | O40: 0.2 | P40: 24155.5 | Q40: 40580 | R40: -16424.5
A41: 1920 | B41: Computer Equip.-Hardware(Post Mar. 19/07) | C41: 0 | F41: 0 | G41: 0 | H41: 0 | J41: 0 | K41: 0 | M41: 0 | O41: 0 | P41: 0 | R41: 0
A42: 1930 | B42: Transportation Equipment | C42: 2704799.55 | D42: 2704800 | F42: 2704800 | G42: 1302365 | H42: 1302365 | J42: 1302365 | K42: 1402435 | L42: 89265 | M42: 1447067.5 | N42: 10 | O42: 0.1 | P42: 144706.75 | Q42: 198307 | R42: -53600.25
A43: 1935 | B43: Stores Equipment | C43: 61101 | D43: 61101 | F43: 61101 | G43: 23215 | H43: 23215 | J43: 23215 | K43: 37886 | M43: 37886 | N43: 10 | O43: 0.1 | P43: 3788.6 | Q43: 6110 | R43: -2321.4
A44: 1940 | B44: Tools, Shop & Garage Equipment | C44: 941349.68 | D44: 941350 | F44: 941350 | G44: 693281 | H44: 693280 | J44: 693280 | K44: 248070 | L44: 48982 | M44: 272561 | N44: 10 | O44: 0.1 | P44: 27256.1 | Q44: 56418 | R44: -29161.9
A45: 1945 | B45: Measurement & Testing Equipment | C45: 61731 | D45: 61731 | F45: 61731 | G45: 20633 | H45: 20633 | J45: 20633 | K45: 41098 | L45: 1650 | M45: 41923 | N45: 10 | O45: 0.1 | P45: 4192.3 | Q45: 6256 | R45: -2063.7
A46: 1950 | B46: Power Operated Equipment | C46: 0 | F46: 0 | G46: 0 | H46: 0 | J46: 0 | K46: 0 | M46: 0 | O46: 0 | P46: 0 | R46: 0
A47: 1955 | B47: Communications Equipment | C47: 91240.01 | D47: 91240 | F47: 91240 | G47: 25730 | H47: 25730 | J47: 25730 | K47: 65510 | L47: 6135 | M47: 68577.5 | N47: 10 | O47: 0.1 | P47: 6857.75 | Q47: 9431 | R47: -2573.25
A48: 1955 | B48: Communication Equipment (Smart Meters) | C48: 0 | F48: 0 | G48: 0 | H48: 0 | J48: 0 | K48: 0 | M48: 0 | O48: 0 | P48: 0 | R48: 0
A49: 1960 | B49: Miscellaneous Equipment | C49: 0 | F49: 0 | G49: 0 | H49: 0 | J49: 0 | K49: 0 | M49: 0 | O49: 0 | P49: 0 | R49: 0
A50: 1970 | B50: Load Management Controls - Customer Premises | C50: 0 | F50: 0 | G50: 0 | H50: 0 | J50: 0 | K50: 0 | M50: 0 | O50: 0 | P50: 0 | R50: 0
A51: 1975 | B51: Load Management Controls Utility Premises | C51: 0 | F51: 0 | G51: 0 | H51: 0 | J51: 0 | K51: 0 | M51: 0 | O51: 0 | P51: 0 | R51: 0
A52: 1980 | B52: System Supervisor Equipment | C52: 2681901.34 | D52: 2681900 | F52: 2681900 | G52: 1866052 | H52: 1865006 | J52: 1865006 | K52: 816894 | L52: 11745 | M52: 822766.5 | N52: 15 | O52: 0.06666666667 | P52: 54851.1 | Q52: 112742 | R52: -57890.9
A53: 1985 | B53: Miscellaneous Fixed Assets | C53: 0 | F53: 0 | G53: 0 | H53: 0 | J53: 0 | K53: 0 | M53: 0 | O53: 0 | P53: 0 | R53: 0
A54: 1990 | B54: Other Tangible Property | C54: 0 | F54: 0 | G54: 0 | H54: 0 | J54: 0 | K54: 0 | M54: 0 | O54: 0 | P54: 0 | R54: 0
A55: 1995 | B55: Contributions & Grants | C55: -1970508.94 | D55: -1970509 | F55: -1970509 | G55: -247472 | H55: -242760 | J55: -242760 | K55: -1727749 | L55: -743055 | M55: -2099276.5 | N55: 25 | O55: 0.04 | P55: -83971.06 | Q55: -88811 | R55: 4839.94
B56: Total | C56: =SUM(C17:C55) -> 52885458.31 | D56: =SUM(D17:D55) -> 52476826 | E56: =SUM(E17:E55) -> 4672127 | F56: 57148953 | G56: 21698555.79 | H56: 21151263 | I56: 818462 | J56: 21969725 | K56: 35179228 | L56: 4292335 | M56: 37325395.5 | P56: =SUM(P17:P55) -> 1604713.637 | Q56: 2670397 | R56: -1065683.363
A58: Notes:
A60: 1 | B60: Board policy of the "half-year" rule - the applicant must ensure that additions in the year attract a half-year depreciation expense in the first year. Deviations from this standard practice must be supported in the application.
A61: 2 | B61: The applicant must provide an explanation of material variances in evidence.
A63: General | B63: Applicants must provide a breakdown of depreciation and amortization expense in the above format for all relevant accounts. Asset Retirement Obligations (AROs), depreciation and accretion expense should be disclosed separately consistent with the Notes of historical Audited Financial Statements.

Sheet App.2-CG_NewCGAAP_DepExp_2013
O1: File Number: | P1: =EBNUMBER -> 0
O2: Exhibit:
O3: Tab:
O4: Schedule:
O5: Page:
O7: Date:
A9: Appendix 2-CG
A10: Depreciation and Amortization Expense
A11: Assumes the applicant made capitalization and depreciation expense accounting policy changes under CGAAP effective January 1, 2013 and will adopt IFRS for financial reporting purposes effective January 1, 2015.
C13: Year | D13: 2013 | E13: 2013 | F13: Revised CGAAP
A15: Account | B15: Description | C15: Opening NBV as at Jan 1, 2013 5 | D15: Smart Meters NBV | E15: Additions | F15: Average Remaining Life of Opening NBV 4 | G15: Years (new additions only) 3 | H15: Depreciation Rate on New Additions | I15: Depreciation Expense on Opening NBV | J15: Depreciation Expense on Additions 1 | K15: 2013 Depreciation Expense | L15: 2013 Depreciation Expense per Appendix 2-BA Fixed Assets, Column J (l) | M15: Variance 2 | N15: Depreciation Expense on 2013 Full Year Additions | O15: Less Depreciation Expense on Assets Fully Depreciated during the year (o) | P15: 2013 Full Year Depreciation 6
C16: (a) | D16: (a1) | E16: (d) | F16: (i) | G16: (f) | H16: (g) = 1 / (f) | I16: (j) = [(a) + (a1)] / (i) | J16: (h)=((d)*0.5)/(f) | K16: (k) = (j) + (h) | M16: (m) = (k) - (l) | N16: (n) = (d)/(f) | P16: (p) = (j) + (n) - (o)
A17: 1610 | B17: Misc. Intangible Plant | C17: 214786 | D17: 0 | E17: 0 | F17: 37 | G17: 40 | H17: =IF(G17=0,0,1/G17) -> 0.025 | I17: =IF(F17=0,0,+(C17+D17)/F17) -> 5805.027027 | J17: =IF(G17=0,0,+(E17*0.5)/G17) -> 0 | K17: =IF(ISERROR(+I17+J17), 0, +I17+J17) -> 5805.027027 | L17: 6061 | M17: =IF(ISERROR(+K17-L17), 0, +K17-L17) -> -255.972973 | N17: =IF(G17=0,0,+(E17)/G17) -> 0 | O17: 0 | P17: =IF(ISERROR(+N17+I17-O17), 0, +N17+I17-O17) -> 5805.027027
A18: 1611 | B18: Computer Software (Formally known as Account 1925) | C18: 61812 | D18: 40499 | E18: 0 | F18: 3 | G18: 5 | H18: =IF(G18=0,0,1/G18) -> 0.2 | I18: =IF(F18=0,0,+(C18+D18)/F18) -> 34103.66667 | J18: =IF(G18=0,0,+(E18*0.5)/G18) -> 0 | K18: =IF(ISERROR(+I18+J18), 0, +I18+J18) -> 34103.66667 | L18: 40395 | M18: -6291.333333 | N18: 0 | O18: 0 | P18: =IF(ISERROR(+N18+I18-O18), 0, +N18+I18-O18) -> 34103.66667
A19: 1612 | B19: Land Rights (Formally known as Account 1906) | C19: 0 | D19: 0 | E19: 0 | H19: 0 | I19: =IF(F19=0,0,+(C19+D19)/F19) -> 0 | J19: 0 | K19: =IF(ISERROR(+I19+J19), 0, +I19+J19) -> 0 | L19: 0 | M19: 0 | N19: 0 | O19: 0 | P19: =IF(ISERROR(+N19+I19-O19), 0, +N19+I19-O19) -> 0
A20: 1805 | B20: Land | C20: 197343 | D20: 0 | E20: 0 | H20: 0 | I20: 0 | J20: 0 | K20: 0 | L20: 0 | M20: 0 | N20: 0 | O20: 0 | P20: 0
A21: 1808 | B21: Buildings | C21: 386014 | E21: 31870 | F21: 37 | G21: 60 | H21: 0.01666666667 | I21: 10432.81081 | J21: 265.5833333 | K21: 10698.39414 | L21: 9244 | M21: 1454.394144 | N21: 531.1666667 | O21: 0 | P21: 10963.97748
A22: 1808 | B22: Buildings | C22: 94103 | E22: 9000 | F22: 19 | G22: 30 | H22: 0.03333333333 | I22: 4952.789474 | J22: 150 | K22: 5102.789474 | L22: 13019 | M22: -7916.210526 | N22: 300 | O22: 8429 | P22: -3176.210526
A23: 1808 | B23: Buildings Total | C23: =+SUM(C21:C22) -> 480117 | D23: 0 | E23: =+SUM(E21:E22) -> 40870 | I23: =+SUM(I21:I22) -> 15385.60028 | J23: 415.5833333 | K23: 15801.18362 | L23: 22263 | M23: -6461.816382 | N23: 831.1666667 | O23: 8429 | P23: 7787.766951
A24: 1810 | B24: Leasehold Improvements Total | C24: 0 | D24: 0 | E24: 0 | H24: 0 | I24: 0 | J24: 0 | K24: 0 | L24: 0 | M24: 0 | N24: 0 | O24: 0 | P24: 0
A25: 1815 | B25: Transformer Station Equipment >50 kV Total | C25: 0 | D25: 0 | E25: 0 | H25: 0 | I25: 0 | J25: 0 | K25: 0 | L25: 0 | M25: 0 | N25: 0 | O25: 0 | P25: 0
A26: 1820 | B26: Distribution Station Equipment <50 kV | C26: 193053 | E26: 0 | F26: 53 | G26: 60 | H26: 0.01666666667 | I26: 3642.509434 | J26: 0 | K26: 3642.509434 | L26: 3503 | M26: 139.509434 | N26: 0 | O26: 0 | P26: 3642.509434
A27: 1820 | B27: Distribution Station Equipment <50 kV | C27: 5764970 | E27: 90817 | F27: 43 | G27: 50 | H27: 0.02 | I27: 134069.0698 | J27: 908.17 | K27: 134977.2398 | L27: 128895 | M27: 6082.239767 | N27: 1816.34 | O27: 0 | P27: 135885.4098
A28: 1820 | B28: Distribution Station Equipment <50 kV | C28: 698986 | E28: 190425 | F28: 13 | G28: 20 | H28: 0.05 | I28: 53768.15385 | J28: 4760.625 | K28: 58528.77885 | L28: 54459 | M28: 4069.778846 | N28: 9521.25 | O28: 0 | P28: 63289.40385
A29: 1820 | B29: Distribution Station Equipment <50 kV Total | C29: =SUM(C26:C28) -> 6657009 | D29: 0 | E29: =SUM(E26:E28) -> 281242 | I29: 0 | J29: =SUM(J26:J28) -> 5668.795 | K29: 197148.528 | L29: 186857 | M29: 10291.52805 | N29: 11337.59 | O29: 0 | P29: 202817.323
A30: 1825 | B30: Storage Battery Equipment Total | C30: 0 | D30: 0 | E30: 0 | H30: 0 | I30: 0 | J30: 0 | K30: 0 | L30: 0 | M30: 0 | N30: 0 | O30: 0 | P30: 0
A31: 1830 | B31: Poles, Towers & Fixtures Total | C31: 7032318 | D31: 0 | E31: 1063313 | F31: 31 | G31: 45 | H31: 0.02222222222 | I31: 226848.9677 | J31: 11814.58889 | K31: 238663.5566 | L31: 209947 | M31: 28716.55663 | N31: 23629.17778 | O31: 0 | P31: 250478.1455
A32: 1835 | B32: Overhead Conductors & Devices | C32: 1780190 | E32: 67047 | F32: 46 | G32: 60 | H32: 0.01666666667 | I32: 38699.78261 | J32: 558.725 | K32: 39258.50761 | L32: 31923 | M32: 7335.507609 | N32: 1117.45 | O32: 0 | P32: 39817.23261
A33: 1835 | B33: Overhead Conductors & Devices | C33: 1780190 | E33: 0 | F33: 31 | G33: 45 | H33: 0.02222222222 | I33: 57425.48387 | J33: 0 | K33: 57425.48387 | L33: 42797 | M33: 14628.48387 | N33: 0 | O33: 0 | P33: 57425.48387
A34: 1835 | B34: Overhead Conductors & Devices Total | C34: =SUM(C32:C33) -> 3560380 | D34: 0 | E34: =SUM(E32:E33) -> 67047 | I34: 0 | J34: =SUM(J32:J33) -> 558.725 | K34: =SUM(K32:K33) -> 96683.99148 | L34: 74720 | M34: =SUM(M32:M33) -> 21963.99148 | N34: =SUM(N32:N33) -> 1117.45 | O34: 0 | P34: 97242.71648
A35: 1840 | B35: Underground Conduit | C35: 4174783 | E35: 2224478 | F35: 43 | G35: 60 | H35: 0.01666666667 | I35: 97087.97674 | J35: 18537.31667 | K35: 115625.2934 | L35: 96552 | M35: 19073.29341 | N35: 37074.63333 | O35: 0 | P35: 134162.6101
A36: 1840 | B36: Underground Conduit | C36: 317302 | E36: 3437 | F36: 23 | G36: 40 | H36: 0.025 | I36: 13795.73913 | J36: 42.9625 | K36: 13838.70163 | L36: 10733 | M36: 3105.70163 | N36: 85.925 | O36: 0 | P36: 13881.66413
A37: 1840 | B37: Underground Conduit | C37: 40796 | E37: 89272 | F37: 18 | G37: 35 | H37: 0.02857142857 | I37: 2266.444444 | J37: 1275.314286 | K37: 3541.75873 | L37: 3048 | M37: 493.7587302 | N37: 2550.628571 | O37: 0 | P37: 4817.073016
A38: 1840 | B38: Underground Conduit Total | C38: =SUM(C35:C37) -> 4532881 | D38: 0 | E38: =SUM(E35:E37) -> 2317187 | I38: 0 | J38: =SUM(J35:J37) -> 19855.59345 | K38: 133005.7538 | L38: 110333 | M38: 22672.75377 | N38: 39711.1869 | O38: 0 | P38: 152861.3472
A39: 1845 | B39: Underground Conductors & Devices Total | C39: 4071379 | D39: 0 | E39: 579462 | F39: 33 | G39: 50 | H39: 0.02 | I39: 123375.1212 | J39: 5794.62 | K39: 129169.7412 | L39: 100464 | M39: 28705.74121 | N39: 11589.24 | O39: 0 | P39: 134964.3612
A40: 1850 | B40: Line Transformers Total | C40: 2028502 | D40: 0 | E40: 260699 | F40: 27 | G40: 40 | H40: 0.025 | I40: 75129.7037 | J40: 3258.7375 | K40: 78388.4412 | L40: 69910 | M40: 8478.441204 | N40: 6517.475 | O40: 0 | P40: 81647.1787
A41: 1855 | B41: Services (Overhead & Underground) Total | C41: 733760 | D41: 0 | E41: 69457 | F41: 47 | G41: 60 | H41: 0.01666666667 | I41: 15611.91489 | J41: 578.8083333 | K41: 16190.72323 | L41: 14789 | M41: 1401.723227 | N41: 1157.616667 | O41: 0 | P41: 16769.53156
A42: 1860 | B42: Meters | C42: 646080 | E42: 18953 | F42: 28 | G42: 40 | H42: 0.025 | I42: 23074.28571 | J42: 236.9125 | K42: 23311.19821 | L42: 18341 | M42: 4970.198214 | N42: 473.825 | O42: 0 | P42: 23548.11071
A43: 1860 | B43: Meters | C43: 71816 | D43: 3748674 | E43: 92404 | F43: 10 | G43: 15 | H43: 0.06666666667 | I43: =IF(F43=0,0,+(C43+D43)/F43) -> 382049 | J43: =IF(G43=0,0,+(E43*0.5)/G43) -> 3080.133333 | K43: =IF(ISERROR(+I43+J43), 0, +I43+J43) -> 385129.1333 | L43: 310352 | M43: 74777.13333 | N43: 6160.266667 | O43: 0 | P43: 388209.2667
A44: 1860 | B44: Meters Total | C44: =SUM(C42:C43) -> 717896 | D44: =SUM(D42:D43) -> 3748674 | E44: 111357 | I44: 0 | J44: =SUM(J42:J43) -> 3317.045833 | K44: 408440.3315 | L44: 328693 | M44: 79747.33155 | N44: 6634.091667 | O44: 0 | P44: 411757.3774
A45: 1860 | B45: Meters (Smart Meters) Total | C45: 0 | D45: 0 | E45: 0 | H45: 0 | I45: 0 | J45: 0 | K45: 0 | L45: 0 | M45: 0 | N45: 0 | O45: 0 | P45: 0
A46: 1905 | B46: Land | C46: 0 | D46: 0 | E46: 0 | H46: 0 | I46: 0 | J46: 0 | K46: 0 | L46: 0 | M46: 0 | N46: 0 | O46: 0 | P46: 0
A47: 1908 | B47: Buildings & Fixtures | C47: 0 | D47: 0 | E47: 0 | H47: 0 | I47: 0 | J47: 0 | K47: 0 | L47: 0 | M47: 0 | N47: 0 | O47: 0 | P47: 0
A48: 1910 | B48: Leasehold Improvements | C48: 115393 | D48: 0 | E48: 1674 | F48: 15 | G48: 20 | H48: 0.05 | I48: 7692.866667 | J48: 41.85 | K48: 7734.716667 | L48: 8072 | M48: -337.2833333 | N48: 83.7 | O48: 0 | P48: 7776.566667
A49: 1915 | B49: Office Furniture & Equipment (10 years) | C49: 24210 | D49: 0 | E49: 0 | F49: 8 | G49: 10 | H49: 0.1 | I49: 3026.25 | J49: 0 | K49: 3026.25 | L49: 2729 | M49: 297.25 | N49: 0 | O49: 0 | P49: 3026.25
A50: 1915 | B50: Office Furniture & Equipment (5 years) | C50: 0 | D50: 0 | E50: 0 | H50: 0 | I50: 0 | J50: 0 | K50: 0 | L50: 0 | M50: 0 | N50: 0 | O50: 0 | P50: 0
A51: 1920 | B51: Computer Equipment - Hardware | C51: 0 | D51: 0 | E51: 0 | H51: 0 | I51: 0 | J51: 0 | K51: 0 | L51: 0 | M51: 0 | N51: 0 | O51: 0 | P51: 0
A52: 1920 | B52: Computer Equip.-Hardware(Post Mar. 22/04) | C52: 13633 | D52: 64492 | E52: 85305 | F52: 3 | G52: 5 | H52: 0.2 | I52: 26041.66667 | J52: 8530.5 | K52: 34572.16667 | L52: 40580 | M52: -6007.833333 | N52: 17061 | O52: 462 | P52: 42640.66667
A53: 1920 | B53: Computer Equip.-Hardware(Post Mar. 19/07) | C53: 0 | D53: 0 | E53: 0 | H53: 0 | I53: 0 | J53: 0 | K53: 0 | L53: 0 | M53: 0 | N53: 0 | O53: 0 | P53: 0
A54: 1930 | B54: Transportation Equipment | C54: 1040516 | E54: 0 | F54: 7 | G54: 12 | H54: 0.08333333333 | I54: =IF(F54=0,0,+(C54+D54)/F54) -> 148645.1429 | J54: 0 | K54: 148645.1429 | L54: 109575 | M54: 39070.14286 | N54: 0 | P54: 148645.1429
A55: 1930 | B55: Transportation Equipment | C55: 361919 | E55: 89265 | F55: 4 | G55: 8 | H55: 0.125 | I55: =IF(F55=0,0,+(C55+D55)/F55) -> 90479.75 | J55: 5579.0625 | K55: 96058.8125 | L55: 80397 | M55: 15661.8125 | N55: 11158.125 | O55: 20799 | P55: 80838.875
A56: 1930 | B56: Transportation Equipment Total | C56: =SUM(C54:C55) -> 1402435 | D56: 0 | E56: =SUM(E54:E55) -> 89265 | I56: =SUM(I54:I55) -> 239124.8929 | J56: =SUM(J54:J55) -> 5579.0625 | K56: 244703.9554 | L56: 189972 | M56: 54731.95536 | N56: 11158.125 | O56: 20799 | P56: 229484.0179
A57: 1935 | B57: Stores Equipment | C57: 37886 | D57: 0 | E57: 0 | F57: 5 | G57: 10 | H57: 0.1 | I57: 7577.2 | J57: 0 | K57: 7577.2 | L57: 6110 | M57: 1467.2 | N57: 0 | O57: 0 | P57: 7577.2
A58: 1940 | B58: Tools, Shop & Garage Equipment | C58: 248070 | D58: 0 | E58: 48982 | F58: 6 | G58: 10 | H58: 0.1 | I58: 41345 | J58: 2449.1 | K58: 43794.1 | L58: 56418 | M58: -12623.9 | N58: 4898.2 | O58: 0 | P58: 46243.2
A59: 1945 | B59: Measurement & Testing Equipment | C59: 41098 | D59: 0 | E59: 1650 | F59: 7 | G59: 10 | H59: 0.1 | I59: 5871.142857 | J59: 82.5 | K59: 5953.642857 | L59: 6256 | M59: -302.3571429 | N59: 165 | O59: 0 | P59: 6036.142857
A60: 1950 | B60: Power Operated Equipment | C60: 0 | D60: 0 | E60: 0 | H60: 0 | I60: 0 | J60: 0 | K60: 0 | L60: 0 | M60: 0 | N60: 0 | O60: 0 | P60: 0
A61: 1955 | B61: Communications Equipment | C61: 65510 | D61: 0 | E61: 6135 | F61: 3 | G61: 5 | H61: 0.2 | I61: 21836.66667 | J61: 613.5 | K61: 22450.16667 | L61: 35466 | M61: -13015.83333 | N61: 1227 | O61: 10678 | P61: 12385.66667
A62: 1955 | B62: Communication Equipment (Smart Meters) | C62: 0 | D62: 0 | E62: 0 | H62: 0 | I62: 0 | J62: 0 | K62: 0 | L62: 0 | M62: 0 | N62: 0 | O62: 0 | P62: 0
A63: 1960 | B63: Miscellaneous Equipment | C63: 0 | D63: 0 | E63: 0 | H63: 0 | I63: 0 | J63: 0 | K63: 0 | L63: 0 | M63: 0 | N63: 0 | O63: 0 | P63: 0
A64: 1970 | B64: Load Management Controls - Customer Premises | C64: 0 | D64: 0 | E64: 0 | H64: 0 | I64: 0 | J64: 0 | K64: 0 | L64: 0 | M64: 0 | N64: 0 | O64: 0 | P64: 0
A65: 1975 | B65: Load Management Controls Utility Premises | C65: 0 | D65: 0 | E65: 0 | H65: 0 | I65: 0 | J65: 0 | K65: 0 | L65: 0 | M65: 0 | N65: 0 | O65: 0 | P65: 0
A66: 1980 | B66: System Supervisory Equipment | C66: 816894 | D66: 0 | E66: 11745 | F66: 13 | G66: 20 | H66: 0.05 | I66: =IF(F66=0,0,+(C66+D66)/F66) -> 62838 | J66: =IF(G66=0,0,+(E66*0.5)/G66) -> 293.625 | K66: =IF(ISERROR(+I66+J66), 0, +I66+J66) -> 63131.625 | L66: 58919 | M66: 4212.625 | N66: 587.25 | O66: 0 | P66: 63425.25
A67: 1985 | B67: Miscellaneous Fixed Assets | C67: 0 | D67: 0 | E67: 0 | H67: 0 | I67: 0 | J67: 0 | K67: 0 | L67: 0 | M67: 0 | N67: 0 | O67: 0 | P67: 0
A68: 1990 | B68: Other Tangible Property | C68: 0 | D68: 0 | E68: 0 | H68: 0 | I68: 0 | J68: 0 | K68: 0 | L68: 0 | M68: 0 | N68: 0 | O68: 0 | P68: 0
A69: 1995 | B69: Contributions & Grants | C69: -14643 | E69: -25946 | F69: 10 | G69: 15 | H69: 0.06666666667 | I69: -1464.3 | J69: -864.8666667 | K69: -2329.166667 | L69: -2387 | M69: 57.83333333 | N69: -1729.733333 | O69: 0 | P69: -3194.033333
A70: 1995 | B70: Contributions & Grants | C70: -131788 | E70: -2883 | F70: 34 | G70: 40 | H70: 0.025 | I70: -3876.117647 | J70: -36.0375 | K70: -3912.155147 | L70: -3688 | M70: -224.1551471 | N70: -72.075 | O70: 0 | P70: -3948.192647
A71: 1995 | B71: Contributions & Grants | C71: -8554 | E71: -5616 | F71: 14 | G71: 15 | H71: 0.06666666667 | I71: -611 | J71: -187.2 | K71: -798.2 | L71: -798 | M71: -0.2 | N71: -374.4 | O71: 0 | P71: -985.4
A72: 1995 | B72: Contributions & Grants | C72: -395493 | E72: -148776 | F72: 39 | G72: 40 | H72: 0.025 | I72: -10140.84615 | J72: -1859.7 | K72: -12000.54615 | L72: -12178 | M72: 177.4538462 | N72: -3719.4 | O72: 0 | P72: -13860.24615
A73: 1995 | B73: Contributions & Grants | C73: -385023 | E73: -8881 | F73: 40 | G73: 45 | H73: 0.02222222222 | I73: -9625.575 | J73: -98.67777778 | K73: -9724.252778 | L73: -9420 | M73: -304.2527778 | N73: -197.3555556 | O73: 0 | P73: -9822.930556
A74: 1995 | B74: Contributions & Grants | C74: -112762 | E74: 0 | F74: 55 | G74: 60 | H74: 0.01666666667 | I74: -2050.218182 | J74: 0 | K74: -2050.218182 | L74: -2002 | M74: -48.21818182 | N74: 0 | O74: 0 | P74: -2050.218182
A75: 1995 | B75: Contributions & Grants | C75: -52245 | E75: 0 | F75: 40 | G75: 45 | H75: 0.02222222222 | I75: -1306.125 | J75: 0 | K75: -1306.125 | L75: -1265 | M75: -41.125 | N75: 0 | O75: 0 | P75: -1306.125
A76: 1995 | B76: Contributions & Grants | C76: -15225 | E76: -412269 | F76: 58 | G76: 60 | H76: 0.01666666667 | I76: -262.5 | J76: -3435.575 | K76: -3698.075 | L76: -3698 | M76: -0.075 | N76: -6871.15 | O76: 0 | P76: -7133.65
A77: 1995 | B77: Contributions & Grants | C77: -1157 | E77: -2366 | F77: 38 | G77: 40 | H77: 0.025 | I77: -30.44736842 | J77: -29.575 | K77: -60.02236842 | L77: -60 | M77: -0.02236842105 | N77: -59.15 | O77: 0 | P77: -89.59736842
A78: 1995 | B78: Contributions & Grants | C78: -149 | E78: 0 | F78: 33 | G78: 35 | H78: 0.02857142857 | I78: -4.515151515 | J78: 0 | K78: -4.515151515 | L78: -5 | M78: 0.4848484848 | N78: 0 | O78: 0 | P78: -4.515151515
A79: 1995 | B79: Contributions & Grants | C79: -13525 | E79: -136318 | F79: 48 | G79: 50 | H79: 0.02 | I79: -281.7708333 | J79: -1363.18 | K79: -1644.950833 | L79: -1645 | M79: 0.04916666667 | N79: -2726.36 | O79: 0 | P79: -3008.130833
A80: 1995 | B80: Contributions & Grants | C80: -49718 | E80: 0 | F80: 55 | G80: 60 | H80: 0.01666666667 | I80: -903.9636364 | J80: 0 | K80: -903.9636364 | L80: -887 | M80: -16.96363636 | N80: 0 | O80: 0 | P80: -903.9636364
A81: 1995 | B81: Contributions & Grants | C81: -480959 | E81: 0 | F81: 45 | G81: 50 | H81: 0.02 | I81: -10687.97778 | J81: 0 | K81: -10687.97778 | L81: -10444 | M81: =IF(ISERROR(+K81-L81), 0, +K81-L81) -> -243.9777778 | N81: =IF(G81=0,0,+(E81)/G81) -> 0 | O81: 0 | P81: -10687.97778
A82: 1995 | B82: Contributions & Grants | C82: -58314 | E82: 0 | F82: 15 | G82: 20 | H82: =IF(G82=0,0,1/G82) -> 0.05 | I82: -3887.6 | J82: =IF(G82=0,0,+(E82*0.5)/G82) -> 0 | K82: -3887.6 | L82: -3646 | M82: -241.6 | N82: 0 | O82: 0 | P82: -3887.6
A83: 1995 | B83: Contributions & Grants | C83: -8194 | E83: 0 | F83: 25 | G83: 30 | H83: 0.03333333333 | I83: =IF(F83=0,0,+(C83+D83)/F83) -> -327.76 | J83: 0 | K83: =IF(ISERROR(+I83+J83), 0, +I83+J83) -> -327.76 | L83: -315 | M83: -12.76 | N83: 0 | O83: 0 | P83: =IF(ISERROR(+N83+I83-O83), 0, +N83+I83-O83) -> -327.76
A84: 1995 | B84: Contributions & Grants Total | C84: =SUM(C69:C83) -> -1727749 | D84: =SUM(D69:D83) -> 0 | E84: =SUM(E69:E83) -> -743055 | I84: =SUM(I69:I83) -> -45460.71675 | J84: -7874.811944 | K84: -53335.52869 | L84: -52438 | M84: -897.5286946 | N84: -15749.62389 | O84: 0 | P84: -61210.34064
B85: Total | C85: =+C17+C18+C19+C20+C23+C24+C25+C29+C30+C31+C34+C38+C39+C40+C41+C44+C45+C46+C47+C48+C49+C50+C51+C52+C53+C56+C57+C58+C59+C60+C61+C62+C63+C64+C65+C66+C67+C68+C84 -> 31325563 | D85: =+D17+D18+D19+D20+D23+D24+D25+D29+D30+D31+D34+D38+D39+D40+D41+D44+D45+D46+D47+D48+D49+D50+D51+D52+D53+D56+D57+D58+D59+D60+D61+D62+D63+D64+D65+D66+D67+D68+D84 -> 3853665 | E85: =+E17+E18+E19+E20+E23+E24+E25+E29+E30+E31+E34+E38+E39+E40+E41+E44+E45+E46+E47+E48+E49+E50+E51+E52+E53+E56+E57+E58+E59+E60+E61+E62+E63+E64+E65+E66+E67+E68+E84 -> 4292335 | I85: =+I17+I18+I19+I20+I23+I24+I25+I29+I30+I31+I34+I38+I39+I40+I41+I44+I45+I46+I47+I48+I49+I50+I51+I52+I53+I56+I57+I58+I59+I60+I61+I62+I63+I64+I65+I66+I67+I68+I84 -> 866152.9705 | J85: 60977.8229 | K85: 1733009.239 | L85: =+L17+L18+L19+L20+L23+L24+L25+L29+L30+L31+L34+L38+L39+L40+L41+L44+L45+L46+L47+L48+L49+L50+L51+L52+L53+L56+L57+L58+L59+L60+L61+L62+L63+L64+L65+L66+L67+L68+L84 -> 1516516 | M85: =+M17+M18+M19+M20+M23+M24+M25+M29+M30+M31+M34+M38+M39+M40+M41+M44+M45+M46+M47+M48+M49+M50+M51+M52+M53+M56+M57+M58+M59+M60+M61+M62+M63+M64+M65+M66+M67+M68+M84 -> 216493.239 | N85: 121955.6458 | O85: =+O17+O18+O19+O20+O23+O24+O25+O29+O30+O31+O34+O38+O39+O40+O41+O44+O45+O46+O47+O48+O49+O50+O51+O52+O53+O56+O57+O58+O59+O60+O61+O62+O63+O64+O65+O66+O67+O68+O84 -> 40368 | P85: =+P17+P18+P19+P20+P23+P24+P25+P29+P30+P31+P34+P38+P39+P40+P41+P44+P45+P46+P47+P48+P49+P50+P51+P52+P53+P56+P57+P58+P59+P60+P61+P62+P63+P64+P65+P66+P67+P68+P84 -> 1753619.062
A87: Notes:
A89: 1 | B89: Board policy of the "half-year" rule - the applicant must ensure that additions in the year attract a half-year depreciation expense in the first year. Deviations from this standard practice must be supported in the application.
A90: 2 | B90: The applicant must provide an explanation of material variances in evidence.
A91: 3 | B91: The applicant should ensure that the years for new additions of assets are the asset useful lives determined by management in accordance with the Board's regulatory accounting policies. The capitalization and depreciation expense accounting changes should be implemented consistent with the Board’s regulatory accounting policies as set out for MIFRS as contained in the Report of the Board, Transition to International Financial Reporting Standards, EB-2008-0408, the Kinectrics Report, and the Revised 2012 Accounting Procedures Handbook for Electricity Distributors.
A92: 4 | B92: A recalculation should be performed to determine the average remaining life of opening balance of assets (i.e. excluding 2013 additions) under the change in policies under CGAAP. For example, Asset A had a useful life of 20 years under CGAAP without the change in policies. On January 1, 2013, the effective date of the changes in policies, Asset A was 3 years depreciated. As a result, Asset A would have a remaining service life of 17 years (20 years less 3 years) as of January 1, 2013. Due to making the change in policies under CGAAP, management re-assessed the asset useful lives and concluded that the revised useful life of Asset A is now 30 years. Therefore, the average remaining useful life of the opening balance of Asset A is determined to be 27 years (30 years less 3 years) under the revised CGAAP as of January 1, 2013.
A93: 5 | B93: NBV must exclude assets still on the books but which have been fully amortized or depreciated.
A94: 6 | B94: This column refers to the calculated full year depreciation but excludes the depreciation expense on assets fully depreciated during the year. This column is used for the purpose of calculating depreciation expense in the following year on the next worksheet.
A96: General: | B96: Applicants must provide a breakdown of depreciation and amortization expense in the above format for all relevant accounts. Asset Retirement Obligations (AROs), depreciation and accretion expense should be disclosed separately consistent with the Notes of historical Audited Financial Statements.

Sheet App.2-CH_NewCGAAP_DepExp_2014
J1: File Number: | K1: =EBNUMBER -> 0
J2: Exhibit:
J3: Tab:
J4: Schedule:
J5: Page:
J7: Date:
A9: Appendix 2-CH
A10: Depreciation and Amortization Expense
A11: Assumes the applicant made capitalization and depreciation expense accounting policy changes under CGAAP effective January 1, 2013 and will adopt IFRS for financial reporting purposes effective January 1, 2015.
E13: 2014 | F13: Revised CGAAP
A15: Account | B15: Description | C15: Additions | D15: Years (new additions only) | E15: Depreciation Rate on New Additions | F15: 2014 Depreciation Expense 1 | G15: 2014 Depreciation Expense per Apppendix 2-BA Fixed Assets, Column J (l) | H15: Variance 2 | I15: Depreciation Expense on 2014 Full Year Additions | J15: Less Depreciation Expense on Assets Fully Depreciated during the year (o) | K15: 2014 Full Year Depreciation 3
C16: (d) | D16: (f) | E16: (g) = 1 / (f) | F16: (h)=2013 Full Year Deprecation + ((d)*0.5)/(f) | H16: (m) = (h) - (l) | I16: (n)=((d))/(f) | K16: (p) = 2013 Full Year Depreciation + (n) - (o)
A17: 1610 | B17: Misc. Intangible Plant | D17: 40 | E17: =IF(D17=0,0,1/D17) -> 0.025 | F17: =IF(D17=0,+'[41]App.2-CG_NewCGAAP_DepExp_2013'!P17,+'[41]App.2-CG_NewCGAAP_DepExp_2013'!P17+((C17*0.5)/D17)) -> 5805.027027 | G17: 6061 | H17: =IF(ISERROR(+F17-G17), 0, +F17-G17) -> -255.972973 | I17: =IF(D17=0,0,+(C17)/D17) -> 0 | K17: =IF(ISERROR(+I17+'[41]App.2-CG_NewCGAAP_DepExp_2013'!P17-J17), 0, +I17+'[41]App.2-CG_NewCGAAP_DepExp_2013'!P17-J17) -> 5805.027027
A18: 1611 | B18: Computer Software (Formally known as Account 1925) | C18: 53599.92 | D18: 5 | E18: 0.2 | F18: =IF(D18=0,+'[41]App.2-CG_NewCGAAP_DepExp_2013'!P18,+'[41]App.2-CG_NewCGAAP_DepExp_2013'!P18+((C18*0.5)/D18)) -> 39463.65867 | G18: 40395 | H18: =IF(ISERROR(+F18-G18), 0, +F18-G18) -> -931.3413333 | I18: 10719.984 | J18: 28048 | K18: =IF(ISERROR(+I18+'[41]App.2-CG_NewCGAAP_DepExp_2013'!P18-J18), 0, +I18+'[41]App.2-CG_NewCGAAP_DepExp_2013'!P18-J18) -> 16775.65067
A19: 1612 | B19: Land Rights (Formally known as Account 1906) | E19: 0 | F19: =IF(D19=0,+'[41]App.2-CG_NewCGAAP_DepExp_2013'!P19,+'[41]App.2-CG_NewCGAAP_DepExp_2013'!P19+((C19*0.5)/D19)) -> 0 | H19: =IF(ISERROR(+F19-G19), 0, +F19-G19) -> 0 | I19: =IF(D19=0,0,+(C19)/D19) -> 0 | K19: =IF(ISERROR(+I19+'[41]App.2-CG_NewCGAAP_DepExp_2013'!P19-J19), 0, +I19+'[41]App.2-CG_NewCGAAP_DepExp_2013'!P19-J19) -> 0
A20: 1805 | B20: Land | E20: 0 | F20: =IF(D20=0,+'[41]App.2-CG_NewCGAAP_DepExp_2013'!P20,+'[41]App.2-CG_NewCGAAP_DepExp_2013'!P20+((C20*0.5)/D20)) -> 0 | H20: 0 | I20: 0 | K20: =IF(ISERROR(+I20+'[41]App.2-CG_NewCGAAP_DepExp_2013'!P20-J20), 0, +I20+'[41]App.2-CG_NewCGAAP_DepExp_2013'!P20-J20) -> 0
A21: 1808 | B21: Buildings | C21: 2800 | D21: 60 | E21: 0.01666666667 | F21: =IF(D21=0,+'[41]App.2-CG_NewCGAAP_DepExp_2013'!P21,+'[41]App.2-CG_NewCGAAP_DepExp_2013'!P21+((C21*0.5)/D21)) -> 10987.31081 | G21: 9533 | H21: =IF(ISERROR(+F21-G21), 0, +F21-G21) -> 1454.310811 | I21: 46.66666667 | K21: =IF(ISERROR(+I21+'[41]App.2-CG_NewCGAAP_DepExp_2013'!P21-J21), 0, +I21+'[41]App.2-CG_NewCGAAP_DepExp_2013'!P21-J21) -> 11010.64414
A22: 1808 | B22: Buildings | C22: 3127 | D22: 30 | E22: 0.03333333333 | F22: =IF(D22=0,+'[41]App.2-CG_NewCGAAP_DepExp_2013'!P22,+'[41]App.2-CG_NewCGAAP_DepExp_2013'!P22+((C22*0.5)/D22)) -> -3124.09386 | G22: 4791 | H22: =IF(ISERROR(+F22-G22), 0, +F22-G22) -> -7915.09386 | I22: 104.2333333 | K22: =IF(ISERROR(+I22+'[41]App.2-CG_NewCGAAP_DepExp_2013'!P22-J22), 0, +I22+'[41]App.2-CG_NewCGAAP_DepExp_2013'!P22-J22) -> -3071.977193
A23: 1808 | B23: Buildings | C23: =SUM(C21:C22) -> 5927 | E23: =IF(D23=0,0,1/D23) -> 0 | F23: =SUM(F21:F22) -> 7863.216951 | G23: =SUM(G21:G22) -> 14324 | H23: =SUM(H21:H22) -> -6460.783049 | I23: 150.9 | J23: 0 | K23: 7938.666951
A24: 1810 | B24: Leasehold Improvements | E24: 0 | F24: =IF(D24=0,+'[41]App.2-CG_NewCGAAP_DepExp_2013'!P24,+'[41]App.2-CG_NewCGAAP_DepExp_2013'!P24+((C24*0.5)/D24)) -> 0 | H24: 0 | I24: 0 | K24: =IF(ISERROR(+I24+'[41]App.2-CG_NewCGAAP_DepExp_2013'!P24-J24), 0, +I24+'[41]App.2-CG_NewCGAAP_DepExp_2013'!P24-J24) -> 0
A25: 1815 | B25: Transformer Station Equipment >50 kV | E25: 0 | F25: =IF(D25=0,+'[41]App.2-CG_NewCGAAP_DepExp_2013'!P25,+'[41]App.2-CG_NewCGAAP_DepExp_2013'!P25+((C25*0.5)/D25)) -> 0 | H25: 0 | I25: 0 | K25: =IF(ISERROR(+I25+'[41]App.2-CG_NewCGAAP_DepExp_2013'!P25-J25), 0, +I25+'[41]App.2-CG_NewCGAAP_DepExp_2013'!P25-J25) -> 0
A26: 1820 | B26: Distribution Station Equipment <50 kV | C26: 0 | D26: 60 | E26: 0.01666666667 | F26: =IF(D26=0,+'[41]App.2-CG_NewCGAAP_DepExp_2013'!P26,+'[41]App.2-CG_NewCGAAP_DepExp_2013'!P26+((C26*0.5)/D26)) -> 3642.509434 | G26: 3503 | H26: 139.509434 | I26: 0 | K26: =IF(ISERROR(+I26+'[41]App.2-CG_NewCGAAP_DepExp_2013'!P26-J26), 0, +I26+'[41]App.2-CG_NewCGAAP_DepExp_2013'!P26-J26) -> 3642.509434
A27: 1820 | B27: Distribution Station Equipment <50 kV | C27: 22143.04 | D27: 50 | E27: 0.02 | F27: =IF(D27=0,+'[41]App.2-CG_NewCGAAP_DepExp_2013'!P27,+'[41]App.2-CG_NewCGAAP_DepExp_2013'!P27+((C27*0.5)/D27)) -> 136106.8402 | G27: 130025 | H27: 6081.840167 | I27: 442.8608 | K27: =IF(ISERROR(+I27+'[41]App.2-CG_NewCGAAP_DepExp_2013'!P27-J27), 0, +I27+'[41]App.2-CG_NewCGAAP_DepExp_2013'!P27-J27) -> 136328.2706
A28: 1820 | B28: Distribution Station Equipment <50 kV | C28: 224997.86 | D28: 20 | E28: 0.05 | F28: =IF(D28=0,+'[41]App.2-CG_NewCGAAP_DepExp_2013'!P28,+'[41]App.2-CG_NewCGAAP_DepExp_2013'!P28+((C28*0.5)/D28)) -> 68914.35035 | G28: 64845 | H28: 4069.350346 | I28: 11249.893 | K28: =IF(ISERROR(+I28+'[41]App.2-CG_NewCGAAP_DepExp_2013'!P28-J28), 0, +I28+'[41]App.2-CG_NewCGAAP_DepExp_2013'!P28-J28) -> 74539.29685
A29: 1820 | B29: Distribution Station Equipment <50 kV | C29: =SUM(C26:C28) -> 247140.9 | E29: 0 | F29: =SUM(F26:F28) -> 208663.6999 | G29: =SUM(G26:G28) -> 198373 | H29: 10290.69995 | I29: =SUM(I26:I28) -> 11692.7538 | J29: 0 | K29: 214510.0768
A30: 1825 | B30: Storage Battery Equipment | E30: 0 | F30: =IF(D30=0,+'[41]App.2-CG_NewCGAAP_DepExp_2013'!P30,+'[41]App.2-CG_NewCGAAP_DepExp_2013'!P30+((C30*0.5)/D30)) -> 0 | H30: 0 | I30: 0 | K30: =IF(ISERROR(+I30+'[41]App.2-CG_NewCGAAP_DepExp_2013'!P30-J30), 0, +I30+'[41]App.2-CG_NewCGAAP_DepExp_2013'!P30-J30) -> 0
A31: 1830 | B31: Poles, Towers & Fixtures | C31: 1326417.34 | D31: 45 | E31: 0.02222222222 | F31: =IF(D31=0,+'[41]App.2-CG_NewCGAAP_DepExp_2013'!P31,+'[41]App.2-CG_NewCGAAP_DepExp_2013'!P31+((C31*0.5)/D31)) -> 265216.116 | G31: 236499.1 | H31: 28717.01596 | I31: 29475.94089 | K31: =IF(ISERROR(+I31+'[41]App.2-CG_NewCGAAP_DepExp_2013'!P31-J31), 0, +I31+'[41]App.2-CG_NewCGAAP_DepExp_2013'!P31-J31) -> 279954.0864
A32: 1835 | B32: Overhead Conductors & Devices | C32: 9665.07 | D32: 60 | E32: 0.01666666667 | F32: =IF(D32=0,+'[41]App.2-CG_NewCGAAP_DepExp_2013'!P32,+'[41]App.2-CG_NewCGAAP_DepExp_2013'!P32+((C32*0.5)/D32)) -> 39897.77486 | G32: 32563 | H32: 7334.774859 | I32: 161.0845 | K32: =IF(ISERROR(+I32+'[41]App.2-CG_NewCGAAP_DepExp_2013'!P32-J32), 0, +I32+'[41]App.2-CG_NewCGAAP_DepExp_2013'!P32-J32) -> 39978.31711
A33: 1835 | B33: Overhead Conductors & Devices | C33: 50417.83 | D33: 45 | E33: 0.02222222222 | F33: =IF(D33=0,+'[41]App.2-CG_NewCGAAP_DepExp_2013'!P33,+'[41]App.2-CG_NewCGAAP_DepExp_2013'!P33+((C33*0.5)/D33)) -> 57985.68198 | G33: 43357 | H33: 14628.68198 | I33: 1120.396222 | K33: =IF(ISERROR(+I33+'[41]App.2-CG_NewCGAAP_DepExp_2013'!P33-J33), 0, +I33+'[41]App.2-CG_NewCGAAP_DepExp_2013'!P33-J33) -> 58545.88009
A34: 1835 | B34: Overhead Conductors & Devices | C34: =SUM(C32:C33) -> 60082.9 | E34: 0 | F34: =SUM(F32:F33) -> 97883.45684 | G34: 75920 | H34: 21963.45684 | I34: 1281.480722 | J34: 0 | K34: 98524.1972
A35: 1840 | B35: Underground Conduit | C35: 588665.76 | D35: 60 | E35: 0.01666666667 | F35: =IF(D35=0,+'[41]App.2-CG_NewCGAAP_DepExp_2013'!P35,+'[41]App.2-CG_NewCGAAP_DepExp_2013'!P35+((C35*0.5)/D35)) -> 139068.1581 | G35: 127957 | H35: =IF(ISERROR(+F35-G35), 0, +F35-G35) -> 11111.15808 | I35: =IF(D35=0,0,+(C35)/D35) -> 9811.096 | K35: =IF(ISERROR(+I35+'[41]App.2-CG_NewCGAAP_DepExp_2013'!P35-J35), 0, +I35+'[41]App.2-CG_NewCGAAP_DepExp_2013'!P35-J35) -> 143973.7061
A36: 1840 | B36: Underground Conduit | C36: 0 | D36: 40 | E36: 0.025 | F36: =IF(D36=0,+'[41]App.2-CG_NewCGAAP_DepExp_2013'!P36,+'[41]App.2-CG_NewCGAAP_DepExp_2013'!P36+((C36*0.5)/D36)) -> 13881.66413 | G36: 10776 | H36: 3105.66413 | I36: 0 | K36: =IF(ISERROR(+I36+'[41]App.2-CG_NewCGAAP_DepExp_2013'!P36-J36), 0, +I36+'[41]App.2-CG_NewCGAAP_DepExp_2013'!P36-J36) -> 13881.66413
A37: 1840 | B37: Underground Conduit | C37: 51715.38 | D37: 35 | E37: 0.02857142857 | F37: =IF(D37=0,+'[41]App.2-CG_NewCGAAP_DepExp_2013'!P37,+'[41]App.2-CG_NewCGAAP_DepExp_2013'!P37+((C37*0.5)/D37)) -> 5555.864159 | G37: 5059 | H37: 496.8641587 | I37: 1477.582286 | J37: 45 | K37: =IF(ISERROR(+I37+'[41]App.2-CG_NewCGAAP_DepExp_2013'!P37-J37), 0, +I37+'[41]App.2-CG_NewCGAAP_DepExp_2013'!P37-J37) -> 6249.655302
A38: 1840 | B38: Underground Conduit | C38: =SUM(C35:C37) -> 640381.14 | E38: 0 | F38: =SUM(F35:F37) -> 158505.6864 | G38: 143792 | H38: 14713.68637 | I38: =SUM(I35:I37) -> 11288.67829 | J38: 45 | K38: 164105.0255
A39: 1845 | B39: Underground Conductors & Devices | C39: 427700.11 | D39: 50 | E39: 0.02 | F39: =IF(D39=0,+'[41]App.2-CG_NewCGAAP_DepExp_2013'!P39,+'[41]App.2-CG_NewCGAAP_DepExp_2013'!P39+((C39*0.5)/D39)) -> 139241.3623 | G39: 110535.47 | H39: 28705.89231 | I39: 8554.0022 | K39: =IF(ISERROR(+I39+'[41]App.2-CG_NewCGAAP_DepExp_2013'!P39-J39), 0, +I39+'[41]App.2-CG_NewCGAAP_DepExp_2013'!P39-J39) -> 143518.3634
A40: 1850 | B40: Line Transformers | C40: 232642.31 | D40: 40 | E40: 0.025 | F40: =IF(D40=0,+'[41]App.2-CG_NewCGAAP_DepExp_2013'!P40,+'[41]App.2-CG_NewCGAAP_DepExp_2013'!P40+((C40*0.5)/D40)) -> 84555.20758 | G40: 76076.29 | H40: 8478.917579 | I40: 5816.05775 | K40: =IF(ISERROR(+I40+'[41]App.2-CG_NewCGAAP_DepExp_2013'!P40-J40), 0, +I40+'[41]App.2-CG_NewCGAAP_DepExp_2013'!P40-J40) -> 87463.23645
A41: 1855 | B41: Services (Overhead & Underground) | C41: 93973.68 | D41: 60 | E41: 0.01666666667 | F41: =IF(D41=0,+'[41]App.2-CG_NewCGAAP_DepExp_2013'!P41,+'[41]App.2-CG_NewCGAAP_DepExp_2013'!P41+((C41*0.5)/D41)) -> 17552.64556 | G41: 16150.46 | H41: 1402.18556 | I41: 1566.228 | K41: =IF(ISERROR(+I41+'[41]App.2-CG_NewCGAAP_DepExp_2013'!P41-J41), 0, +I41+'[41]App.2-CG_NewCGAAP_DepExp_2013'!P41-J41) -> 18335.75956
A42: 1860 | B42: Meters | C42: 0 | D42: 40 | E42: 0.025 | F42: =IF(D42=0,+'[41]App.2-CG_NewCGAAP_DepExp_2013'!P42,+'[41]App.2-CG_NewCGAAP_DepExp_2013'!P42+((C42*0.5)/D42)) -> 23548.11071 | G42: 18826 | H42: 4722.110714 | I42: 0 | K42: =IF(ISERROR(+I42+'[41]App.2-CG_NewCGAAP_DepExp_2013'!P42-J42), 0, +I42+'[41]App.2-CG_NewCGAAP_DepExp_2013'!P42-J42) -> 23548.11071
A43: 1860 | B43: Meters | C43: 257908.56 | D43: 15 | E43: 0.06666666667 | F43: =IF(D43=0,+'[41]App.2-CG_NewCGAAP_DepExp_2013'!P43,+'[41]App.2-CG_NewCGAAP_DepExp_2013'!P43+((C43*0.5)/D43)) -> 396806.2187 | G43: 321708 | H43: 75098.21867 | I43: 17193.904 | K43: =IF(ISERROR(+I43+'[41]App.2-CG_NewCGAAP_DepExp_2013'!P43-J43), 0, +I43+'[41]App.2-CG_NewCGAAP_DepExp_2013'!P43-J43) -> 405403.1707
A44: 1860 | B44: Meters | C44: =SUM(C42:C43) -> 257908.56 | E44: 0 | F44: =SUM(F42:F43) -> 420354.3294 | G44: =SUM(G42:G43) -> 340534 | H44: 79820.32938 | I44: 17193.904 | J44: 0 | K44: 428951.2814
A45: 1860 | B45: Meters (Smart Meters) | E45: 0 | F45: =IF(D45=0,+'[41]App.2-CG_NewCGAAP_DepExp_2013'!P45,+'[41]App.2-CG_NewCGAAP_DepExp_2013'!P45+((C45*0.5)/D45)) -> 0 | H45: 0 | I45: 0 | K45: =IF(ISERROR(+I45+'[41]App.2-CG_NewCGAAP_DepExp_2013'!P45-J45), 0, +I45+'[41]App.2-CG_NewCGAAP_DepExp_2013'!P45-J45) -> 0
A46: 1905 | B46: Land | E46: 0 | F46: =IF(D46=0,+'[41]App.2-CG_NewCGAAP_DepExp_2013'!P46,+'[41]App.2-CG_NewCGAAP_DepExp_2013'!P46+((C46*0.5)/D46)) -> 0 | H46: 0 | I46: 0 | K46: =IF(ISERROR(+I46+'[41]App.2-CG_NewCGAAP_DepExp_2013'!P46-J46), 0, +I46+'[41]App.2-CG_NewCGAAP_DepExp_2013'!P46-J46) -> 0
A47: 1908 | B47: Buildings & Fixtures | E47: 0 | F47: =IF(D47=0,+'[41]App.2-CG_NewCGAAP_DepExp_2013'!P47,+'[41]App.2-CG_NewCGAAP_DepExp_2013'!P47+((C47*0.5)/D47)) -> 0 | H47: 0 | I47: 0 | K47: =IF(ISERROR(+I47+'[41]App.2-CG_NewCGAAP_DepExp_2013'!P47-J47), 0, +I47+'[41]App.2-CG_NewCGAAP_DepExp_2013'!P47-J47) -> 0
A48: 1910 | B48: Leasehold Improvements | D48: 20 | E48: 0.05 | F48: =IF(D48=0,+'[41]App.2-CG_NewCGAAP_DepExp_2013'!P48,+'[41]App.2-CG_NewCGAAP_DepExp_2013'!P48+((C48*0.5)/D48)) -> 7776.566667 | G48: 8114 | H48: -337.4333333 | I48: 0 | K48: =IF(ISERROR(+I48+'[41]App.2-CG_NewCGAAP_DepExp_2013'!P48-J48), 0, +I48+'[41]App.2-CG_NewCGAAP_DepExp_2013'!P48-J48) -> 7776.566667
A49: 1915 | B49: Office Furniture & Equipment (10 years) | D49: 10 | E49: 0.1 | F49: =IF(D49=0,+'[41]App.2-CG_NewCGAAP_DepExp_2013'!P49,+'[41]App.2-CG_NewCGAAP_DepExp_2013'!P49+((C49*0.5)/D49)) -> 3026.25 | G49: 2729 | H49: 297.25 | I49: 0 | K49: =IF(ISERROR(+I49+'[41]App.2-CG_NewCGAAP_DepExp_2013'!P49-J49), 0, +I49+'[41]App.2-CG_NewCGAAP_DepExp_2013'!P49-J49) -> 3026.25
A50: 1915 | B50: Office Furniture & Equipment (5 years) | E50: 0 | F50: =IF(D50=0,+'[41]App.2-CG_NewCGAAP_DepExp_2013'!P50,+'[41]App.2-CG_NewCGAAP_DepExp_2013'!P50+((C50*0.5)/D50)) -> 0 | H50: 0 | I50: 0 | K50: =IF(ISERROR(+I50+'[41]App.2-CG_NewCGAAP_DepExp_2013'!P50-J50), 0, +I50+'[41]App.2-CG_NewCGAAP_DepExp_2013'!P50-J50) -> 0
A51: 1920 | B51: Computer Equipment - Hardware | E51: 0 | F51: =IF(D51=0,+'[41]App.2-CG_NewCGAAP_DepExp_2013'!P51,+'[41]App.2-CG_NewCGAAP_DepExp_2013'!P51+((C51*0.5)/D51)) -> 0 | H51: 0 | I51: 0 | K51: =IF(ISERROR(+I51+'[41]App.2-CG_NewCGAAP_DepExp_2013'!P51-J51), 0, +I51+'[41]App.2-CG_NewCGAAP_DepExp_2013'!P51-J51) -> 0
A52: 1920 | B52: Computer Equip.-Hardware(Post Mar. 22/04) | D52: 5 | E52: 0.2 | F52: =IF(D52=0,+'[41]App.2-CG_NewCGAAP_DepExp_2013'!P52,+'[41]App.2-CG_NewCGAAP_DepExp_2013'!P52+((C52*0.5)/D52)) -> 42640.66667 | G52: 54008 | H52: -11367.33333 | I52: =IF(D52=0,0,+(C52)/D52) -> 0 | J52: 5848 | K52: =IF(ISERROR(+I52+'[41]App.2-CG_NewCGAAP_DepExp_2013'!P52-J52), 0, +I52+'[41]App.2-CG_NewCGAAP_DepExp_2013'!P52-J52) -> 36792.66667
A53: 1920 | B53: Computer Equip.-Hardware(Post Mar. 19/07) | E53: 0 | F53: =IF(D53=0,+'[41]App.2-CG_NewCGAAP_DepExp_2013'!P53,+'[41]App.2-CG_NewCGAAP_DepExp_2013'!P53+((C53*0.5)/D53)) -> 0 | H53: 0 | I53: 0 | K53: =IF(ISERROR(+I53+'[41]App.2-CG_NewCGAAP_DepExp_2013'!P53-J53), 0, +I53+'[41]App.2-CG_NewCGAAP_DepExp_2013'!P53-J53) -> 0
A54: 1930 | B54: Transportation Equipment | C54: 8300 | D54: 12 | E54: 0.08333333333 | F54: =IF(D54=0,+'[41]App.2-CG_NewCGAAP_DepExp_2013'!P54,+'[41]App.2-CG_NewCGAAP_DepExp_2013'!P54+((C54*0.5)/D54)) -> 148990.9762 | G54: 109921 | H54: 39069.97619 | I54: 691.6666667 | K54: =IF(ISERROR(+I54+'[41]App.2-CG_NewCGAAP_DepExp_2013'!P54-J54), 0, +I54+'[41]App.2-CG_NewCGAAP_DepExp_2013'!P54-J54) -> 149336.8095
A55: 1930 | B55: Transportation Equipment | C55: 148707.3 | D55: 8 | E55: 0.125 | F55: =IF(D55=0,+'[41]App.2-CG_NewCGAAP_DepExp_2013'!P55,+'[41]App.2-CG_NewCGAAP_DepExp_2013'!P55+((C55*0.5)/D55)) -> 90133.08125 | G55: 74471 | H55: 15662.08125 | I55: 18588.4125 | K55: =IF(ISERROR(+I55+'[41]App.2-CG_NewCGAAP_DepExp_2013'!P55-J55), 0, +I55+'[41]App.2-CG_NewCGAAP_DepExp_2013'!P55-J55) -> 99427.2875
A56: 1930 | B56: Transportation Equipment | C56: =SUM(C54:C55) -> 157007.3 | E56: 0 | F56: =SUM(F54:F55) -> 239124.0574 | G56: 184392 | H56: 54732.05744 | I56: 19280.07917 | J56: 0 | K56: =SUM(K54:K55) -> 248764.097
A57: 1935 | B57: Stores Equipment | D57: 10 | E57: 0.1 | F57: =IF(D57=0,+'[41]App.2-CG_NewCGAAP_DepExp_2013'!P57,+'[41]App.2-CG_NewCGAAP_DepExp_2013'!P57+((C57*0.5)/D57)) -> 7577.2 | G57: 6110 | H57: 1467.2 | I57: 0 | K57: =IF(ISERROR(+I57+'[41]App.2-CG_NewCGAAP_DepExp_2013'!P57-J57), 0, +I57+'[41]App.2-CG_NewCGAAP_DepExp_2013'!P57-J57) -> 7577.2
A58: 1940 | B58: Tools, Shop & Garage Equipment | C58: 91995.14 | D58: 10 | E58: 0.1 | F58: =IF(D58=0,+'[41]App.2-CG_NewCGAAP_DepExp_2013'!P58,+'[41]App.2-CG_NewCGAAP_DepExp_2013'!P58+((C58*0.5)/D58)) -> 50842.957 | G58: 55971 | H58: -5128.043 | I58: 9199.514 | J58: 11019 | K58: =IF(ISERROR(+I58+'[41]App.2-CG_NewCGAAP_DepExp_2013'!P58-J58), 0, +I58+'[41]App.2-CG_NewCGAAP_DepExp_2013'!P58-J58) -> 44423.714
A59: 1945 | B59: Measurement & Testing Equipment | D59: 10 | E59: 0.1 | F59: =IF(D59=0,+'[41]App.2-CG_NewCGAAP_DepExp_2013'!P59,+'[41]App.2-CG_NewCGAAP_DepExp_2013'!P59+((C59*0.5)/D59)) -> 6036.142857 | G59: 6338 | H59: -301.8571429 | I59: 0 | K59: =IF(ISERROR(+I59+'[41]App.2-CG_NewCGAAP_DepExp_2013'!P59-J59), 0, +I59+'[41]App.2-CG_NewCGAAP_DepExp_2013'!P59-J59) -> 6036.142857
A60: 1950 | B60: Power Operated Equipment | E60: 0 | F60: =IF(D60=0,+'[41]App.2-CG_NewCGAAP_DepExp_2013'!P60,+'[41]App.2-CG_NewCGAAP_DepExp_2013'!P60+((C60*0.5)/D60)) -> 0 | H60: 0 | I60: 0 | K60: =IF(ISERROR(+I60+'[41]App.2-CG_NewCGAAP_DepExp_2013'!P60-J60), 0, +I60+'[41]App.2-CG_NewCGAAP_DepExp_2013'!P60-J60) -> 0
A61: 1955 | B61: Communications Equipment | C61: 60537.96 | D61: 5 | E61: =IF(D61=0,0,1/D61) -> 0.2 | F61: =IF(D61=0,+'[41]App.2-CG_NewCGAAP_DepExp_2013'!P61,+'[41]App.2-CG_NewCGAAP_DepExp_2013'!P61+((C61*0.5)/D61)) -> 18439.46267 | G61: 31455.33 | H61: -13015.86733 | I61: 12107.592 | J61: 19584 | K61: =IF(ISERROR(+I61+'[41]App.2-CG_NewCGAAP_DepExp_2013'!P61-J61), 0, +I61+'[41]App.2-CG_NewCGAAP_DepExp_2013'!P61-J61) -> 4909.258667
A62: 1955 | B62: Communication Equipment (Smart Meters) | E62: 0 | F62: =IF(D62=0,+'[41]App.2-CG_NewCGAAP_DepExp_2013'!P62,+'[41]App.2-CG_NewCGAAP_DepExp_2013'!P62+((C62*0.5)/D62)) -> 0 | H62: 0 | I62: 0 | K62: =IF(ISERROR(+I62+'[41]App.2-CG_NewCGAAP_DepExp_2013'!P62-J62), 0, +I62+'[41]App.2-CG_NewCGAAP_DepExp_2013'!P62-J62) -> 0
A63: 1960 | B63: Miscellaneous Equipment | E63: 0 | F63: =IF(D63=0,+'[41]App.2-CG_NewCGAAP_DepExp_2013'!P63,+'[41]App.2-CG_NewCGAAP_DepExp_2013'!P63+((C63*0.5)/D63)) -> 0 | H63: 0 | I63: 0 | K63: =IF(ISERROR(+I63+'[41]App.2-CG_NewCGAAP_DepExp_2013'!P63-J63), 0, +I63+'[41]App.2-CG_NewCGAAP_DepExp_2013'!P63-J63) -> 0
A64: 1970 | B64: Load Management Controls - Customer Premises | E64: 0 | F64: =IF(D64=0,+'[41]App.2-CG_NewCGAAP_DepExp_2013'!P64,+'[41]App.2-CG_NewCGAAP_DepExp_2013'!P64+((C64*0.5)/D64)) -> 0 | H64: 0 | I64: 0 | K64: =IF(ISERROR(+I64+'[41]App.2-CG_NewCGAAP_DepExp_2013'!P64-J64), 0, +I64+'[41]App.2-CG_NewCGAAP_DepExp_2013'!P64-J64) -> 0
A65: 1975 | B65: Load Management Controls Utility Premises | E65: 0 | F65: =IF(D65=0,+'[41]App.2-CG_NewCGAAP_DepExp_2013'!P65,+'[41]App.2-CG_NewCGAAP_DepExp_2013'!P65+((C65*0.5)/D65)) -> 0 | H65: 0 | I65: 0 | K65: =IF(ISERROR(+I65+'[41]App.2-CG_NewCGAAP_DepExp_2013'!P65-J65), 0, +I65+'[41]App.2-CG_NewCGAAP_DepExp_2013'!P65-J65) -> 0
A66: 1980 | B66: System Supervisor Equipment | C66: 28747.65 | D66: 20 | E66: 0.05 | F66: =IF(D66=0,+'[41]App.2-CG_NewCGAAP_DepExp_2013'!P66,+'[41]App.2-CG_NewCGAAP_DepExp_2013'!P66+((C66*0.5)/D66)) -> 64143.94125 | G66: 59932.12 | H66: 4211.82125 | I66: 1437.3825 | K66: =IF(ISERROR(+I66+'[41]App.2-CG_NewCGAAP_DepExp_2013'!P66-J66), 0, +I66+'[41]App.2-CG_NewCGAAP_DepExp_2013'!P66-J66) -> 64862.6325
A67: 1985 | B67: Miscellaneous Fixed Assets | E67: 0 | F67: =IF(D67=0,+'[41]App.2-CG_NewCGAAP_DepExp_2013'!P67,+'[41]App.2-CG_NewCGAAP_DepExp_2013'!P67+((C67*0.5)/D67)) -> 0 | H67: 0 | I67: 0 | K67: =IF(ISERROR(+I67+'[41]App.2-CG_NewCGAAP_DepExp_2013'!P67-J67), 0, +I67+'[41]App.2-CG_NewCGAAP_DepExp_2013'!P67-J67) -> 0
A68: 1990 | B68: Other Tangible Property | E68: 0 | F68: =IF(D68=0,+'[41]App.2-CG_NewCGAAP_DepExp_2013'!P68,+'[41]App.2-CG_NewCGAAP_DepExp_2013'!P68+((C68*0.5)/D68)) -> 0 | H68: 0 | I68: 0 | K68: =IF(ISERROR(+I68+'[41]App.2-CG_NewCGAAP_DepExp_2013'!P68-J68), 0, +I68+'[41]App.2-CG_NewCGAAP_DepExp_2013'!P68-J68) -> 0
A69: 1995 | B69: Contributions & Grants Total | C69: -19872.5 | D69: 15 | E69: 0.06666666667 | F69: =IF(D69=0,+'[41]App.2-CG_NewCGAAP_DepExp_2013'!P69,+'[41]App.2-CG_NewCGAAP_DepExp_2013'!P69+((C69*0.5)/D69)) -> -3856.45 | G69: -3914 | H69: 57.55 | I69: -1324.833333 | K69: =IF(ISERROR(+I69+'[41]App.2-CG_NewCGAAP_DepExp_2013'!P69-J69), 0, +I69+'[41]App.2-CG_NewCGAAP_DepExp_2013'!P69-J69) -> -4518.866667
A70: 1995 | B70: Contributions & Grants Total | C70: -9604.95 | D70: 40 | E70: 0.025 | F70: =IF(D70=0,+'[41]App.2-CG_NewCGAAP_DepExp_2013'!P70,+'[41]App.2-CG_NewCGAAP_DepExp_2013'!P70+((C70*0.5)/D70)) -> -4068.254522 | G70: -3843 | H70: -225.2545221 | I70: -240.12375 | K70: =IF(ISERROR(+I70+'[41]App.2-CG_NewCGAAP_DepExp_2013'!P70-J70), 0, +I70+'[41]App.2-CG_NewCGAAP_DepExp_2013'!P70-J70) -> -4188.316397
A71: 1995 | B71: Contributions & Grants Total | C71: -2123.3 | D71: 15 | E71: 0.06666666667 | F71: =IF(D71=0,+'[41]App.2-CG_NewCGAAP_DepExp_2013'!P71,+'[41]App.2-CG_NewCGAAP_DepExp_2013'!P71+((C71*0.5)/D71)) -> -1056.176667 | G71: -1056 | H71: -0.1766666667 | I71: -141.5533333 | K71: =IF(ISERROR(+I71+'[41]App.2-CG_NewCGAAP_DepExp_2013'!P71-J71), 0, +I71+'[41]App.2-CG_NewCGAAP_DepExp_2013'!P71-J71) -> -1126.953333
A72: 1995 | B72: Contributions & Grants Total | C72: -103309.82 | D72: 40 | E72: 0.025 | F72: =IF(D72=0,+'[41]App.2-CG_NewCGAAP_DepExp_2013'!P72,+'[41]App.2-CG_NewCGAAP_DepExp_2013'!P72+((C72*0.5)/D72)) -> -15151.6189 | G72: -15329 | H72: 177.3810962 | I72: -2582.7455 | K72: =IF(ISERROR(+I72+'[41]App.2-CG_NewCGAAP_DepExp_2013'!P72-J72), 0, +I72+'[41]App.2-CG_NewCGAAP_DepExp_2013'!P72-J72) -> -16442.99165
A73: 1995 | B73: Contributions & Grants Total | D73: 45 | E73: 0.02222222222 | F73: =IF(D73=0,+'[41]App.2-CG_NewCGAAP_DepExp_2013'!P73,+'[41]App.2-CG_NewCGAAP_DepExp_2013'!P73+((C73*0.5)/D73)) -> -9822.930556 | G73: -9519 | H73: -303.9305556 | I73: 0 | K73: =IF(ISERROR(+I73+'[41]App.2-CG_NewCGAAP_DepExp_2013'!P73-J73), 0, +I73+'[41]App.2-CG_NewCGAAP_DepExp_2013'!P73-J73) -> -9822.930556
A74: 1995 | B74: Contributions & Grants Total | D74: 60 | E74: 0.01666666667 | F74: =IF(D74=0,+'[41]App.2-CG_NewCGAAP_DepExp_2013'!P74,+'[41]App.2-CG_NewCGAAP_DepExp_2013'!P74+((C74*0.5)/D74)) -> -2050.218182 | G74: -2002 | H74: -48.21818182 | I74: 0 | K74: =IF(ISERROR(+I74+'[41]App.2-CG_NewCGAAP_DepExp_2013'!P74-J74), 0, +I74+'[41]App.2-CG_NewCGAAP_DepExp_2013'!P74-J74) -> -2050.218182
A75: 1995 | B75: Contributions & Grants Total | D75: 45 | E75: 0.02222222222 | F75: =IF(D75=0,+'[41]App.2-CG_NewCGAAP_DepExp_2013'!P75,+'[41]App.2-CG_NewCGAAP_DepExp_2013'!P75+((C75*0.5)/D75)) -> -1306.125 | G75: -1265 | H75: -41.125 | I75: 0 | K75: =IF(ISERROR(+I75+'[41]App.2-CG_NewCGAAP_DepExp_2013'!P75-J75), 0, +I75+'[41]App.2-CG_NewCGAAP_DepExp_2013'!P75-J75) -> -1306.125
A76: 1995 | B76: Contributions & Grants Total | D76: 60 | E76: 0.01666666667 | F76: =IF(D76=0,+'[41]App.2-CG_NewCGAAP_DepExp_2013'!P76,+'[41]App.2-CG_NewCGAAP_DepExp_2013'!P76+((C76*0.5)/D76)) -> -7133.65 | G76: -7134 | H76: 0.35 | I76: 0 | K76: =IF(ISERROR(+I76+'[41]App.2-CG_NewCGAAP_DepExp_2013'!P76-J76), 0, +I76+'[41]App.2-CG_NewCGAAP_DepExp_2013'!P76-J76) -> -7133.65
A77: 1995 | B77: Contributions & Grants Total | D77: 40 | E77: 0.025 | F77: =IF(D77=0,+'[41]App.2-CG_NewCGAAP_DepExp_2013'!P77,+'[41]App.2-CG_NewCGAAP_DepExp_2013'!P77+((C77*0.5)/D77)) -> -89.59736842 | G77: -90 | H77: 0.4026315789 | I77: 0 | K77: =IF(ISERROR(+I77+'[41]App.2-CG_NewCGAAP_DepExp_2013'!P77-J77), 0, +I77+'[41]App.2-CG_NewCGAAP_DepExp_2013'!P77-J77) -> -89.59736842
A78: 1995 | B78: Contributions & Grants Total | D78: 35 | E78: 0.02857142857 | F78: =IF(D78=0,+'[41]App.2-CG_NewCGAAP_DepExp_2013'!P78,+'[41]App.2-CG_NewCGAAP_DepExp_2013'!P78+((C78*0.5)/D78)) -> -4.515151515 | G78: -5 | H78: 0.4848484848 | I78: 0 | K78: =IF(ISERROR(+I78+'[41]App.2-CG_NewCGAAP_DepExp_2013'!P78-J78), 0, +I78+'[41]App.2-CG_NewCGAAP_DepExp_2013'!P78-J78) -> -4.515151515
A79: 1995 | B79: Contributions & Grants Total | D79: 50 | E79: 0.02 | F79: =IF(D79=0,+'[41]App.2-CG_NewCGAAP_DepExp_2013'!P79,+'[41]App.2-CG_NewCGAAP_DepExp_2013'!P79+((C79*0.5)/D79)) -> -3008.130833 | G79: -3008 | H79: -0.1308333333 | I79: 0 | K79: =IF(ISERROR(+I79+'[41]App.2-CG_NewCGAAP_DepExp_2013'!P79-J79), 0, +I79+'[41]App.2-CG_NewCGAAP_DepExp_2013'!P79-J79) -> -3008.130833
A80: 1995 | B80: Contributions & Grants Total | D80: 60 | E80: 0.01666666667 | F80: =IF(D80=0,+'[41]App.2-CG_NewCGAAP_DepExp_2013'!P80,+'[41]App.2-CG_NewCGAAP_DepExp_2013'!P80+((C80*0.5)/D80)) -> -903.9636364 | G80: -887 | H80: -16.96363636 | I80: 0 | K80: =IF(ISERROR(+I80+'[41]App.2-CG_NewCGAAP_DepExp_2013'!P80-J80), 0, +I80+'[41]App.2-CG_NewCGAAP_DepExp_2013'!P80-J80) -> -903.9636364
A81: 1995 | B81: Contributions & Grants Total | D81: 50 | E81: 0.02 | F81: =IF(D81=0,+'[41]App.2-CG_NewCGAAP_DepExp_2013'!P81,+'[41]App.2-CG_NewCGAAP_DepExp_2013'!P81+((C81*0.5)/D81)) -> -10687.97778 | G81: -10444 | H81: -243.9777778 | I81: =IF(D81=0,0,+(C81)/D81) -> 0 | K81: =IF(ISERROR(+I81+'[41]App.2-CG_NewCGAAP_DepExp_2013'!P81-J81), 0, +I81+'[41]App.2-CG_NewCGAAP_DepExp_2013'!P81-J81) -> -10687.97778
A82: 1995 | B82: Contributions & Grants Total | D82: 20 | E82: 0.05 | F82: =IF(D82=0,+'[41]App.2-CG_NewCGAAP_DepExp_2013'!P82,+'[41]App.2-CG_NewCGAAP_DepExp_2013'!P82+((C82*0.5)/D82)) -> -3887.6 | G82: -3646 | H82: -241.6 | I82: 0 | K82: =IF(ISERROR(+I82+'[41]App.2-CG_NewCGAAP_DepExp_2013'!P82-J82), 0, +I82+'[41]App.2-CG_NewCGAAP_DepExp_2013'!P82-J82) -> -3887.6
A83: 1995 | B83: Contributions & Grants Total | D83: 30 | E83: 0.03333333333 | F83: =IF(D83=0,+'[41]App.2-CG_NewCGAAP_DepExp_2013'!P83,+'[41]App.2-CG_NewCGAAP_DepExp_2013'!P83+((C83*0.5)/D83)) -> -327.76 | G83: -315 | H83: =IF(ISERROR(+F83-G83), 0, +F83-G83) -> -12.76 | I83: 0 | K83: =IF(ISERROR(+I83+'[41]App.2-CG_NewCGAAP_DepExp_2013'!P83-J83), 0, +I83+'[41]App.2-CG_NewCGAAP_DepExp_2013'!P83-J83) -> -327.76
A84: 1995 | B84: Contributions & Grants Total | C84: =SUM(C69:C83) -> -134910.57 | E84: 0 | F84: =SUM(F69:F83) -> -63354.9686 | G84: =SUM(G69:G83) -> -62457 | H84: -897.9685974 | I84: =SUM(I69:I83) -> -4289.255917 | J84: 0 | K84: =SUM(K69:K83) -> -65499.59656
B85: Total | C85: =+C17+C18+C19+C20+C23+C24+C25+C29+C30+C31+C34+C38+C39+C40+C41+C44+C45+C46+C47+C48+C49+C50+C51+C52+C53+C56+C57+C58+C59+C60+C61+C62+C63+C64+C65+C66+C67+C68+C84 -> 3549151.34 | F85: =+F17+F18+F19+F20+F23+F24+F25+F29+F30+F31+F34+F38+F39+F40+F41+F44+F45+F46+F47+F48+F49+F50+F51+F52+F53+F56+F57+F58+F59+F60+F61+F62+F63+F64+F65+F66+F67+F68+F84 -> 1821356.683 | G85: =+G17+G18+G19+G20+G23+G24+G25+G29+G30+G31+G34+G38+G39+G40+G41+G44+G45+G46+G47+G48+G49+G50+G51+G52+G53+G56+G57+G58+G59+G60+G61+G62+G63+G64+G65+G66+G67+G68+G84 -> 1605252.77 | H85: =+H17+H18+H19+H20+H23+H24+H25+H29+H30+H31+H34+H38+H39+H40+H41+H44+H45+H46+H47+H48+H49+H50+H51+H52+H53+H56+H57+H58+H59+H60+H61+H62+H63+H64+H65+H66+H67+H68+H84 -> 216103.9125 | I85: =+I17+I18+I19+I20+I23+I24+I25+I29+I30+I31+I34+I38+I39+I40+I41+I44+I45+I46+I47+I48+I49+I50+I51+I52+I53+I56+I57+I58+I59+I60+I61+I62+I63+I64+I65+I66+I67+I68+I84 -> 135475.2414 | J85: 64544 | K85: =+K17+K18+K19+K20+K23+K24+K25+K29+K30+K31+K34+K38+K39+K40+K41+K44+K45+K46+K47+K48+K49+K50+K51+K52+K53+K56+K57+K58+K59+K60+K61+K62+K63+K64+K65+K66+K67+K68+K84 -> 1824550.303
B86: Depreciation exp. adj. from gain or loss on the retirement of assets (pool of like assets)
B87: Total Depreciation Expense | F87: =SUM(F85:F86) -> 1821356.683
A89: Notes:
A90: 1 | B90: Board policy of the "half-year" rule - the applicant must ensure that additions in the year attract a half-year depreciation expense in the first year. Deviations from this standard practice must be supported in the application.
A91: 2 | B91: The applicant must provide an explanation of material variances in evidence.
A92: 3 | B92: This column refers to the calculated full year depreciation but excludes the depreciation expense on assets fully depreciated during the year. This column is used for the purpose of calculating depreciation expense in the following year on the next worksheet.
A94: General: | B94: Applicants must provide a breakdown of depreciation and amortization expense in the above format for all relevant accounts. Asset Retirement Obligations (AROs), depreciation and accretion expense should be disclosed separately consistent with the Notes of historical Audited Financial Statements.

Sheet App.2-CI MIFRS_DepExp_2015
G1: File Number: | H1: =EBNUMBER -> 0
G2: Exhibit:
G3: Tab:
G4: Schedule:
G5: Page:
G7: Date:
A9: Appendix 2-CI
A10: Depreciation and Amortization Expense
A11: Assumes the applicant made capitalization and depreciation expense accounting policy changes under CGAAP effective January 1, 2013 and will adopt IFRS for financial reporting purposes effective January 1, 2015.
D13: 2015 | E13: MIFRS
A15: Account | B15: Description | C15: Additions | D15: Years (new additions only) | E15: Depreciation Rate on New Additions | F15: 2015 Depreciation Expense 1 | G15: 2015 Depreciation Expense per Appendix 2-BA Fixed Assets, Column J (l) | H15: Variance 2
C16: (d) | D16: (f) | E16: (g) = 1 / (f) | F16: (h)=2014 Full Year Depreciation + ((d)*0.5)/(f) | H16: (m) = (h) - (l)
A17: 1610 | B17: Misc. Intangible Plant | D17: 40 | E17: =IF(D17=0,0,1/D17) -> 0.025 | F17: =IF(D17=0,'[41]App.2-CH_NewCGAAP_DepExp_2014'!K17,+'[41]App.2-CH_NewCGAAP_DepExp_2014'!K17+((C17*0.5)/D17)) -> 5805.027027 | G17: 6061 | H17: =IF(ISERROR(+F17-G17), 0, +F17-G17) -> -255.972973
A18: 1611 | B18: Computer Software (Formally known as Account 1925) | C18: 23000 | D18: 5 | E18: 0.2 | F18: =IF(D18=0,'[41]App.2-CH_NewCGAAP_DepExp_2014'!K18,+'[41]App.2-CH_NewCGAAP_DepExp_2014'!K18+((C18*0.5)/D18)) -> 19075.65067 | G18: 14195 | H18: =IF(ISERROR(+F18-G18), 0, +F18-G18) -> 4880.650667
A19: 1612 | B19: Land Rights (Formally known as Account 1906) | E19: 0 | F19: =IF(D19=0,'[41]App.2-CH_NewCGAAP_DepExp_2014'!K19,+'[41]App.2-CH_NewCGAAP_DepExp_2014'!K19+((C19*0.5)/D19)) -> 0 | H19: =IF(ISERROR(+F19-G19), 0, +F19-G19) -> 0
A20: 1805 | B20: Land | E20: 0 | F20: =IF(D20=0,'[41]App.2-CH_NewCGAAP_DepExp_2014'!K20,+'[41]App.2-CH_NewCGAAP_DepExp_2014'!K20+((C20*0.5)/D20)) -> 0 | H20: 0
A21: 1808 | B21: Buildings | C21: 81000 | D21: 60 | E21: 0.01666666667 | F21: =IF(D21=0,'[41]App.2-CH_NewCGAAP_DepExp_2014'!K21,+'[41]App.2-CH_NewCGAAP_DepExp_2014'!K21+((C21*0.5)/D21)) -> 11685.64414 | G21: 10232 | H21: 1453.644144
A22: 1808 | B22: Buildings | C22: 0 | D22: 30 | E22: 0.03333333333 | F22: =IF(D22=0,'[41]App.2-CH_NewCGAAP_DepExp_2014'!K22,+'[41]App.2-CH_NewCGAAP_DepExp_2014'!K22+((C22*0.5)/D22)) -> -3071.977193 | G22: 4843 | H22: -7914.977193
A23: 1808 | B23: Buildings | C23: =SUM(C21:C22) -> 81000 | E23: 0 | F23: =SUM(F21:F22) -> 8613.666951 | G23: =SUM(G21:G22) -> 15075 | H23: =SUM(H21:H22) -> -6461.333049
A24: 1810 | B24: Leasehold Improvements | E24: 0 | F24: =IF(D24=0,'[41]App.2-CH_NewCGAAP_DepExp_2014'!K24,+'[41]App.2-CH_NewCGAAP_DepExp_2014'!K24+((C24*0.5)/D24)) -> 0 | H24: 0
A25: 1815 | B25: Transformer Station Equipment >50 kV | E25: 0 | F25: =IF(D25=0,'[41]App.2-CH_NewCGAAP_DepExp_2014'!K25,+'[41]App.2-CH_NewCGAAP_DepExp_2014'!K25+((C25*0.5)/D25)) -> 0 | H25: 0
A26: 1820 | B26: Distribution Station Equipment <50 kV | C26: 0 | D26: 60 | E26: 0.01666666667 | F26: =IF(D26=0,'[41]App.2-CH_NewCGAAP_DepExp_2014'!K26,+'[41]App.2-CH_NewCGAAP_DepExp_2014'!K26+((C26*0.5)/D26)) -> 3642.509434 | G26: 3504 | H26: 138.509434
A27: 1820 | B27: Distribution Station Equipment <50 kV | C27: 35914 | D27: 50 | E27: 0.02 | F27: =IF(D27=0,'[41]App.2-CH_NewCGAAP_DepExp_2014'!K27,+'[41]App.2-CH_NewCGAAP_DepExp_2014'!K27+((C27*0.5)/D27)) -> 136687.4106 | G27: 130605 | H27: 6082.410567
A28: 1820 | B28: Distribution Station Equipment <50 kV | C28: 218700 | D28: 20 | E28: 0.05 | F28: =IF(D28=0,'[41]App.2-CH_NewCGAAP_DepExp_2014'!K28,+'[41]App.2-CH_NewCGAAP_DepExp_2014'!K28+((C28*0.5)/D28)) -> 80006.79685 | G28: 75937 | H28: 4069.796846
A29: 1820 | B29: Distribution Station Equipment <50 kV | C29: =SUM(C26:C28) -> 254614 | E29: 0 | F29: =SUM(F26:F28) -> 220336.7168 | G29: =SUM(G26:G28) -> 210046 | H29: =SUM(H26:H28) -> 10290.71685
A30: 1825 | B30: Storage Battery Equipment | E30: 0 | F30: =IF(D30=0,'[41]App.2-CH_NewCGAAP_DepExp_2014'!K30,+'[41]App.2-CH_NewCGAAP_DepExp_2014'!K30+((C30*0.5)/D30)) -> 0 | H30: 0
A31: 1830 | B31: Poles, Towers & Fixtures | C31: 401328 | D31: 45 | E31: 0.02222222222 | F31: =IF(D31=0,'[41]App.2-CH_NewCGAAP_DepExp_2014'!K31,+'[41]App.2-CH_NewCGAAP_DepExp_2014'!K31+((C31*0.5)/D31)) -> 284413.2864 | G31: 255696 | H31: 28717.28641
A32: 1835 | B32: Overhead Conductors & Devices | C32: 454238 | D32: 60 | E32: 0.01666666667 | F32: =IF(D32=0,'[41]App.2-CH_NewCGAAP_DepExp_2014'!K32,+'[41]App.2-CH_NewCGAAP_DepExp_2014'!K32+((C32*0.5)/D32)) -> 43763.63378 | G32: 36428 | H32: 7335.633775
A33: 1835 | B33: Overhead Conductors & Devices | C33: 0 | D33: 45 | E33: 0.02222222222 | F33: =IF(D33=0,'[41]App.2-CH_NewCGAAP_DepExp_2014'!K33,+'[41]App.2-CH_NewCGAAP_DepExp_2014'!K33+((C33*0.5)/D33)) -> 58545.88009 | G33: 43918 | H33: 14627.88009
A34: 1835 | B34: Overhead Conductors & Devices | C34: =SUM(C32:C33) -> 454238 | E34: 0 | F34: =SUM(F32:F33) -> 102309.5139 | G34: 80346 | H34: =SUM(H32:H33) -> 21963.51387
A35: 1840 | B35: Underground Conduit | C35: 618690 | D35: 60 | E35: 0.01666666667 | F35: =IF(D35=0,'[41]App.2-CH_NewCGAAP_DepExp_2014'!K35,+'[41]App.2-CH_NewCGAAP_DepExp_2014'!K35+((C35*0.5)/D35)) -> 149129.4561 | G35: 134037 | H35: =IF(ISERROR(+F35-G35), 0, +F35-G35) -> 15092.45608
A36: 1840 | B36: Underground Conduit | C36: 26355 | D36: 40 | E36: 0.025 | F36: =IF(D36=0,'[41]App.2-CH_NewCGAAP_DepExp_2014'!K36,+'[41]App.2-CH_NewCGAAP_DepExp_2014'!K36+((C36*0.5)/D36)) -> 14211.10163 | G36: 11106 | H36: 3105.10163
A37: 1840 | B37: Underground Conduit | C37: 0 | D37: 35 | E37: 0.02857142857 | F37: =IF(D37=0,'[41]App.2-CH_NewCGAAP_DepExp_2014'!K37,+'[41]App.2-CH_NewCGAAP_DepExp_2014'!K37+((C37*0.5)/D37)) -> 6249.655302 | G37: 5753 | H37: 496.6553016
A38: 1840 | B38: Underground Conduit | C38: =SUM(C35:C37) -> 645045 | E38: 0 | F38: =SUM(F35:F37) -> 169590.213 | G38: 150896 | H38: 18694.21301
A39: 1845 | B39: Underground Conductors & Devices | C39: 902655 | D39: 50 | E39: 0.02 | F39: =IF(D39=0,'[41]App.2-CH_NewCGAAP_DepExp_2014'!K39,+'[41]App.2-CH_NewCGAAP_DepExp_2014'!K39+((C39*0.5)/D39)) -> 152544.9134 | G39: 123839 | H39: 28705.91341
A40: 1850 | B40: Line Transformers | C40: 169350 | D40: 40 | E40: 0.025 | F40: =IF(D40=0,'[41]App.2-CH_NewCGAAP_DepExp_2014'!K40,+'[41]App.2-CH_NewCGAAP_DepExp_2014'!K40+((C40*0.5)/D40)) -> 89580.11145 | G40: 81101 | H40: 8479.111454
A41: 1855 | B41: Services (Overhead & Underground) | C41: 68470 | D41: 60 | E41: 0.01666666667 | F41: =IF(D41=0,'[41]App.2-CH_NewCGAAP_DepExp_2014'!K41,+'[41]App.2-CH_NewCGAAP_DepExp_2014'!K41+((C41*0.5)/D41)) -> 18906.34289 | G41: 17504 | H41: 1402.342894
A42: 1860 | B42: Meters | C42: 15000 | D42: 40 | E42: 0.025 | F42: =IF(D42=0,'[41]App.2-CH_NewCGAAP_DepExp_2014'!K42,+'[41]App.2-CH_NewCGAAP_DepExp_2014'!K42+((C42*0.5)/D42)) -> 23735.61071 | G42: 19014 | H42: 4721.610714
A43: 1860 | B43: Meters | C43: 285000 | D43: 15 | E43: 0.06666666667 | F43: =IF(D43=0,'[41]App.2-CH_NewCGAAP_DepExp_2014'!K43,+'[41]App.2-CH_NewCGAAP_DepExp_2014'!K43+((C43*0.5)/D43)) -> 414903.1707 | G43: 339805 | H43: 75098.17067
A44: 1860 | B44: Meters | C44: =SUM(C42:C43) -> 300000 | E44: 0 | F44: =SUM(F42:F43) -> 438638.7814 | G44: =SUM(G42:G43) -> 358819 | H44: 79819.78138
A45: 1860 | B45: Meters (Smart Meters) | E45: 0 | F45: =IF(D45=0,'[41]App.2-CH_NewCGAAP_DepExp_2014'!K45,+'[41]App.2-CH_NewCGAAP_DepExp_2014'!K45+((C45*0.5)/D45)) -> 0 | H45: 0
A46: 1905 | B46: Land | E46: 0 | F46: =IF(D46=0,'[41]App.2-CH_NewCGAAP_DepExp_2014'!K46,+'[41]App.2-CH_NewCGAAP_DepExp_2014'!K46+((C46*0.5)/D46)) -> 0 | H46: 0
A47: 1908 | B47: Buildings & Fixtures | E47: 0 | F47: =IF(D47=0,'[41]App.2-CH_NewCGAAP_DepExp_2014'!K47,+'[41]App.2-CH_NewCGAAP_DepExp_2014'!K47+((C47*0.5)/D47)) -> 0 | H47: 0
A48: 1910 | B48: Leasehold Improvements | D48: 20 | E48: 0.05 | F48: =IF(D48=0,'[41]App.2-CH_NewCGAAP_DepExp_2014'!K48,+'[41]App.2-CH_NewCGAAP_DepExp_2014'!K48+((C48*0.5)/D48)) -> 7776.566667 | G48: 8114 | H48: -337.4333333
A49: 1915 | B49: Office Furniture & Equipment (10 years) | C49: 1000 | D49: 10 | E49: 0.1 | F49: =IF(D49=0,'[41]App.2-CH_NewCGAAP_DepExp_2014'!K49,+'[41]App.2-CH_NewCGAAP_DepExp_2014'!K49+((C49*0.5)/D49)) -> 3076.25 | G49: 2779 | H49: 297.25
A50: 1915 | B50: Office Furniture & Equipment (5 years) | E50: 0 | F50: =IF(D50=0,'[41]App.2-CH_NewCGAAP_DepExp_2014'!K50,+'[41]App.2-CH_NewCGAAP_DepExp_2014'!K50+((C50*0.5)/D50)) -> 0 | H50: 0
A51: 1920 | B51: Computer Equipment - Hardware | E51: 0 | F51: =IF(D51=0,'[41]App.2-CH_NewCGAAP_DepExp_2014'!K51,+'[41]App.2-CH_NewCGAAP_DepExp_2014'!K51+((C51*0.5)/D51)) -> 0 | H51: 0
A52: 1920 | B52: Computer Equip.-Hardware(Post Mar. 22/04) | D52: 5 | E52: 0.2 | F52: =IF(D52=0,'[41]App.2-CH_NewCGAAP_DepExp_2014'!K52,+'[41]App.2-CH_NewCGAAP_DepExp_2014'!K52+((C52*0.5)/D52)) -> 36792.66667 | G52: 41461 | H52: -4668.333333
A53: 1920 | B53: Computer Equip.-Hardware(Post Mar. 19/07) | E53: 0 | F53: =IF(D53=0,'[41]App.2-CH_NewCGAAP_DepExp_2014'!K53,+'[41]App.2-CH_NewCGAAP_DepExp_2014'!K53+((C53*0.5)/D53)) -> 0 | H53: 0
A54: 1930 | B54: Transportation Equipment | C54: 0 | D54: 12 | E54: 0.08333333333 | F54: =IF(D54=0,'[41]App.2-CH_NewCGAAP_DepExp_2014'!K54,+'[41]App.2-CH_NewCGAAP_DepExp_2014'!K54+((C54*0.5)/D54)) -> 149336.8095 | G54: 110267 | H54: 39069.80952
A55: 1930 | B55: Transportation Equipment | C55: 69000 | D55: 8 | E55: 0.125 | F55: =IF(D55=0,'[41]App.2-CH_NewCGAAP_DepExp_2014'!K55,+'[41]App.2-CH_NewCGAAP_DepExp_2014'!K55+((C55*0.5)/D55)) -> 103739.7875 | G55: 87980 | H55: 15759.7875
A56: 1930 | B56: Transportation Equipment | C56: =SUM(C54:C55) -> 69000 | E56: 0 | F56: =SUM(F54:F55) -> 253076.597 | G56: 198247 | H56: 54829.59702
A57: 1935 | B57: Stores Equipment | D57: 10 | E57: 0.1 | F57: =IF(D57=0,'[41]App.2-CH_NewCGAAP_DepExp_2014'!K57,+'[41]App.2-CH_NewCGAAP_DepExp_2014'!K57+((C57*0.5)/D57)) -> 7577.2 | G57: 6110 | H57: 1467.2
A58: 1940 | B58: Tools, Shop & Garage Equipment | C58: 30000 | D58: 10 | E58: 0.1 | F58: =IF(D58=0,'[41]App.2-CH_NewCGAAP_DepExp_2014'!K58,+'[41]App.2-CH_NewCGAAP_DepExp_2014'!K58+((C58*0.5)/D58)) -> 45923.714 | G58: 51052 | H58: -5128.286
A59: 1945 | B59: Measurement & Testing Equipment | D59: 10 | E59: 0.1 | F59: =IF(D59=0,'[41]App.2-CH_NewCGAAP_DepExp_2014'!K59,+'[41]App.2-CH_NewCGAAP_DepExp_2014'!K59+((C59*0.5)/D59)) -> 6036.142857 | G59: 6338 | H59: -301.8571429
A60: 1950 | B60: Power Operated Equipment | E60: 0 | F60: =IF(D60=0,'[41]App.2-CH_NewCGAAP_DepExp_2014'!K60,+'[41]App.2-CH_NewCGAAP_DepExp_2014'!K60+((C60*0.5)/D60)) -> 0 | H60: 0
A61: 1955 | B61: Communications Equipment | C61: 50000 | D61: 5 | E61: 0.2 | F61: =IF(D61=0,'[41]App.2-CH_NewCGAAP_DepExp_2014'!K61,+'[41]App.2-CH_NewCGAAP_DepExp_2014'!K61+((C61*0.5)/D61)) -> 9909.258667 | G61: 22926 | H61: -13016.74133
A62: 1955 | B62: Communication Equipment (Smart Meters) | E62: 0 | F62: =IF(D62=0,'[41]App.2-CH_NewCGAAP_DepExp_2014'!K62,+'[41]App.2-CH_NewCGAAP_DepExp_2014'!K62+((C62*0.5)/D62)) -> 0 | H62: 0
A63: 1960 | B63: Miscellaneous Equipment | E63: 0 | F63: =IF(D63=0,'[41]App.2-CH_NewCGAAP_DepExp_2014'!K63,+'[41]App.2-CH_NewCGAAP_DepExp_2014'!K63+((C63*0.5)/D63)) -> 0 | H63: 0
A64: 1970 | B64: Load Management Controls - Customer Premises | E64: 0 | F64: =IF(D64=0,'[41]App.2-CH_NewCGAAP_DepExp_2014'!K64,+'[41]App.2-CH_NewCGAAP_DepExp_2014'!K64+((C64*0.5)/D64)) -> 0 | H64: 0
A65: 1975 | B65: Load Management Controls Utility Premises | E65: 0 | F65: =IF(D65=0,'[41]App.2-CH_NewCGAAP_DepExp_2014'!K65,+'[41]App.2-CH_NewCGAAP_DepExp_2014'!K65+((C65*0.5)/D65)) -> 0 | H65: 0
A66: 1980 | B66: System Supervisor Equipment | C66: 50000 | D66: 20 | E66: 0.05 | F66: =IF(D66=0,'[41]App.2-CH_NewCGAAP_DepExp_2014'!K66,+'[41]App.2-CH_NewCGAAP_DepExp_2014'!K66+((C66*0.5)/D66)) -> 66112.6325 | G66: 61901 | H66: 4211.6325
A67: 1985 | B67: Miscellaneous Fixed Assets | E67: 0 | F67: =IF(D67=0,'[41]App.2-CH_NewCGAAP_DepExp_2014'!K67,+'[41]App.2-CH_NewCGAAP_DepExp_2014'!K67+((C67*0.5)/D67)) -> 0 | H67: 0
A68: 1990 | B68: Other Tangible Property | E68: 0 | F68: =IF(D68=0,'[41]App.2-CH_NewCGAAP_DepExp_2014'!K68,+'[41]App.2-CH_NewCGAAP_DepExp_2014'!K68+((C68*0.5)/D68)) -> 0 | H68: 0
A69: 1995 | B69: Contributions & Grants | D69: 15 | E69: 0.06666666667 | F69: =IF(D69=0,'[41]App.2-CH_NewCGAAP_DepExp_2014'!K69,+'[41]App.2-CH_NewCGAAP_DepExp_2014'!K69+((C69*0.5)/D69)) -> -4518.866667 | G69: -4577 | H69: 58.13333333
A70: 1995 | B70: Contributions & Grants | D70: 40 | E70: 0.025 | F70: =IF(D70=0,'[41]App.2-CH_NewCGAAP_DepExp_2014'!K70,+'[41]App.2-CH_NewCGAAP_DepExp_2014'!K70+((C70*0.5)/D70)) -> -4188.316397 | G70: -3964 | H70: -224.3163971
A71: 1995 | B71: Contributions & Grants | D71: 15 | E71: 0.06666666667 | F71: =IF(D71=0,'[41]App.2-CH_NewCGAAP_DepExp_2014'!K71,+'[41]App.2-CH_NewCGAAP_DepExp_2014'!K71+((C71*0.5)/D71)) -> -1126.953333 | G71: -1127 | H71: 0.04666666667
A72: 1995 | B72: Contributions & Grants | D72: 40 | E72: 0.025 | F72: =IF(D72=0,'[41]App.2-CH_NewCGAAP_DepExp_2014'!K72,+'[41]App.2-CH_NewCGAAP_DepExp_2014'!K72+((C72*0.5)/D72)) -> -16442.99165 | G72: -16621 | H72: 178.0083462
A73: 1995 | B73: Contributions & Grants | D73: 45 | E73: 0.02222222222 | F73: =IF(D73=0,'[41]App.2-CH_NewCGAAP_DepExp_2014'!K73,+'[41]App.2-CH_NewCGAAP_DepExp_2014'!K73+((C73*0.5)/D73)) -> -9822.930556 | G73: -9519 | H73: -303.9305556
A74: 1995 | B74: Contributions & Grants | D74: 60 | E74: 0.01666666667 | F74: =IF(D74=0,'[41]App.2-CH_NewCGAAP_DepExp_2014'!K74,+'[41]App.2-CH_NewCGAAP_DepExp_2014'!K74+((C74*0.5)/D74)) -> -2050.218182 | G74: -2002 | H74: -48.21818182
A75: 1995 | B75: Contributions & Grants | D75: 45 | E75: 0.02222222222 | F75: =IF(D75=0,'[41]App.2-CH_NewCGAAP_DepExp_2014'!K75,+'[41]App.2-CH_NewCGAAP_DepExp_2014'!K75+((C75*0.5)/D75)) -> -1306.125 | G75: -1265 | H75: -41.125
A76: 1995 | B76: Contributions & Grants | D76: 60 | E76: 0.01666666667 | F76: =IF(D76=0,'[41]App.2-CH_NewCGAAP_DepExp_2014'!K76,+'[41]App.2-CH_NewCGAAP_DepExp_2014'!K76+((C76*0.5)/D76)) -> -7133.65 | G76: -7134 | H76: 0.35
A77: 1995 | B77: Contributions & Grants | D77: 40 | E77: 0.025 | F77: =IF(D77=0,'[41]App.2-CH_NewCGAAP_DepExp_2014'!K77,+'[41]App.2-CH_NewCGAAP_DepExp_2014'!K77+((C77*0.5)/D77)) -> -89.59736842 | G77: -90 | H77: 0.4026315789
A78: 1995 | B78: Contributions & Grants | D78: 35 | E78: 0.02857142857 | F78: =IF(D78=0,'[41]App.2-CH_NewCGAAP_DepExp_2014'!K78,+'[41]App.2-CH_NewCGAAP_DepExp_2014'!K78+((C78*0.5)/D78)) -> -4.515151515 | G78: -5 | H78: 0.4848484848
A79: 1995 | B79: Contributions & Grants | D79: 50 | E79: 0.02 | F79: =IF(D79=0,'[41]App.2-CH_NewCGAAP_DepExp_2014'!K79,+'[41]App.2-CH_NewCGAAP_DepExp_2014'!K79+((C79*0.5)/D79)) -> -3008.130833 | G79: -3008 | H79: -0.1308333333
A80: 1995 | B80: Contributions & Grants | D80: 60 | E80: 0.01666666667 | F80: =IF(D80=0,'[41]App.2-CH_NewCGAAP_DepExp_2014'!K80,+'[41]App.2-CH_NewCGAAP_DepExp_2014'!K80+((C80*0.5)/D80)) -> -903.9636364 | G80: -887 | H80: -16.96363636
A81: 1995 | B81: Contributions & Grants | D81: 50 | E81: 0.02 | F81: =IF(D81=0,'[41]App.2-CH_NewCGAAP_DepExp_2014'!K81,+'[41]App.2-CH_NewCGAAP_DepExp_2014'!K81+((C81*0.5)/D81)) -> -10687.97778 | G81: -10444 | H81: -243.9777778
A82: 1995 | B82: Contributions & Grants | D82: 20 | E82: 0.05 | F82: =IF(D82=0,'[41]App.2-CH_NewCGAAP_DepExp_2014'!K82,+'[41]App.2-CH_NewCGAAP_DepExp_2014'!K82+((C82*0.5)/D82)) -> -3887.6 | G82: -3646 | H82: -241.6
A83: 1995 | B83: Contributions & Grants | D83: 30 | E83: 0.03333333333 | F83: =IF(D83=0,'[41]App.2-CH_NewCGAAP_DepExp_2014'!K83,+'[41]App.2-CH_NewCGAAP_DepExp_2014'!K83+((C83*0.5)/D83)) -> -327.76 | G83: -315 | H83: =IF(ISERROR(+F83-G83), 0, +F83-G83) -> -12.76
A84: 1995 | B84: Contributions & Grants | C84: =SUM(C69:C83) -> 0 | E84: 0 | F84: =SUM(F69:F83) -> -65499.59656 | G84: =SUM(G69:G83) -> -64604 | H84: -895.5965557
B85: Total | C85: =+C17+C18+C19+C20+C23+C24+C25+C29+C30+C31+C34+C38+C39+C40+C41+C44+C45+C46+C47+C48+C49+C50+C51+C52+C53+C56+C57+C58+C59+C60+C61+C62+C63+C64+C65+C66+C67+C68+C84 -> 3499700 | F85: =+F17+F18+F19+F20+F23+F24+F25+F29+F30+F31+F34+F38+F39+F40+F41+F44+F45+F46+F47+F48+F49+F50+F51+F52+F53+F56+F57+F58+F59+F60+F61+F62+F63+F64+F65+F66+F67+F68+F84 -> 1880595.656 | G85: =+G17+G18+G19+G20+G23+G24+G25+G29+G30+G31+G34+G38+G39+G40+G41+G44+G45+G46+G47+G48+G49+G50+G51+G52+G53+G56+G57+G58+G59+G60+G61+G62+G63+G64+G65+G66+G67+G68+G84 -> 1647902 | H85: =+H17+H18+H19+H20+H23+H24+H25+H29+H30+H31+H34+H38+H39+H40+H41+H44+H45+H46+H47+H48+H49+H50+H51+H52+H53+H56+H57+H58+H59+H60+H61+H62+H63+H64+H65+H66+H67+H68+H84 -> 232693.6557
B86: Depreciation exp. adj. from gain or loss on the retirement of assets (pool of like assets)
B87: Total Depreciation expense to be included in the test year revenue requirement | F87: =SUM(F85:F86) -> 1880595.656
A88: Notes:
A89: 1 | B89: Board policy of the "half-year" rule - the applicant must ensure that additions in the year attract a half-year depreciation expense in the first year. Deviations from this standard practice must be supported in the application.
A90: 2 | B90: The applicant must provide an explanation of material variances in evidence.
A92: General: | B92: Applicants must provide a breakdown of depreciation and amortization expense in the above format for all relevant accounts. Asset Retirement Obligations (AROs), depreciation and accretion expense should be disclosed separately consistent with the Notes of historical Audited Financial Statements.

Sheet App.2-CI MIFRS_DepExp_2016
J1: File Number: | K1: =EBNUMBER -> 0
J2: Exhibit:
J3: Tab:
J4: Schedule:
J5: Page:
J7: Date:
A9: Appendix 2-CI
A10: Depreciation and Amortization Expense
A11: Assumes the applicant made capitalization and depreciation expense accounting policy changes under CGAAP effective January 1, 2013 and will adopt IFRS for financial reporting purposes effective January 1, 2015.
G13: 2016 | H13: MIFRS
A15: Account | B15: Description | C15: ICM Additions Adjustment to Opening Gross Assets 2016 | D15: ICM Depreciation Adjustment to Opening Accumulated Depreciation 2016 | E15: Opening Adjustment for ICM to 2016 Net Book Value | F15: Additions | G15: Years (new additions only) | H15: Depreciation Rate on New Additions | I15: 2016 Depreciation Expense 1 | J15: 2016 Depreciation Expense per Appendix 2-BA Fixed Assets, Column L (l) | K15: Variance 2
F16: (d) | G16: (f) | H16: (g) = 1 / (f) | I16: (h)=2015 Full Year Depreciation + ((d)*0.5)/(f) + ICM Depreciation for 2016 ( c ) / ( g ) | K16: (m) = (h) - (l)
A17: 1610 | B17: Misc. Intangible Plant | E17: =+C17-D17 -> 0 | G17: 40 | H17: =IF(G17=0,0,1/G17) -> 0.025 | I17: =IF(G17=0,'[41]App.2-CI MIFRS_DepExp_2015'!F17,+'[41]App.2-CI MIFRS_DepExp_2015'!F17+((F17*0.5)/G17))+(C17/G17) -> 5805.027027 | J17: 6061 | K17: =IF(ISERROR(+I17-J17), 0, +I17-J17) -> -255.972973
A18: 1611 | B18: Computer Software (Formally known as Account 1925) | E18: =+C18-D18 -> 0 | F18: 235429 | G18: 5 | H18: 0.2 | I18: =IF(G18=0,'[41]App.2-CI MIFRS_DepExp_2015'!F18,+'[41]App.2-CI MIFRS_DepExp_2015'!F18+((F18*0.5)/G18))+(C18/G18) -> 42618.55067 | J18: 35817 | K18: =IF(ISERROR(+I18-J18), 0, +I18-J18) -> 6801.550667
A19: 1612 | B19: Land Rights (Formally known as Account 1906) | E19: 0 | H19: 0 | K19: =IF(ISERROR(+I19-J19), 0, +I19-J19) -> 0
A20: 1805 | B20: Land | E20: 0 | H20: 0 | K20: 0
A21: 1808 | B21: Buildings | E21: 0 | F21: 33750 | G21: 60 | H21: 0.01666666667 | I21: =IF(G21=0,'[41]App.2-CI MIFRS_DepExp_2015'!F21,+'[41]App.2-CI MIFRS_DepExp_2015'!F21+((F21*0.5)/G21))+(C21/G21) -> 11966.89414 | J21: 11187 | K21: 779.8941441
A22: 1808 | B22: Buildings | E22: 0 | F22: 0 | G22: 30 | H22: 0.03333333333 | I22: =IF(G22=0,'[41]App.2-CI MIFRS_DepExp_2015'!F22,+'[41]App.2-CI MIFRS_DepExp_2015'!F22+((F22*0.5)/G22))+(C22/G22) -> -3071.977193 | J22: 4843 | K22: -7914.977193
A23: 1808 | B23: Buildings | E23: 0 | F23: =SUM(F21:F22) -> 33750 | H23: 0 | I23: =SUM(I21:I22) -> 8894.916951 | J23: =SUM(J21:J22) -> 16030 | K23: =SUM(K21:K22) -> -7135.083049
A24: 1810 | B24: Leasehold Improvements | E24: 0 | H24: 0 | K24: 0
A25: 1815 | B25: Transformer Station Equipment >50 kV | E25: 0 | H25: 0 | K25: 0
A26: 1820 | B26: Distribution Station Equipment <50 kV | E26: 0 | F26: 0 | G26: 60 | H26: 0.01666666667 | I26: =IF(G26=0,'[41]App.2-CI MIFRS_DepExp_2015'!F26,+'[41]App.2-CI MIFRS_DepExp_2015'!F26+((F26*0.5)/G26))+(C26/G26) -> 3642.509434 | J26: 3503 | K26: 139.509434
A27: 1820 | B27: Distribution Station Equipment <50 kV | C27: 336593 | D27: 25874 | E27: 310719 | F27: 0 | G27: 50 | H27: 0.02 | I27: =IF(G27=0,'[41]App.2-CI MIFRS_DepExp_2015'!F27,+'[41]App.2-CI MIFRS_DepExp_2015'!F27+((F27*0.5)/G27))+(C27/G27) -> 143419.2706 | J27: 137719 | K27: 5700.270567
A28: 1820 | B28: Distribution Station Equipment <50 kV | C28: 137263 | D28: 23600 | E28: 113663 | G28: 20 | H28: 0.05 | I28: =IF(G28=0,'[41]App.2-CI MIFRS_DepExp_2015'!F28,+'[41]App.2-CI MIFRS_DepExp_2015'!F28+((F28*0.5)/G28))+(C28/G28) -> 86869.94685 | J28: 88509 | K28: -1639.053154
A29: 1820 | B29: Distribution Station Equipment <50 kV | C29: =SUM(C26:C28) -> 473856 | D29: 49474 | E29: 424382 | F29: =SUM(F26:F28) -> 0 | H29: 0 | I29: =SUM(I26:I28) -> 233931.7268 | J29: =SUM(J26:J28) -> 229731 | K29: =SUM(K26:K28) -> 4200.726848
A30: 1825 | B30: Storage Battery Equipment | E30: 0 | H30: 0 | K30: 0
A31: 1830 | B31: Poles, Towers & Fixtures | C31: 111 | D31: 10 | E31: 101 | F31: 594340 | G31: 45 | H31: 0.02222222222 | I31: =IF(G31=0,'[41]App.2-CI MIFRS_DepExp_2015'!F31,+'[41]App.2-CI MIFRS_DepExp_2015'!F31+((F31*0.5)/G31))+(C31/G31) -> 291019.5309 | J31: 266762 | K31: 24257.53085
A32: 1835 | B32: Overhead Conductors & Devices | E32: 0 | F32: 554340 | G32: 60 | H32: 0.01666666667 | I32: =IF(G32=0,'[41]App.2-CI MIFRS_DepExp_2015'!F32,+'[41]App.2-CI MIFRS_DepExp_2015'!F32+((F32*0.5)/G32))+(C32/G32) -> 48383.13378 | J32: 44833 | K32: 3550.133775
A33: 1835 | B33: Overhead Conductors & Devices | C33: 664 | D33: 58 | E33: 606 | F33: 0 | G33: 45 | H33: 0.02222222222 | I33: =IF(G33=0,'[41]App.2-CI MIFRS_DepExp_2015'!F33,+'[41]App.2-CI MIFRS_DepExp_2015'!F33+((F33*0.5)/G33))+(C33/G33) -> 58560.63565 | J33: 43932 | K33: 14628.63565
A34: 1835 | B34: Overhead Conductors & Devices | C34: =SUM(C32:C33) -> 664 | D34: 58 | E34: 606 | F34: =SUM(F32:F33) -> 554340 | H34: 0 | I34: =SUM(I32:I33) -> 106943.7694 | J34: 88765 | K34: =SUM(K32:K33) -> 18178.76942
A35: 1840 | B35: Underground Conduit | C35: =951434+161163 -> 1112597 | D35: 73154 | E35: 1039443 | F35: 2635197 | G35: 60 | H35: 0.01666666667 | I35: =IF(G35=0,'[41]App.2-CI MIFRS_DepExp_2015'!F35,+'[41]App.2-CI MIFRS_DepExp_2015'!F35+((F35*0.5)/G35))+(C35/G35) -> 189632.7144 | J35: 179642 | K35: =IF(ISERROR(+I35-J35), 0, +I35-J35) -> 9990.714411
A36: 1840 | B36: Underground Conduit | C36: 350 | D36: 22 | E36: 328 | F36: 21883 | G36: 40 | H36: 0.025 | I36: =IF(G36=0,'[41]App.2-CI MIFRS_DepExp_2015'!F36,+'[41]App.2-CI MIFRS_DepExp_2015'!F36+((F36*0.5)/G36))+(C36/G36) -> 14493.38913 | J36: 11718 | K36: 2775.38913
A37: 1840 | B37: Underground Conduit | C37: 57502 | D37: 2798 | E37: 54704 | F37: 0 | G37: 35 | H37: 0.02857142857 | I37: =IF(G37=0,'[41]App.2-CI MIFRS_DepExp_2015'!F37,+'[41]App.2-CI MIFRS_DepExp_2015'!F37+((F37*0.5)/G37))+(C37/G37) -> 7892.569587 | J37: 7341 | K37: 551.5695873
A38: 1840 | B38: Underground Conduit | C38: =SUM(C35:C37) -> 1170449 | D38: 75974 | E38: 1094475 | F38: 2657080 | H38: 0 | I38: =SUM(I35:I37) -> 212018.6731 | J38: =SUM(J35:J37) -> 198701 | K38: 13317.67313
A39: 1845 | B39: Underground Conductors & Devices | C39: 1078701 | D39: 77391 | E39: 1001310 | F39: 345620 | G39: 50 | H39: 0.02 | I39: =IF(G39=0,'[41]App.2-CI MIFRS_DepExp_2015'!F39,+'[41]App.2-CI MIFRS_DepExp_2015'!F39+((F39*0.5)/G39))+(C39/G39) -> 177575.1334 | J39: 157896 | K39: 19679.13341
A40: 1850 | B40: Line Transformers | C40: 75067 | D40: 5903 | E40: 69164 | F40: 93850 | G40: 40 | H40: 0.025 | I40: =IF(G40=0,'[41]App.2-CI MIFRS_DepExp_2015'!F40,+'[41]App.2-CI MIFRS_DepExp_2015'!F40+((F40*0.5)/G40))+(C40/G40) -> 92629.91145 | J40: 86273 | K40: 6356.911454
A41: 1855 | B41: Services (Overhead & Underground) | E41: 0 | F41: 71770 | G41: 60 | H41: 0.01666666667 | I41: =IF(G41=0,'[41]App.2-CI MIFRS_DepExp_2015'!F41,+'[41]App.2-CI MIFRS_DepExp_2015'!F41+((F41*0.5)/G41))+(C41/G41) -> 19504.42623 | J41: 18673 | K41: 831.426227
A42: 1860 | B42: Meters | E42: 0 | F42: 15000 | G42: 40 | H42: 0.025 | I42: =IF(G42=0,'[41]App.2-CI MIFRS_DepExp_2015'!F42,+'[41]App.2-CI MIFRS_DepExp_2015'!F42+((F42*0.5)/G42))+(C42/G42) -> 23923.11071 | J42: 19389 | K42: 4534.110714
A43: 1860 | B43: Meters | E43: 0 | F43: 285000 | G43: 15 | H43: 0.06666666667 | I43: =IF(G43=0,'[41]App.2-CI MIFRS_DepExp_2015'!F43,+'[41]App.2-CI MIFRS_DepExp_2015'!F43+((F43*0.5)/G43))+(C43/G43) -> 424403.1707 | J43: 358700 | K43: 65703.17067
A44: 1860 | B44: Meters | E44: 0 | F44: =SUM(F42:F43) -> 300000 | H44: 0 | I44: =SUM(I42:I43) -> 448326.2814 | J44: =SUM(J42:J43) -> 378089 | K44: =SUM(K42:K43) -> 70237.28138
A45: 1860 | B45: Meters (Smart Meters) | E45: 0 | H45: 0 | K45: 0
A46: 1905 | B46: Land | E46: 0 | H46: 0 | K46: 0
A47: 1908 | B47: Buildings & Fixtures | E47: 0 | H47: 0 | K47: 0
A48: 1910 | B48: Leasehold Improvements | E48: 0 | F48: 0 | G48: 20 | H48: 0.05 | I48: =IF(G48=0,'[41]App.2-CI MIFRS_DepExp_2015'!F48,+'[41]App.2-CI MIFRS_DepExp_2015'!F48+((F48*0.5)/G48))+(C48/G48) -> 7776.566667 | J48: 8114 | K48: -337.4333333
A49: 1915 | B49: Office Furniture & Equipment (10 years) | E49: 0 | F49: 1000 | G49: 10 | H49: 0.1 | I49: =IF(G49=0,'[41]App.2-CI MIFRS_DepExp_2015'!F49,+'[41]App.2-CI MIFRS_DepExp_2015'!F49+((F49*0.5)/G49))+(C49/G49) -> 3126.25 | J49: 2879 | K49: 247.25
A50: 1915 | B50: Office Furniture & Equipment (5 years) | E50: 0 | H50: 0 | K50: 0
A51: 1920 | B51: Computer Equipment - Hardware | E51: 0 | H51: 0 | K51: 0
A52: 1920 | B52: Computer Equip.-Hardware(Post Mar. 22/04) | E52: 0 | F52: 0 | G52: 5 | H52: 0.2 | I52: =IF(G52=0,'[41]App.2-CI MIFRS_DepExp_2015'!F52,+'[41]App.2-CI MIFRS_DepExp_2015'!F52+((F52*0.5)/G52))+(C52/G52) -> 36792.66667 | J52: 28592 | K52: 8200.666667
A53: 1920 | B53: Computer Equip.-Hardware(Post Mar. 19/07) | E53: 0 | H53: 0 | K53: 0
A54: 1930 | B54: Transportation Equipment | E54: 0 | F54: 375000 | G54: 12 | H54: 0.08333333333 | I54: =IF(G54=0,'[41]App.2-CI MIFRS_DepExp_2015'!F54,+'[41]App.2-CI MIFRS_DepExp_2015'!F54+((F54*0.5)/G54))+(C54/G54) -> 164961.8095 | J54: 124223 | K54: 40738.80952
A55: 1930 | B55: Transportation Equipment | E55: 0 | F55: 14000 | G55: 8 | H55: 0.125 | I55: =IF(G55=0,'[41]App.2-CI MIFRS_DepExp_2015'!F55,+'[41]App.2-CI MIFRS_DepExp_2015'!F55+((F55*0.5)/G55))+(C55/G55) -> 104614.7875 | J55: 90137 | K55: 14477.7875
A56: 1930 | B56: Transportation Equipment | E56: 0 | F56: =SUM(F54:F55) -> 389000 | H56: 0 | I56: =SUM(I54:I55) -> 269576.597 | J56: 214360 | K56: 55216.59702
A57: 1935 | B57: Stores Equipment | E57: 0 | F57: 0 | G57: 10 | H57: 0.1 | I57: =IF(G57=0,'[41]App.2-CI MIFRS_DepExp_2015'!F57,+'[41]App.2-CI MIFRS_DepExp_2015'!F57+((F57*0.5)/G57))+(C57/G57) -> 7577.2 | J57: 6110 | K57: 1467.2
A58: 1940 | B58: Tools, Shop & Garage Equipment | E58: 0 | F58: 30000 | G58: 10 | H58: 0.1 | I58: =IF(G58=0,'[41]App.2-CI MIFRS_DepExp_2015'!F58,+'[41]App.2-CI MIFRS_DepExp_2015'!F58+((F58*0.5)/G58))+(C58/G58) -> 47423.714 | J58: 46784 | K58: 639.714
A59: 1945 | B59: Measurement & Testing Equipment | E59: 0 | F59: 0 | G59: 10 | H59: 0.1 | I59: =IF(G59=0,'[41]App.2-CI MIFRS_DepExp_2015'!F59,+'[41]App.2-CI MIFRS_DepExp_2015'!F59+((F59*0.5)/G59))+(C59/G59) -> 6036.142857 | J59: 6338 | K59: -301.8571429
A60: 1950 | B60: Power Operated Equipment | E60: 0 | H60: 0 | K60: 0
A61: 1955 | B61: Communications Equipment | E61: 0 | F61: 50000 | G61: 5 | H61: 0.2 | I61: =IF(G61=0,'[41]App.2-CI MIFRS_DepExp_2015'!F61,+'[41]App.2-CI MIFRS_DepExp_2015'!F61+((F61*0.5)/G61))+(C61/G61) -> 14909.25867 | J61: 30228 | K61: -15318.74133
A62: 1955 | B62: Communication Equipment (Smart Meters) | E62: 0 | H62: 0 | K62: 0
A63: 1960 | B63: Miscellaneous Equipment | E63: 0 | H63: 0 | K63: 0
A64: 1970 | B64: Load Management Controls - Customer Premises | E64: 0 | H64: 0 | K64: 0
A65: 1975 | B65: Load Management Controls Utility Premises | E65: 0 | H65: 0 | K65: 0
A66: 1980 | B66: System Supervisor Equipment | C66: 2567 | D66: 477 | E66: 2090 | F66: 20000 | G66: 20 | H66: 0.05 | I66: =IF(G66=0,'[41]App.2-CI MIFRS_DepExp_2015'!F66,+'[41]App.2-CI MIFRS_DepExp_2015'!F66+((F66*0.5)/G66))+(C66/G66) -> 66740.9825 | J66: 63781 | K66: 2959.9825
A67: 1985 | B67: Miscellaneous Fixed Assets | E67: 0 | H67: 0 | K67: 0
A68: 1990 | B68: Other Tangible Property | E68: 0 | H68: 0 | K68: 0
A69: 1995 | B69: Contributions & Grants | E69: 0 | G69: 15 | H69: 0.06666666667 | I69: =IF(G69=0,'[41]App.2-CI MIFRS_DepExp_2015'!F69,+'[41]App.2-CI MIFRS_DepExp_2015'!F69+((F69*0.5)/G69))+(C69/G69) -> -4518.866667 | J69: -4577 | K69: 58.13333333
A70: 1995 | B70: Contributions & Grants | E70: 0 | G70: 40 | H70: 0.025 | I70: =IF(G70=0,'[41]App.2-CI MIFRS_DepExp_2015'!F70,+'[41]App.2-CI MIFRS_DepExp_2015'!F70+((F70*0.5)/G70))+(C70/G70) -> -4188.316397 | J70: -3964 | K70: -224.3163971
A71: 1995 | B71: Contributions & Grants | E71: 0 | G71: 15 | H71: 0.06666666667 | I71: =IF(G71=0,'[41]App.2-CI MIFRS_DepExp_2015'!F71,+'[41]App.2-CI MIFRS_DepExp_2015'!F71+((F71*0.5)/G71))+(C71/G71) -> -1126.953333 | J71: -1127 | K71: 0.04666666667
A72: 1995 | B72: Contributions & Grants | E72: 0 | G72: 40 | H72: 0.025 | I72: =IF(G72=0,'[41]App.2-CI MIFRS_DepExp_2015'!F72,+'[41]App.2-CI MIFRS_DepExp_2015'!F72+((F72*0.5)/G72))+(C72/G72) -> -16442.99165 | J72: -16621 | K72: 178.0083462
A73: 1995 | B73: Contributions & Grants | E73: 0 | G73: 45 | H73: 0.02222222222 | I73: =IF(G73=0,'[41]App.2-CI MIFRS_DepExp_2015'!F73,+'[41]App.2-CI MIFRS_DepExp_2015'!F73+((F73*0.5)/G73))+(C73/G73) -> -9822.930556 | J73: -9519 | K73: -303.9305556
A74: 1995 | B74: Contributions & Grants | E74: 0 | G74: 60 | H74: 0.01666666667 | I74: =IF(G74=0,'[41]App.2-CI MIFRS_DepExp_2015'!F74,+'[41]App.2-CI MIFRS_DepExp_2015'!F74+((F74*0.5)/G74))+(C74/G74) -> -2050.218182 | J74: -2002 | K74: -48.21818182
A75: 1995 | B75: Contributions & Grants | E75: 0 | G75: 45 | H75: 0.02222222222 | I75: =IF(G75=0,'[41]App.2-CI MIFRS_DepExp_2015'!F75,+'[41]App.2-CI MIFRS_DepExp_2015'!F75+((F75*0.5)/G75))+(C75/G75) -> -1306.125 | J75: -1265 | K75: -41.125
A76: 1995 | B76: Contributions & Grants | E76: 0 | G76: 60 | H76: 0.01666666667 | I76: =IF(G76=0,'[41]App.2-CI MIFRS_DepExp_2015'!F76,+'[41]App.2-CI MIFRS_DepExp_2015'!F76+((F76*0.5)/G76))+(C76/G76) -> -7133.65 | J76: -7134 | K76: 0.35
A77: 1995 | B77: Contributions & Grants | E77: 0 | G77: 40 | H77: 0.025 | I77: =IF(G77=0,'[41]App.2-CI MIFRS_DepExp_2015'!F77,+'[41]App.2-CI MIFRS_DepExp_2015'!F77+((F77*0.5)/G77))+(C77/G77) -> -89.59736842 | J77: -90 | K77: 0.4026315789
A78: 1995 | B78: Contributions & Grants | E78: 0 | G78: 35 | H78: 0.02857142857 | I78: =IF(G78=0,'[41]App.2-CI MIFRS_DepExp_2015'!F78,+'[41]App.2-CI MIFRS_DepExp_2015'!F78+((F78*0.5)/G78))+(C78/G78) -> -4.515151515 | J78: -5 | K78: 0.4848484848
A79: 1995 | B79: Contributions & Grants | E79: 0 | G79: 50 | H79: 0.02 | I79: =IF(G79=0,'[41]App.2-CI MIFRS_DepExp_2015'!F79,+'[41]App.2-CI MIFRS_DepExp_2015'!F79+((F79*0.5)/G79))+(C79/G79) -> -3008.130833 | J79: -3008 | K79: -0.1308333333
A80: 1995 | B80: Contributions & Grants | E80: 0 | G80: 60 | H80: 0.01666666667 | I80: =IF(G80=0,'[41]App.2-CI MIFRS_DepExp_2015'!F80,+'[41]App.2-CI MIFRS_DepExp_2015'!F80+((F80*0.5)/G80))+(C80/G80) -> -903.9636364 | J80: -887 | K80: -16.96363636
A81: 1995 | B81: Contributions & Grants | E81: 0 | G81: 50 | H81: 0.02 | I81: =IF(G81=0,'[41]App.2-CI MIFRS_DepExp_2015'!F81,+'[41]App.2-CI MIFRS_DepExp_2015'!F81+((F81*0.5)/G81))+(C81/G81) -> -10687.97778 | J81: -10444 | K81: -243.9777778
A82: 1995 | B82: Contributions & Grants | E82: =+C82-D82 -> 0 | G82: 20 | H82: 0.05 | I82: =IF(G82=0,'[41]App.2-CI MIFRS_DepExp_2015'!F82,+'[41]App.2-CI MIFRS_DepExp_2015'!F82+((F82*0.5)/G82))+(C82/G82) -> -3887.6 | J82: -3646 | K82: -241.6
A83: 1995 | B83: Contributions & Grants | E83: 0 | G83: 30 | H83: 0.03333333333 | I83: =IF(G83=0,'[41]App.2-CI MIFRS_DepExp_2015'!F83,+'[41]App.2-CI MIFRS_DepExp_2015'!F83+((F83*0.5)/G83))+(C83/G83) -> -327.76 | J83: -315 | K83: =IF(ISERROR(+I83-J83), 0, +I83-J83) -> -12.76
A84: 1995 | B84: Contributions & Grants | E84: 0 | F84: =SUM(F69:F83) -> 0 | H84: 0 | I84: =SUM(I69:I83) -> -65499.59656 | J84: =SUM(J69:J83) -> -64604 | K84: -895.5965557
B85: Total | C85: =+C17+C18+C19+C20+C23+C24+C25+C29+C30+C31+C34+C38+C39+C40+C41+C44+C45+C46+C47+C48+C49+C50+C51+C52+C53+C56+C57+C58+C59+C60+C61+C62+C63+C64+C65+C66+C67+C68+C84 -> 2801415 | D85: 209287 | E85: =+E17+E18+E19+E20+E23+E24+E25+E29+E30+E31+E34+E38+E39+E40+E41+E44+E45+E46+E47+E48+E49+E50+E51+E52+E53+E56+E57+E58+E59+E60+E61+E62+E63+E64+E65+E66+E67+E68+E84 -> 2592128 | F85: =+F17+F18+F19+F20+F23+F24+F25+F29+F30+F31+F34+F38+F39+F40+F41+F44+F45+F46+F47+F48+F49+F50+F51+F52+F53+F56+F57+F58+F59+F60+F61+F62+F63+F64+F65+F66+F67+F68+F84 -> 5376179 | I85: =+I17+I18+I19+I20+I23+I24+I25+I29+I30+I31+I34+I38+I39+I40+I41+I44+I45+I46+I47+I48+I49+I50+I51+I52+I53+I56+I57+I58+I59+I60+I61+I62+I63+I64+I65+I66+I67+I68+I84 -> 2033727.729 | J85: =+J17+J18+J19+J20+J23+J24+J25+J29+J30+J31+J34+J38+J39+J40+J41+J44+J45+J46+J47+J48+J49+J50+J51+J52+J53+J56+J57+J58+J59+J60+J61+J62+J63+J64+J65+J66+J67+J68+J84 -> 1825380 | K85: =+K17+K18+K19+K20+K23+K24+K25+K29+K30+K31+K34+K38+K39+K40+K41+K44+K45+K46+K47+K48+K49+K50+K51+K52+K53+K56+K57+K58+K59+K60+K61+K62+K63+K64+K65+K66+K67+K68+K84 -> 208347.7292
B86: Depreciation exp. adj. from gain or loss on the retirement of assets (pool of like assets)
B87: Total Depreciation expense to be included in the test year revenue requirement | I87: =SUM(I85:I86) -> 2033727.729
A88: Notes:
A89: 1 | B89: Board policy of the "half-year" rule - the applicant must ensure that additions in the year attract a half-year depreciation expense in the first year. Deviations from this standard practice must be supported in the application.
A90: 2 | B90: The applicant must provide an explanation of material variances in evidence.
A92: General: | B92: Applicants must provide a breakdown of depreciation and amortization expense in the above format for all relevant accounts. Asset Retirement Obligations (AROs), depreciation and accretion expense should be disclosed separately consistent with the Notes of historical Audited Financial Statements.

Sheet App.2-EC_Account 1576 (2013)
A1: Appendix 2-EC
A2: Account 1576 - Accounting Changes under CGAAP
A3: 2013 Changes in Accounting Policies under CGAAP
A5: For applicants that made capitalization and depreciation expense accounting policy changes under CGAAP effective January 1, 2013
B9: Rebasing Year | C9: 2011 | D9: 2012 | E9: 2013 | F9: 2014 | G9: 2015 | H9: 2016 Rebasing Year | I9: 2017 | J9: 2018 | K9: 2019 | L9: 2020
A10: Reporting Basis | B10: CGAAP | C10: IRM | D10: IRM | E10: IRM | F10: IRM | G10: IRM | H10: MIFRS | I10: MIFRS | J10: MIFRS | K10: MIFRS | L10: MIFRS
B11: Forecast | C11: Actual | D11: Actual | E11: Actual | F11: Actual | G11: Forecast | H11: Forecast | I11: Forecast | J11: Forecast | K11: Forecast | L11: Forecast
F12: $ | G12: $ | H12: $ | I12: $ | J12: $ | K12: $ | L12: $
A13: PP&E Values under former CGAAP
A14: Opening net PP&E - Note 1 | E14: 32192679 | F14: =+E17 -> 37105279 | G14: =+F17 -> 37657635
A15: Net Additions - Note 4 | E15: 8401148 | F15: 3330621 | G15: 3600000
A16: Net Depreciation (amounts should be negative) - Note 4 | E16: -3488548 | F16: -2778265 | G16: -2776071
A17: Closing net PP&E (1) | E17: =SUM(E14:E16) -> 37105279 | F17: =SUM(F14:F16) -> 37657635 | G17: =SUM(G14:G16) -> 38481564
A19: PP&E Values under revised CGAAP (Starts from 2013)
A20: Opening net PP&E - Note 1 | E20: 32192679 | F20: =+E23 -> 38258849 | G20: =+F23 -> 39984527
A21: Net Additions - Note 4 | E21: 8401148 | F21: 3330931 | G21: 3600000
A22: Net Depreciation (amounts should be negative) - Note 4 | E22: -2334978 | F22: -1605253 | G22: -1647904
A23: Closing net PP&E (2) | E23: =SUM(E20:E22) -> 38258849 | F23: =SUM(F20:F22) -> 39984527 | G23: =SUM(G20:G22) -> 41936623
A25: Difference in Closing net PP&E, former CGAAP vs. revised CGAAP | E25: =E17-E23 -> -1153570 | F25: =F17-F23 -> -2326892 | G25: =G17-G23 -> -3455059 | H25: =G25*4/5 -> -2764047.2 | I25: =H25*3/5 -> -1658428.32 | J25: =G25*2/5 -> -1382023.6 | K25: =G25*1/5 -> -691011.8
A28: Effect on Deferral and Variance Account Rate Riders:
A30: Average Balance in Associated with Account 1576-2016 | G30: =(G25+H25)/2 -> -3109553.1 | I30: WACC | J30: 0.0627
A31: Return on Rate Base Associated with Account 1576 balance at WACC - 2016 | G31: =G30*J30*J31 -> -194968.9794 | J31: 1
A33: Average Balance in Associated with Account 1576-2017 | G33: =(H25+I25)/2 -> -2211237.76
A34: Return on Rate Base Associated with Account 1576 balance at WACC - 2017 | G34: =G33*J30*J31 -> -138644.6076
A36: Average Balance in Associated with Account 1576-2018 | G36: =(I25+J25)/2 -> -1520225.96 | L36: Change
A37: Return on Rate Base Associated with Account 1576 balance at WACC - 2018 | G37: =G36*J30*J31 -> -95318.16769 | L37: =G47-F25 -> -1643751.634
A39: Average Balance in Associated with Account 1576-2019 | G39: =(J25+K25)/2 -> -1036517.7
A40: Return on Rate Base Associated with Account 1576 balance at WACC - 2019 | G40: =G39*J30*J31 -> -64989.65979
A42: Average Balance in Associated with Account 1576-2020 | G42: =(K25+L25)/2 -> -345505.9
A43: Return on Rate Base Associated with Account 1576 balance at WACC - 2020 | G43: =G42*J30*J31 -> -21663.21993
A45: Total Return to be included in disposition | G45: =G31+G34+G37+G40+G43 -> -515584.6343
A47: Total amount to be disposed of | G47: =G25+G45 -> -3970643.634
A49: Notes:
A50: 1 For an applicant that made the capitalization and depreciation expense accounting policy changes on January 1, 2013, the PP&E values as of January 1, 2013 under both former CGAAP and revised CGAAP should be the same.
A51: 2 Return on rate base associated with Account 1576 balance is calculated as:
A52: the variance account opening balance as of 2015 rebasing year x WACC X # of years of rate rider disposition period
A53: * Please note that the calculation should be adjusted once WACC is updated and finalized in the rate application.
A54: 3 Account 1576 is cleared by including the total balance in the deferral and variance account rate rider calculation.
A55: 4 Net additions are additions net of disposals; Net depreciation is additions to depreciation net of disposals.

Sheet App.2-G SQI
I1: File Number: | K1: =EBNUMBER -> EB-2015-0083
I2: Exhibit: | K2: 2
I3: Tab: | K3: 3
I4: Schedule: | K4: 2
I5: Page: | K5: 1
I7: Date: | K7: 2015-05-28
A9: Appendix 2-G
A10: Service Reliability Indicators
A11: 2010 - 2014
A13: Index | B13: Includes outages caused by loss of supply | G13: Excludes outages caused by loss of supply
B14: 2010 | C14: 2011 | D14: 2012 | E14: 2013 | F14: 2014 | G14: 2010 | H14: 2011 | I14: 2012 | J14: 2013 | K14: 2014
A15: SAIDI | B15: 1.1346 | C15: 1.4687 | D15: 1.88 | E15: 4.912852329 | F15: 0.97 | G15: 1.08 | H15: 1.45 | I15: 1.78 | J15: 4.87 | K15: 0.97
A16: SAIFI | B16: 0.8719 | C16: 1.7582 | D16: 1.186 | E16: 3.326705177 | F16: 0.52 | G16: 0.76 | H16: 1.4 | I16: 1.17 | J16: 3.19 | K16: 0.52
A18: 5 Year Historical Average
A19: SAIDI | F19: =IF(ISERROR(AVERAGE(B15:F15)), "", AVERAGE(B15:F15)) -> 2.073230466 | K19: =IF(ISERROR(AVERAGE(G15:K15)), "", AVERAGE(G15:K15)) -> 2.03
A20: SAIFI | F20: =IF(ISERROR(AVERAGE(B16:F16)), "", AVERAGE(B16:F16)) -> 1.532561035 | K20: =IF(ISERROR(AVERAGE(G16:K16)), "", AVERAGE(G16:K16)) -> 1.408
A22: SAIDI = System Average Interruption Duration Index
A23: SAIFI = System Average Interruption Frequency Index
A26: Indicator | C26: OEB Minimum Standard | D26: 2010 | E26: 2011 | F26: 2012 | G26: 2013 | H26: 2014
A27: Low Voltage Connections | C27: 0.9 | D27: 1 | E27: 0.978 | F27: 1 | G27: 1 | H27: 1
A28: High Voltage Connections | C28: 0.9 | D28: 0 | E28: 1 | F28: 1 | G28: 1 | H28: 0 | I28: No HV connections in 2014
A29: Telephone Accessibility | C29: 0.65 | D29: 0.692 | E29: 0.6417 | F29: 0.6468 | G29: 0.669 | H29: 0.67
A30: Appointments Met | C30: 0.9 | D30: 0.998 | E30: 1 | F30: 1 | G30: 1 | H30: 1
A31: Written Response to Enquires | C31: 0.8 | D31: 1 | E31: 1 | F31: 0.971 | G31: 1 | H31: 1
A32: Emergency Urban Response | C32: 0.8 | D32: 1 | E32: 0.908 | F32: 0.889 | G32: 0.957 | H32: 0.929
A33: Emergency Rural Response | C33: 0.8 | D33: 0 | E33: 0 | F33: 0 | G33: 0 | H33: 0 | I33: No rural service territory
A34: Telephone Call Abandon Rate | C34: 0.1 | D34: 0.031 | E34: 0.0359 | F34: 0.0403 | G34: 0.037 | H34: 0.031
A35: Appointment Scheduling | C35: 0.9 | D35: 0.992 | E35: 0.927 | F35: 0.893 | G35: 0.95 | H35: 0.9091153175
A36: Rescheduling a Missed Appointment | C36: 1 | D36: 1 | E36: 0 | F36: 0 | G36: 0 | H36: 0 | I36: No rescheduling necessary
A37: Reconnection Performance Standard | C37: 0.85 | D37: n/a | E37: 1 | F37: 1 | G37: 1 | H37: 1

Sheet App.2-H_Other_Oper_Rev
A1: Appendix 2-H
A2: Other Operating Revenue
A4: USoA # | B4: USoA Description | C4: 2011 | D4: 2012 | E4: 2013 | F4: 2014 | G4: Bridge Year² | H4: Test Year | I4: Test Year | J4: Test Year | K4: Test Year | L4: Test Year
G5: 2015 | H5: 2016 | I5: 2017 | J5: 2018 | K5: 2019 | L5: 2020
C6: CGAAP | D6: CGAAP | E6: CGAAP | F6: CGAAP | G6: MIFRS | H6: MIFRS | I6: MIFRS | J6: MIFRS | K6: MIFRS | L6: MIFRS
A7: 4082 | B7: Retail Service Revenues | C7: 25652 | D7: 22088 | E7: 19544.8 | F7: 16858.4 | G7: 16858.4 | H7: 16858.4 | I7: 16858.4 | J7: 16858.4 | K7: 16858.4 | L7: 16858.4
A8: 4084 | B8: Service Transaction Requests (STR) Revenues | C8: 542.25 | D8: 1045.5 | E8: 1233.5 | F8: 732.03 | G8: 1441 | H8: 1441 | I8: 1441 | J8: 1441 | K8: 1441 | L8: 1441
A9: 4210 | B9: Rent from Electric Property | C9: 176649.6 | D9: 154607.78 | E9: 162839.29 | F9: 163503.57 | G9: 163503.57 | H9: 163503.57 | I9: 163503.57 | J9: 163503.57 | K9: 163503.57 | L9: 163503.57
A10: 4225 | B10: Late Payment Charges | C10: 48410.2888 | D10: 16174.6537 | E10: 19091.17 | F10: 52874.67 | G10: 50642 | H10: 50642 | I10: 50642 | J10: 50642 | K10: 50642 | L10: 50642
A11: 4235 | B11: Miscellaneous Service Revenues | C11: 153236.66 | D11: 193189.53 | E11: 106738.52 | F11: 104542.43 | G11: 108532 | H11: 108532 | I11: 108532 | J11: 108532 | K11: 108532 | L11: 108532
A12: 4305 | B12: Regulatory Debits | E12: 1153881.05 | F12: 1173011.42 | G12: 1126167 | H12: 0 | I12: 0 | J12: 0 | K12: 0 | L12: 0
A13: 4325 | B13: Revenues from Merchandise, Jobbing, Etc | C13: 3588.91 | D13: 5605.49 | E13: 6686.83 | F13: 2680.6 | G13: 4403 | H13: 4403 | I13: 4403 | J13: 4403 | K13: 4403 | L13: 4403
A14: 4375 | B14: Revenues from Non-Utility | C14: 2774.71 | D14: 29992.73 | E14: 0 | F14: 0 | G14: 0 | H14: 0 | I14: 0 | J14: 0 | K14: 0 | L14: 0
A15: 4380 | B15: Expenses of Non-Utility Operations | D15: 2960.42
A16: 4390 | B16: Miscellaneous Non-Operating Revenue | C16: 84633.36 | D16: 93111.51 | E16: 120345.16 | F16: 41755.02 | G16: 63695 | H16: 63695 | I16: 63695 | J16: 63695 | K16: 63695 | L16: 63695
A17: 4405 | B17: Interest and Dividend Income | C17: 115360.26 | D17: 131211.32 | E17: 34492.02 | F17: 211321.78 | G17: 161042.6496 | H17: 90589.25579 | I17: 97512.26235 | J17: 93868.53547 | K17: 103961.444 | L17: 114287.8736
A19: Specific Service Charges | C19: 153236.66 | D19: 193189.53 | E19: 106738.52 | F19: 104542.43 | G19: 108532 | H19: 108532 | I19: 108532 | J19: 108532 | K19: 108532 | L19: 108532
A20: Late Payment Charges | C20: 48410.2888 | D20: 16174.6537 | E20: 19091.17 | F20: 52874.67 | G20: 50642 | H20: 50642 | I20: 50642 | J20: 50642 | K20: 50642 | L20: 50642
A21: Other Operating Revenues | C21: 202843.85 | D21: 177741.28 | E21: 183617.59 | F21: 181094 | G21: 181802.97 | H21: 181802.97 | I21: 181802.97 | J21: 181802.97 | K21: 181802.97 | L21: 181802.97
A22: Other Income or Deductions | C22: 206357.24 | D22: 262881.47 | E22: 1315405.06 | F22: 1428768.82 | G22: 1355307.65 | H22: 158687.2558 | I22: 165610.2623 | J22: 161966.5355 | K22: 172059.444 | L22: 182385.8736
A23: Total | C23: 610848.0388 | D23: 649986.9337 | E23: 1624852.34 | F23: 1767279.92 | G23: 1696284.62 | H23: 499664.2258 | I23: 506587.2323 | J23: 502943.5055 | K23: 513036.414 | L23: 523362.8436
C24: 0 | D24: 0 | E24: 0 | F24: 0 | G24: 0 | H24: 0 | I24: 0 | J24: 0 | K24: 0 | L24: 0
A25: Description | C25: Account(s)
A26: Specific Service Charges: | C26: 4235
A27: Late Payment Charges: | C27: 4225
A28: Other Distribution Revenues: | C28: 4080, 4082, 4084, 4090, 4205, 4210, 4215, 4220, 4240, 4245
A29: Other Income and Expenses: | C29: 4305, 4310, 4315, 4320, 4325, 4330, 4335, 4340, 4345, 4350, 4355, 4360, 4365, 4370, 4375, 4380, 4385, 4390, 4395, 4398, 4405, 4415
A32: Note: Add all applicable accounts listed above to the table and include all relevant information.
A34: Account Breakdown Details
A36: For each "Other Operating Revenue" and "Other Income or Deductions" Account, a detailed breakdown of the account components is required. See the example below for Account 4405, Interest and Dividend Income.
A39: Account 4405 - Interest and Dividend Income
C40: 2011 | D40: 2012 | E40: 2013 | F40: 2014 | G40: Bridge Year | H40: Test Year | I40: Test Year | J40: Test Year | K40: Test Year | L40: Test Year
G41: 2015 | H41: 2016 | I41: 2017 | J41: 2018 | K41: 2019 | L41: 2020
A42: Reporting Basis | C42: CGAAP | D42: CGAAP | E42: CGAAP | F42: CGAAP | G42: MIFRS | H42: MIFRS | I42: MIFRS | J42: MIFRS | K42: MIFRS | L42: MIFRS
A43: Investment and Bank Interest | C43: 5681.16 | D43: 3567.06 | E43: 3919.56 | F43: 1954.54 | G43: 2397 | H43: 2397 | I43: 2397 | J43: 2397 | K43: 2397 | L43: 2397
A44: Interest and Service Charges | C44: 183.58 | D44: 265.42 | E44: 0 | F44: 0 | G44: 0 | H44: 0 | I44: 0 | J44: 0 | K44: 0 | L44: 0
A45: Interest on Amount owed from City | C45: 38690 | D45: 14340.7 | E45: 35987.03 | F45: 63746 | G45: 45003.66706 | H45: 51179.11699 | I45: 77990.86495 | J45: 66668.39447 | K45: 69082.55944 | L45: 71730.24539
A46: Net interest on Regulatory Assets/Liabilitities | C46: 70805.52 | D46: 113038.14 | E46: -5414.57 | F46: 145621.24 | G46: 113641.9825 | H46: 37013.1388 | I46: 17124.3974 | J46: 24803.141 | K46: 32481.8846 | L46: 40160.6282
A47: Total | C47: 115360.26 | D47: 131211.32 | E47: 34492.02 | F47: 211321.78 | G47: 161042.6496 | H47: 90589.25579 | I47: 97512.26235 | J47: 93868.53547 | K47: 103961.444 | L47: 114287.8736
C49: 0 | D49: 0 | E49: 0 | F49: 0 | G49: 0 | H49: 0 | I49: 0 | J49: 0 | K49: 0 | L49: 0
A50: Notes:
A51: 1 | B51: List and specify any other interest revenue.
A52: 2 | B52: In the transition year to IFRS, the applicant is to present information in both MIFRS and CGAAP. For the typical applicant that is adopting IFRS on January 1, 2015, 2014 must be presented in both a CGAAP and MIFRS basis.

Sheet App.2-I LF_CDM_WF
G1: File Number: | H1: EB-2015-0083
G2: Exhibit: | H2: 3
G3: Tab: | H3: 1
G4: Schedule: | H4: 3
G5: Page: | H5: 1 of 1
G7: Date: | H7: 2015-04-14
A9: Appendix 2-I
A10: Load Forecast CDM Adjustment Work Form (2015)
A12: The 2014 bridge year is the last year of the current four year (2011-2014) CDM program, and 2015 is the first year of a new six year (2015-2020) CDM program, per the Ministirial directives of March 31, 2014. Thus, with 2015, there is a need to recognize the final year of the current 2011-2014 CDM program, as well as to estimate reasonable impacts each year for the new 2015-2020 CDM program. These are combined to estimate the adjustment for CDM program impacts on the 2015 load forecast.
A14: Appendix 2-I was developed to help determine what would be the amount of CDM savings needed in each year to cumulatively achieve the four year 2011-2014 CDM target. This then determined the amount of kWh (and with translation, kW of demand) savings that were converted in dollars balances for the LRAMVA, and also to determine the related adjustment to the load forecast to account for OPA-reported savings. Beginning for the 2015 year, it has been adjusted because of the persistence of 2011-2014 CDM programs will be an adjustment to the load forecast in addition to the estimated savings for the first year (2015) for the new 2015-2020 CDM plan.
A16: It is assumed that the new six year (2015-2020) CDM program will work similar to the existing 2011-2014 CDM program, meaning that distributors will offer programs each year that, cumulatively over the six years (from January 1, 2015 to December 31, 2020) will cumulatively achieve the new six year CDM target. This is the approach contemplated in the Ministerial directive letters of March 31, 2014 to the Board and to the OPA. Thus, distributors will be able to offer programs on a basis so that cumulatively over the period, the impacts, including persistence, of the CDM programs will accumulate towards achieving each distributor's 2015-2020 CDM target.
A18: With this approach, it is necessary to account for estimated savings for the last year of the current program, particularly the estimated savings for new CDM programs offered in 2014, as well as the estimated savings for new CDM programs that the distributor will offer in 2015 towards achievement of the new six year (2015-2020) CDM program. This necessitates expansion of this Appendix 2-I to deal with both the 2011-2014 and 2015-2020 CDM plans. It is expected that this approach will be updated each year.
A20: 2011-2014 CDM Program - 2014, last year of the current CDM plan
A22: Input the 2011-2014 CDM target in Cell B21.
A24: Input the measured results for 2011 CDM programs for each of the years 2011 and persistence into 2012, 2013 and 2014 into cells B31 to E31. These results are taken from the final 2011 CDM Report issued by the OPA for that distributor in the fall of 2012.
A25: Measured results for 2012 CDM programs for each of the years 2012 and persistence into 2013 and 2014 are input into cells C32 to E32. These results are taken from the final 2012 CDM Report issued by the OPA for that distributor in the fall of 2013.
A28: Measured results for 2013 CDM programs for each of the years 2013 and persistence into 2014 are input into cells C33 to E33. These results are taken from the final 2013 CDM Report issued by the OPA for that distributor in the fall of 2014. Until that report is issued, the distributor should use the results from the preliminary 2013 CDM Report issued in the spring of 2014.
A30: Based on these inputs, the residual kWh to achieve the 4 year CDM target icalculated for 2014 CDM under the assumption that the distributor will at least achieve the 2011-2014 CDM target that is currently a condition of the utility's Distribution Licence. If the distributor has met its cumulative kWh savings target by the end of 2013, the incremental savings for 2014 are assumed to be zero. Any further savings for 2014 CDM savings and any further compensation for meeting or exceeding the four-year (2011-2014) targets will be dealt with through the disposition of the 2011-2014 LRAMVA balance, which will occur in the next cost of service application filed after the final 2014 CDM Reports issued by the OPA in the fall of 2015.
A32: 4 Year (2011-2014) kWh Target:
A33: 37160000
B34: 2011 | C34: 2012 | D34: 2013 | E34: 2014 | F34: Total | K34: =B34 -> 2011 | L34: =C34 -> 2012 | M34: =D34 -> 2013 | N34: =E34 -> 2014
A35: 2011 CDM Programs | B35: 0.0889 | C35: 0.0889 | D35: 0.0889 | E35: 0.0889 | F35: 0.3555 | K35: =50% -> 0.5 | L35: 1 | M35: 1 | N35: 1
A36: 2012 CDM Programs | C36: 0.1457 | D36: 0.1457 | E36: 0.1457 | F36: 0.4372 | L36: 0.5 | M36: 1 | N36: 1
A37: 2013 CDM Programs | D37: 0.1657 | E37: 0.1657 | F37: 0.3315 | M37: 0.5 | N37: 1
A38: 2014 CDM Programs | E38: 0.0542 | F38: 0.0542 | N38: 0.5
A39: Total in Year | B39: 0.0889 | C39: 0.2346 | D39: 0.4003 | E39: 0.4545 | F39: 1.1783
A40: kWh
A41: 2011 CDM Programs | B41: 3302477 | C41: 3302477 | D41: 3302477 | E41: 3302477 | F41: 13209908
A42: 2012 CDM Programs | C42: 5415664 | D42: 5415664 | E42: 5415664 | F42: 16246992
A43: 2013 CDM Programs | D43: 6158825 | E43: 6158825 | F43: 12317650
A44: 2014 CDM Programs | E44: 2012762 | F44: 2012762
A45: Total in Year | B45: 3302477 | C45: 8718141 | D45: 14876966 | E45: 16889728 | F45: 43787312
A47: 2015-2020 CDM Program - 2015, first year of the current CDM plan
A49: For the first year of the new 2015-2020 CDM plan, it is assumed that each year's program will achieve an equal amount of new CDM savings. The new targets for 2015-2020 do not take into account persistence beyond the first year, but the OPA will encourage distributors to promote and implement CDM plans that will have longer term persistence of savings. This results in each year's program being about 1/6 (18.67%) of the cumulative 2015-2020 CDM target for kWh savings. A distributor may propose an alternative approach but would be expected to document in its application why it believes that its proposal is more reasonable. In its proposal, the distributor should ensure that the sum of the results for each year's CDM program from 2015 to 2020 add up to its 2015-2020 CDM target as established by the OPA.
A51: 6 Year (2015-2020) kWh Target:
A52: 34500000
B53: 2015 | C53: 2016 | D53: 2017 | E53: 2018 | F53: 2019 | G53: 2020 | H53: Total
A54: %
A55: 2015 CDM Programs | B55: 0.1507 | H55: 0.1507
A56: 2016 CDM Programs | C56: 0.1391 | H56: 0.1391
A57: 2017 CDM Programs | D57: 0.1594 | H57: 0.1594
A58: 2018 CDM Programs | E58: 0.171 | H58: 0.171
A59: 2019 CDM Programs | F59: 0.1855 | H59: 0.1855
A60: 2020 CDM Programs | G60: 0.2 | H60: 0.2
A61: Total in Year | B61: 0.1507 | C61: 0.1391 | D61: 0.1594 | E61: 0.171 | F61: 0.1855 | G61: 0.2 | H61: 1.0058
A62: kWh
A63: 2015 CDM Programs | B63: 5200000 | H63: 5200000
A64: 2016 CDM Programs | C64: 4800000 | H64: 4800000
A65: 2017 CDM Programs | D65: 5500000 | H65: 5500000
A66: 2018 CDM Programs | E66: 5900000 | H66: 5900000
A67: 2019 CDM Programs | F67: 6400000 | H67: 6400000
A68: 2020 CDM Programs | G68: 6900000 | H68: 6900000
A69: Total in Year | B69: 5200000 | C69: 4800000 | D69: 5500000 | E69: 5900000 | F69: 6400000 | G69: 6900000 | H69: =SUM(H63:H68) -> 34700000
A71: Determination of 2015 Load Forecast Adjustment
A73: The Board has determined that the "net" number should be used in its Decision and Order with respect to Centre Wellington Hydro Ltd.'s 2013 Cost of Service rates (EB-2012-0113). This approach has also been used in Settlement Agreements accepted by the Board in other 2013 and 2-14 applications. The distributor should select whether the adjustment is done on a "net" or "gross" basis, but must support a proposal for the adjustment being done on a "gross" basis. Sheet 2-I defaults to the adjustment being done on a "net" basis consistent with Board policy and practice.
A75: From each of the 2006-2010 CDM Final Report, and the 2011, 2012 and 2013 CDM Final Reports, issued by the OPA for the distributor, the distributor should input the "gross" and "net" results of the cumulative CDM savings for 2014 into cells D31 to E33. The model will calculate the cumulative savings for all programs from 2006 to 2012 and determine the "net" to "gross" factor "g".
A77: Net-to-Gross Conversion
A79: Is CDM adjustment being done on a "net" or "gross" basis? | F79: net
C81: Gross | D81: Net | E81: Difference | F81: Net-to-Gross Conversion Factor
A82: Persistence of Historical CDM programs to 2014 | C82: kWh | D82: kWh | E82: kWh | F82: ('g')
A83: 2006-2010 CDM programs
A84: 2011 CDM program
A85: 2012 CDM program
A86: 2013 CDM program
A87: 2006 to 2013 OPA CDM programs: Persistence to 2015 | C87: 0 | D87: 0 | F87: 0
A89: The default values represent the factor that each year's CDM program is factored into the manual CDM adjustment. Distributors can choose alternative weights of "0", "0.5" or "1" from the drop-down menu for each cell, but must support its alternatives.
A91: These factors do not mean that CDM programs are excluded, but also reflect the assumption that impacts of 2011 and 2012 programs are already implicitly reflected in the actual data for those years that are the basis for the load forecast prior to any manual CDM adjustment.
A93: Weight Factor for Inclusion in CDM Adjustment to 2014 Load Forecast
B94: 2011 | C94: 2012 | D94: 2013 | E94: 2014 | F94: 2015
A95: Weight Factor for each year's CDM program impact on 2014 load forecast | B95: 1 | C95: 1 | D95: 1 | E95: 0.5 | F95: 0 | G95: Distributor can select "0", "0.5", or "1" from drop-down list
A96: Default Value selection rationale. | B96: Full year persistence of 2011 CDM programs on 2015 load forecast. Full impact assumed because of 50% impact in 2011 (first year) but full year persistence impact on 2012 and 2013, and thus reflected in base forecast before the CDM adjustment. | C96: Full year persistence of 2012 CDM programs on 2015 load forecast. Full impact assumed because of 50% impact in 2012 (first year) but full year persistence impact on 2013, and thus reflected in base forecast before the CDM adjustment. | D96: Default is 0, but one option is for full year impact of persistence of 2013 CDM programs on 2015 load forecast, but 50% impact in base forecast (first year impact of 2013 CDM programs on 2013 load forecast, which is part of the data for the load forecast. | E96: Full year impact of persistence of 2014 programs on 2015 load forecast. 2014 CDM programs not in base forecast. | F96: Only 50% of 2015 CDM programs are assumed to impact the 2015 load forecast based on the "half-year" rule.
A98: 2011-2014 and 2015-2020 LRAMVA and 2015 CDM adjustment to Load Forecast
A100: One manual adjustment for CDM impacts to the 2015 load forecast is made. However, the distributor will have two associated annualized CDM impacts, one for the 2011-2014 CDM program and the second for the 2015-2020 CDM plan. In addition, the distributor needs to reflect the CDM adjustment that was explicitly factored into its 2011 load forecast in its 2011 cost of service application (assuming that it rebased in that year). this amount, and equal persistence for 2012, 2013 and 2014 is used as an offset to determine what the net balance of the 2011-2014 LRAMVA balance should be for disposition.
A102: The Amount used for the CDM threshold of the LRAMVA is the kWh that will be used to determine the base amount for the LRAMVA balance for 2014, for assessing performance against the four-year target. The base amount for 2011-2013 is 0 (zero) for 2014 Cost of Service applications, as the utility rebased prior to the 2011-2014 CDM programs, and there was no adjustment to reflect the impacts of the 2011-2014 programs on the load forecast used to determine their last cost of service-based rates.
A104: The proposed loss factor should correspond with the loss factor calculated in Appendix 2-R
A106: The Manual Adjustment for the 2015 Load Forecast is the amount manually subtracted from the load forecast derived from the base forecast from historical data, and is intended to reflect the further CDM savings that the distributor needs to achieve assuming that they meet 100% of the 2011-2014 CDM target that is a condition of their target.
A108: If the distributor has developed their load forecast on a system purchased basis, then the manual adjustment should be on system purchased basis, including the adjustment for losses. If the load forecast has been developed on a billed basis, either on a system basis or on a class-specific basis, the manual adjustment should be on a billed basis, excluding losses.
A110: The distributor should determine the allocation of the savings to all customer classes in a reasonable manner (e.g. taking into account what programs and what OPA-measured impacts were directed at specific customer classes), for both the LRAMVA and for the load forecast adjustment.
B112: 2011 | C112: 2012 | D112: 2013 | E112: 2014 | F112: 2015 | G112: Total for 2014 | H112: Total for 2015
B113: kWh
A114: Amount used for CDM threshold for LRAMVA (2014) | B114: 3302477 | C114: 5415664 | D114: 6158825 | E114: 1196240 | G114: 16073206
A116: 2011 CDM adjustment (per Board Decision in 2011 Cost of Service Application) (enter as negative) | B116: - | C116: - | D116: - | E116: - | G116: -
A118: Amount used for CDM threshold for LRAMVA (2015) | F118: 5200000 | H118: 5200000
A120: Manual Adjustment for 2015 Load Forecast (billed basis) | B120: 3302477 | C120: 5415664 | D120: 6158825 | E120: 598120 | F120: - | H120: 15475086
A122: Proposed Loss Factor (TLF) | B122: 0.0393 | C122: Format: X.XX%
A123: Manual Adjustment for 2015 Load Forecast (system purchased basis) | B123: 3432264.35 | C123: 5628499.6 | D123: 6400866.82 | E123: 621626.12 | F123: - | H123: 16083256.88
A125: Manual adjustment uses "gross" versus "net" (i.e. numbers multiplied by (1 + g). The Weight factor is also used calculate the impact of each year's program on the CDM adjustment to the 2014 load forecast.

Sheet App.2-IA_Act_Frcst_Data
L1: File Number: | M1: =EBNUMBER -> EB-2015-0083
L2: Exhibit: | M2: 3
L3: Tab: | M3: 1
L4: Schedule: | M4: 1
L5: Page: | M5: 1
L7: Date: | M7: 2015-04-09
A9: Appendix 2-IA
A10: Summary and Variances of Actual and Forecast Data
A12: Replace "Rate Class #" with the appropriate rate classification.
B14: =RebaseYear &" Board Approved" -> 2011 Board Approved | C14: =RebaseYear & " Actual" -> 2011 Actual | D14: =RebaseYear+1 & " Actual" -> 2012 Actual | E14: =RebaseYear+2 & " Actual" -> 2013 Actual | F14: =RebaseYear+3 & " Actual" -> 2014 Actual | G14: =RebaseYear+3 & " Weather Normalized" -> 2014 Weather Normalized | H14: =BridgeYear&" Bridge Forecast CDM Adjusted" -> 2015 Bridge Forecast CDM Adjusted | I14: =TestYear+0 &" Test Forecast CDM Adjusted" -> 2016 Test Forecast CDM Adjusted | J14: =TestYear+1 &" Test Forecast CDM Adjusted" -> 2017 Test Forecast CDM Adjusted | K14: =TestYear+2 &" Test Forecast CDM Adjusted" -> 2018 Test Forecast CDM Adjusted | L14: =TestYear+3 &" Test Forecast CDM Adjusted" -> 2019 Test Forecast CDM Adjusted | M14: =TestYear+4 &" Test Forecast CDM Adjusted" -> 2020 Test Forecast CDM Adjusted
A15: Residential
A16: # of Customers | B16: 23386 | C16: 23212 | D16: 23193 | E16: 23468 | F16: 23852.58333 | G16: 23852.58333 | H16: 24004.47583 | I16: 24157.33558 | J16: 24311.16873 | K16: 24465.98149 | L16: 24621.78009 | M16: 24778.57081
A17: kWh | B17: 194606362 | C17: 191104338.4 | D17: 184953208.6 | E17: 189348695.9 | F17: 192061408 | G17: 189757911 | H17: 187160982 | I17: 183959618 | J17: 180751226 | K17: 177434297 | L17: 174038354 | M17: 170554076
A18: kW
A19: Variance Analysis (relative to 2011 Board Approved Figures)
A20: =A16 -> # of Customers | C20: =IF(ISERROR((C16-$B16)/$B16), 0, (C16-$B16)/$B16) -> -0.007440348927 | D20: =IF(ISERROR((D16-$B16)/$B16), 0, (D16-$B16)/$B16) -> -0.008252800821 | E20: 0.003506371333 | F20: 0.01995139542 | G20: 0.01995139542 | H20: 0.02644641383 | I20: 0.03298279231 | J20: 0.03956079424 | K20: 0.04618068468 | L20: 0.05284273038 | M20: 0.05954719977
A21: kWh | C21: =IF(ISERROR((C17-$B17)/$B17), 0, (C17-$B17)/$B17) -> -0.01799542191 | D21: -0.0496034831 | E21: -0.02701692828 | F21: -0.01307744502 | G21: -0.02491414438 | H21: -0.038258667 | I21: -0.05470912611 | J21: =IF(ISERROR((J17-$B17)/$B17), 0, (J17-$B17)/$B17) -> -0.07119569914 | K21: -0.08823999803 | L21: -0.1056903165 | M21: -0.1235945513
A22: kW | C22: 0 | D22: 0 | E22: 0 | F22: 0 | G22: 0 | H22: 0 | I22: 0 | J22: 0 | K22: 0 | L22: 0 | M22: 0
A24: GS<50*
A25: # of Customers | B25: 3244 | C25: 3297.75 | D25: 3249.833333 | E25: 3212.75 | F25: 3051.333333 | G25: 3051.333333 | H25: 3000.372871 | I25: 2950.263502 | J25: 2900.991012 | K25: 2852.541424 | L25: 2804.900995 | M25: 2758.056211
A26: kWh | B26: 93096784 | C26: 93008634.91 | D26: 88608640.9 | E26: 86375577.06 | F26: 91470555 | G26: 92820328 | H26: 96172824 | I26: 93395362 | J26: 90657781 | K26: 87909490 | L26: 85166503 | M26: 82425355
A27: kW
A28: Variance Analysis (relative to 2011 Board Approved Figures)
A29: =A25 -> # of Customers | C29: =IF(ISERROR((C25-$B25)/$B25), 0, (C25-$B25)/$B25) -> 0.01656905055 | D29: =IF(ISERROR((D25-$B25)/$B25), 0, (D25-$B25)/$B25) -> 0.001798191533 | E29: -0.009633168927 | F29: -0.05939169749 | G29: -0.05939169749 | H29: -0.07510084119 | I29: -0.09054762573 | J29: -0.1057364328 | K29: -0.1206715709 | L29: -0.1353572765 | M29: -0.1497977155
A30: kWh | C30: =IF(ISERROR((C26-$B26)/$B26), 0, (C26-$B26)/$B26) -> -0.0009468542866 | D30: -0.04820943227 | E30: -0.07219590894 | F30: -0.01746815443 | G30: -0.002969554781 | H30: 0.03304131322 | I30: 0.003207178456 | J30: -0.02619857416 | K30: -0.05571936835 | L30: -0.08518318957 | M30: -0.1146272572
A31: kW | C31: 0 | D31: 0 | E31: 0 | F31: 0 | G31: 0 | H31: 0 | I31: 0 | J31: 0 | K31: 0 | L31: 0 | M31: 0
A32: *NOTE: GS<50 Customer Count for 2010-2013 has been increased by 53 due to Reclassification of 53 customers that occurred in Jan 2014
A33: GS>50**
A34: # of Customers | B34: 347 | C34: 291 | D34: 306.5833333 | E34: 317.75 | F34: 324.5 | G34: 324.5 | H34: 330.7076028 | I34: 337.0339554 | J34: 343.4813296 | K34: 350.0520404 | L34: 356.7484472 | M34: 363.5729546
A35: kWh | B35: 259610762 | C35: 273712584.2 | D35: 274473667.9 | E35: 279458000.5 | F35: 272498127 | G35: 272478959 | H35: 272253779 | I35: 271033959 | J35: 269787738 | K35: 268358409 | L35: 266781651 | M35: 265034716
A36: kW | B36: 701859 | C36: 766581 | D36: 781260 | E36: 767156 | F36: 743905 | G36: 743852.6726 | H36: 743237.9418 | I36: 739907.9015 | J36: 736505.7848 | K36: 732603.7959 | L36: 728299.3319 | M36: 723530.2956
A37: Variance Analysis (relative to 2011 Board Approved Figures)
A38: =A34 -> # of Customers | C38: =IF(ISERROR((C34-$B34)/$B34), 0, (C34-$B34)/$B34) -> -0.1613832853 | D38: =IF(ISERROR((D34-$B34)/$B34), 0, (D34-$B34)/$B34) -> -0.1164745437 | E38: -0.08429394813 | F38: -0.06484149856 | G38: -0.06484149856 | H38: -0.04695215339 | I38: -0.02872058959 | J38: -0.01014026058 | K38: 0.008795505403 | L38: 0.0280935078 | M38: 0.04776067608
A39: kWh | C39: =IF(ISERROR((C35-$B35)/$B35), 0, (C35-$B35)/$B35) -> 0.05431909695 | D39: 0.05725073118 | E39: 0.07644998353 | F39: 0.04964110463 | G39: 0.04956727102 | H39: 0.04869989558 | I39: 0.04400124599 | J39: 0.03920090185 | K39: 0.03369524026 | L39: 0.0276216939 | M39: 0.02089263927
A40: kW | C40: 0.09221510303 | D40: 0.1131295602 | E40: 0.0930343559 | F40: 0.05990661942 | G40: 0.05983206396 | H40: 0.05895620319 | I40: 0.05421160297 | J40: 0.04936430936 | K40: 0.04380480401 | L40: 0.03767185704 | M40: 0.03087699325
A41: **NOTE: GS>50 Customer Count for 2011-2013 has been reduced by 53 due to Reclassification of 53 customers that occurred in Jan 2014
A42: Large User
A43: # of Customers | B43: 3 | C43: 3 | D43: 3 | E43: 3 | F43: 3 | G43: 3 | H43: 3 | I43: 3 | J43: 3 | K43: 3 | L43: 3 | M43: 3
A44: kWh | B44: 152017673 | C44: 154491718.4 | D44: 155448434.7 | E44: 153943745.8 | F44: 151518193 | G44: 153957083 | H44: 153805000 | I44: 153400986 | J44: 152672282 | K44: 151872625 | L44: 151021736 | M44: 150106113
A45: kW | B45: 297737 | C45: 294114 | D45: 323212 | E45: 291732 | F45: 286452 | G45: 291062.8315 | H45: 290775 | I45: 290012 | J45: 288634 | K45: 287122 | L45: 285513 | M45: 283782
A46: Variance Analysis (relative to 2011 Board Approved Figures)
A47: =A43 -> # of Customers | C47: =IF(ISERROR((C43-$B43)/$B43), 0, (C43-$B43)/$B43) -> 0 | D47: =IF(ISERROR((D43-$B43)/$B43), 0, (D43-$B43)/$B43) -> 0 | E47: 0 | F47: 0 | G47: 0 | H47: 0 | I47: 0 | J47: 0 | K47: 0 | L47: 0 | M47: =IF(ISERROR((M43-$B43)/$B43), 0, (M43-$B43)/$B43) -> 0
A48: kWh | C48: =IF(ISERROR((C44-$B44)/$B44), 0, (C44-$B44)/$B44) -> 0.01627472252 | D48: 0.02256817638 | E48: 0.01267005824 | F48: -0.003285670608 | G48: 0.01275779297 | H48: 0.01175736324 | I48: 0.009099685403 | J48: 0.004306137484 | K48: -0.0009541522189 | L48: -0.006551455369 | M48: -0.01257459059
A49: kW | C49: -0.0121684574 | D49: 0.08556209003 | E49: -0.0201688067 | F49: -0.03790257845 | G49: -0.02241632222 | H49: -0.02338305283 | I49: -0.02594571719 | J49: -0.03057396293 | K49: -0.03565227029 | L49: -0.04105636854 | M49: -0.04687022439
A51: Street Light
A52: # of Connections | B52: 5155 | C52: 5119.583333 | D52: 5126 | E52: 5384.916667 | F52: 5228.083333 | G52: 5228.083333 | H52: 5336.5 | I52: 5348.5 | J52: 5360.5 | K52: 5372.5 | L52: 5384.5 | M52: 5396.5
A53: kWh | B53: 4024186 | C53: 4142238 | D53: 4555371 | E53: 3336835 | F53: 1817917 | G53: 1817917 | H53: 1814577 | I53: 1818158 | J53: 1821740 | K53: 1825321 | L53: 1828903 | M53: 1832484
A54: kW | B54: 11336 | C54: 11236.715 | D54: 10983.794 | E54: 8303.846 | F54: 5045.195 | G54: 5045.195 | H54: 5035.926413 | I54: 5045.865688 | J54: 5055.804962 | K54: 5065.744237 | L54: 5075.683512 | M54: 5085.622787
A55: Variance Analysis (relative to 2011 Board Approved Figures)
A56: =A52 -> # of Connections | C56: =IF(ISERROR((C52-$B52)/$B52), 0, (C52-$B52)/$B52) -> -0.006870352409 | D56: =IF(ISERROR((D52-$B52)/$B52), 0, (D52-$B52)/$B52) -> -0.005625606208 | E56: 0.04460071128 | F56: 0.01417717426 | G56: 0.01417717426 | H56: 0.0352085354 | I56: 0.03753637245 | J56: 0.03986420951 | K56: 0.04219204656 | L56: 0.04451988361 | M56: 0.04684772066
A57: kWh | C57: =IF(ISERROR((C53-$B53)/$B53), 0, (C53-$B53)/$B53) -> 0.02933562216 | D57: 0.1319981233 | E57: -0.1708049777 | F57: -0.5482522428 | G57: -0.5482522428 | H57: -0.5490822243 | I57: -0.5481923549 | J57: -0.547302237 | K57: -0.5464123676 | L57: -0.5455222497 | M57: -0.5446323803
A58: kW | C58: -0.008758380381 | D58: -0.03106968948 | E58: -0.2674800635 | F58: -0.5549404552 | G58: -0.5549404552 | H58: -0.5557580793 | I58: -0.5548812908 | J58: -0.5540045023 | K58: -0.5531277137 | L58: -0.5522509252 | M58: -0.5513741367
A60: Unmetered Scattered Load
A61: # of Connections | B61: 164 | C61: 155.5 | D61: 152 | E61: 150.8333333 | F61: 146.5 | G61: 146.5 | H61: 143.4795299 | I61: 140.5213344 | J61: 137.6241297 | K61: 134.7866582 | L61: 132.0076884 | M61: 129.2860141
A62: kWh | B62: 2275040 | C62: 1517655.06 | D62: 1484560.47 | E62: 1499819.8 | F62: 1247036 | G62: 1247036 | H62: 1221326 | I62: 1196145 | J62: 1171483 | K62: 1147330 | L62: 1123675 | M62: 1100508
A63: kW
A64: Variance Analysis (relative to 2011 Board Approved Figures)
A65: =A61 -> # of Connections | C65: =IF(ISERROR((C61-$B61)/$B61), 0, (C61-$B61)/$B61) -> -0.05182926829 | D65: -0.07317073171 | E65: -0.08028455285 | F65: -0.1067073171 | G65: -0.1067073171 | H65: -0.1251248179 | I65: -0.1431625951 | J65: -0.1608284777 | K65: -0.1781301331 | L65: -0.1950750709 | M65: -0.2116706458
A66: kWh | C66: -0.3329106038 | D66: -0.3474574205 | E66: -0.3407501407 | F66: -0.4518619453 | G66: -0.4518619453 | H66: -0.4631628455 | I66: -0.4742312223 | J66: -0.4850714713 | K66: -0.4956879879 | L66: -0.5060856073 | M66: -0.5162687249
A67: kW | C67: 0 | D67: 0 | E67: 0 | F67: 0 | G67: 0 | H67: 0 | I67: 0 | J67: 0 | K67: 0 | L67: 0 | M67: 0
A69: Rate Class 7
A70: # of Customers
A71: kWh
A72: kW
A73: Variance Analysis
A74: =A70 -> # of Customers | C74: =IF(ISERROR((C70-$B70)/$B70), 0, (C70-$B70)/$B70) -> 0 | D74: =IF(ISERROR((D70-$B70)/$B70), 0, (D70-$B70)/$B70) -> 0 | E74: 0 | H74: =IF(ISERROR((H70-$B70)/$B70), 0, (H70-$B70)/$B70) -> 0 | I74: 0 | L74: 0 | M74: 0
A75: kWh | C75: =IF(ISERROR((C71-$B71)/$B71), 0, (C71-$B71)/$B71) -> 0 | D75: 0 | E75: 0 | H75: 0 | I75: 0 | L75: 0 | M75: 0
A76: kW | C76: 0 | D76: 0 | E76: 0 | H76: 0 | I76: 0 | L76: 0 | M76: 0
A78: Rate Class 8
A79: # of Customers
A80: kWh
A81: kW
A82: Variance Analysis
A83: =A79 -> # of Customers | C83: =IF(ISERROR((C79-$B79)/$B79), 0, (C79-$B79)/$B79) -> 0 | D83: =IF(ISERROR((D79-$B79)/$B79), 0, (D79-$B79)/$B79) -> 0 | E83: 0 | H83: =IF(ISERROR((H79-$B79)/$B79), 0, (H79-$B79)/$B79) -> 0 | I83: 0 | L83: 0 | M83: 0
A84: kWh | C84: =IF(ISERROR((C80-$B80)/$B80), 0, (C80-$B80)/$B80) -> 0 | D84: 0 | E84: 0 | H84: 0 | I84: 0 | L84: 0 | M84: 0
A85: kW | C85: 0 | D85: 0 | E85: 0 | H85: 0 | I85: 0 | L85: 0 | M85: 0
A87: Rate Class 9
A88: # of Customers
A89: kWh
A90: kW
A91: Variance Analysis
A92: =A88 -> # of Customers | C92: =IF(ISERROR((C88-$B88)/$B88), 0, (C88-$B88)/$B88) -> 0 | D92: =IF(ISERROR((D88-$B88)/$B88), 0, (D88-$B88)/$B88) -> 0 | E92: 0 | H92: =IF(ISERROR((H88-$B88)/$B88), 0, (H88-$B88)/$B88) -> 0 | I92: 0 | L92: 0 | M92: 0
A93: kWh | C93: =IF(ISERROR((C89-$B89)/$B89), 0, (C89-$B89)/$B89) -> 0 | D93: 0 | E93: 0 | H93: 0 | I93: 0 | L93: 0 | M93: 0
A94: kW | C94: 0 | D94: 0 | E94: 0 | H94: 0 | I94: 0 | L94: 0 | M94: 0
A96: Rate Class 10
A97: # of Customers
A98: kWh
A99: kW
A100: Variance Analysis
A101: =A97 -> # of Customers | C101: =IF(ISERROR((C97-$B97)/$B97), 0, (C97-$B97)/$B97) -> 0 | D101: =IF(ISERROR((D97-$B97)/$B97), 0, (D97-$B97)/$B97) -> 0 | E101: 0 | H101: =IF(ISERROR((H97-$B97)/$B97), 0, (H97-$B97)/$B97) -> 0 | I101: 0 | L101: 0 | M101: 0
A102: kWh | C102: =IF(ISERROR((C98-$B98)/$B98), 0, (C98-$B98)/$B98) -> 0 | D102: 0 | E102: 0 | H102: 0 | I102: 0 | L102: 0 | M102: 0
A103: kW | C103: 0 | D103: 0 | E103: 0 | H103: 0 | I103: 0 | L103: 0 | M103: 0
A106: Totals
A107: Customers | B107: =SUM(B16,B25,B34,B43,,B70,B79,B88,B97) -> 26980 | C107: 26803.75 | D107: 26752.41667 | E107: 27001.5 | F107: 27231.41667 | G107: 27231.41667 | H107: 27338.55631 | I107: 27447.63304 | J107: 27558.64108 | K107: 27671.57496 | L107: 27786.42953 | M107: 27903.19998
A108: Connections | B108: =SUM(B52,B61) -> 5319 | C108: =SUM(C52,C61) -> 5275.083333 | D108: 5278 | E108: 5535.75 | F108: 5374.583333 | G108: 5374.583333 | H108: 5479.97953 | I108: 5489.021334 | J108: 5498.12413 | K108: 5507.286658 | L108: 5516.507688 | M108: 5525.786014
A109: kWh | B109: =SUM(B17,B26,B35,B44,B53,B62,B71,B80,B89,B98) -> 705630807 | C109: 717977169 | D109: 709523883.6 | E109: 713962674 | F109: 710613236 | G109: 712079234 | H109: 712428488 | I109: 704804228 | J109: 696862250 | K109: 688547472 | L109: 679960822 | M109: 671053252
A110: kW from applicable classes | B110: 1010932 | C110: 1071931.715 | D110: 1115455.794 | E110: 1067191.846 | F110: 1035402.195 | G110: 1039960.699 | H110: 1039048.868 | I110: 1034965.767 | J110: 1030195.59 | K110: 1024791.54 | L110: 1018888.015 | M110: 1012397.918
A112: Totals - Variance
A113: Customers | C113: =IF(ISERROR((C107-$B107)/$B107), 0, (C107-$B107)/$B107) -> -0.006532616753 | D113: =IF(ISERROR((D107-$B107)/$B107), 0, (D107-$B107)/$B107) -> -0.008435260687 | E113: 0.0007968865827 | F113: 0.009318631085 | G113: 0.009318631085 | H113: 0.01328970748 | I113: 0.01733258111 | J113: 0.02144703764 | K113: 0.02563287459 | L113: 0.02988990121 | M113: 0.03421793845
A114: Connections | C114: =IF(ISERROR((C108-$B108)/$B108), 0, (C108-$B108)/$B108) -> -0.008256564517 | D114: -0.00770821583 | E114: 0.040750141 | F114: 0.01044995927 | G114: 0.01044995927 | H114: 0.03026499903 | I114: 0.03196490588 | J114: 0.03367627931 | K114: 0.0353988829 | L114: 0.03713248512 | M114: 0.0388768592
A115: kWh | C115: =IF(ISERROR((C109-$B109)/$B109), 0, (C109-$B109)/$B109) -> 0.01749691461 | D115: 0.0055171579 | E115: 0.01180768597 | F115: 0.007060957303 | G115: 0.00913852816 | H115: 0.009633481039 | I115: -0.001171404355 | J115: -0.0124265507 | K115: -0.02421001865 | L115: -0.03637877591 | M115: -0.0490023319
A116: kW from applicable classes | C116: =IF(ISERROR((C110-$B110)/$B110), 0, (C110-$B110)/$B110) -> 0.06034007728 | D116: 0.1033934963 | E116: 0.05565146419 | F116: 0.0242055796 | G116: 0.02871478898 | H116: 0.0278128185 | I116: 0.02377387118 | J116: 0.01905527747 | K116: 0.01370966611 | L116: 0.007869980794 | M116: 0.001450066267

Sheet App.2-IA2_Act_Frcst_Data
G1: File Number: | H1: =EBNUMBER -> EB-2015-0083
G2: Exhibit: | H2: 3
G3: Tab: | H3: 1
G4: Schedule: | H4: 1
G5: Page: | H5: 1
G7: Date: | H7: 2015-04-09
A9: Appendix 2-IA2
A10: Summary and Variances of 2015 Bridge Year Forecast vs. 2014 Weather-Normalized and 2016-2020 Test Forecast
A12: Replace "Rate Class #" with the appropriate rate classification.
B14: =BridgeYear&" Bridge Forecast CDM Adjusted" -> 2015 Bridge Forecast CDM Adjusted | C14: =RebaseYear+3 & " Weather Normalized" -> 2014 Weather Normalized | D14: =TestYear+0 &" Test Forecast CDM Adjusted" -> 2016 Test Forecast CDM Adjusted | E14: =TestYear+1 &" Test Forecast CDM Adjusted" -> 2017 Test Forecast CDM Adjusted | F14: =TestYear+2 &" Test Forecast CDM Adjusted" -> 2018 Test Forecast CDM Adjusted | G14: =TestYear+3 &" Test Forecast CDM Adjusted" -> 2019 Test Forecast CDM Adjusted | H14: =TestYear+4 &" Test Forecast CDM Adjusted" -> 2020 Test Forecast CDM Adjusted
A15: Residential
A16: # of Customers | B16: 24004.47583 | C16: 23852.58333 | D16: 24157.33558 | E16: 24311.16873 | F16: 24465.98149 | G16: 24621.78009 | H16: 24778.57081
A17: kWh | B17: 187160982 | C17: 189757911 | D17: 183959618 | E17: 180751226 | F17: 177434297 | G17: 174038354 | H17: 170554076
A18: kW
A19: Variance Analysis (relative to 2015 Bridge Forecast)
A20: =A16 -> # of Customers | C20: =IF(ISERROR((C16-$B16)/$B16), 0, (C16-$B16)/$B16) -> -0.006327674118 | D20: 0.006367968548 | E20: 0.01277648812 | F20: 0.01922581694 | G20: 0.02571621489 | H20: 0.03224794348
A21: kWh | C21: 0.01387537601 | D21: -0.01710486858 | E21: =IF(ISERROR((E17-$B17)/$B17), 0, (E17-$B17)/$B17) -> -0.03424728772 | F21: -0.05196961939 | G21: -0.0701141224 | H21: -0.08873059877
A22: kW | D22: 0 | E22: 0 | F22: 0 | G22: 0 | H22: 0
A24: GS<50*
A25: # of Customers | B25: 3000.372871 | C25: 3051.333333 | D25: 2950.263502 | E25: 2900.991012 | F25: 2852.541424 | G25: 2804.900995 | H25: 2758.056211
A26: kWh | B26: 96172824 | C26: 92820328 | D26: 93395362 | E26: 90657781 | F26: 87909490 | G26: 85166503 | H26: 82425355
A27: kW
A28: Variance Analysis (relative to 2015 Bridge Forecast)
A29: =A25 -> # of Customers | C29: =IF(ISERROR((C25-$B25)/$B25), 0, (C25-$B25)/$B25) -> 0.01698470968 | D29: -0.01670104724 | E29: -0.0331231695 | F29: -0.04927102512 | G29: -0.06514919465 | H29: -0.08076218211
A30: kWh | C30: -0.03485907828 | D30: -0.02887990478 | E30: -0.05734512901 | F30: -0.08592171527 | G30: -0.1144431508 | H30: -0.1429454645
A31: kW | D31: 0 | E31: 0 | F31: 0 | G31: 0 | H31: 0
A33: GS>50**
A34: # of Customers | B34: 330.7076028 | C34: 324.5 | D34: 337.0339554 | E34: 343.4813296 | F34: 350.0520404 | G34: 356.7484472 | H34: 363.5729546
A35: kWh | B35: 272253779 | C35: 272478959 | D35: 271033959 | E35: 269787738 | F35: 268358409 | G35: 266781651 | H35: 265034716
A36: kW | B36: 743237.9418 | C36: 743852.6726 | D36: 739907.9015 | E36: 736505.7848 | F36: 732603.7959 | G36: 728299.3319 | H36: 723530.2956
A37: Variance Analysis (relative to 2015 Bridge Forecast)
A38: =A34 -> # of Customers | C38: =IF(ISERROR((C34-$B34)/$B34), 0, (C34-$B34)/$B34) -> -0.01877066847 | D38: 0.0191297466 | E38: 0.03862544041 | F38: 0.0584940819 | G38: 0.07874280547 | H38: 0.09937888199
A39: kWh | C39: 0.0008270959574 | D39: -0.004480452042 | E39: -0.009057876108 | F39: -0.01430786384 | G39: -0.02009936472 | H39: -0.02651593314
A40: kW | C40: 0.000827098199 | D40: -0.004480449905 | E40: -0.009057875863 | F40: -0.01430786196 | G40: -0.02009936396 | H40: -0.02651593131
A42: Large User
A43: # of Customers | B43: 3 | C43: 3 | D43: 3 | E43: 3 | F43: 3 | G43: 3 | H43: 3
A44: kWh | B44: 153805000 | C44: 153957083 | D44: 153400986 | E44: 152672282 | F44: 151872625 | G44: 151021736 | H44: 150106113
A45: kW | B45: 290775 | C45: 291062.8315 | D45: 290012 | E45: 288634 | F45: 287122 | G45: 285513 | H45: 283782
A46: Variance Analysis (relative to 2015 Bridge Forecast)
A47: =A43 -> # of Customers | C47: =IF(ISERROR((C43-$B43)/$B43), 0, (C43-$B43)/$B43) -> 0 | D47: 0 | E47: 0 | F47: 0 | G47: 0 | H47: =IF(ISERROR((H43-$B43)/$B43), 0, (H43-$B43)/$B43) -> 0
A48: kWh | C48: 0.0009888040051 | D48: -0.002626793667 | E48: -0.00736463704 | F48: -0.01256379832 | G48: -0.0180960567 | H48: -0.02404919866
A49: kW | C49: 0.0009898769513 | D49: -0.00262402201 | E49: -0.00736308142 | F49: -0.01256297825 | G49: -0.01809646634 | H49: -0.02404952283
A51: Street Light
A52: # of Connections | B52: 5336.5 | C52: 5228.083333 | D52: 5348.5 | E52: 5360.5 | F52: 5372.5 | G52: 5384.5 | H52: 5396.5
A53: kWh | B53: 1814577 | C53: 1817917 | D53: 1818158 | E53: 1821740 | F53: 1825321 | G53: 1828903 | H53: 1832484
A54: kW | B54: 5035.926413 | C54: 5045.195 | D54: 5045.865688 | E54: 5055.804962 | F54: 5065.744237 | G54: 5075.683512 | H54: 5085.622787
A55: Variance Analysis (relative to 2015 Bridge Forecast)
A56: =A52 -> # of Connections | C56: =IF(ISERROR((C52-$B52)/$B52), 0, (C52-$B52)/$B52) -> -0.02031606234 | D56: 0.002248664855 | E56: 0.00449732971 | F56: 0.006745994566 | G56: 0.008994659421 | H56: 0.01124332428
A57: kWh | C57: 0.001840649363 | D57: 0.001973462686 | E57: 0.003947476464 | F57: 0.00592093915 | G57: 0.007894952928 | H57: 0.009868415614
A58: kW | C58: 0.001840492963 | D58: 0.001973673557 | E58: 0.003947347115 | F58: 0.005921020672 | G58: 0.007894694229 | H58: 0.009868367786
A60: Unmetered Scattered Load
A61: # of Connections | B61: 143.4795299 | C61: 146.5 | D61: 140.5213344 | E61: 137.6241297 | F61: 134.7866582 | G61: 132.0076884 | H61: 129.2860141
A62: kWh | B62: 1221326 | C62: 1247036 | D62: 1196145 | E62: 1171483 | F62: 1147330 | G62: 1123675 | H62: 1100508
A63: kW
A64: Variance Analysis (relative to 2015 Bridge Forecast)
A65: =A61 -> # of Connections | C65: =IF(ISERROR((C61-$B61)/$B61), 0, (C61-$B61)/$B61) -> 0.02105157537 | D65: -0.0206175436 | E65: -0.0408100041 | F65: -0.06058614566 | G65: -0.07995455176 | H65: -0.09892362891
A66: kWh | C66: 0.02105089059 | D66: -0.0206177548 | E66: -0.04081056164 | F66: -0.06058660833 | G66: -0.07995490148 | H66: -0.09892362891
A67: kW | D67: 0 | E67: 0 | F67: 0 | G67: 0 | H67: 0
A69: Rate Class 7
A70: # of Customers
A71: kWh
A72: kW
A73: Variance Analysis
A74: =A70 -> # of Customers | D74: =IF(ISERROR((D70-$B70)/$B70), 0, (D70-$B70)/$B70) -> 0 | G74: =IF(ISERROR((G70-$B70)/$B70), 0, (G70-$B70)/$B70) -> 0 | H74: 0
A75: kWh | D75: 0 | G75: 0 | H75: 0
A76: kW | D76: 0 | G76: 0 | H76: 0
A78: Rate Class 8
A79: # of Customers
A80: kWh
A81: kW
A82: Variance Analysis
A83: =A79 -> # of Customers | D83: =IF(ISERROR((D79-$B79)/$B79), 0, (D79-$B79)/$B79) -> 0 | G83: =IF(ISERROR((G79-$B79)/$B79), 0, (G79-$B79)/$B79) -> 0 | H83: 0
A84: kWh | D84: 0 | G84: 0 | H84: 0
A85: kW | D85: 0 | G85: 0 | H85: 0
A87: Rate Class 9
A88: # of Customers
A89: kWh
A90: kW
A91: Variance Analysis
A92: =A88 -> # of Customers | D92: =IF(ISERROR((D88-$B88)/$B88), 0, (D88-$B88)/$B88) -> 0 | G92: =IF(ISERROR((G88-$B88)/$B88), 0, (G88-$B88)/$B88) -> 0 | H92: 0
A93: kWh | D93: 0 | G93: 0 | H93: 0
A94: kW | D94: 0 | G94: 0 | H94: 0
A96: Rate Class 10
A97: # of Customers
A98: kWh
A99: kW
A100: Variance Analysis
A101: =A97 -> # of Customers | D101: =IF(ISERROR((D97-$B97)/$B97), 0, (D97-$B97)/$B97) -> 0 | G101: =IF(ISERROR((G97-$B97)/$B97), 0, (G97-$B97)/$B97) -> 0 | H101: 0
A102: kWh | D102: 0 | G102: 0 | H102: 0
A103: kW | D103: 0 | G103: 0 | H103: 0
A106: Totals
A107: Customers | B107: =SUM(B16,B25,B34,B43,,B70,B79,B88,B97) -> 27338.55631 | C107: 27231.41667 | D107: 27447.63304 | E107: 27558.64108 | F107: 27671.57496 | G107: 27786.42953 | H107: 27903.19998
A108: Connections | B108: =SUM(B52,B61) -> 5479.97953 | C108: =SUM(C52,C61) -> 5374.583333 | D108: 5489.021334 | E108: 5498.12413 | F108: 5507.286658 | G108: 5516.507688 | H108: 5525.786014
A109: kWh | B109: =SUM(B17,B26,B35,B44,B53,B62,B71,B80,B89,B98) -> 712428488 | C109: 712079234 | D109: 704804228 | E109: 696862250 | F109: 688547472 | G109: 679960822 | H109: 671053252
A110: kW from applicable classes | B110: 1039048.868 | C110: 1039960.699 | D110: 1034965.767 | E110: 1030195.59 | F110: 1024791.54 | G110: 1018888.015 | H110: 1012397.918
A112: Totals - Variance
A113: Customers | C113: =IF(ISERROR((C107-$B107)/$B107), 0, (C107-$B107)/$B107) -> -0.003918994107 | D113: 0.0039898497 | E113: 0.008050343457 | F113: 0.01218128144 | G113: 0.01638247543 | H113: 0.02065374869
A114: Connections | C114: -0.01923295442 | D114: 0.001649970495 | E114: 0.003311070726 | F114: 0.004983071224 | G114: 0.006665747254 | H114: 0.008358878712
A115: kWh | C115: -0.0004902302559 | D115: -0.0107017899 | E115: -0.02184954457 | F115: -0.03352057982 | G115: -0.04557322812 | H115: -0.05807633566
A116: kW from applicable classes | C116: 0.0008775629796 | D116: -0.003929652605 | E116: -0.00852056023 | F116: -0.01372151829 | G116: -0.01940318056 | H116: -0.02564937093

Sheet App.2-JA_OM&A_Summary_Analys
K1: File Number: | L1: =EBNUMBER -> EB-2015-0083
K2: Exhibit:
K3: Tab:
K4: Schedule:
K5: Page:
K7: Date:
A9: Appendix 2-JA
A10: Summary of Recoverable OM&A Expenses
B13: ="Last Rebasing Year (" & RebaseYear & " Actuals)" -> Last Rebasing Year (2011 Actuals) | C13: 2012 Actuals | D13: =BridgeYear -2 & " Actuals" -> 2013 Actuals | E13: =BridgeYear -1 & " Actuals" -> 2014 Actuals | F13: =BridgeYear & " Bridge Year" -> 2015 Bridge Year | G13: =TestYear & " Test Year" -> 2016 Test Year
A14: Reporting Basis | B14: CGAAP | C14: CGAAP | D14: CGAAP | E14: CGAAP | F14: MIFRS | G14: MIFRS
A15: Operations | B15: 2605492.83 | C15: 2338944 | D15: 2904285.735 | E15: 2013677.168 | F15: 2006738.435 | G15: 2066940.6
A16: Maintenance | B16: ='[42]OEB income statement'!O54 -> 810263.37 | C16: 873655 | D16: 983793.856 | E16: 1037660.995 | F16: 1324804.95 | G16: 1364549.09
A17: SubTotal | B17: =SUM(B15:B16) -> 3415756.2 | C17: 3212599 | D17: 3888079.591 | E17: 3051338.163 | F17: 3331543.384 | G17: 3431489.69
A18: %Change (year over year) | C18: =IF(ISERROR((C17-B17)/B17), "", (C17-B17)/B17) -> -0.05947649308 | D18: =IF(ISERROR((D17-C17)/C17), "", (D17-C17)/C17) -> 0.2102598522 | E18: =IF(ISERROR((E17-D17)/D17), "", (E17-D17)/D17) -> -0.215206867 | F18: 0.09183027442 | G18: 0.03000000122
A19: %Change (Test Year vs Last Rebasing Year - Actual) | G19: =IF(ISERROR((G17-B17)/B17), "", (G17-B17)/B17) -> 0.004606151341
A20: Billing and Collecting | B20: ='[42]OEB income statement'!O70 -> 829560.89 | C20: 954711.83 | D20: 1013374.227 | E20: 840791.1102 | F20: 913498.2863 | G20: 938710.24
A21: Community Relations | B21: ='[42]OEB income statement'!O78 -> 204149.92 | C21: 201696 | D21: 120437.663 | E21: 79873.809 | F21: 100010.5238 | G21: 103010.84
A22: Administrative and General | B22: 1577877 | C22: 1783955 | D22: 1860228 | E22: 2362486 | F22: 2379487 | G22: 2519464
A23: Taxes and Other Income Tax | B23: 133047.15 | C23: 129780.66 | D23: 133225.53 | E23: 133670.75 | F23: 134111.8635 | G23: 138135
A24: SubTotal | B24: =SUM(B20:B23) -> 2744634.96 | C24: =SUM(C20:C23) -> 3070143.49 | D24: 3127265.42 | E24: 3416821.669 | F24: 3527107.674 | G24: 3699320.08
A25: %Change (year over year) | C25: =IF(ISERROR((C24-B24)/B24), "", (C24-B24)/B24) -> 0.118598114 | D25: =IF(ISERROR((D24-C24)/C24), "", (D24-C24)/C24) -> 0.01860562224 | E25: =IF(ISERROR((E24-D24)/D24), "", (E24-D24)/D24) -> 0.09259087743 | F25: 0.03227736625 | G25: 0.04882538961
A26: %Change (Test Year vs Last Rebasing Year - Actual) | G26: =IF(ISERROR((G24-B24)/B24), "", (G24-B24)/B24) -> 0.3478368285
A27: Total | B27: =SUM(B24,B17) -> 6160391.16 | C27: 6282742.49 | D27: 7015345.011 | E27: 6468159.833 | F27: 6858651.058 | G27: 7130809.77
A28: %Change (year over year) | C28: =IF(ISERROR((C27-B27)/B27), "", (C27-B27)/B27) -> 0.01986096772 | D28: =IF(ISERROR((D27-C27)/C27), "", (D27-C27)/C27) -> 0.1166055305 | E28: =IF(ISERROR((E27-D27)/D27), "", (E27-D27)/D27) -> -0.07799832759 | F28: 0.06037130118 | G28: 0.03968108447
B31: =B13 -> Last Rebasing Year (2011 Actuals) | C31: 2012 Actuals | D31: 2013 Actuals | E31: 2014 Actuals | F31: 2015 Bridge Year | G31: 2016 Test Year
A32: Operations | B32: =B15 -> 2605492.83 | C32: 2338944 | D32: 2904285.735 | E32: 2013677.168 | F32: 2006738.435 | G32: 2066940.6
A33: Maintenance | B33: 810263.37 | C33: 873655 | D33: 983793.856 | E33: 1037660.995 | F33: 1324804.95 | G33: 1364549.09
A34: Billing and Collecting | B34: =B20 -> 829560.89 | C34: 954711.83 | D34: 1013374.227 | E34: 840791.1102 | F34: 913498.2863 | G34: 938710.24
A35: Community Relations | B35: 204149.92 | C35: 201696 | D35: 120437.663 | E35: 79873.809 | F35: 100010.5238 | G35: 103010.84
A36: Administrative and General | B36: 1577877 | C36: 1783955 | D36: 1860228 | E36: 2362486 | F36: 2379487 | G36: 2519464
A37: Taxes | B37: =B23 -> 133047.15 | C37: 129780.66 | D37: 133225.53 | E37: 133670.75 | F37: 134111.8635 | G37: 138135
A38: Total | B38: =SUM(B32:B37) -> 6160391.16 | C38: 6282742.49 | D38: 7015345.011 | E38: 6468159.833 | F38: 6858651.058 | G38: 7130809.77
A39: %Change (year over year) | C39: =IF(ISERROR((C38-B38)/B38), "", (C38-B38)/B38) -> 0.01986096772 | D39: =IF(ISERROR((D38-C38)/C38), "", (D38-C38)/C38) -> 0.1166055305 | E39: =IF(ISERROR((E38-D38)/D38), "", (E38-D38)/D38) -> -0.07799832759 | F39: 0.06037130118 | G39: 0.03968108447
B42: =B13 -> Last Rebasing Year (2011 Actuals) | C42: 2012 Actuals | D42: Variance 2012 Actuals vs. 2011 Actuals | E42: =D13 -> 2013 Actuals | F42: ="Variance " & '[14]LDC Info'!E26 -2 & " Actuals vs. " & '[14]LDC Info'!E28 & " Actuals" -> Variance 2013 Actuals vs. 2011 Actuals | G42: =E13 -> 2014 Actuals | H42: ="Variance " & '[14]LDC Info'!E26 -1 & " Actuals vs. " & '[14]LDC Info'!E26-2 & " Actuals" -> Variance 2014 Actuals vs. 2013 Actuals | I42: =F13 -> 2015 Bridge Year | J42: ="Variance " & '[14]LDC Info'!E26 & " Bridge vs. " & '[14]LDC Info'!E26 -1 & " Actuals" -> Variance 2015 Bridge vs. 2014 Actuals | K42: =G13 -> 2016 Test Year | L42: ="Variance " & TestYear & " Test vs. " & BridgeYear & " Bridge" -> Variance 2016 Test vs. 2015 Bridge
A43: Operations | B43: =B15 -> 2605492.83 | C43: 2338944 | D43: =C43-B43 -> -266548.83 | E43: =D15 -> 2904285.735 | F43: =E43-C43 -> 565341.735 | G43: =E15 -> 2013677.168 | H43: =G43-E43 -> -890608.5665 | I43: =F15 -> 2006738.435 | J43: =I43-G43 -> -6938.733903 | K43: =G15 -> 2066940.6 | L43: =K43-I43 -> 60202.1654
A44: Maintenance | B44: 810263.37 | C44: 873655 | D44: 63391.63 | E44: =D16 -> 983793.856 | F44: =E44-C44 -> 110138.856 | G44: =E16 -> 1037660.995 | H44: =G44-E44 -> 53867.139 | I44: =F16 -> 1324804.95 | J44: =I44-G44 -> 287143.9548 | K44: =G16 -> 1364549.09 | L44: =K44-I44 -> 39744.1402
A45: Billing and Collecting | B45: =B20 -> 829560.89 | C45: =C20 -> 954711.83 | D45: 125150.94 | E45: =D20 -> 1013374.227 | F45: 58662.397 | G45: =E20 -> 840791.1102 | H45: -172583.1168 | I45: =F20 -> 913498.2863 | J45: 72707.17615 | K45: =G20 -> 938710.24 | L45: 25211.95365
A46: Community Relations | B46: =B21 -> 204149.92 | C46: =C21 -> 201696 | D46: -2453.92 | E46: =D21 -> 120437.663 | F46: -81258.337 | G46: =E21 -> 79873.809 | H46: -40563.854 | I46: =F21 -> 100010.5238 | J46: 20136.7148 | K46: =G21 -> 103010.84 | L46: 3000.3162
A47: Administrative and General | B47: =B22 -> 1577877 | C47: 1783955 | D47: 206078 | E47: =D22 -> 1860228 | F47: 76273 | G47: =E22 -> 2362486 | H47: 502258 | I47: =F22 -> 2379487 | J47: 17001 | K47: =G22 -> 2519464 | L47: 139977
A48: Taxes | B48: =B23 -> 133047.15 | C48: 129780.66 | D48: -3266.49 | E48: =D23 -> 133225.53 | F48: 3444.87 | G48: 133670.75 | H48: 445.22 | I48: =F23 -> 134111.8635 | J48: 441.113475 | K48: =G23 -> 138135 | L48: 4023.136525
A49: Total OM&A Expenses | B49: =SUM(B43:B48) -> 6160391.16 | C49: 6282742.49 | D49: 122351.33 | E49: 7015345.011 | F49: 732602.521 | G49: 6468159.833 | H49: -547185.1783 | I49: 6858651.058 | J49: 390491.2253 | K49: 7130809.77 | L49: 272158.712
A50: Adjustments for Total non-recoverable items (from Appendices 2-JA and 2-JB)
A51: Total Recoverable OM&A Expenses | B51: =B49-B50 -> 6160391.16 | C51: 6282742.49 | D51: 122351.33 | E51: 7015345.011 | F51: 732602.521 | G51: 6468159.833 | H51: -547185.1783 | I51: 6858651.058 | J51: 390491.2253 | K51: 7130809.77 | L51: 272158.712
A52: Variance from previous year | E52: =E51-B51 -> 854953.851 | G52: =G51-E51 -> -547185.1783 | I52: =I51-G51 -> 390491.2253 | K52: =K51-I51 -> 272158.712
A53: Percent change (year over year) | E53: =IF(ISERROR(E52/C51), "", E52/C51) -> 0.1360797219 | G53: =IF(ISERROR(G52/E51), "", G52/E51) -> -0.07799832759 | I53: =IF(ISERROR(I52/G51), "", I52/G51) -> 0.06037130118 | K53: =IF(ISERROR(K52/I51), "", K52/I51) -> 0.03968108447
A54: Percent Change: Test year vs. Most Current Actual | G54: =IF(ISERROR((K51-G51)/G51), "", (K51-G51)/G51) -> 0.1024479843
A55: Simple average of % variance for all years | G55: =IF(ISERROR((K49-B49)/B49), "", (K49-B49)/B49) -> 0.1575254858 | L55: =IF(ISERROR(AVERAGE(E53,G53,I53,K53)), "", AVERAGE(E53,G53,I53,K53)) -> 0.039533445
A56: Compound Annual Growth Rate for all years | G56: =IF(ISERROR((K52-B52)/B52), "", (K52-B52)/B52) ->  | L56: =IF((K51-B51)=0, "", (K51/B51)^(1/5)-1) -> 0.02968909271
A57: ="Compound Growth Rate (" & E13 & " vs. " & '[14]LDC Info'!E28 & " Actuals)" -> Compound Growth Rate (2014 Actuals vs. 2011 Actuals) | G57: =IF(ISERROR((G51/B51)^(1/(3)) - 1), "", (G51/B51)^(1/(3)) - 1) -> 0.01638321592
A59: Note:
A61: 1 "BA" = Board-Approved
A62: 2 If it has been more than three years since the applicant last filed a cost of service application, additional years of historical actuals should be incorporated into the table, as necessary, to go back to the last cost of service application. If the applicant last filed a cost of service application less than three years ago, a minimum of three years of actual information is required.
A64: 3 Recoverable OM&A that is included on these tables should be identical to the recoverable OM&A that is shown for the corresponding periods on Appendix 2-JB.

Sheet App. 2JB Rec OMA Cost Driver
B1: Appendix 2-JB - Recoverable OM&A Cost Driver Table Summary 2012 - 2016
B3: Total OM&A | C3: 2012 Actual | D3: 2013 Actual | E3: 2014 Actual | F3: 2015 Bridge Year | G3: 2016 Test Year
B4: Reporting Basis | C4: CGAAP | D4: GCAAP | E4: MIFRS | F4: MIFRS | G4: MIFRS
B5: Opening Balance -Beginning of Year | C5: 6160391.16 | D5: =C31 -> 6282742.49 | E5: =D31 -> 7015345.011 | F5: 6468159.833 | G5: =F29 -> 6858651.063
A7: 5615 | B7: Post Employment Benefits | C7: 165000
A8: 5655 | B8: 2011 COS Expenses | C8: -172000
A9: 5630 | B9: Change in Services provided by the City of Kingston | C9: 77000 | D9: -82000
A10: 5065 | B10: Incremental Metering Expenses-Smart Metering | C10: 73000
A11: 5065 | B11: Meter Testing Programs | C11: 120000
A12: 5114 | B12: Substation Maintenance | C12: 71000
A13: 5020 | B13: Increase in Capital Labour | C13: -165000 | D13: 165000
A14: 5005 | B14: Consulting work Kinetric's Study | C14: 95000 | D14: -80000
A15: 5135 | B15: Increase in Tree Trimming | D15: 82000 | F15: 95000
A16: 5005 | B16: Recoverable work | C16: -90000 | D16: 115000
A17: 5070 | B17: Ice Storm | D17: 175000 | E17: -175000
A18: 5005 | B18: Document Standard Operating Procedures in Operations | D18: 110000
A19: 5114 | B19: Condition Assessment-Substation 1 | E19: 147000
A20: 5025, 5125 | B20: Bell "Fibre at the Home" Labour | E20: -300000 | F20: 300000
B21: Recognition of Smart Meter Costs | D21: 185000 | E21: -185000
A22: 5655 | B22: 2016 COS Rate Application | G22: 70000
A23: 5615 | B23: Engineering Time-allocated to Capital | F23: -71000
A24: 5670 | B24: Rent | F24: 71000
A25: 5335 | B25: Bad Debt Expense | F25: 53000
B27: Miscellanous | C27: -51648.7 | D27: 62602.52 | E27: -34185.18 | F27: -57508.77 | G27: 202159
B29: Closing Balance- End of Year | C29: =SUM(C5:C27) -> 6282742.46 | D29: =SUM(D5:D27) -> 7015345.01 | E29: =SUM(E5:E27) -> 6468159.831 | F29: =SUM(F5:F27) -> 6858651.063 | G29: =SUM(G5:G27) -> 7130810.063
C31: 6282742.49 | D31: 7015345.011 | E31: 6468159.833 | F31: 6858651.058
C33: =C31-C29 -> 0.03000000026 | D33: =D31-D29 -> 0.001000000164 | E33: 0.001699998975 | F33: -0.004680419341

Sheet App. 2JC OMA Programs Table
A1: Appendix 2-JC
A2: OM&A Programs Table
A5: Programs | B5: 2011 Board Approved | C5: 2011 Actuals | D5: 2012 Actuals | E5: 2013 Actuals | F5: 2014 Actuals | G5: Bridge Year 2015 | H5: 2016 Test Year | I5: Variance (2014 Actuals vs. Last Rebasing Year ( Board-Approved) | J5: Variance (2016 Test Year vs. Last Rebasing Year ( Board-Approved)
A6: Reporting Basis | B6: CGAAP | C6: CGAAP | D6: CGAAP | E6: CGAAP | F6: CGAAP | G6: MIFRS | H6: MIFRS
A7: Management | B7: 866228.4956 | C7: 626798.56 | D7: 825705.18 | E7: 713216.02 | F7: 627212.756 | G7: 636995.567 | H7: 656105.434 | I7: -239015.7396 | J7: -210123.0616
A8: Utility Administration | B8: 939685.4819 | C8: 741907.76 | D8: 785964.22 | E8: 987403.12 | F8: 1060590.02 | G8: 1137039.319 | H8: 1171150.498 | I8: 120904.5381 | J8: 231465.0162
I9: 0 | J9: 0
A10: Billing and Collections | B10: 604792.9771 | C10: 553591.73 | D10: 704037.57 | E10: 647124.4 | F10: 620085.58 | G10: 763577.8377 | H10: 784292.1729 | I10: 15292.60286 | J10: 179499.1957
A11: Customer Service and Information | B11: 201028.6208 | C11: 181337.63 | D11: 194364.75 | E11: 111854.573 | F11: 68322.009 | G11: 90692.6818 | H11: 93413.46225 | I11: -132706.6118 | J11: -107615.1585
A12: Dispatch | B12: 228573.987 | C12: 216068.7 | D12: 241066.89 | E12: 273539.45 | F12: 270836.49 | G12: 252619.0068 | H12: 260197.577 | I12: 42262.50298 | J12: 31623.59001
A13: Engineering | B13: 1064654.062 | C13: 778063.59 | D13: 691969.29 | E13: 905164.24 | F13: 808771.61 | G13: 632287.241 | H13: 651255.8582 | I13: -255882.4522 | J13: -413398.204
A14: Supervision | B14: 76625.43009 | C14: 1269.14 | D14: 12154.89 | E14: 3860.2 | F14: 40433.925 | G14: 84219.25 | H14: 86745.8275 | I14: -36191.50509 | J14: 10120.39741
A15: Meter Reading | B15: 54349.90752 | C15: 88020.5 | D15: 130875.04 | E15: 189284.59 | F15: 180413.08 | G15: 192018.7531 | H15: 197779.3157 | I15: 126063.1725 | J15: 143429.4082
A16: Metering | B16: 278601.3528 | C16: 386030.49 | D16: 491942.08 | E16: 581733.05 | F16: 414192.48 | G16: 420635.0743 | H16: 433254.1265 | I16: 135591.1272 | J16: 154652.7738
A17: Operations Locates | B17: 86949.34741 | C17: 64385.13 | D17: 92570.49 | E17: 96262.338 | F17: 100012.96 | G17: 156459.2305 | H17: 161153.0074 | I17: 13063.61259 | J17: 74203.66
A18: Operations -SCADA | B18: 140939.8033 | C18: 261020.69 | D18: 251758.07 | E18: 282550.9 | F18: 272082.46 | G18: 253887.7734 | H18: 261504.4066 | I18: 131142.6567 | J18: 120564.6033
A19: Overhead and Underground Services | B19: 84748.94741 | C19: 70531.53 | D19: 79108.91 | E19: 79310.8 | F19: 113103.64 | G19: 103964.4527 | H19: 107083.3863 | I19: 28354.69259 | J19: 22334.43884
A20: Overhead System | B20: 930203.2352 | C20: 874335.42 | D20: 682961.09 | E20: 697801.523 | F20: 450544.29 | G20: 590811.0692 | H20: 608535.4013 | I20: -479658.9452 | J20: -321667.8339
A21: Rate Application | B21: 0 | C21: 189785.23 | D21: 17513.65 | E21: 2420 | F21: 39275 | G21: 0 | H21: 70370 | I21: 39275 | J21: 70370
A22: Regulatory Requirements | B22: 218354 | C22: 113037.57 | D22: 151842.52 | E22: 155843.79 | F22: 156862.74 | G22: 181752.9337 | H22: 184938 | I22: -61491.26 | J22: -33416
A23: Storms | B23: 0 | C23: 0 | D23: 0 | E23: 179628.62 | F23: 6932.42 | G23: 0 | H23: 0 | I23: 6932.42 | J23: 0
A24: Substation | B24: 552295.298 | C24: 293389.75 | D24: 414671.86 | E24: 304354.78 | F24: 474229.92 | G24: 472592.0077 | H24: 486769.7679 | I24: -78065.37801 | J24: -65525.53008
A25: System Support | B25: 147250.6595 | C25: 187948.66 | D25: 119799.22 | E25: 188226.277 | F25: 212948.531 | G25: 144177.9701 | H25: 148503.3092 | I25: 65697.87145 | J25: 1252.64968
A26: Tree Trimming | B26: 62162.09128 | C26: 176311.13 | D26: 160638.63 | E26: 242587.37 | F26: 192300.06 | G26: 286938.3966 | H26: 295546.5485 | I26: 130137.9687 | J26: 233384.4572
A27: Underground System | B27: 359518.2521 | C27: 278553.05 | D27: 202787.33 | E27: 267348.48 | F27: 276442.37 | G27: 317369.1657 | H27: 326890.2407 | I27: -83075.88212 | J27: -32628.01145
A28: Conservation | B28: 112307.8196 | C28: 22812.29 | D28: 7331.46 | E28: 8353.09 | F28: 11551.8 | G28: 7658.4 | H28: 7888.152 | I28: -100756.0196 | J28: -104419.6676
A29: Miscellaneous | B29: 48233.84122 | C29: 39592.44 | D29: 8079.65 | E29: 80348.98 | F29: 55015.92 | G29: 115955.602 | H29: 119433.2701 | I29: 6782.078777 | J29: 71199.42884
A30: LEAP Funding | C30: 15600 | D30: 15600 | E30: 17128 | F30: 16000 | G30: 17000 | H30: 18000
I31: 0 | J31: 0
A32: OM&A "Envelope" Reduction | B32: -700000 | I32: 700000 | J32: 700000
I33: 0
A35: Total OM&A | B35: 6357503.61 | C35: 6160390.99 | D35: 6282742.79 | E35: 7015344.591 | F35: 6468160.061 | G35: 6858651.732 | H35: 7130809.762 | I35: 110656.4509 | J35: 755306.152
A39: Notes:
C40: .
A41: 1 Please provide a breakdown of the major components of each OM&A Program undertaken in each year. Please ensure that all Programs below the materiality threshold are included in the miscellaneous line. Add more Programs as required.
A42: 2 The applicant should group projects appropriately and avoid presentations that result in classification of significant components of the OM&A budget in the miscellaneous category

Sheet App 2K Employee Costs
A1: Appendix 2-K
A2: Employee Costs
B3: 2011 Actual | C3: 2012 Actual | D3: 2013 Actual | E3: 2014 Actual | F3: 2015 Bridge Year | G3: 2016 Test Year
A4: Number of Employees (FTEs including Part-Time)
A5: Management | B5: 0 | C5: 4.083560613 | D5: 4.000068252 | E5: 3.612105624 | F5: 3.619000093 | G5: 3.619000093
A6: Non-Union | B6: 9.965271398 | C6: 8.852453867 | D6: 7.892924776 | E6: 8.2056511 | F6: 7.325189966 | G6: 7.325189966
A7: Union | B7: 34.68005896 | C7: 35.51412447 | D7: 37.21713388 | E7: 35.50612073 | F7: 39.39692704 | G7: 39.39692704
A8: Total | B8: 44.64533036 | C8: 48.45013895 | D8: 49.11012691 | E8: 47.32387746 | F8: 50.3411171 | G8: 50.3411171
A9: Total Salary and Wages
A10: Management | B10: 0 | C10: 392146.8953 | D10: 422593.4031 | E10: 457539.0128 | F10: 423830.2835 | G10: 436545.192
A11: Non-Union | B11: 868138.9413 | C11: 683058.0497 | D11: 694189.6491 | E11: 598703.9004 | F11: 592759.2963 | G11: 610542.0752
A12: Union | B12: 2075881.575 | C12: 2282105.08 | D12: 2535852.867 | E12: 2261019.23 | F12: 2743268.353 | G12: 2798133.72
A13: Total | B13: 2944020.516 | C13: 3357310.025 | D13: 3652635.919 | E13: 3317262.143 | F13: 3759857.933 | G13: 3845220.987
A14: Current Benefits
A15: Management | B15: 0 | C15: 88953.31964 | D15: 90575.35929 | E15: 115010.2669 | F15: 85108.9101 | G15: 90158.3874
A16: Non-Union | B16: 207522.4329 | C16: 177315.1305 | D16: 181314.6724 | E16: 159410.7325 | F16: 140735.4331 | G16: 149085.2061
A17: Union | B17: 630243.7982 | C17: 490799.4935 | D17: 473016.5186 | E17: 504300.331 | F17: 666503.6919 | G17: 706047.0527
A18: Total | B18: 837766.2311 | C18: 757067.9436 | D18: 744906.5503 | E18: 778721.3304 | F18: 892348.0351 | G18: 945290.6462
A19: Accrued Pension and Post-Retirement Benefits
A20: Management | B20: 0 | C20: 5863.883863 | D20: 8989.856779 | E20: 5927.803959 | F20: 5927.803959 | G20: 6279.498077
A21: Non-Union | B21: -33778.3195 | C21: 10213.96095 | D21: 14767.54128 | E21: 7756.714185 | F21: 7756.714185 | G21: 8216.41561
A22: Union | B22: -80770.2405 | C22: 34124.96519 | D22: 53945.36194 | E22: 29293.41186 | F22: 29293.41186 | G22: 31031.21421
A23: Total | B23: -114548.56 | C23: 50202.81 | D23: 77702.76 | E23: 42977.93 | F23: 42977.93 | G23: 45527.1279
A24: Total Benefits (Current + Accrued)
A25: Management | B25: 0 | C25: 94817.2035 | D25: 99565.21607 | E25: 120938.0708 | F25: 91036.71406 | G25: 96437.88548
A26: Non-Union | B26: 173744.1134 | C26: 187529.0915 | D26: 196082.2137 | E26: 167167.4467 | F26: 148492.1473 | G26: 157301.6217
A27: Union | B27: 549473.5577 | C27: 524924.4587 | D27: 526961.8806 | E27: 533593.7429 | F27: 695797.1038 | G27: 737078.2669
A28: Total | B28: 723217.6711 | C28: 807270.7536 | D28: 822609.3103 | E28: 821699.2604 | F28: 935325.9651 | G28: 990817.7741
A29: Total Compensation (Salary, Wages, & Benefits)
A30: Management | B30: 0 | C30: 486964.0988 | D30: 522158.6192 | E30: 578477.0836 | F30: 514866.9975 | G30: 532983.0775
A31: Non-Union | B31: 1041883.055 | C31: 870587.1412 | D31: 890271.8628 | E31: 765871.3471 | F31: 741251.4436 | G31: 767843.6969
A32: Union | B32: 2625355.132 | C32: 2807029.539 | D32: 3062814.747 | E32: 2794612.973 | F32: 3439065.457 | G32: 3535211.987
A33: Total | B33: 3667238.187 | C33: 4164580.779 | D33: 4475245.229 | E33: 4138961.404 | F33: 4695183.898 | G33: 4836038.761
A34: Compensation - Average Yearly Base Wages
A35: Management | C35: 96030.62926 | D35: 105646.5481 | E35: 126668.2264 | F35: 117112.5373 | G35: 120625.9134
A36: Non-Union | B36: 87116.43734 | C36: 77160.30606 | D36: 87950.87612 | E36: 72962.38812 | F36: 80920.67224 | G36: 83348.29241
A37: Union | B37: 59858.07513 | C37: 64259.08322 | D37: 68136.70485 | E37: 63679.7032 | F37: 69631.53117 | G37: 71024.16179
A38: Total | B38: 146974.5125 | C38: 237450.0185 | D38: 261734.1291 | E38: 263310.3177 | F38: 267664.7407 | G38: 274998.3676
A39: Compensation - Average Yearly Overtime
A40: Union | B40: 4632.054985 | C40: 5207.971553 | D40: 7967.047944 | E40: 4671.223062 | F40: 5949 | G40: 6127.47
A41: Total | B41: 4632.054985 | C41: 5207.971553 | D41: 7967.047944 | E41: 4671.223062 | F41: 5949 | G41: 6127.47
A42: Compensation - Average Yearly Incentive Pay
A43: Management | B43: 0 | C43: 292.1438822 | D43: 942.4406223 | E43: 1355.588191 | F43: 1355.588191 | G43: 1355.588191
A44: Non-Union | B44: 963.0838783 | C44: 209.1198711 | D44: 662.0425926 | E44: 71.44280082 | F44: 71.44280082 | G44: 71.44280082
A45: Total | B45: 963.0838783 | C45: 501.2637534 | D45: 1604.483215 | E45: 1427.030992 | F45: 1427.030992 | G45: 1427.030992
A46: Compensation - Average Yearly Benefits
A47: Management | C47: 21783.27398 | D47: 22643.45346 | E47: 31840.22806 | F47: 23517.24452 | G47: 24912.51315
A48: Non-Union | B48: 20824.56409 | C48: 20030.05417 | D48: 22971.79786 | E48: 19426.94499 | F48: 19212.53016 | G48: 20352.40135
A49: Union | B49: 18173.08901 | C49: 13819.83931 | D49: 12709.6439 | E49: 14203.19428 | F49: 16917.65683 | G49: 17921.37372
A50: Total | B50: 38997.6531 | C50: 55633.16746 | D50: 58324.89521 | E50: 65470.36734 | F50: 59647.43151 | G50: 63186.28821
A52: Total Compensation | B52: 3667238.187 | C52: 4164580.779 | D52: 4475245.229 | E52: 4138961.404 | F52: 4695183.898 | G52: 4836038.761
A53: Total Compensation Charged to OM&A | B53: 2916917.637 | C53: 2887986.149 | D53: 3417835.289 | E53: 3047623.625 | F53: 2824517.872 | G53: 2909253.408
A54: Total Compensation Capitalized | B54: 750320.55 | C54: 1276594.63 | D54: 1057409.94 | E54: 1091337.779 | F54: 1870666.026 | G54: 1926785.353

Sheet App.2-L_OM&A_per_Cust_FTEE
A2: Appendix 2-L
A3: Recoverable OM&A Cost per Customer and per FTE
C5: ="Last Rebasing Year - "&RebaseYear&"- Actual" -> Last Rebasing Year - 2011- Actual | D5: 2012 Actuals | E5: =BridgeYear -2 & " Actuals" -> 2013 Actuals | F5: =BridgeYear -1 & " Actuals" -> 2014 Actuals | G5: =BridgeYear & " Bridge Year" -> 2015 Bridge Year | H5: =TestYear & " Test Year" -> 2016 Test Year
A6: Reporting Basis
A7: Number of Customers | C7: 26961 | D7: 26906 | E7: 27154 | F7: 27380 | G7: 27484 | H7: 27589
A8: Total Recoverable OM&A from Appendix 2-JB | C8: 6160390.99 | D8: 6282742.79 | E8: 7015344.591 | F8: 6468160.061 | G8: 6858651.732 | H8: 7130809.762
A9: OM&A cost per customer | C9: =IF(C7=0,"",C8/C7) -> 228.4926742 | D9: 233.5071281 | E9: 258.3540028 | F9: 236.2366713 | G9: 249.5507107 | H9: 258.4656842
A10: Number of FTEs | C10: 44.64533036 | D10: 48.45013895 | E10: 49.11012691 | F10: 47.32387746 | G10: 50.3411171 | H10: 50.3411171
A11: Customers/FTEs | C11: =IF(C10=0,"",C7/C10) -> 603.8929443 | D11: 555.3338046 | E11: 552.9205829 | F11: 578.5662856 | G11: 545.9553062 | H11: 548.0410764
A12: OM&A Cost per FTE | C12: =IF(C10=0,"",C8/C10) -> 137985.1138 | D12: 129674.4019 | E12: 142849.2458 | F12: 136678.5734 | G12: 136243.5347 | H12: 141649.8118
A14: Notes:
A16: 1 | B16: If it has been more than three years since the applicant last filed a cost of service application, additional years of historical actuals should be incorporated into the table, as necessary, to go back to the last cost of service application. If the applicant last filed a cost of service application less than three years ago, a minimum of three years of actual information is required.
A20: 2 | B20: The method of calculating the number of customers must be identified.
A21: 3 | B21: The method of calculating the number of FTEs must be identified. See also Appendix 2-K
A22: 4 | B22: The number of customers and the number of FTEs should correspond to mid-year or average of January 1 and December 31 figures.

Sheet App.2-M_Regulatory_Costs
A2: Appendix 2-M
A3: Regulatory Cost Schedule
A6: Regulatory Cost Category | C6: USoA Account | D6: USoA Account Balance | E6: Ongoing or One-time Cost? 2 | F6: Year 2011 Actuals | G6: Year 2012 Actuals | H6: Year 2013 Actuals | I6: Most Current Actual 2014 | J6: 2015 Bridge Year | K6: 2016 Test Year | L6: 2017 Test Year | M6: 2018 Test Year | N6: 2019 Test Year | O6: 2020 Test Year
A8: 1 | B8: OEB Annual Assessment | C8: 5655 | E8: On-Going | F8: 68874 | G8: 63995 | H8: 62723 | I8: 65426 | J8: 66734.52 | K8: 68069.2104 | L8: 69430.59461 | M8: 70819.2065 | N8: 72235.59063 | O8: 73680.30244
A9: 2 | B9: OEB Section 30 Costs (Applicant-originated) | C9: 5655 | E9: One-Time | F9: 16437.53 | K9: 18148.36133
A10: 3 | B10: OEB Section 30 Costs (OEB-initiated) | C10: 5655 | E10: On-Going | F10: 2966.29 | G10: 4252.05 | H10: 2935.17 | I10: 2622 | J10: 3335.4 | K10: 3402.108 | L10: 3470.15016 | M10: 3539.553163 | N10: 3610.344226 | O10: 3682.551111
A11: 4 | B11: Expert Witness costs for regulatory matters | C11: 5655
A12: 5 | B12: Legal costs for regulatory matters | C12: 5655 | E12: One-Time | F12: 109075 | K12: 120427.6136
A13: 6 | B13: Consultants' costs for regulatory matters | C13: 5655 | E13: One-Time | F13: 92466.75 | I13: 16675 | K13: 102090.7636
A14: 7 | B14: Operating expenses associated with staff resources allocated to regulatory matters | C14: 5655 | E14: On-Going | G14: 1852.78 | H14: 46573.36 | I14: 48693 | J14: 49666.86 | K14: 50660.1972 | L14: 51673.40114 | M14: 52706.86917 | N14: 53761.00655 | O14: 54836.22668
A15: 8 | B15: Operating expenses associated with other resources allocated to regulatory matters 1 | C15: 5655 | E15: On-Going | F15: 5598.6 | G15: 6622 | H15: 3075 | I15: 21600 | J15: 17016 | K15: 17356.32 | L15: 17703.4464 | M15: 18057.51533 | N15: 18418.66563 | O15: 18787.03895
A16: 9 | B16: Other regulatory agency fees or assessments | C16: 5655
A17: 10 | B17: Any other costs for regulatory matters (please define) | C17: 5655 | E17: One-Time | F17: 15920 | G17: 40937.76 | K17: 17576.96639
A18: 11 | B18: Any other costs for regulatory matters (please define) | C18: 5655 | E18: On-Going | F18: 29160.09 | G18: 29248.91 | H18: 29160.09 | I18: 29160 | J18: 30000 | K18: 30000 | L18: 30000 | M18: 30000 | N18: 30000 | O18: 30000
A19: 12 | B19: Intervenor costs | C19: 5655 | E19: One-Time | F19: 84782.15 | G19: 10891.65 | H19: 2195.73 | I19: 0 | K19: 93606.34427
A20: 13 | B20: Sub-total - Ongoing Costs 3 | D20: =SUMIF($E8:$E19,$E4,D8:D19) -> 0 | F20: 106598.98 | G20: 105970.74 | H20: 144466.62 | I20: 167501 | J20: 166752.78 | K20: 169487.8356 | L20: 172277.5923 | M20: 175123.1442 | N20: 178025.607 | O20: 180986.1192
A21: 14 | B21: Sub-total - One-time Costs 4 | D21: =SUMIF($E8:$E19,$E5,D8:D19) -> 0 | F21: 318681.43 | G21: 51829.41 | H21: 2195.73 | I21: 16675 | J21: 0 | K21: 351850.0492 | L21: 0 | M21: 0 | N21: 0 | O21: 0
A23: 15 | B23: Total | D23: =D20+D21 -> 0 | F23: 425280.41 | G23: 157800.15 | H23: 146662.35 | I23: 184176 | J23: 166752.78 | K23: 521337.8848 | L23: 172277.5923 | M23: 175123.1442 | N23: 178025.607 | O23: 180986.1192
B24: Total OnGoing Costs | F24: 106598.98 | G24: 105970.74 | H24: 144466.62 | I24: 167501 | J24: 166752.78 | K24: 169487.8356 | L24: 172277.5923 | M24: 175123.1442 | N24: 178025.607 | O24: 180986.1192
B25: Total One-Time Costs-Amortized 2016-2020 | F25: 318681.43 | G25: 51829.41 | H25: 2195.73 | I25: 16675 | J25: 0 | K25: 70370.00984 | L25: 70370.00984 | M25: 70370.00984 | N25: 70370.00984 | O25: 70370.00984
B26: Total Regulatory Costs included in OM&A | F26: 425280.41 | G26: 157800.15 | H26: 146662.35 | I26: 184176 | J26: 166752.78 | K26: 239857.8454 | L26: 242647.6022 | M26: 245493.154 | N26: 248395.6169 | O26: 251356.129
A28: Please fill out the following table for all one-time costs related to this cost of service application to be amortized over the test year plus the IRM period.
C30: 2011 Actuals | D30: =I6 -> Most Current Actual 2014 | E30: =K6 -> 2016 Test Year
A31: 2 | B31: OEB Section 30 Costs (Applicant-originated) | C31: 16437.53 | E31: 18148.36133
A32: 5 | B32: Legal costs | C32: 109075 | D32: 0 | E32: 120427.6136
A33: 6 | B33: Consultants' costs | C33: 92466.75 | D33: 16675 | E33: 102090.7636
A34: 10 | B34: Any other costs for regulatory matters (please define) | C34: 15920 | D34: 0 | E34: 17576.96639
A35: 12 | B35: Intervenor costs | C35: 84782.15 | D35: 0 | E35: 93606.34427
A38: 1 | B38: Please identify the resources involved.
A39: 2 | B39: Where a category's costs include both one-time and ongoing costs, the applicant should prove a separate breakdown between one-time and ongoing costs.
A40: 3 | B40: Sum of all ongoing costs identified in rows 1 to 11 inclusive.
A41: 4 | B41: Sum of all one-time costs identified in rows 1 to 11 inclusive.

Sheet App 2N Shared Services
A1: Appendix 2-N
A2: Shared Services and Corporate Cost Allocation
B4: Year: | C4: 2011
A6: Shared Services
A8: Name of Company | C8: Service Offered | D8: Pricing Methodology | E8: Price for the Service | F8: Cost for the Service
A9: From | B9: To
E10: $ | F10: $
A11: City of Kingston | B11: Utilities Kingston | C11: Information Services | D11: Cost Recovery | E11: 1116703 | F11: 1116703
A12: City of Kingston | B12: Utilities Kingston | C12: Client Services | D12: Cost Recovery | E12: 696250 | F12: 696250
A13: City of Kingston | B13: Utilities Kingston | C13: Human Resources | D13: Cost Recovery | E13: 181867 | F13: 181867
A14: City of Kingston | B14: Utilities Kingston | C14: Communications | D14: Cost Recovery | E14: 97500 | F14: 97500
A15: City of Kingston | B15: Utilities Kingston | C15: Financial Services | D15: Cost Recovery | E15: 373300 | F15: 373300
A16: City of Kingston | B16: Utilities Kingston | C16: Legal Services | D16: Cost Recovery | E16: 79000 | F16: 79000
A17: City of Kingston | B17: Utilities Kingston | C17: CAO Office | D17: Cost Recovery | E17: 21000 | F17: 21000
A18: City of Kingston | B18: Utilities Kingston | C18: Clerk's Department | D18: Cost Recovery | E18: 15735 | F18: 15735
A19: City of Kingston | B19: Utilities Kingston | C19: Social Services | D19: Cost Recovery | E19: 32500 | F19: 32500
B21: Year: | C21: 2011
A23: Corporate Cost Allocation
A25: Name of Company | C25: Service Offered | D25: Pricing Methodology | E25: % of Corporate Costs Allocated | F25: Amount Allocated
A26: From | B26: To
E27: % | F27: $
A28: Utilities Kingston | B28: Kingston Hydro | C28: Information System Services | D28: Cost Recovery | E28: 0.1805583042 | F28: 201630
A29: Utilities Kingston | B29: Kingston Hydro | C29: Client Services | D29: Cost Recovery | E29: 0.2196710952 | F29: 152946
A30: Utilities Kingston | B30: Kingston Hydro | C30: Human Resources | D30: Cost Recovery | E30: 0.2197210049 | F30: 39960
A31: Utilities Kingston | B31: Kingston Hydro | C31: Communications | D31: Cost Recovery | E31: 0.1667897436 | F31: 16262
A32: Utilities Kingston | B32: Kingston Hydro | C32: Financial Services | D32: Cost Recovery | E32: 0.09678274846 | F32: 36129
A33: Utilities Kingston | B33: Kingston Hydro | C33: Legal Services | D33: Cost Recovery | E33: 0.2238101266 | F33: 17681
B34: Year: | C34: 2012
A36: Shared Services
A38: Name of Company | C38: Service Offered | D38: Pricing Methodology | E38: Price for the Service | F38: Cost for the Service
A39: From | B39: To
E40: $ | F40: $
A41: City of Kingston | B41: Utilities Kingston | C41: Information Services | D41: Cost Recovery | E41: 1139037 | F41: 1139037
A42: City of Kingston | B42: Utilities Kingston | C42: Client Services | D42: Cost Recovery | E42: 710175 | F42: 710175
A43: City of Kingston | B43: Utilities Kingston | C43: Human Resources | D43: Cost Recovery | E43: 185504 | F43: 185504
A44: City of Kingston | B44: Utilities Kingston | C44: Communications | D44: Cost Recovery | E44: 99450 | F44: 99450
A45: City of Kingston | B45: Utilities Kingston | C45: Financial Services | D45: Cost Recovery | E45: 380766 | F45: 380766
A46: City of Kingston | B46: Utilities Kingston | C46: Legal Services | D46: Cost Recovery | E46: 80580 | F46: 80580
A47: City of Kingston | B47: Utilities Kingston | C47: CAO Office | D47: Cost Recovery | E47: 21420 | F47: 21420
A48: City of Kingston | B48: Utilities Kingston | C48: Clerk's Department | D48: Cost Recovery | E48: 16050 | F48: 16050
A49: City of Kingston | B49: Utilities Kingston | C49: Social Services | D49: Cost Recovery | E49: 33150 | F49: 33150
B51: Year: | C51: 2012
A53: Corporate Cost Allocation
A55: Name of Company | C55: Service Offered | D55: Pricing Methodology | E55: % of Corporate Costs Allocated | F55: Amount Allocated
A56: From | B56: To
E57: % | F57: $
A58: Utilities Kingston | B58: Kingston Hydro | C58: Information System Services | D58: Cost Recovery | E58: 0.2499997805 | F58: 284759
A59: Utilities Kingston | B59: Kingston Hydro | C59: Client Services | D59: Cost Recovery | E59: 0.229999648 | F59: 163340
A60: Utilities Kingston | B60: Kingston Hydro | C60: Human Resources | D60: Cost Recovery | E60: 0.263002415 | F60: 48788
A61: Utilities Kingston | B61: Kingston Hydro | C61: Communications | D61: Cost Recovery | E61: 0.1667873303 | F61: 16587
A62: Utilities Kingston | B62: Kingston Hydro | C62: Financial Services | D62: Cost Recovery | E62: 0.1770641286 | F62: 67420
A63: Utilities Kingston | B63: Kingston Hydro | C63: Legal Services | D63: Cost Recovery | E63: 0.229995036 | F63: 18533
B64: Year: | C64: 2013
A66: Shared Services
A68: Name of Company | C68: Service Offered | D68: Pricing Methodology | E68: Price for the Service | F68: Cost for the Service
A69: From | B69: To
E70: $ | F70: $
A71: City of Kingston | B71: Utilities Kingston | C71: Information Services | D71: Cost Recovery | E71: 1210778 | F71: 1210778
A72: City of Kingston | B72: Utilities Kingston | C72: Client Services | D72: Cost Recovery | E72: 724378 | F72: 724378
A73: City of Kingston | B73: Utilities Kingston | C73: Human Resources | D73: Cost Recovery | E73: 189214 | F73: 189214
A74: City of Kingston | B74: Utilities Kingston | C74: Communications | D74: Cost Recovery | E74: 101439 | F74: 101439
A75: City of Kingston | B75: Utilities Kingston | C75: Financial Services | D75: Cost Recovery | E75: 388381 | F75: 388381
A76: City of Kingston | B76: Utilities Kingston | C76: Legal Services | D76: Cost Recovery | E76: 82192 | F76: 82192
A77: City of Kingston | B77: Utilities Kingston | C77: CAO Office | D77: Cost Recovery | E77: 21848 | F77: 21848
A78: City of Kingston | B78: Utilities Kingston | C78: Clerk's Department | D78: Cost Recovery | E78: 16371 | F78: 16371
A79: City of Kingston | B79: Utilities Kingston | C79: Social Services | D79: Cost Recovery | E79: 32500 | F79: 32500
B81: Year: | C81: 2013
A83: Corporate Cost Allocation
A85: Name of Company | C85: Service Offered | D85: Pricing Methodology | E85: % of Corporate Costs Allocated | F85: Amount Allocated
A86: From | B86: To
E87: % | F87: $
A88: Utilities Kingston | B88: Kingston Hydro | C88: Information System Services | D88: Cost Recovery | E88: 0.249191016 | F88: 301715
A89: Utilities Kingston | B89: Kingston Hydro | C89: Client Services | D89: Cost Recovery | E89: 0.1149993512 | F89: 83303
A90: Utilities Kingston | B90: Kingston Hydro | C90: Human Resources | D90: Cost Recovery | E90: 0.2629985096 | F90: 49763
A91: Utilities Kingston | B91: Kingston Hydro | C91: Communications | D91: Cost Recovery | E91: 0.1667898934 | F91: 16919
A92: Utilities Kingston | B92: Kingston Hydro | C92: Financial Services | D92: Cost Recovery | E92: 0.1770658194 | F92: 68769
A93: Utilities Kingston | B93: Kingston Hydro | C93: Legal Services | D93: Cost Recovery | E93: 0.2299980533 | F93: 18904
B94: Year: | C94: 2014
A96: Shared Services
A98: Name of Company | C98: Service Offered | D98: Pricing Methodology | E98: Price for the Service | F98: Cost for the Service
A99: From | B99: To
E100: $ | F100: $
A101: City of Kingston | B101: Utilities Kingston | C101: Information Services | D101: Cost Recovery | E101: 1234994 | F101: 1234994
A102: City of Kingston | B102: Utilities Kingston | C102: Client Services | D102: Cost Recovery | E102: 738866 | F102: 738866
A103: City of Kingston | B103: Utilities Kingston | C103: Human Resources | D103: Cost Recovery | E103: 192999 | F103: 192999
A104: City of Kingston | B104: Utilities Kingston | C104: Communications | D104: Cost Recovery | E104: 103468 | F104: 103468
A105: City of Kingston | B105: Utilities Kingston | C105: Financial Services | D105: Cost Recovery | E105: 396149 | F105: 396149
A106: City of Kingston | B106: Utilities Kingston | C106: Legal Services | D106: Cost Recovery | E106: 83835 | F106: 83835
A107: City of Kingston | B107: Utilities Kingston | C107: CAO Office | D107: Cost Recovery | E107: 22285 | F107: 22285
A108: City of Kingston | B108: Utilities Kingston | C108: Clerk's Department | D108: Cost Recovery | E108: 16698 | F108: 16698
A109: City of Kingston | B109: Utilities Kingston | C109: Social Services | D109: Cost Recovery | E109: 34489 | F109: 34489
B111: Year: | C111: 2014
A113: Corporate Cost Allocation
A115: Name of Company | C115: Service Offered | D115: Pricing Methodology | E115: % of Corporate Costs Allocated | F115: Amount Allocated
A116: From | B116: To
E117: % | F117: $
A118: Utilities Kingston | B118: Kingston Hydro | C118: Information System Services | D118: Cost Recovery | E118: 0.2491912794 | F118: 307749.7349
A119: Utilities Kingston | B119: Kingston Hydro | C119: Client Services | D119: Cost Recovery | E119: 0.115 | F119: 84969.59
A120: Utilities Kingston | B120: Kingston Hydro | C120: Human Resources | D120: Cost Recovery | E120: 0.2629996121 | F120: 50758.66213
A121: Utilities Kingston | B121: Kingston Hydro | C121: Communications | D121: Cost Recovery | E121: 0.1667897436 | F121: 17257.40119
A122: Utilities Kingston | B122: Kingston Hydro | C122: Financial Services | D122: Cost Recovery | E122: 0.1770646903 | F122: 70144
A123: Utilities Kingston | B123: Kingston Hydro | C123: Legal Services | D123: Cost Recovery | E123: 0.2299994036 | F123: 19282
B124: Year: | C124: 2015
A126: Shared Services
A128: Name of Company | C128: Service Offered | D128: Pricing Methodology | E128: Price for the Service | F128: Cost for the Service
A129: From | B129: To
E130: $ | F130: $
A131: City of Kingston | B131: Utilities Kingston | C131: Information Services | D131: Cost Recovery | E131: 1259694 | F131: 1259693
A132: City of Kingston | B132: Utilities Kingston | C132: Client Services | D132: Cost Recovery | E132: 753643 | F132: 753643
A133: City of Kingston | B133: Utilities Kingston | C133: Human Resources | D133: Cost Recovery | E133: 196859 | F133: 196859
A134: City of Kingston | B134: Utilities Kingston | C134: Communications | D134: Cost Recovery | E134: 75000 | F134: 75000
A135: City of Kingston | B135: Utilities Kingston | C135: Financial Services | D135: Cost Recovery | E135: 405172 | F135: 405171
A136: City of Kingston | B136: Utilities Kingston | C136: Legal Services | D136: Cost Recovery | E136: 85512 | F136: 85512
A137: City of Kingston | B137: Utilities Kingston | C137: CAO Office | D137: Cost Recovery | E137: 22750 | F137: 22750
A138: City of Kingston | B138: Utilities Kingston | C138: Clerk's Department | D138: Cost Recovery | E138: 50000 | F138: 50000
A139: City of Kingston | B139: Utilities Kingston | C139: Social Services | D139: Cost Recovery | E139: 34489 | F139: 34489
B141: Year: | C141: 2015
A143: Corporate Cost Allocation
A145: Name of Company | C145: Service Offered | D145: Pricing Methodology | E145: % of Corporate Costs Allocated | F145: Amount Allocated
A146: From | B146: To
E147: % | F147: $
A148: Utilities Kingston | B148: Kingston Hydro | C148: Information System Services | D148: Cost Recovery | E148: 0.2464560275 | F148: 310458.9327
A149: Utilities Kingston | B149: Kingston Hydro | C149: Client Services | D149: Cost Recovery | E149: 0.1150000488 | F149: 86668.9818
A150: Utilities Kingston | B150: Kingston Hydro | C150: Human Resources | D150: Cost Recovery | E150: 0.261799584 | F150: 51537.6043
A151: Utilities Kingston | B151: Kingston Hydro | C151: Communications | D151: Cost Recovery | E151: 0.1667897436 | F151: 12509.23077
A152: Utilities Kingston | B152: Kingston Hydro | C152: Financial Services | D152: Cost Recovery | E152: 0.177209129 | F152: 71800
A153: Utilities Kingston | B153: Kingston Hydro | C153: Legal Services | D153: Cost Recovery | E153: 0.23 | F153: 19667.76
B154: Year: | C154: 2016
A156: Shared Services
A158: Name of Company | C158: Service Offered | D158: Pricing Methodology | E158: Price for the Service | F158: Cost for the Service
A159: From | B159: To
E160: $ | F160: $
A161: City of Kingston | B161: Utilities Kingston | C161: Information Services | D161: Cost Recovery | E161: 1297484.82 | F161: 1297483.79
A162: City of Kingston | B162: Utilities Kingston | C162: Client Services | D162: Cost Recovery | E162: 776252.29 | F162: 776252.29
A163: City of Kingston | B163: Utilities Kingston | C163: Human Resources | D163: Cost Recovery | E163: 202764.77 | F163: 202764.77
A164: City of Kingston | B164: Utilities Kingston | C164: Communications | D164: Cost Recovery | E164: 77250 | F164: 77250
A165: City of Kingston | B165: Utilities Kingston | C165: Financial Services | D165: Cost Recovery | E165: 417327.16 | F165: 417326.13
A166: City of Kingston | B166: Utilities Kingston | C166: Legal Services | D166: Cost Recovery | E166: 88077.36 | F166: 88077.36
A167: City of Kingston | B167: Utilities Kingston | C167: CAO Office | D167: Cost Recovery | E167: 23432.5 | F167: 23432.5
A168: City of Kingston | B168: Utilities Kingston | C168: Clerk's Department | D168: Cost Recovery | E168: 51500 | F168: 51500
A169: City of Kingston | B169: Utilities Kingston | C169: Social Services | D169: Cost Recovery | E169: 35523.67 | F169: 35523.67
B171: Year: | C171: 2016
A173: Corporate Cost Allocation
A175: Name of Company | C175: Service Offered | D175: Pricing Methodology | E175: % of Corporate Costs Allocated | F175: Amount Allocated
A176: From | B176: To
E177: % | F177: $
A178: Utilities Kingston | B178: Kingston Hydro | C178: Information System Services | D178: Cost Recovery | E178: 0.2464560275 | F178: 319772.7007
A179: Utilities Kingston | B179: Kingston Hydro | C179: Client Services | D179: Cost Recovery | E179: 0.1150000488 | F179: 89269.05125
A180: Utilities Kingston | B180: Kingston Hydro | C180: Human Resources | D180: Cost Recovery | E180: 0.261799584 | F180: 53083.73243
A181: Utilities Kingston | B181: Kingston Hydro | C181: Communications | D181: Cost Recovery | E181: 0.1667897436 | F181: 12884.50769
A182: Utilities Kingston | B182: Kingston Hydro | C182: Financial Services | D182: Cost Recovery | E182: 0.177209129 | F182: 73954
A183: Utilities Kingston | B183: Kingston Hydro | C183: Legal Services | D183: Cost Recovery | E183: 0.23 | F183: 20257.7928

Sheet App.2-OA Capital Structure
K1: File Number: | O1: =EBNUMBER -> 
K2: Exhibit:
K3: Tab:
K4: Schedule:
K5: Page:
K7: Date:
C12: Appendix 2-OA
C13: Capital Structure and Cost of Capital
A15: This table must be completed for the last Board approved year and the test year.
G17: Year: | H17: 2011 Board Approved
A19: Line No.
C20: Particulars | E20: Capitalization Ratio | K20: Cost Rate | O20: Return
E22: (%) | I22: ($) | K22: (%) | O22: ($)
C23: Debt
A24: 1 | C24: Long-term Debt | E24: 0.56 | I24: =$I$33*E24 -> 23682285.2 | K24: 0.0500852474 | O24: =K24*I24 -> 1186133.113
A25: 2 | C25: Short-term Debt | E25: 0.04 | G25: (1) | I25: =$I$33*E25 -> 1691591.8 | K25: 0.0246 | O25: =K25*I25 -> 41613.15828
A26: 3 | C26: Total Debt | E26: =SUM(E24:E25) -> 0.6 | I26: =SUM(I24:I25) -> 25373877 | K26: =IF(E26=0,0,SUMPRODUCT(E24:E25,K24:K25)/E26) -> 0.04838623091 | O26: =SUM(O24:O25) -> 1227746.271
C28: Equity
A29: 4 | C29: Common Equity | E29: 0.4 | I29: =$I$33*E29 -> 16915918 | K29: 0.0958 | O29: =K29*I29 -> 1620544.944
A30: 5 | C30: Preferred Shares | I30: =$I$50*E30 -> 0 | O30: =K30*I30 -> 0
A31: 6 | C31: Total Equity | E31: =SUM(E29:E30) -> 0.4 | I31: =SUM(I29:I30) -> 16915918 | K31: =IF(E31=0,0,SUMPRODUCT(E29:E30,K29:K30)/E31) -> 0.0958 | O31: =SUM(O29:O30) -> 1620544.944
A33: 7 | C33: Total | E33: 1 | I33: 42289795 | K33: =(K26*E26)+(K31*E31) -> 0.06735173854 | O33: =O26+O31 -> 2848291.216
G36: Year: | H36: 2011 Actual
A38: Line No.
C39: Particulars | E39: Capitalization Ratio | K39: Cost Rate | O39: Return
E41: (%) | I41: ($) | K41: (%) | O41: ($)
C42: Debt
A43: 1 | C43: Long-term Debt | E43: =I43/I52 -> 0.3319619545 | I43: 13242168 | K43: 0.05402761002 | O43: =K43*I43 -> 715442.6886
A44: 2 | C44: Short-term Debt | E44: 0 | G44: (1) | I44: 0 | K44: 0 | O44: =K44*I44 -> 0
A45: 3 | C45: Total Debt | E45: =SUM(E43:E44) -> 0.3319619545 | I45: =SUM(I43:I44) -> 13242168 | K45: =IF(E45=0,0,SUMPRODUCT(E43:E44,K43:K44)/E45) -> 0.05402761002 | O45: =SUM(O43:O44) -> 715442.6886
C47: Equity
A48: 4 | C48: Common Equity | E48: =I48/I52 -> 0.6680380455 | I48: =I52-I45 -> 26648451.45 | K48: 0.06255333155 | O48: =K48*I48 -> 1666949.419
A49: 5 | C49: Preferred Shares | I49: =$I$52*E49 -> 0 | O49: =K49*I49 -> 0
A50: 6 | C50: Total Equity | E50: =SUM(E48:E49) -> 0.6680380455 | I50: =SUM(I48:I49) -> 26648451.45 | K50: =IF(E50=0,0,SUMPRODUCT(E48:E49,K48:K49)/E50) -> 0.06255333155 | O50: =SUM(O48:O49) -> 1666949.419
A52: 7 | C52: Total | E52: 1 | I52: 39890619.45 | K52: =(K45*E45)+(K50*E50) -> 0.05972311637 | O52: =O45+O50 -> 2382392.107
A55: Notes
A56: (1) | C56: 4.0% unless an applicant has proposed or been approved for a different amount.
G61: Year: | H61: 2012 Actual
A63: Line No.
C64: Particulars | E64: Capitalization Ratio | K64: Cost Rate | O64: Return
E66: (%) | I66: ($) | K66: (%) | O66: ($)
C67: Debt
A68: 1 | C68: Long-term Debt | E68: =I68/I77 -> 0.5400035122 | I68: 22705327.5 | K68: 0.03983080018 | O68: =K68*I68 -> 904371.3628
A69: 2 | C69: Short-term Debt | E69: =I69/I77 -> 0 | G69: (1) | I69: 0 | K69: 0.0246 | O69: =K69*I69 -> 0
A70: 3 | C70: Total Debt | E70: =SUM(E68:E69) -> 0.5400035122 | I70: =SUM(I68:I69) -> 22705327.5 | K70: =IF(E70=0,0,SUMPRODUCT(E68:E69,K68:K69)/E70) -> 0.03983080018 | O70: =SUM(O68:O69) -> 904371.3628
C72: Equity
A73: 4 | C73: Common Equity | E73: =I73/I77 -> 0.4599964878 | I73: =I77-I70 -> 19341301.8 | K73: 0.1033768073 | O73: =K73*I73 -> 1999442.029
A74: 5 | C74: Preferred Shares | I74: =$I$52*E74 -> 0 | O74: =K74*I74 -> 0
A75: 6 | C75: Total Equity | E75: =SUM(E73:E74) -> 0.4599964878 | I75: =SUM(I73:I74) -> 19341301.8 | K75: =IF(E75=0,0,SUMPRODUCT(E73:E74,K73:K74)/E75) -> 0.1033768073 | O75: =SUM(O73:O74) -> 1999442.029
A77: 7 | C77: Total | E77: 1 | I77: 42046629.3 | K77: =(K70*E70)+(K75*E75) -> 0.06906174026 | O77: =O70+O75 -> 2903813.391
G80: Year: | H80: 2013 Actual
A82: Line No.
C83: Particulars | E83: Capitalization Ratio | K83: Cost Rate | O83: Return
E85: (%) | I85: ($) | K85: (%) | O85: ($)
C86: Debt
A87: 1 | C87: Long-term Debt | E87: =I87/I96 -> 0.5236207761 | I87: 24670959.5 | K87: 0.04151292362 | O87: =K87*I87 -> 1024163.657
A88: 2 | C88: Short-term Debt | E88: =I88/I96 -> 0 | G88: (1) | I88: 0 | K88: 0.0246 | O88: =K88*I88 -> 0
A89: 3 | C89: Total Debt | E89: =SUM(E87:E88) -> 0.5236207761 | I89: =SUM(I87:I88) -> 24670959.5 | K89: =IF(E89=0,0,SUMPRODUCT(E87:E88,K87:K88)/E89) -> 0.04151292362 | O89: =SUM(O87:O88) -> 1024163.657
C91: Equity
A92: 4 | C92: Common Equity | E92: =I92/I96 -> 0.4763792239 | I92: =I96-I89 -> 22445122.65 | K92: 0.09034745029 | O92: =K92*I92 -> 2027859.603
A93: 5 | C93: Preferred Shares | I93: =$I$52*E93 -> 0 | O93: =K93*I93 -> 0
A94: 6 | C94: Total Equity | E94: =SUM(E92:E93) -> 0.4763792239 | I94: =SUM(I92:I93) -> 22445122.65 | K94: =IF(E94=0,0,SUMPRODUCT(E92:E93,K92:K93)/E94) -> 0.09034745029 | O94: =SUM(O92:O93) -> 2027859.603
A96: 7 | C96: Total | E96: 1 | I96: 47116082.15 | K96: =(K89*E89)+(K94*E94) -> 0.06477667754 | O96: =O89+O94 -> 3052023.26
G99: Year: | H99: 2014 Actual
A101: Line No.
C102: Particulars | E102: Capitalization Ratio | K102: Cost Rate | O102: Return
E104: (%) | I104: ($) | K104: (%) | O104: ($)
C105: Debt
A106: 1 | C106: Long-term Debt | E106: =I106/I115 -> 0.4980518717 | I106: 25551088.5 | K106: 0.04287218665 | O106: =K106*I106 -> 1095431.035
A107: 2 | C107: Short-term Debt | E107: =I107/I115 -> 0 | G107: (1) | I107: 0 | K107: 0.0246 | O107: =K107*I107 -> 0
A108: 3 | C108: Total Debt | E108: =SUM(E106:E107) -> 0.4980518717 | I108: =SUM(I106:I107) -> 25551088.5 | K108: =IF(E108=0,0,SUMPRODUCT(E106:E107,K106:K107)/E108) -> 0.04287218665 | O108: =SUM(O106:O107) -> 1095431.035
C110: Equity
A111: 4 | C111: Common Equity | E111: =I111/I115 -> 0.5019481283 | I111: =I115-I108 -> 25750974.5 | K111: 0.0998089065 | O111: =K111*I111 -> 2570176.606
A112: 5 | C112: Preferred Shares | I112: =$I$52*E112 -> 0 | O112: =K112*I112 -> 0
A113: 6 | C113: Total Equity | E113: =SUM(E111:E112) -> 0.5019481283 | I113: =SUM(I111:I112) -> 25750974.5 | K113: =IF(E113=0,0,SUMPRODUCT(E111:E112,K111:K112)/E113) -> 0.0998089065 | O113: =SUM(O111:O112) -> 2570176.606
A115: 7 | C115: Total | E115: 1 | I115: 51302063 | K115: =(K108*E108)+(K113*E113) -> 0.07145146661 | O115: =O108+O113 -> 3665607.642
G118: Year: | H118: 2015 Bridge
A120: Line No.
C121: Particulars | E121: Capitalization Ratio | K121: Cost Rate | O121: Return
E123: (%) | I123: ($) | K123: (%) | O123: ($)
C124: Debt
A125: 1 | C125: Long-term Debt | E125: =I125/I134 -> 0.5487247794 | I125: 29872096.5 | K125: 0.03754392707 | O125: =K125*I125 -> 1121515.812
A126: 2 | C126: Short-term Debt | E126: =I126/I134 -> 0 | G126: (1) | I126: 0 | K126: 0 | O126: =K126*I126 -> 0
A127: 3 | C127: Total Debt | E127: =SUM(E125:E126) -> 0.5487247794 | I127: =SUM(I125:I126) -> 29872096.5 | K127: =IF(E127=0,0,SUMPRODUCT(E125:E126,K125:K126)/E127) -> 0.03754392707 | O127: =SUM(O125:O126) -> 1121515.812
C129: Equity
A130: 4 | C130: Common Equity | E130: =I130/I134 -> 0.4512752206 | I130: =I134-I127 -> 24567027.85 | K130: 0.07982229165 | O130: =K130*I130 -> 1960996.462
A131: 5 | C131: Preferred Shares | I131: =$I$52*E131 -> 0 | O131: =K131*I131 -> 0
A132: 6 | C132: Total Equity | E132: =SUM(E130:E131) -> 0.4512752206 | I132: =SUM(I130:I131) -> 24567027.85 | K132: =IF(E132=0,0,SUMPRODUCT(E130:E131,K130:K131)/E132) -> 0.07982229165 | O132: =SUM(O130:O131) -> 1960996.462
A134: 7 | C134: Total | E134: 1 | I134: 54439124.35 | K134: =(K127*E127)+(K132*E132) -> 0.05662310537 | O134: =O127+O132 -> 3082512.274
G137: Year: | H137: 2016
A139: Line No.
C140: Particulars | E140: Capitalization Ratio | K140: Cost Rate | O140: Return
E142: (%) | I142: ($) | K142: (%) | O142: ($)
C143: Debt
A144: 1 | C144: Long-term Debt | E144: 0.56 | I144: =$I$153*E144 -> 32411677.9 | K144: 0.04352388168 | O144: =K144*I144 -> 1410682.034
A145: 2 | C145: Short-term Debt | E145: 0.04 | G145: (1) | I145: =$I$153*E145 -> 2315119.85 | K145: 0.0216 | O145: =K145*I145 -> 50006.58875
A146: 3 | C146: Total Debt | E146: =SUM(E144:E145) -> 0.6 | I146: =SUM(I144:I145) -> 34726797.75 | K146: =IF(E146=0,0,SUMPRODUCT(E144:E145,K144:K145)/E146) -> 0.04206228957 | O146: =SUM(O144:O145) -> 1460688.623
C148: Equity
A149: 4 | C149: Common Equity | E149: 0.4 | I149: =$I$153*E149 -> 23151198.5 | K149: 0.093 | O149: =K149*I149 -> 2153061.46
A150: 5 | C150: Preferred Shares | I150: =$I$50*E150 -> 0 | O150: =K150*I150 -> 0
A151: 6 | C151: Total Equity | E151: =SUM(E149:E150) -> 0.4 | I151: =SUM(I149:I150) -> 23151198.5 | K151: =IF(E151=0,0,SUMPRODUCT(E149:E150,K149:K150)/E151) -> 0.093 | O151: =SUM(O149:O150) -> 2153061.46
A153: 7 | C153: Total | E153: 1 | I153: 57877996.24 | K153: =(K146*E146)+(K151*E151) -> 0.06243737374 | O153: =O146+O151 -> 3613750.083
G156: Year: | H156: 2017
A158: Line No.
C159: Particulars | E159: Capitalization Ratio | K159: Cost Rate | O159: Return
E161: (%) | I161: ($) | K161: (%) | O161: ($)
C162: Debt
A163: 1 | C163: Long-term Debt | E163: 0.56 | I163: =$I$172*E163 -> 33607353.23 | K163: 0.04422416355 | O163: =K163*I163 -> 1486257.086
A164: 2 | C164: Short-term Debt | E164: 0.04 | G164: (1) | I164: =$I$172*E164 -> 2400525.231 | K164: 0.0216 | O164: =K164*I164 -> 51851.34499
A165: 3 | C165: Total Debt | E165: =SUM(E163:E164) -> 0.6 | I165: =SUM(I163:I164) -> 36007878.47 | K165: =IF(E165=0,0,SUMPRODUCT(E163:E164,K163:K164)/E165) -> 0.04271588598 | O165: =SUM(O163:O164) -> 1538108.431
C167: Equity
A168: 4 | C168: Common Equity | E168: 0.4 | I168: =$I$172*E168 -> 24005252.31 | K168: 0.093 | O168: =K168*I168 -> 2232488.465
A169: 5 | C169: Preferred Shares | I169: =$I$50*E169 -> 0 | O169: =K169*I169 -> 0
A170: 6 | C170: Total Equity | E170: =SUM(E168:E169) -> 0.4 | I170: =SUM(I168:I169) -> 24005252.31 | K170: =IF(E170=0,0,SUMPRODUCT(E168:E169,K168:K169)/E170) -> 0.093 | O170: =SUM(O168:O169) -> 2232488.465
A172: 7 | C172: Total | E172: 1 | I172: 60013130.78 | K172: =(K165*E165)+(K170*E170) -> 0.06282953159 | O172: =O165+O170 -> 3770596.896
G175: Year: | H175: 2018
A177: Line No.
C178: Particulars | E178: Capitalization Ratio | K178: Cost Rate | O178: Return
E180: (%) | I180: ($) | K180: (%) | O180: ($)
C181: Debt
A182: 1 | C182: Long-term Debt | E182: 0.56 | I182: =$I$191*E182 -> 34388001.49 | K182: 0.04463441931 | O182: =K182*I182 -> 1534888.478
A183: 2 | C183: Short-term Debt | E183: 0.04 | G183: (1) | I183: =$I$191*E183 -> 2456285.821 | K183: 0.0216 | O183: =K183*I183 -> 53055.77373
A184: 3 | C184: Total Debt | E184: =SUM(E182:E183) -> 0.6 | I184: =SUM(I182:I183) -> 36844287.31 | K184: =IF(E184=0,0,SUMPRODUCT(E182:E183,K182:K183)/E184) -> 0.04309879136 | O184: =SUM(O182:O183) -> 1587944.251
C186: Equity
A187: 4 | C187: Common Equity | E187: 0.4 | I187: =$I$191*E187 -> 24562858.21 | K187: 0.093 | O187: =K187*I187 -> 2284345.813
A188: 5 | C188: Preferred Shares | I188: =$I$50*E188 -> 0 | O188: =K188*I188 -> 0
A189: 6 | C189: Total Equity | E189: =SUM(E187:E188) -> 0.4 | I189: =SUM(I187:I188) -> 24562858.21 | K189: =IF(E189=0,0,SUMPRODUCT(E187:E188,K187:K188)/E189) -> 0.093 | O189: =SUM(O187:O188) -> 2284345.813
A191: 7 | C191: Total | E191: 1 | I191: 61407145.52 | K191: =(K184*E184)+(K189*E189) -> 0.06305927481 | O191: =O184+O189 -> 3872290.065
G194: Year: | H194: 2019
A196: Line No.
C197: Particulars | E197: Capitalization Ratio | K197: Cost Rate | O197: Return
E199: (%) | I199: ($) | K199: (%) | O199: ($)
C200: Debt
A201: 1 | C201: Long-term Debt | E201: 0.56 | I201: =$I$210*E201 -> 35514044.5 | K201: 0.04586844142 | O201: =K201*I201 -> 1628973.87
A202: 2 | C202: Short-term Debt | E202: 0.04 | G202: (1) | I202: =$I$210*E202 -> 2536717.465 | K202: 0.0216 | O202: =K202*I202 -> 54793.09723
A203: 3 | C203: Total Debt | E203: =SUM(E201:E202) -> 0.6 | I203: =SUM(I201:I202) -> 38050761.97 | K203: =IF(E203=0,0,SUMPRODUCT(E201:E202,K201:K202)/E203) -> 0.04425054533 | O203: =SUM(O201:O202) -> 1683766.967
C205: Equity
A206: 4 | C206: Common Equity | E206: 0.4 | I206: =$I$210*E206 -> 25367174.65 | K206: 0.093 | O206: =K206*I206 -> 2359147.242
A207: 5 | C207: Preferred Shares | I207: =$I$50*E207 -> 0 | O207: =K207*I207 -> 0
A208: 6 | C208: Total Equity | E208: =SUM(E206:E207) -> 0.4 | I208: =SUM(I206:I207) -> 25367174.65 | K208: =IF(E208=0,0,SUMPRODUCT(E206:E207,K206:K207)/E208) -> 0.093 | O208: =SUM(O206:O207) -> 2359147.242
A210: 7 | C210: Total | E210: 1 | I210: 63417936.61 | K210: =(K203*E203)+(K208*E208) -> 0.0637503272 | O210: =O203+O208 -> 4042914.209
G213: Year: | H213: 2020
A215: Line No.
C216: Particulars | E216: Capitalization Ratio | K216: Cost Rate | O216: Return
E218: (%) | I218: ($) | K218: (%) | O218: ($)
C219: Debt
A220: 1 | C220: Long-term Debt | E220: 0.56 | I220: =$I$229*E220 -> 36599489.3 | K220: 0.04619337226 | O220: =K220*I220 -> 1690653.834
A221: 2 | C221: Short-term Debt | E221: 0.04 | G221: (1) | I221: =$I$229*E221 -> 2614249.236 | K221: 0.0216 | O221: =K221*I221 -> 56467.7835
A222: 3 | C222: Total Debt | E222: =SUM(E220:E221) -> 0.6 | I222: =SUM(I220:I221) -> 39213738.54 | K222: =IF(E222=0,0,SUMPRODUCT(E220:E221,K220:K221)/E222) -> 0.04455381411 | O222: =SUM(O220:O221) -> 1747121.617
C224: Equity
A225: 4 | C225: Common Equity | E225: 0.4 | I225: =$I$229*E225 -> 26142492.36 | K225: 0.093 | O225: =K225*I225 -> 2431251.79
A226: 5 | C226: Preferred Shares | I226: =$I$50*E226 -> 0 | O226: =K226*I226 -> 0
A227: 6 | C227: Total Equity | E227: =SUM(E225:E226) -> 0.4 | I227: =SUM(I225:I226) -> 26142492.36 | K227: =IF(E227=0,0,SUMPRODUCT(E225:E226,K225:K226)/E227) -> 0.093 | O227: =SUM(O225:O226) -> 2431251.79
A229: 7 | C229: Total | E229: 1 | I229: 65356230.9 | K229: =(K222*E222)+(K227*E227) -> 0.06393228847 | O229: =O222+O227 -> 4178373.407

Sheet App.2-OB_Debt Instruments
J1: File Number: | K1: =EBNUMBER -> 
J2: Exhibit:
J3: Tab:
J4: Schedule:
J5: Page:
J7: Date:
A10: Appendix 2-OB
A11: Debt Instruments
A13: This table must be completed for all required historical years, the bridge year and the test year.
D14: Year | E14: 2011
A16: Row | B16: Description | C16: Lender | D16: Affiliated or Third-Party Debt? | E16: Fixed or Variable-Rate? | F16: Start Date | G16: Term (years) | H16: Principal ($) | I16: Rate (%) (Note 2) | J16: Interest ($) (Note 1) | K16: Additional Comments, if any
A17: 1 | B17: Note payable | C17: City of Kingston | D17: Affiliated | E17: Fixed Rate | F17: 2011-05-01 | H17: 10880619 | I17: 0.0587 | J17: =H17*I17 -> 638692.3353
A18: 2 | B18: Long Term Debt | C18: TD Bank | D18: Third-Party | E18: Fixed Rate | F18: 2009-05-20 | G18: 10 | H18: =(2315687+2407410)/2 -> 2361548.5 | I18: 0.0325 | J18: =H18*I18 -> 76750.32625
A19: 3 | J19: 0
A20: 4 | J20: 0
A21: 5 | J21: 0
A22: 6 | J22: 0
A23: 7 | J23: 0
A24: 8 | J24: 0
A25: 9 | J25: 0
A26: 10 | J26: 0
A27: 11 | J27: 0
A28: 12 | J28: 0
A30: Total | H30: =SUM(H17:H28) -> 13242167.5 | I30: =IF(H30=0,"",J30/H30) -> 0.05402761002 | J30: =SUM(J17:J28) -> 715442.6616
A32: Notes
A34: 1 | B34: If financing is in place only part of the year, calculate the pro-rated interest and input in the cell.
A35: 2 | B35: Input actual or deemed long-term debt rate in accordance with the guidelines in The Report of the Board on the Cost of Capital for Ontario's Regulated Utilities, issued December 11, 2009, or with any subsequent update issued by the Board.
A36: 3 | B36: Add more lines above row 12 if necessary.
D38: Year | E38: 2012
A40: Row | B40: Description | C40: Lender | D40: Affiliated or Third-Party Debt? | E40: Fixed or Variable-Rate? | F40: Start Date | G40: Term (years) | H40: Principal ($) | I40: Rate (%) (Note 2) | J40: Interest ($) (Note 1) | K40: Additional Comments, if any
A41: 1 | B41: Note payable | C41: City of Kingston | D41: Affiliated | E41: Fixed Rate | F41: 2011-05-01 | H41: 10880619 | I41: 0.0587 | J41: =H41*I41 -> 638692.3353
A42: 2 | B42: Long Term Debt | C42: TD Bank | D42: Third-Party | E42: Fixed Rate | F42: 2009-05-20 | G42: 10 | H42: =(2315687+2035002)/2 -> 2175344.5 | I42: 0.0325 | J42: =H42*I42 -> 70698.69625
A43: 3 | B43: Long Term Debt | C43: TD Bank | D43: Third-Party | E43: Fixed Rate | F43: 2012-02-16 | G43: 7 | H43: =(2180908+2250000)/2 -> 2215454 | I43: 0.0303 | J43: 67128.2562
A44: 4 | B44: Long Term Debt | C44: TD Bank | D44: Third-Party | E44: Fixed Rate | F44: 2012-01-04 | G44: 10 | H44: =(4000000+3867820)/2 -> 3933910 | I44: 0.0325 | J44: 127852.075
A45: 5 | B45: Long Term Debt | C45: IO | D45: Third-Party | E45: Fixed Rate | F45: 2012-12-18 | G45: 30 | H45: 3500000 | I45: 0.0392 | J45: 0
A46: 6 | J46: 0
A47: 7 | J47: 0
A48: 8 | J48: 0
A49: 9 | J49: 0
A50: 10 | J50: 0
A51: 11 | J51: 0
A52: 12 | J52: 0
A54: Total | H54: =SUM(H41:H52) -> 22705327.5 | I54: =IF(H54=0,"",J54/H54) -> 0.03983080018 | J54: =SUM(J41:J52) -> 904371.3628
D57: Year | E57: 2013
A59: Row | B59: Description | C59: Lender | D59: Affiliated or Third-Party Debt? | E59: Fixed or Variable-Rate? | F59: Start Date | G59: Term (years) | H59: Principal ($) | I59: Rate (%) (Note 2) | J59: Interest ($) (Note 1) | K59: Additional Comments, if any
A60: 1 | B60: Note payable | C60: City of Kingston | D60: Affiliated | E60: Fixed Rate | F60: 2011-05-01 | H60: 10880619 | I60: 0.0587 | J60: =H60*I60 -> 638692.3353
A61: 2 | B61: Long Term Debt | C61: TD Bank | D61: Third-Party | E61: Fixed Rate | F61: 2009-05-20 | G61: 10 | H61: =(1745058+2035002)/2 -> 1890030 | I61: 0.0325 | J61: =H61*I61 -> 61425.975
A62: 3 | B62: Long Term Debt | C62: TD Bank | D62: Third-Party | E62: Fixed Rate | F62: 2012-02-16 | G62: 7 | H62: =(2180908+2095665)/2 -> 2138286.5 | I62: 0.0303 | J62: 64790.08095
A63: 4 | B63: Long Term Debt | C63: TD Bank | D63: Third-Party | E63: Fixed Rate | F63: 2012-01-04 | G63: 10 | H63: =(3719068+3867820)/2 -> 3793444 | I63: 0.0325 | J63: 123286.93
A64: 5 | B64: Long Term Debt | C64: IO | D64: Third-Party | E64: Fixed Rate | F64: 2012-12-18 | G64: 30 | H64: =(3500000+3437160)/2 -> 3468580 | I64: 0.0392 | J64: 135968.336
A65: 6 | B65: Long Term Debt | C65: TD Bank | D65: Third-Party | E65: Fixed Rate | F65: 2013-12-18 | G65: 7 | H65: 2500000 | I65: 0.0367 | J65: 0
A66: 7 | J66: 0
A67: 8 | J67: 0
A68: 9 | J68: 0
A69: 10 | J69: 0
A70: 11 | J70: 0
A71: 12 | J71: 0
A73: Total | H73: =SUM(H60:H71) -> 24670959.5 | I73: =IF(H73=0,"",J73/H73) -> 0.04151292362 | J73: =SUM(J60:J71) -> 1024163.657
D76: Year | E76: 2014
A78: Row | B78: Description | C78: Lender | D78: Affiliated or Third-Party Debt? | E78: Fixed or Variable-Rate? | F78: Start Date | G78: Term (years) | H78: Principal ($) | I78: Rate (%) (Note 2) | J78: Interest ($) (Note 1) | K78: Additional Comments, if any
A79: 1 | B79: Note payable | C79: City of Kingston | D79: Affiliated | E79: Fixed Rate | F79: 2011-05-01 | H79: 10880619 | I79: 0.0587 | J79: =H79*I79 -> 638692.3353
A80: 2 | B80: Long Term Debt | C80: TD Bank | D80: Third-Party | E80: Fixed Rate | F80: 2009-05-20 | G80: 10 | H80: =(1745058+1445549)/2 -> 1595303.5 | I80: 0.0325 | J80: =H80*I80 -> 51847.36375
A81: 3 | B81: Long Term Debt | C81: TD Bank | D81: Third-Party | E81: Fixed Rate | F81: 2012-02-16 | G81: 7 | H81: =(2007803+2095665)/2 -> 2051734 | I81: 0.0303 | J81: 62167.5402
A82: 4 | B82: Long Term Debt | C82: TD Bank | D82: Third-Party | E82: Fixed Rate | F82: 2012-01-04 | G82: 10 | H82: =(3719068+3565408)/2 -> 3642238 | I82: 0.0325 | J82: 118372.735
A83: 5 | B83: Long Term Debt | C83: IO | D83: Third-Party | E83: Fixed Rate | F83: 2012-12-18 | G83: 30 | H83: =(3371833+3437160)/2 -> 3404496.5 | I83: 0.0392 | J83: 133456.2628
A84: 6 | B84: Long Term Debt | C84: TD Bank | D84: Third-Party | E84: Fixed Rate | F84: 2013-12-18 | G84: 7 | H84: =(2500000+2453395)/2 -> 2476697.5 | I84: 0.0367 | J84: 90894.79825
A85: 7 | B85: Long Term Debt | C85: TD Bank | D85: Third-Party | E85: Fixed Rate | F85: 2014-12-09 | G85: 7 | H85: 1500000 | I85: 0.0324 | J85: 0
A86: 8 | J86: 0
A87: 9 | J87: 0
A88: 10 | J88: 0
A89: 11 | J89: 0
A90: 12 | J90: 0
A92: Total | H92: =SUM(H79:H90) -> 25551088.5 | I92: =IF(H92=0,"",J92/H92) -> 0.04287218665 | J92: =SUM(J79:J90) -> 1095431.035
D95: Year | E95: 2015
A97: Row | B97: Description | C97: Lender | D97: Affiliated or Third-Party Debt? | E97: Fixed or Variable-Rate? | F97: Start Date | G97: Term (years) | H97: Principal ($) | I97: Rate (%) (Note 2) | J97: Interest ($) (Note 1) | K97: Additional Comments, if any
A98: 1 | B98: Note payable | C98: City of Kingston | D98: Affiliated | E98: Fixed Rate | F98: 2011-05-01 | H98: 10880619 | I98: 0.0587 | J98: =H98*I98 -> 638692.3353
A99: 2 | B99: Long Term Debt | C99: TD Bank | D99: Third-Party | E99: Fixed Rate | F99: 2009-05-20 | G99: 10 | H99: =(1136159+1445549)/2 -> 1290854 | I99: 0.0325 | J99: =H99*I99 -> 41952.755
A100: 3 | B100: Long Term Debt | C100: TD Bank | D100: Third-Party | E100: Fixed Rate | F100: 2012-02-16 | G100: 7 | H100: =(2007803+1917242)/2 -> 1962522.5 | I100: 0.0303 | J100: 59464.43175
A101: 4 | B101: Long Term Debt | C101: TD Bank | D101: Third-Party | E101: Fixed Rate | F101: 2012-01-04 | G101: 10 | H101: =(3406679+3565408)/2 -> 3486043.5 | I101: 0.0325 | J101: 113296.4138
A102: 5 | B102: Long Term Debt | C102: IO | D102: Third-Party | E102: Fixed Rate | F102: 2012-12-18 | G102: 30 | H102: =(3371833+3303919)/2 -> 3337876 | I102: 0.0392 | J102: 130844.7392
A103: 6 | B103: Long Term Debt | C103: TD Bank | D103: Third-Party | E103: Fixed Rate | F103: 2013-12-18 | G103: 7 | H103: =(2405050+2453395)/2 -> 2429222.5 | I103: 0.0367 | J103: 89152.46575
A104: 7 | B104: Long Term Debt | C104: TD Bank | D104: Third-Party | E104: Fixed Rate | F104: 2014-12-09 | G104: 7 | H104: =(1469918+1500000)/2 -> 1484959 | I104: 0.0324 | J104: 48112.6716
A105: 8 | B105: Long Term Debt | C105: TBD | D105: Third-Party | E105: Fixed Rate | F105: 2015-12-15 | G105: 30 | H105: 5000000 | I105: 0.0339 | J105: 0
A106: 9 | J106: 0
A107: 10 | J107: 0
A108: 11 | J108: 0
A109: 12 | J109: 0
A111: Total | H111: =SUM(H98:H109) -> 29872096.5 | I111: =IF(H111=0,"",J111/H111) -> 0.03754392707 | J111: =SUM(J98:J109) -> 1121515.812
D114: Year | E114: 2016
A116: Row | B116: Description | C116: Lender | D116: Affiliated or Third-Party Debt? | E116: Fixed or Variable-Rate? | F116: Start Date | G116: Term (years) | H116: Principal ($) | I116: Rate (%) (Note 2) | J116: Interest ($) (Note 1) | K116: Additional Comments, if any
A117: 1 | B117: Note payable | C117: City of Kingston | D117: Affiliated | E117: Fixed Rate | F117: 2011-05-01 | H117: 10880619 | I117: 0.0587 | J117: =H117*I117 -> 638692.3353
A118: 2 | B118: Long Term Debt | C118: TD Bank | D118: Third-Party | E118: Fixed Rate | F118: 2009-05-20 | G118: 10 | H118: 976362 | I118: 0.0325 | J118: =H118*I118 -> 31731.765
A119: 3 | B119: Long Term Debt | C119: TD Bank | D119: Third-Party | E119: Fixed Rate | F119: 2012-02-16 | G119: 7 | H119: 1870570 | I119: 0.0303 | J119: 56678.271
A120: 4 | B120: Long Term Debt | C120: TD Bank | D120: Third-Party | E120: Fixed Rate | F120: 2012-01-04 | G120: 10 | H120: 3324697 | I120: 0.0325 | J120: 108052.6525
A121: 5 | B121: Long Term Debt | C121: IO | D121: Third-Party | E121: Fixed Rate | F121: 2012-12-18 | G121: 30 | H121: 3268618 | I121: 0.0392 | J121: 128129.8256
A122: 6 | B122: Long Term Debt | C122: TD Bank | D122: Third-Party | E122: Fixed Rate | F122: 2013-12-18 | G122: 7 | H122: 2379976 | I122: 0.0367 | J122: 87345.1192
A123: 7 | B123: Long Term Debt | C123: TD Bank | D123: Third-Party | E123: Fixed Rate | F123: 2014-12-09 | G123: 7 | H123: 1454026 | I123: 0.0324 | J123: 47110.4424
A124: 8 | B124: Long Term Debt | C124: TBD | D124: Third-Party | E124: Fixed Rate | F124: 2015-12-15 | G124: 30 | H124: 4950688 | I124: 0.0339 | J124: 167828.3232
A125: 9 | B125: Long Term Debt | C125: TBD | D125: Third-Party | E125: Fixed Rate | F125: 2016-12-01 | G125: 30 | H125: =3500000/12 -> 291666.6667 | I125: 0.0477 | J125: =H125*I125 -> 13912.5
A126: 10 | J126: 0
A127: 11 | J127: 0
A128: 12 | J128: 0
A130: Total | H130: =SUM(H117:H128) -> 29397222.67 | I130: =IF(H130=0,"",J130/H130) -> 0.04352388145 | J130: =SUM(J117:J128) -> 1279481.234
D133: Year | E133: 2017
A135: Row | B135: Description | C135: Lender | D135: Affiliated or Third-Party Debt? | E135: Fixed or Variable-Rate? | F135: Start Date | G135: Term (years) | H135: Principal ($) | I135: Rate (%) (Note 2) | J135: Interest ($) (Note 1) | K135: Additional Comments, if any
A136: 1 | B136: Note payable | C136: City of Kingston | D136: Affiliated | E136: Fixed Rate | F136: 2011-05-01 | H136: 10880619 | I136: 0.0587 | J136: =H136*I136 -> 638692.3353
A137: 2 | B137: Long Term Debt | C137: TD Bank | D137: Third-Party | E137: Fixed Rate | F137: 2009-05-20 | G137: 10 | H137: 651494 | I137: 0.0325 | J137: =H137*I137 -> 21173.555
A138: 3 | B138: Long Term Debt | C138: TD Bank | D138: Third-Party | E138: Fixed Rate | F138: 2012-02-16 | G138: 7 | H138: 1775792 | I138: 0.0303 | J138: 53806.4976
A139: 4 | B139: Long Term Debt | C139: TD Bank | D139: Third-Party | E139: Fixed Rate | F139: 2012-01-04 | G139: 10 | H139: 3158027 | I139: 0.0325 | J139: 102635.8775
A140: 5 | B140: Long Term Debt | C140: IO | D140: Third-Party | E140: Fixed Rate | F140: 2012-12-18 | G140: 30 | H140: 3196619 | I140: 0.0392 | J140: 125307.4648
A141: 6 | B141: Long Term Debt | C141: TD Bank | D141: Third-Party | E141: Fixed Rate | F141: 2013-12-18 | G141: 7 | H141: 2328891 | I141: 0.0367 | J141: 85470.2997
A142: 7 | B142: Long Term Debt | C142: TD Bank | D142: Third-Party | E142: Fixed Rate | F142: 2014-12-09 | G142: 7 | H142: 1422214 | I142: 0.0324 | J142: 46079.7336
A143: 8 | B143: Long Term Debt | C143: TBD | D143: Third-Party | E143: Fixed Rate | F143: 2015-12-15 | G143: 30 | H143: 4850393 | I143: 0.0339 | J143: 164428.3227
A144: 9 | B144: Long Term Debt | C144: TBD | D144: Third-Party | E144: Fixed Rate | F144: 2016-12-01 | G144: 30 | H144: 3472602 | I144: 0.0477 | J144: =H144*I144 -> 165643.1154
A145: 10 | B145: Long Term Debt | C145: TBD | D145: Third-Party | E145: Fixed Rate | F145: 2017-12-01 | G145: 30 | H145: =1000000/12 -> 83333.33333 | I145: 0.0477 | J145: 3975
A146: 11 | J146: 0
A147: 12 | J147: 0
A149: Total | H149: =SUM(H136:H147) -> 31819984.33 | I149: =IF(H149=0,"",J149/H149) -> 0.04422416387 | J149: =SUM(J136:J147) -> 1407212.202
D152: Year | E152: 2018
A154: Row | B154: Description | C154: Lender | D154: Affiliated or Third-Party Debt? | E154: Fixed or Variable-Rate? | F154: Start Date | G154: Term (years) | H154: Principal ($) | I154: Rate (%) (Note 2) | J154: Interest ($) (Note 1) | K154: Additional Comments, if any
A155: 1 | B155: Note payable | C155: City of Kingston | D155: Affiliated | E155: Fixed Rate | F155: 2011-05-01 | H155: 10880619 | I155: 0.0587 | J155: =H155*I155 -> 638692.3353
A156: 2 | B156: Long Term Debt | C156: TD Bank | D156: Third-Party | E156: Fixed Rate | F156: 2009-05-20 | G156: 10 | H156: 315910 | I156: 0.0325 | J156: =H156*I156 -> 10267.075
A157: 3 | B157: Long Term Debt | C157: TD Bank | D157: Third-Party | E157: Fixed Rate | F157: 2012-02-16 | G157: 7 | H157: 1678102 | I157: 0.0303 | J157: 50846.4906
A158: 4 | B158: Long Term Debt | C158: TD Bank | D158: Third-Party | E158: Fixed Rate | F158: 2012-01-04 | G158: 10 | H158: 2985860 | I158: 0.0325 | J158: 97040.45
A159: 5 | B159: Long Term Debt | C159: IO | D159: Third-Party | E159: Fixed Rate | F159: 2012-12-18 | G159: 30 | H159: 3121770 | I159: 0.0392 | J159: 122373.384
A160: 6 | B160: Long Term Debt | C160: TD Bank | D160: Third-Party | E160: Fixed Rate | F160: 2013-12-18 | G160: 7 | H160: 2275899 | I160: 0.0367 | J160: 83525.4933
A161: 7 | B161: Long Term Debt | C161: TD Bank | D161: Third-Party | E161: Fixed Rate | F161: 2014-12-09 | G161: 7 | H161: 1389372 | I161: 0.0324 | J161: 45015.6528
A162: 8 | B162: Long Term Debt | C162: TBD | D162: Third-Party | E162: Fixed Rate | F162: 2015-12-15 | G162: 30 | H162: 4746699 | I162: 0.0339 | J162: 160913.0961
A163: 9 | B163: Long Term Debt | C163: TBD | D163: Third-Party | E163: Fixed Rate | F163: 2016-12-01 | G163: 30 | H163: 3416499 | I163: 0.0477 | J163: =H163*I163 -> 162967.0023
A164: 10 | B164: Long Term Debt | C164: TBD | D164: Third-Party | E164: Fixed Rate | F164: 2017-12-01 | G164: 30 | H164: 992172 | I164: 0.0477 | J164: 47326.6044
A165: 11 | B165: Long Term Debt | C165: TBD | D165: Third-Party | E165: Fixed Rate | F165: 2018-12-01 | G165: 30 | H165: =2100000/12 -> 175000 | I165: 0.0477 | J165: 8347.5
A166: 12 | J166: 0
A168: Total | H168: =SUM(H155:H166) -> 31977902 | I168: =IF(H168=0,"",J168/H168) -> 0.04463441922 | J168: =SUM(J155:J166) -> 1427315.084
D171: Year | E171: 2019
A173: Row | B173: Description | C173: Lender | D173: Affiliated or Third-Party Debt? | E173: Fixed or Variable-Rate? | F173: Start Date | G173: Term (years) | H173: Principal ($) | I173: Rate (%) (Note 2) | J173: Interest ($) (Note 1) | K173: Additional Comments, if any
A174: 1 | B174: Note payable | C174: City of Kingston | D174: Affiliated | E174: Fixed Rate | F174: 2011-05-01 | H174: 10880619 | I174: 0.0587 | J174: =H174*I174 -> 638692.3353
A175: 2 | B175: Long Term Debt | C175: TD Bank | D175: Third-Party | E175: Fixed Rate | F175: 2009-05-20 | G175: 10 | H175: 36414 | I175: 0.0325 | J175: =H175*I175 -> 1183.455
A176: 3 | B176: Long Term Debt | C176: TD Bank | D176: Third-Party | E176: Fixed Rate | F176: 2012-02-16 | G176: 7 | H176: 135010 | I176: 0.0303 | J176: 4090.803
A177: 4 | B177: Long Term Debt | C177: TD Bank | D177: Third-Party | E177: Fixed Rate | F177: 2012-01-04 | G177: 10 | H177: 2808012 | I177: 0.0325 | J177: 91260.39
A178: 5 | B178: Long Term Debt | C178: IO | D178: Third-Party | E178: Fixed Rate | F178: 2012-12-18 | G178: 30 | H178: 3043958 | I178: 0.0392 | J178: 119323.1536
A179: 6 | B179: Long Term Debt | C179: TD Bank | D179: Third-Party | E179: Fixed Rate | F179: 2013-12-18 | G179: 7 | H179: 2220930 | I179: 0.0367 | J179: 81508.131
A180: 7 | B180: Long Term Debt | C180: TD Bank | D180: Third-Party | E180: Fixed Rate | F180: 2014-12-09 | G180: 7 | H180: 1355465 | I180: 0.0324 | J180: 43917.066
A181: 8 | B181: Long Term Debt | C181: TBD | D181: Third-Party | E181: Fixed Rate | F181: 2015-12-15 | G181: 30 | H181: 4639490 | I181: 0.0339 | J181: 157278.711
A182: 9 | B182: Long Term Debt | C182: TBD | D182: Third-Party | E182: Fixed Rate | F182: 2016-12-01 | G182: 30 | H182: 3357721 | I182: 0.0477 | J182: =H182*I182 -> 160163.2917
A183: 10 | B183: Long Term Debt | C183: TBD | D183: Third-Party | E183: Fixed Rate | F183: 2017-12-01 | G183: 30 | H183: 976143 | I183: 0.0477 | J183: 46562.0211
A184: 11 | B184: Long Term Debt | C184: TBD | D184: Third-Party | E184: Fixed Rate | F184: 2018-12-01 | G184: 30 | H184: 2083561 | I184: 0.0477 | J184: 99385.8597
A185: 12 | B185: Long Term Debt | C185: TBD | D185: Third-Party | E185: Fixed Rate | F185: 2019-12-01 | G185: 30 | H185: =2000000/12 -> 166666.6667 | I185: 0.0477 | J185: 7950
A186: 13 | B186: Long Term Debt | C186: TBD | D186: Third-Party | E186: Fixed Rate | F186: 2019-02-16 | G186: 15 | H186: 1581924 | I186: 0.0477 | J186: 75457.7748 | K186: Loan 3 renewed
A187: Total | H187: =SUM(H174:H186) -> 33285913.67 | I187: =IF(H187=0,"",J187/H187) -> 0.04586844175 | J187: =SUM(J174:J186) -> 1526772.992
D190: Year | E190: 2020
A192: Row | B192: Description | C192: Lender | D192: Affiliated or Third-Party Debt? | E192: Fixed or Variable-Rate? | F192: Start Date | G192: Term (years) | H192: Principal ($) | I192: Rate (%) (Note 2) | J192: Interest ($) (Note 1) | K192: Additional Comments, if any
A193: 1 | B193: Note payable | C193: City of Kingston | D193: Affiliated | E193: Fixed Rate | F193: 2011-05-01 | H193: 10880619 | I193: 0.0587 | J193: =H193*I193 -> 638692.3353
A194: 2 | B194: Long Term Debt | C194: TD Bank | D194: Third-Party | E194: Fixed Rate | F194: 2009-05-20 | G194: 10 | H194: 0 | I194: 0.0325 | J194: =H194*I194 -> 0
A195: 3 | B195: Long Term Debt | C195: TD Bank | D195: Third-Party | E195: Fixed Rate | F195: 2012-02-16 | G195: 7 | H195: 0 | I195: 0.0303 | J195: 0
A196: 4 | B196: Long Term Debt | C196: TD Bank | D196: Third-Party | E196: Fixed Rate | F196: 2012-01-04 | G196: 10 | H196: 2624298 | I196: 0.0325 | J196: 85289.685
A197: 5 | B197: Long Term Debt | C197: IO | D197: Third-Party | E197: Fixed Rate | F197: 2012-12-18 | G197: 30 | H197: 2963065 | I197: 0.0392 | J197: 116152.148
A198: 6 | B198: Long Term Debt | C198: TD Bank | D198: Third-Party | E198: Fixed Rate | F198: 2013-12-18 | G198: 7 | H198: 2163909 | I198: 0.0367 | J198: 79415.4603
A199: 7 | B199: Long Term Debt | C199: TD Bank | D199: Third-Party | E199: Fixed Rate | F199: 2014-12-09 | G199: 7 | H199: 1320460 | I199: 0.0324 | J199: 42782.904
A200: 8 | B200: Long Term Debt | C200: TBD | D200: Third-Party | E200: Fixed Rate | F200: 2015-12-15 | G200: 30 | H200: 4528645 | I200: 0.0339 | J200: 153521.0655
A201: 9 | B201: Long Term Debt | C201: TBD | D201: Third-Party | E201: Fixed Rate | F201: 2016-12-01 | G201: 30 | H201: 3296138 | I201: 0.0477 | J201: =H201*I201 -> 157225.7826
A202: 10 | B202: Long Term Debt | C202: TBD | D202: Third-Party | E202: Fixed Rate | F202: 2017-12-01 | G202: 30 | H202: 959349 | I202: 0.0477 | J202: 45760.9473
A203: 11 | B203: Long Term Debt | C203: TBD | D203: Third-Party | E203: Fixed Rate | F203: 2018-12-01 | G203: 30 | H203: 2049900 | I203: 0.0477 | J203: 97780.23
A204: 12 | B204: Long Term Debt | C204: TBD | D204: Third-Party | E204: Fixed Rate | F204: 2019-12-01 | G204: 30 | H204: 1984344 | I204: 0.0477 | J204: 94653.2088
A205: 13 | B205: Long Term Debt | C205: TBD | D205: Third-Party | E205: Fixed Rate | F205: 2019-02-16 | G205: 15 | H205: 1503713 | I205: 0.0477 | J205: 71727.1101 | K205: Loan 3 renewed
A206: 14 | B206: Long Term Debt | C206: TBD | D206: Third-Party | E206: Fixed Rate | F206: 2020-12-01 | G206: 30 | H206: =2000000/12 -> 166666.6667 | I206: 0.0477 | J206: 7950
A207: Total | H207: =SUM(H193:H206) -> 34441106.67 | I207: =IF(H207=0,"",J207/H207) -> 0.04619337271 | J207: =SUM(J193:J206) -> 1590950.877

Sheet App.2-P_Cost_Allocation _2016
E1: File Number: | F1: =EBNUMBER -> EB-2015-0083
E2: Exhibit: | F2: 7
E3: Tab: | F3: 3
E4: Schedule:
E5: Page:
E7: Date: | F7: 2015-05-28
A9: Appendix 2-P
A10: Cost Allocation - 2016
A12: Please complete the following four tables.
A14: A) Allocated Costs
A15: 2016
A16: Classes | B16: Costs Allocated from Previous Study | C16: % | D16: Costs Allocated in Test Year Study (Column 7A) | E16: %
A17: Residential | B17: 7166576.751 | C17: =IF(B$26=0,"",B17/B$26) -> 0.6085937867 | D17: 7588980.108 | E17: =IF(D$26=0,"",D17/D$26) -> 0.5900441093
A18: GS < 50 kW | B18: 1700371.48 | C18: 0.1443974653 | D18: 1733432.279 | E18: 0.1347745666
A19: GS 50 to 4,999 kW | B19: 2282143.229 | C19: 0.1938021789 | D19: 2798607.29 | E19: 0.2175920508
A20: Large Use | B20: 465453.719 | C20: 0.03952685518 | D20: 496506.5987 | E20: 0.03860344732
A21: Street Lighting | B21: 111797.1042 | C21: 0.009493936273 | D21: 222300.4042 | E21: 0.01728388296
A22: Unmetered Scattered Load (USL) | B22: 49290.1798 | C22: 0.004185777703 | D22: 21889.90778 | E22: 0.001701942943
A23: Standby Approved on an Interim Basis | B23: 0 | C23: 0 | D23: 0 | E23: 0
C24: 0 | E24: 0
C25: 0 | E25: 0
A26: Total | B26: =SUM(B17:B25) -> 11775632.46 | C26: =SUM(C17:C25) -> 1 | D26: =SUM(D17:D25) -> 12861716.59 | E26: =SUM(E17:E25) -> 1
A28: Notes
A30: 1 Customer Classification - If proposed rate classes differ from those in place in the previous Cost Allocation study, modify the rate classes to match the current application as closely as possible.
A33: 2 Host Distributors - Provide information on embedded distributor(s) as a separate class, if applicable. If embedded distributor(s) are billed as customers in a General Service class, include the allocated cost and revenue of the embedded distributor(s) in the applicable class. Also complete Appendix 2-Q.
A37: 3 Class Revenue Requirements - If using the Board-issued model, in column 7A enter the results from Worksheet O-1, Revenue Requirement (row 40 in the 2013 model). This excludes costs in deferral and variance accounts. Note to Embedded Distributor(s), it also does not include Account 4750 - Low Voltage (LV) Costs.
A41: B) Calculated Class Revenues
A42: 2016
C43: Column 7B | D43: Column 7C | E43: Column 7D | F43: Column 7E
A44: Classes (same as previous table) | C44: Load Forecast (LF) X current approved rates | D44: L.F. X current approved rates X (1 + d) | E44: LF X proposed rates | F44: Miscellaneous Revenue
A46: =A17 -> Residential | C46: 6473921.157 | D46: 6997605.436 | E46: 7041605.613 | F46: 369662.2593
A47: GS < 50 kW | C47: 1905080.833 | D47: 2059185.41 | E47: 2004109.617 | F47: 76009.08504
A48: GS 50 to 4,999 kW | C48: 2596994.703 | D48: 2624736.812 | E48: 2638851.646 | F48: 96507.07621
A49: Large Use | C49: 491431.1191 | D49: 467572.1128 | E49: 470057.3571 | F49: 18604.42909
A50: Street Lighting | C50: 89061.18209 | D50: 96265.46212 | E50: 105116.8954 | F50: 14925.31624
A51: Unmetered Scattered Load (USL) | C51: 36408.24251 | D51: 39353.35471 | E51: 24978.05468 | F51: 1289.834079
A52: Standby Approved on an Interim Basis | C52: 0 | D52: 0 | E52: 0 | F52: 0
A54: =A25 -> 0
A55: =A26 -> Total | C55: =SUM(C46:C54) -> 11592897.24 | D55: =SUM(D46:D54) -> 12284718.59 | E55: =SUM(E46:E54) -> 12284719.18 | F55: =SUM(F46:F54) -> 576998
C56: existing | D56: (1 + d)
A57: Notes:
A59: 1 Columns 7B to 7D - LF means Load Forecast of Annual Billing Quantities (i.e. customers or connections X 12, (kWh or kW, as applicable). Revenue Quantities should be net of Transfomrer Ownership Allowance. Exclude revenue from rate adders and rate riders.
A62: 2 Columns 7C and 7D - Column total in each column should equal the Base Revenue Requirement
A64: 3 Columns 7C - The Board cost allocation model calculates "1+d" in worksheet O-1, cell C21. "d" is defined as Revenue Deficiency/ Revenue at Current Rates.
A67: 4 Columns 7E - If using the Board-issued Cost Allocation model, enter Miscellaneous Revenue as it appears in Worksheet O-1, row 19.
A70: C) Rebalancing Revenue-to-Cost (R/C) Ratios
A71: 2016
A72: Class | C72: Previously Approved Ratios | D72: Status Quo Ratios | E72: Proposed Ratios | F72: Policy Range
C73: Most Recent Year: | D73: (7C + 7E) / (7A) | E73: (7D + 7E) / (7A)
C74: 2011
C75: % | D75: % | E75: % | F75: %
A76: =A46 -> Residential | C76: 93.28029967 | D76: =IF(D17=0,"",(D46+F46)/D17*100) -> 97.07849526 | E76: =IF(D17=0,"",(E46+F46)/D17*100) -> 97.65828565 | F76: 85 - 115
A77: GS < 50 kW | C77: 120 | D77: 123.1772663 | E77: 119.9999981 | F77: 80 - 120
A78: GS 50 to 4,999 kW | C78: 107 | D78: 97.23564641 | E78: 97.73999847 | F78: 80 - 120
A79: Large Use | C79: 93 | D79: 97.91945225 | E79: 98.41999834 | F79: 85 - 115
A80: Street Lighting | C80: 104 | D80: 50.0182529 | E80: 53.99999702 | F80: 70 - 120
A81: Unmetered Scattered Load (USL) | C81: 120 | D81: 185.6709001 | E81: =IF(D22=0,"",(E51+F51)/D22*100) -> 119.9999974 | F81: 80 - 120
A82: Standby Approved on an Interim Basis | C82: 0
A84: =A54 -> 0
A86: Notes
A88: 1 Previously Approved Revenue-to-Cost Ratios - For most applicants, Most Recent Year would be the third year of the IRM 3 period, e.g. if the applicant rebased in 2009 with further adjustments over 2 years, the Most recent year is 2011. For applicants whose most recent rebasing year is 2006, the applicant should enter the ratios from their Informational Filing.
A91: 2 Status Quo Ratios - The Board's updated Cost Allocation Model yields the Status Quo Ratios in Worksheet O-1. Status Quo means "Before Rebalancing".
A93: D) Proposed Revenue-to-Cost Ratios
A94: 2016
A95: Class | C95: Proposed Revenue-to-Cost Ratios | H95: Policy Range
C96: =TestYear -> 2016 | D96: =C96+1 -> 2017 | E96: =D96+1 -> 2018 | F96: =E96+1 -> 2019 | G96: =F96+1 -> 2020
C97: % | D97: % | E97: % | F97: % | G97: % | H97: %
A98: =A76 -> Residential | C98: =E76 -> 97.65828565 | H98: =F76 -> 85 - 115
A99: =A77 -> GS < 50 kW | C99: =E77 -> 119.9999981 | H99: 80 - 120
A100: =A78 -> GS 50 to 4,999 kW | C100: 97.73999847 | H100: 80 - 120
A101: =A79 -> Large Use | C101: 98.41999834 | H101: 85 - 115
A102: =A80 -> Street Lighting | C102: 53.99999702 | H102: 70 - 120
A103: =A81 -> Unmetered Scattered Load (USL) | C103: 119.9999974 | H103: 80 - 120
A104: Standby Approved on an Interim Basis | H104: 0
H105: 0
A106: 0
A108: Note
A109: 1 The applicant should complete Table D if it is applying for approval of a revenue to cost ratio in 2014 that is outside the Board’s policy range for any customer class. Table (d) will show the information that the distributor would likely enter in the IRM model) in 2014. In 2015 Table (d), enter the planned ratios for the classes that will be ‘Change’ and ‘No Change’ in 2014 (in the current Revenue Cost Ratio Adjustment Workform, Worksheet C1.1 ‘Decision – Cost Revenue Adjustment’, column d), and enter TBD for class(es) that will be entered as ‘Rebalance’.

Sheet App.2-P_Cost_Allocation _2017
E1: File Number: | F1: =EBNUMBER -> EB-2015-0083
E2: Exhibit: | F2: 7
E3: Tab: | F3: 3
E4: Schedule:
E5: Page:
E7: Date: | F7: ='[11]App.2-P_Cost_Allocation _2016'!F7 -> 2015-05-28
A9: Appendix 2-P
A10: Cost Allocation - 2017
A12: Please complete the following four tables.
A14: A) Allocated Costs
A15: 2017
A16: Classes | B16: Costs Allocated from Previous Study | C16: % | D16: Costs Allocated in Test Year Study (Column 7A) | E16: %
A17: Residential | B17: 7166576.751 | C17: =IF(B$26=0,"",B17/B$26) -> 0.6085937867 | D17: 7858117.94 | E17: =IF(D$26=0,"",D17/D$26) -> 0.590144581
A18: GS < 50 kW | B18: 1700371.48 | C18: 0.1443974653 | D18: 1769167.426 | E18: 0.1328644565
A19: GS 50 to 4,999 kW | B19: 2282143.229 | C19: 0.1938021789 | D19: 2927935.984 | E19: 0.219887964
A20: Large User | B20: 465453.719 | C20: 0.03952685518 | D20: 505361.8211 | E20: 0.03795266786
A21: Street Lighting | B21: 111797.1042 | C21: 0.009493936273 | D21: 232617.391 | E21: 0.01746956381
A22: Unmetered Scattered Load (USL) | B22: 49290.1798 | C22: 0.004185777703 | D22: 22380.38602 | E22: 0.001680766773
A23: Standby Approved on an Interim Basis | C23: 0 | E23: 0
C24: 0 | E24: 0
C25: 0 | E25: 0
A26: Total | B26: =SUM(B17:B25) -> 11775632.46 | C26: =SUM(C17:C25) -> 1 | D26: =SUM(D17:D25) -> 13315580.95 | E26: =SUM(E17:E25) -> 1
A28: Notes
A30: 1 Customer Classification - If proposed rate classes differ from those in place in the previous Cost Allocation study, modify the rate classes to match the current application as closely as possible.
A33: 2 Host Distributors - Provide information on embedded distributor(s) as a separate class, if applicable. If embedded distributor(s) are billed as customers in a General Service class, include the allocated cost and revenue of the embedded distributor(s) in the applicable class. Also complete Appendix 2-Q.
A37: 3 Class Revenue Requirements - If using the Board-issued model, in column 7A enter the results from Worksheet O-1, Revenue Requirement (row 40 in the 2013 model). This excludes costs in deferral and variance accounts. Note to Embedded Distributor(s), it also does not include Account 4750 - Low Voltage (LV) Costs.
A41: B) Calculated Class Revenues
A42: 2017
C43: Column 7B | D43: Column 7C | E43: Column 7D | F43: Column 7E
A44: Classes (same as previous table) | C44: Load Forecast (LF) X current approved rates | D44: L.F. X current approved rates X (1 + d) | E44: LF X proposed rates | F44: Miscellaneous Revenue
A46: =A17 -> Residential | C46: 7025658.695 | D46: 7308451.946 | E46: 7312222.524 | F46: 373698.224
A47: GS < 50 kW | C47: 1959743.417 | D47: 2038626.015 | E47: 2022955.622 | F47: 75807.66107
A48: GS 50 to 4,999 kW | C48: 2655221.051 | D48: 2762097.662 | E48: 2764918.619 | F48: 99188.31618
A49: Large User | C49: 468791.0598 | D49: 487660.5998 | E49: 486428.8883 | F49: 18932.92421
A50: Street Lighting | C50: 105146.9232 | D50: 109379.2438 | E50: 119897.6943 | F50: 15020.3857
A51: Unmetered Scattered Load (USL) | C51: 24459.9326 | D51: 25444.4814 | E51: 25236.07784 | F51: 1273.488827
A52: Standby Approved on an Interim Basis
A54: =A25 -> 0
A55: =A26 -> Total | C55: =SUM(C46:C54) -> 12239021.08 | D55: =SUM(D46:D54) -> 12731659.95 | E55: =SUM(E46:E54) -> 12731659.43 | F55: =SUM(F46:F54) -> 583921
C56: existing | D56: 1 + d
A57: Notes:
A59: 1 Columns 7B to 7D - LF means Load Forecast of Annual Billing Quantities (i.e. customers or connections X 12, (kWh or kW, as applicable). Revenue Quantities should be net of Transfomrer Ownership Allowance. Exclude revenue from rate adders and rate riders.
A62: 2 Columns 7C and 7D - Column total in each column should equal the Base Revenue Requirement
A64: 3 Columns 7C - The Board cost allocation model calculates "1+d" in worksheet O-1, cell C21. "d" is defined as Revenue Deficiency/ Revenue at Current Rates.
A67: 4 Columns 7E - If using the Board-issued Cost Allocation model, enter Miscellaneous Revenue as it appears in Worksheet O-1, row 19.
A70: C) Rebalancing Revenue-to-Cost (R/C) Ratios
A71: 2017
A72: Class | C72: Previously Approved Ratios | D72: Status Quo Ratios | E72: Proposed Ratios | F72: Policy Range
C73: Most Recent Year: | D73: (7C + 7E) / (7A) | E73: (7D + 7E) / (7A)
C74: 2011
C75: % | D75: % | E75: % | F75: %
A76: =A46 -> Residential | C76: 0.9328029967 | D76: =IF(D17=0,"",(D46+F46)/D17*100) -> 97.76068811 | E76: =IF(D17=0,"",(E46+F46)/D17*100) -> 97.80867132 | F76: 85 - 115
A77: GS < 50 kW | C77: 1.2 | D77: 119.5157476 | E77: 118.6299981 | F77: 80 - 120
A78: GS 50 to 4,999 kW | C78: 1.07 | D78: 97.7236522 | E78: 97.81999848 | F78: 80 - 120
A79: Large User | C79: 0.93 | D79: 100.2437269 | E79: 99.99999832 | F79: 85 - 115
A80: Street Lighting | C80: 1.04 | D80: 53.47821545 | E80: 57.9999971 | F80: 70 - 120
A81: Unmetered Scattered Load (USL) | C81: 1.2 | D81: 119.3811858 | E81: 118.4499974 | F81: 80 - 120
A82: Standby Approved on an Interim Basis | C82: 0
A84: =A54 -> 0
A86: Notes
A88: 1 Previously Approved Revenue-to-Cost Ratios - For most applicants, Most Recent Year would be the third year of the IRM 3 period, e.g. if the applicant rebased in 2009 with further adjustments over 2 years, the Most recent year is 2011. For applicants whose most recent rebasing year is 2006, the applicant should enter the ratios from their Informational Filing.
A91: 2 Status Quo Ratios - The Board's updated Cost Allocation Model yields the Status Quo Ratios in Worksheet O-1. Status Quo means "Before Rebalancing".
A93: D) Proposed Revenue-to-Cost Ratios
A94: 2017
A95: Class | C95: Proposed Revenue-to-Cost Ratios | H95: Policy Range
C96: =TestYear -> 2016 | D96: =C96+1 -> 2017 | E96: =D96+1 -> 2018 | F96: =E96+1 -> 2019 | G96: =F96+1 -> 2020
C97: % | D97: % | E97: % | F97: % | G97: % | H97: %
A98: =A76 -> Residential | C98: ='[11]App.2-P_Cost_Allocation _2016'!C98 -> 97.65828565 | D98: =E76 -> 97.80867132 | H98: =F76 -> 85 - 115
A99: =A77 -> GS < 50 kW | C99: ='[11]App.2-P_Cost_Allocation _2016'!C99 -> 119.9999981 | D99: =E77 -> 118.6299981 | H99: 80 - 120
A100: =A78 -> GS 50 to 4,999 kW | C100: ='[11]App.2-P_Cost_Allocation _2016'!C100 -> 97.73999847 | D100: 97.81999848 | H100: 80 - 120
A101: =A79 -> Large User | C101: ='[11]App.2-P_Cost_Allocation _2016'!C101 -> 98.41999834 | D101: 99.99999832 | H101: 85 - 115
A102: =A80 -> Street Lighting | C102: ='[11]App.2-P_Cost_Allocation _2016'!C102 -> 53.99999702 | D102: 57.9999971 | H102: 70 - 120
A103: =A81 -> Unmetered Scattered Load (USL) | C103: ='[11]App.2-P_Cost_Allocation _2016'!C103 -> 119.9999974 | D103: 118.4499974 | H103: 80 - 120
A104: Standby Approved on an Interim Basis | C104: ='[11]App.2-P_Cost_Allocation _2016'!C104 ->  | H104: 0
C105: =E83 ->  | H105: 0
A106: 0
A108: Note
A109: 1 The applicant should complete Table D if it is applying for approval of a revenue to cost ratio in 2014 that is outside the Board’s policy range for any customer class. Table (d) will show the information that the distributor would likely enter in the IRM model) in 2014. In 2015 Table (d), enter the planned ratios for the classes that will be ‘Change’ and ‘No Change’ in 2014 (in the current Revenue Cost Ratio Adjustment Workform, Worksheet C1.1 ‘Decision – Cost Revenue Adjustment’, column d), and enter TBD for class(es) that will be entered as ‘Rebalance’.

Sheet App.2-P_Cost_Allocation _2018
E1: File Number: | F1: =EBNUMBER -> EB-2015-0083
E2: Exhibit: | F2: 7
E3: Tab: | F3: 3
E4: Schedule:
E5: Page:
E7: Date: | F7: ='[11]App.2-P_Cost_Allocation _2016'!F7 -> 2015-05-28
A9: Appendix 2-P
A10: Cost Allocation - 2018
A12: Please complete the following four tables.
A14: A) Allocated Costs
A15: 2018
A16: Classes | B16: Costs Allocated from Previous Study | C16: % | D16: Costs Allocated in Test Year Study (Column 7A) | E16: %
A17: Residential | B17: 7166576.751 | C17: =IF(B$26=0,"",B17/B$26) -> 0.6085937867 | D17: 8091785.795 | E17: =IF(D$26=0,"",D17/D$26) -> 0.5887605809
A18: GS < 50 kW | B18: 1700371.48 | C18: 0.1443974653 | D18: 1798891.29 | E18: 0.1308878296
A19: GS 50 to 4,999 kW | B19: 2282143.229 | C19: 0.1938021789 | D19: 3062404.414 | E19: 0.2228213953
A20: Large User | B20: 465453.719 | C20: 0.03952685518 | D20: 527752.9356 | E20: 0.03839945011
A21: Street Lighting | B21: 111797.1042 | C21: 0.009493936273 | D21: 240229.6488 | E21: 0.01747917594
A22: Unmetered Scattered Load (USL) | B22: 49290.1798 | C22: 0.004185777703 | D22: 22698.76096 | E22: 0.001651568149
A23: Standby Approved on an Interim Basis | B23: 0 | C23: 0 | D23: 0 | E23: 0
C24: 0 | E24: 0
C25: 0 | E25: 0
A26: Total | B26: =SUM(B17:B25) -> 11775632.46 | C26: =SUM(C17:C25) -> 1 | D26: =SUM(D17:D25) -> 13743762.84 | E26: =SUM(E17:E25) -> 1
A28: Notes
A30: 1 Customer Classification - If proposed rate classes differ from those in place in the previous Cost Allocation study, modify the rate classes to match the current application as closely as possible.
A33: 2 Host Distributors - Provide information on embedded distributor(s) as a separate class, if applicable. If embedded distributor(s) are billed as customers in a General Service class, include the allocated cost and revenue of the embedded distributor(s) in the applicable class. Also complete Appendix 2-Q.
A37: 3 Class Revenue Requirements - If using the Board-issued model, in column 7A enter the results from Worksheet O-1, Revenue Requirement (row 40 in the 2013 model). This excludes costs in deferral and variance accounts. Note to Embedded Distributor(s), it also does not include Account 4750 - Low Voltage (LV) Costs.
A41: B) Calculated Class Revenues
A42: 2018
C43: Column 7B | D43: Column 7C | E43: Column 7D | F43: Column 7E
A44: Classes (same as previous table) | C44: Load Forecast (LF) X current approved rates | D44: L.F. X current approved rates X (1 + d) | E44: LF X proposed rates | F44: Miscellaneous Revenue
A46: =A17 -> Residential | C46: 7321696.854 | D46: 7582226.512 | E46: 7587594.489 | F46: 371243.3526
A47: GS < 50 kW | C47: 1974801.819 | D47: 2045071.656 | E47: 2028630.267 | F47: 74273.71053
A48: GS 50 to 4,999 kW | C48: 2784612.816 | D48: 2883698.347 | E48: 2885546.41 | F48: 99598.23498
A49: Large User | C49: 484966.8186 | D49: 502223.5068 | E49: 502315.4631 | F49: 18985.35026
A50: Street Lighting | C50: 120390.6782 | D50: 124674.568 | E50: 134004.8903 | F50: 14937.61781
A51: Unmetered Scattered Load (USL) | C51: 24710.958 | D51: 25590.25382 | E51: 25390.45356 | F51: 1239.733791
A52: Standby Approved on an Interim Basis
A54: =A25 -> 0
A55: =A26 -> Total | C55: =SUM(C46:C54) -> 12711179.94 | D55: =SUM(D46:D54) -> 13163484.84 | E55: =SUM(E46:E54) -> 13163481.97 | F55: =SUM(F46:F54) -> 580278
A57: Notes:
A59: 1 Columns 7B to 7D - LF means Load Forecast of Annual Billing Quantities (i.e. customers or connections X 12, (kWh or kW, as applicable). Revenue Quantities should be net of Transfomrer Ownership Allowance. Exclude revenue from rate adders and rate riders.
A62: 2 Columns 7C and 7D - Column total in each column should equal the Base Revenue Requirement
A64: 3 Columns 7C - The Board cost allocation model calculates "1+d" in worksheet O-1, cell C21. "d" is defined as Revenue Deficiency/ Revenue at Current Rates.
A67: 4 Columns 7E - If using the Board-issued Cost Allocation model, enter Miscellaneous Revenue as it appears in Worksheet O-1, row 19.
A70: C) Rebalancing Revenue-to-Cost (R/C) Ratios
A71: 2018
A72: Class | C72: Previously Approved Ratios | D72: Status Quo Ratios | E72: Proposed Ratios | F72: Policy Range
C73: Most Recent Year: | D73: (7C + 7E) / (7A) | E73: (7D + 7E) / (7A)
C74: 2011
C75: % | D75: % | E75: % | F75: %
A76: =A46 -> Residential | C76: 0.9328029967 | D76: =IF(D17=0,"",(D46+F46)/D17*100) -> 98.29066248 | E76: =IF(D17=0,"",(E46+F46)/D17*100) -> 98.35700108 | F76: 85 - 115
A77: GS < 50 kW | C77: 1.2 | D77: 117.8139768 | E77: 116.9000033 | F77: 80 - 120
A78: GS 50 to 4,999 kW | C78: 1.07 | D78: 97.41680652 | E78: 97.47715331 | F78: 80 - 120
A79: Large User | C79: 0.93 | D79: 98.76001096 | E79: 98.77743508 | F79: 85 - 115
A80: Street Lighting | C80: 1.04 | D80: 58.11613448 | E80: 62.00005239 | F80: 70 - 120
A81: Unmetered Scattered Load (USL) | C81: 1.2 | D81: 118.2002298 | E81: 117.3200044 | F81: 80 - 120
A82: Standby Approved on an Interim Basis | C82: 0
A84: =A54 -> 0
A86: Notes
A88: 1 Previously Approved Revenue-to-Cost Ratios - For most applicants, Most Recent Year would be the third year of the IRM 3 period, e.g. if the applicant rebased in 2009 with further adjustments over 2 years, the Most recent year is 2011. For applicants whose most recent rebasing year is 2006, the applicant should enter the ratios from their Informational Filing.
A91: 2 Status Quo Ratios - The Board's updated Cost Allocation Model yields the Status Quo Ratios in Worksheet O-1. Status Quo means "Before Rebalancing".
A93: D) Proposed Revenue-to-Cost Ratios
A94: 2018
A95: Class | C95: Proposed Revenue-to-Cost Ratios | H95: Policy Range
C96: =TestYear -> 2016 | D96: =C96+1 -> 2017 | E96: =D96+1 -> 2018 | F96: =E96+1 -> 2019 | G96: =F96+1 -> 2020
C97: % | D97: % | E97: % | F97: % | G97: % | H97: %
A98: =A76 -> Residential | C98: ='[11]App.2-P_Cost_Allocation _2016'!C98 -> 97.65828565 | D98: ='[11]App.2-P_Cost_Allocation _2017'!D98 -> 97.80867132 | E98: =E76 -> 98.35700108 | H98: =F76 -> 85 - 115
A99: =A77 -> GS < 50 kW | C99: ='[11]App.2-P_Cost_Allocation _2016'!C99 -> 119.9999981 | D99: ='[11]App.2-P_Cost_Allocation _2017'!D99 -> 118.6299981 | E99: =E77 -> 116.9000033 | H99: 80 - 120
A100: =A78 -> GS 50 to 4,999 kW | C100: ='[11]App.2-P_Cost_Allocation _2016'!C100 -> 97.73999847 | D100: ='[11]App.2-P_Cost_Allocation _2017'!D100 -> 97.81999848 | E100: 97.47715331 | H100: 80 - 120
A101: =A79 -> Large User | C101: ='[11]App.2-P_Cost_Allocation _2016'!C101 -> 98.41999834 | D101: ='[11]App.2-P_Cost_Allocation _2017'!D101 -> 99.99999832 | E101: 98.77743508 | H101: 85 - 115
A102: =A80 -> Street Lighting | C102: ='[11]App.2-P_Cost_Allocation _2016'!C102 -> 53.99999702 | D102: ='[11]App.2-P_Cost_Allocation _2017'!D102 -> 57.9999971 | E102: 62.00005239 | H102: 70 - 120
A103: =A81 -> Unmetered Scattered Load (USL) | C103: ='[11]App.2-P_Cost_Allocation _2016'!C103 -> 119.9999974 | D103: ='[11]App.2-P_Cost_Allocation _2017'!D103 -> 118.4499974 | E103: 117.3200044 | H103: 80 - 120
A104: Standby Approved on an Interim Basis | C104: ='[11]App.2-P_Cost_Allocation _2016'!C104 ->  | D104: ='[11]App.2-P_Cost_Allocation _2017'!D104 ->  | H104: 0
C105: ='[11]App.2-P_Cost_Allocation _2016'!C105 ->  | H105: 0
A106: 0 | C106: =E84 -> 
A108: Note
A109: 1 The applicant should complete Table D if it is applying for approval of a revenue to cost ratio in 2014 that is outside the Board’s policy range for any customer class. Table (d) will show the information that the distributor would likely enter in the IRM model) in 2014. In 2015 Table (d), enter the planned ratios for the classes that will be ‘Change’ and ‘No Change’ in 2014 (in the current Revenue Cost Ratio Adjustment Workform, Worksheet C1.1 ‘Decision – Cost Revenue Adjustment’, column d), and enter TBD for class(es) that will be entered as ‘Rebalance’.

Sheet App.2-P_Cost_Allocation _2019
E1: File Number: | F1: =EBNUMBER -> EB-2015-0083
E2: Exhibit: | F2: 7
E3: Tab: | F3: 3
E4: Schedule:
E5: Page:
E7: Date: | F7: ='[11]App.2-P_Cost_Allocation _2016'!F7 -> 2015-05-28
A9: Appendix 2-P
A10: Cost Allocation - 2019
A12: Please complete the following four tables.
A14: A) Allocated Costs
A15: 2019
A16: Classes | B16: Costs Allocated from Previous Study | C16: % | D16: Costs Allocated in Test Year Study (Column 7A) | E16: %
A17: Residential | B17: 7166576.751 | C17: =IF(B$26=0,"",B17/B$26) -> 0.6085937867 | D17: 8305172.408 | E17: =IF(D$26=0,"",D17/D$26) -> 0.5852472197
A18: GS < 50 kW | B18: 1700371.48 | C18: 0.1443974653 | D18: 1828441.321 | E18: 0.1288462355
A19: GS 50 to 4,999 kW | B19: 2282143.229 | C19: 0.1938021789 | D19: 3218731.504 | E19: 0.2268169246
A20: Large User | B20: 465453.719 | C20: 0.03952685518 | D20: 569286.3542 | E20: 0.04011635637
A21: Street Lighting | B21: 111797.1042 | C21: 0.009493936273 | D21: 246329.1395 | E21: 0.01735827229
A22: Unmetered Scattered Load (USL) | B22: 49290.1798 | C22: 0.004185777703 | D22: 22918.15007 | E22: 0.001614991592
A23: Standby Approved on an Interim Basis | B23: 0 | C23: 0 | D23: 0 | E23: 0
C24: 0 | E24: 0
C25: 0 | E25: 0
A26: Total | B26: =SUM(B17:B25) -> 11775632.46 | C26: =SUM(C17:C25) -> 1 | D26: =SUM(D17:D25) -> 14190878.88 | E26: =SUM(E17:E25) -> 1
A28: Notes
A30: 1 Customer Classification - If proposed rate classes differ from those in place in the previous Cost Allocation study, modify the rate classes to match the current application as closely as possible.
A33: 2 Host Distributors - Provide information on embedded distributor(s) as a separate class, if applicable. If embedded distributor(s) are billed as customers in a General Service class, include the allocated cost and revenue of the embedded distributor(s) in the applicable class. Also complete Appendix 2-Q.
A37: 3 Class Revenue Requirements - If using the Board-issued model, in column 7A enter the results from Worksheet O-1, Revenue Requirement (row 40 in the 2013 model). This excludes costs in deferral and variance accounts. Note to Embedded Distributor(s), it also does not include Account 4750 - Low Voltage (LV) Costs.
A41: B) Calculated Class Revenues
A42: 2019
C43: Column 7B | D43: Column 7C | E43: Column 7D | F43: Column 7E
A44: Classes (same as previous table) | C44: Load Forecast (LF) X current approved rates | D44: L.F. X current approved rates X (1 + d) | E44: LF X proposed rates | F44: Miscellaneous Revenue
A46: =A17 -> Residential | C46: 7623164.193 | D46: 7873418.993 | E46: 7876090.683 | F46: 376981.9708
A47: GS < 50 kW | C47: 1980799.785 | D47: 2045825.887 | E47: 2033755.08 | F47: 74437.70767
A48: GS 50 to 4,999 kW | C48: 2904649.586 | D48: 3000004.019 | E48: 3000539.848 | F48: 103005.3375
A49: Large User | C49: 500726.3427 | D49: 517164.2899 | E49: 517191.518 | F49: 19645.49922
A50: Street Lighting | C50: 134072.6976 | D50: 138474.0637 | E50: 147506.0326 | F50: 15071.18815
A51: Unmetered Scattered Load (USL) | C51: 24807.2475 | D51: 25621.62492 | E51: 25425.51086 | F51: 1228.296748
A52: Standby Approved on an Interim Basis | F52: 0
A54: =A25 -> 0
A55: =A26 -> Total | C55: =SUM(C46:C54) -> 13168219.85 | D55: =SUM(D46:D54) -> 13600508.88 | E55: =SUM(E46:E54) -> 13600508.67 | F55: =SUM(F46:F54) -> 590370
A57: Notes:
A59: 1 Columns 7B to 7D - LF means Load Forecast of Annual Billing Quantities (i.e. customers or connections X 12, (kWh or kW, as applicable). Revenue Quantities should be net of Transfomrer Ownership Allowance. Exclude revenue from rate adders and rate riders.
A62: 2 Columns 7C and 7D - Column total in each column should equal the Base Revenue Requirement
A64: 3 Columns 7C - The Board cost allocation model calculates "1+d" in worksheet O-1, cell C21. "d" is defined as Revenue Deficiency/ Revenue at Current Rates.
A67: 4 Columns 7E - If using the Board-issued Cost Allocation model, enter Miscellaneous Revenue as it appears in Worksheet O-1, row 19.
A70: C) Rebalancing Revenue-to-Cost (R/C) Ratios
A71: 2019
A72: Class | C72: Previously Approved Ratios | D72: Status Quo Ratios | E72: Proposed Ratios | F72: Policy Range
C73: Most Recent Year: | D73: (7C + 7E) / (7A) | E73: (7D + 7E) / (7A)
C74: 2011
C75: % | D75: % | E75: % | F75: %
A76: =A46 -> Residential | C76: 0.9328029967 | D76: =IF(D17=0,"",(D46+F46)/D17*100) -> 99.34051406 | E76: =IF(D17=0,"",(E46+F46)/D17*100) -> 99.37268306 | F76: 85 - 115
A77: GS < 50 kW | C77: 1.2 | D77: 115.9601662 | E77: 115.2999969 | F77: 80 - 120
A78: GS 50 to 4,999 kW | C78: 1.07 | D78: 96.40472814 | E78: 96.42137535 | F78: 80 - 120
A79: Large User | C79: 0.93 | D79: 94.29521456 | E79: 94.2999974 | F79: 85 - 115
A80: Street Lighting | C80: 1.04 | D80: 62.33336912 | E80: 65.9999954 | F80: 70 - 120
A81: Unmetered Scattered Load (USL) | C81: 1.2 | D81: 117.155711 | E81: 116.299996 | F81: 80 - 120
A82: Standby Approved on an Interim Basis | C82: 0
A84: =A54 -> 0
A86: Notes
A88: 1 Previously Approved Revenue-to-Cost Ratios - For most applicants, Most Recent Year would be the third year of the IRM 3 period, e.g. if the applicant rebased in 2009 with further adjustments over 2 years, the Most recent year is 2011. For applicants whose most recent rebasing year is 2006, the applicant should enter the ratios from their Informational Filing.
A91: 2 Status Quo Ratios - The Board's updated Cost Allocation Model yields the Status Quo Ratios in Worksheet O-1. Status Quo means "Before Rebalancing".
A93: D) Proposed Revenue-to-Cost Ratios
A94: 2019
A95: Class | C95: Proposed Revenue-to-Cost Ratios | H95: Policy Range
C96: =TestYear -> 2016 | D96: =C96+1 -> 2017 | E96: =D96+1 -> 2018 | F96: =E96+1 -> 2019 | G96: =F96+1 -> 2020
C97: % | D97: % | E97: % | F97: % | G97: % | H97: %
A98: =A76 -> Residential | C98: ='[11]App.2-P_Cost_Allocation _2016'!C98 -> 97.65828565 | D98: ='[11]App.2-P_Cost_Allocation _2017'!D98 -> 97.80867132 | E98: ='[11]App.2-P_Cost_Allocation _2018'!E98 -> 98.35700108 | F98: =E76 -> 99.37268306 | H98: =F76 -> 85 - 115
A99: =A77 -> GS < 50 kW | C99: ='[11]App.2-P_Cost_Allocation _2016'!C99 -> 119.9999981 | D99: ='[11]App.2-P_Cost_Allocation _2017'!D99 -> 118.6299981 | E99: ='[11]App.2-P_Cost_Allocation _2018'!E99 -> 116.9000033 | F99: =E77 -> 115.2999969 | H99: 80 - 120
A100: =A78 -> GS 50 to 4,999 kW | C100: ='[11]App.2-P_Cost_Allocation _2016'!C100 -> 97.73999847 | D100: ='[11]App.2-P_Cost_Allocation _2017'!D100 -> 97.81999848 | E100: ='[11]App.2-P_Cost_Allocation _2018'!E100 -> 97.47715331 | F100: 96.42137535 | H100: 80 - 120
A101: =A79 -> Large User | C101: ='[11]App.2-P_Cost_Allocation _2016'!C101 -> 98.41999834 | D101: ='[11]App.2-P_Cost_Allocation _2017'!D101 -> 99.99999832 | E101: ='[11]App.2-P_Cost_Allocation _2018'!E101 -> 98.77743508 | F101: 94.2999974 | H101: 85 - 115
A102: =A80 -> Street Lighting | C102: ='[11]App.2-P_Cost_Allocation _2016'!C102 -> 53.99999702 | D102: ='[11]App.2-P_Cost_Allocation _2017'!D102 -> 57.9999971 | E102: ='[11]App.2-P_Cost_Allocation _2018'!E102 -> 62.00005239 | F102: 65.9999954 | H102: 70 - 120
A103: =A81 -> Unmetered Scattered Load (USL) | C103: ='[11]App.2-P_Cost_Allocation _2016'!C103 -> 119.9999974 | D103: ='[11]App.2-P_Cost_Allocation _2017'!D103 -> 118.4499974 | E103: ='[11]App.2-P_Cost_Allocation _2018'!E103 -> 117.3200044 | F103: 116.299996 | H103: 80 - 120
A104: Standby Approved on an Interim Basis | C104: ='[11]App.2-P_Cost_Allocation _2016'!C104 ->  | H104: 0
C105: =E83 ->  | H105: 0
A106: 0
A108: Note
A109: 1 The applicant should complete Table D if it is applying for approval of a revenue to cost ratio in 2014 that is outside the Board’s policy range for any customer class. Table (d) will show the information that the distributor would likely enter in the IRM model) in 2014. In 2015 Table (d), enter the planned ratios for the classes that will be ‘Change’ and ‘No Change’ in 2014 (in the current Revenue Cost Ratio Adjustment Workform, Worksheet C1.1 ‘Decision – Cost Revenue Adjustment’, column d), and enter TBD for class(es) that will be entered as ‘Rebalance’.

Sheet App.2-P_Cost_Allocation _2020
E1: File Number: | F1: =EBNUMBER -> EB-2015-0083
E2: Exhibit: | F2: 7
E3: Tab: | F3: 3
E4: Schedule:
E5: Page:
E7: Date: | F7: ='[11]App.2-P_Cost_Allocation _2016'!F7 -> 2015-05-28
A9: Appendix 2-P
A10: Cost Allocation - 2020
A12: Please complete the following four tables.
A14: A) Allocated Costs
A15: 2020
A16: Classes | B16: Costs Allocated from Previous Study | C16: % | D16: Costs Allocated in Test Year Study (Column 7A) | E16: %
A17: Residential | B17: 7166576.751 | C17: =IF(B$26=0,"",B17/B$26) -> 0.6085937867 | D17: 8458080.758 | E17: =IF(D$26=0,"",D17/D$26) -> 0.5814348165
A18: GS < 50 kW | B18: 1700371.48 | C18: 0.1443974653 | D18: 1842378.668 | E18: 0.1266508483
A19: GS 50 to 4,999 kW | B19: 2282143.229 | C19: 0.1938021789 | D19: 3362203.906 | E19: 0.2311283691
A20: Large User | B20: 465453.719 | C20: 0.03952685518 | D20: 611269.8418 | E20: 0.04202059291
A21: Street Lighting | B21: 111797.1042 | C21: 0.009493936273 | D21: 249986.013 | E21: 0.01718481719
A22: Unmetered Scattered Load (USL) | B22: 49290.1798 | C22: 0.004185777703 | D22: 22992.20956 | E22: 0.001580556101
A23: Standby Approved on an Interim Basis | B23: 0 | C23: 0 | D23: 0 | E23: 0
C24: 0 | E24: 0
C25: 0 | E25: 0
A26: Total | B26: =SUM(B17:B25) -> 11775632.46 | C26: =SUM(C17:C25) -> 1 | D26: =SUM(D17:D25) -> 14546911.4 | E26: =SUM(E17:E25) -> 1
A28: Notes
A30: 1 Customer Classification - If proposed rate classes differ from those in place in the previous Cost Allocation study, modify the rate classes to match the current application as closely as possible.
A33: 2 Host Distributors - Provide information on embedded distributor(s) as a separate class, if applicable. If embedded distributor(s) are billed as customers in a General Service class, include the allocated cost and revenue of the embedded distributor(s) in the applicable class. Also complete Appendix 2-Q.
A37: 3 Class Revenue Requirements - If using the Board-issued model, in column 7A enter the results from Worksheet O-1, Revenue Requirement (row 40 in the 2013 model). This excludes costs in deferral and variance accounts. Note to Embedded Distributor(s), it also does not include Account 4750 - Low Voltage (LV) Costs.
A41: B) Calculated Class Revenues
A42: 2020
C43: Column 7B | D43: Column 7C | E43: Column 7D | F43: Column 7E
A44: Classes (same as previous table) | C44: Load Forecast (LF) X current approved rates | D44: L.F. X current approved rates X (1 + d) | E44: LF X proposed rates | F44: Miscellaneous Revenue
A46: =A17 -> Residential | C46: 7927297.68 | D46: 8117827.609 | E46: 8108994.628 | F46: 382790.5826
A47: GS < 50 kW | C47: 1984994.365 | D47: 2032703.035 | E47: 2032579.888 | F47: 74600.23308
A48: GS 50 to 4,999 kW | C48: 3018824.94 | D48: 3091381.381 | E48: 3091576.805 | F48: 106551.5729
A49: Large User | C49: 515409.4242 | D49: 527797.1161 | E49: 527827.1868 | F49: 20331.49327
A50: Street Lighting | C50: 147510.7124 | D50: 151056.0827 | E50: 159784.5706 | F50: 15205.64176
A51: Unmetered Scattered Load (USL) | C51: 24851.8656 | D51: 25449.17182 | E51: 25447.00432 | F51: 1217.476391
A52: Standby Approved on an Interim Basis
A54: =A25 -> 0
A55: =A26 -> Total | C55: =SUM(C46:C54) -> 13618888.99 | D55: =SUM(D46:D54) -> 13946214.4 | E55: =SUM(E46:E54) -> 13946210.08 | F55: =SUM(F46:F54) -> 600697
A57: Notes:
A59: 1 Columns 7B to 7D - LF means Load Forecast of Annual Billing Quantities (i.e. customers or connections X 12, (kWh or kW, as applicable). Revenue Quantities should be net of Transfomrer Ownership Allowance. Exclude revenue from rate adders and rate riders.
A62: 2 Columns 7C and 7D - Column total in each column should equal the Base Revenue Requirement
A64: 3 Columns 7C - The Board cost allocation model calculates "1+d" in worksheet O-1, cell C21. "d" is defined as Revenue Deficiency/ Revenue at Current Rates.
A67: 4 Columns 7E - If using the Board-issued Cost Allocation model, enter Miscellaneous Revenue as it appears in Worksheet O-1, row 19.
A70: C) Rebalancing Revenue-to-Cost (R/C) Ratios
A71: 2020
A72: Class | C72: Previously Approved Ratios | D72: Status Quo Ratios | E72: Proposed Ratios | F72: Policy Range
C73: Most Recent Year: | D73: (7C + 7E) / (7A) | E73: (7D + 7E) / (7A)
C74: 2011
C75: % | D75: % | E75: % | F75: %
